Workbook

Sheet Det. Est. (2) (hidden)
A1: DETAILED CUM ABSTRACT ESTIMATE
B2: ='Lead statement'!C3 -> Name of the Work :: | C2: ='Lead statement'!D3 -> Providing Interlocking pavers road from Lanke seshagiri rao (H) to kokkiligadda varma (H) in Duggirala (V&M).
G3: ='Lead statement'!J4 -> Estimate Cost :: Rs. | H3: ='Lead statement'!K4 -> 1.7 | I3: Lakhs | L3: =I148 -> 
A4: Sl. No. | B4: Discription of Item | C4: Nos | D4: Measurements | G4: Qty | H4: Rate unit | I4: Amount | L4: =I147 -> 
D5: L | E5: B | F5: D | L5: =L3-L4 -> 
A6: 1 | B6: 2 | D6: 3 | E6: 4 | F6: 5 | G6: 6 | H6: 7 | I6: 8 | J6: =I148 -> 
A7: 1 | B7: Unskilled labour for Earth work exevation and depositing the soil on banks with an initial lead and lift in all soils etc., complete. | K7: As per sanctioned amount
B8: Drain cum Retaining wall, L/S & R/S | C8: 1 | D8: =55+100+21 -> 176 | E8: 0.6 | F8: 0.45 | G8: =ROUND(C8*D8*E8*F8,2) -> 47.52
B9: Drain, R/S | C9: 1 | E9: 0.65 | F9: 0.6 | G9: =ROUND(F9*E9*D9*LEFT(C9,1)*RIGHT(C9,1),2) -> 0
G11: =SUM(G8:G10) -> 47.52 | H11: =Data!H106 -> 244.608 | I11: =ROUND(G11*H11,0) -> 11624 | K11: =I11/180 -> 64.57777778
G12: Cum | H12: 1 Cum
A13: 2 | B13: Laying of M15 nominal mix using 66% of 20 mm HBG Metal and 34% of 12mm HBG Metal including Cost and Conveyance of all materials, Centering and Labour Charges and Curing for Side Drains as Per the Section Covered in guidelines for Bed concrete
B14: =B8 -> Drain cum Retaining wall, L/S & R/S | C14: 1 | D14: =D8 -> 176 | E14: 0.6 | F14: 0.1 | G14: =ROUND(C14*D14*E14*F14,2) -> 10.56
B15: Drain, R/S | C15: 1x1 | D15: =D9 -> 0 | E15: 0.65 | F15: 0.15 | G15: =ROUND(F15*E15*D15*LEFT(C15,1)*RIGHT(C15,1),2) -> 0
B16: =+B10 -> 0 | C16: 0 | D16: 0 | E16: 0 | F16: 0 | G16: 0
G17: =SUM(G14:G16) -> 10.56 | H17: =Data!#REF! ->  | I17: =ROUND(G17*H17,0) -> 
G18: Cum | H18: 1 Cum
A19: 3 | B19: Laying of M15 nominal mix using 66% of 20 mm HBG Metal and 33% of 12mm HBG Metal including Cost and Conveyance of all materials, Centering and Labour Charges and Curing for Side Drains as Per the Section Covered in guidelines for Drainwalls on roadside and houseside
B20: Both sides of the Road | C20: Drain cum Retaining wall, L/S & R/S
B21: =CONCATENATE("Road no. ",J21) -> Road no. 10 | C21: 1 | D21: 55 | E21: =IF(K21=L21,K21,CONCATENATE("(",K21,"+",L21,")/2")) -> (0.23+0.30)/2 | F21: 0.45 | G21: =ROUND(C21*D21*M21*F21,2) -> 6.56 | J21: 10 | K21: 0.23 | L21: 0.30 | M21: =(K21+L21)/2 -> 0.265
B22: Road no. 2 | C22: 2 | D22: 50 | E22: (0.23+0.30)/2 | F22: 0.45 | G22: 11.93 | J22: 2 | K22: 0.23 | L22: 0.30 | M22: 0.265
B23: Road no. 4 | C23: 1 | D23: 21 | E23: (0.23+0.30)/2 | F23: 0.35 | G23: 1.95 | J23: 4 | K23: 0.23 | L23: 0.30 | M23: 0.265
G24: =SUM(G21:G23) -> 20.44 | H24: =Data!H130 ->  | I24: =ROUND(G24*H24,0) -> 
G25: Cum | H25: 1 Cum
A26: 4 | B26: Cost and supply of stone dust for including Cost and conveyance of all materials and labour charges for loading unloading charges etc , complete for foundation of | K26: Between Drain & CC Road
B27: =B8 -> Drain cum Retaining wall, L/S & R/S | C27: 1 | D27: =D8 -> 176 | E27: 0.6 | F27: 0.15 | G27: =ROUND(C27*D27*E27*F27,2) -> 15.84
B28: Underneath CC Pavement
B29: =CONCATENATE("Road no. ",J29) -> Road no. 10 | C29: 1 | D29: 10.5 | E29: 3 | F29: 0.25 | G29: =ROUND(C29*D29*E29*F29,2) -> 7.88 | J29: 10
B30: Road no. 10 | C30: 1 | D30: 44.5 | E30: 2 | F30: 0.25 | G30: 22.25 | J30: 10
B31: Road no. 2 | C31: 1 | D31: 50 | E31: 2.54 | F31: 0.25 | G31: 31.75 | J31: 2
B32: Road no. 4 | C32: 1 | D32: 21 | E32: 2.54 | F32: 0.15 | G32: 8 | J32: 4
B33: Road no. 13 | C33: 1 | E33: 1.8 | F33: 0.2 | G33: 0 | J33: 13
G34: =SUM(G27:G33) -> 85.72 | H34: =+'Lead statement'!O19 -> 953.7 | I34: =ROUND(G34*H34,0) -> 81751
G35: Cum | H35: 1 Cum
A36: 5 | B36: Unskilled labour for filling Stone dust in foundation and Underneath CC pavement and side berms including all labour charges etc., complete
B37: =B27 -> Drain cum Retaining wall, L/S & R/S | C37: 1 | D37: 176 | E37: 0.6 | F37: 0.15 | G37: =ROUND(C37*D37*E37*F37,2) -> 15.84
B38: Underneath CC Pavement
B39: =CONCATENATE("Road no. ",J39) -> Road no. 10 | C39: 1 | D39: 10.5 | E39: 3 | F39: 0.25 | G39: =ROUND(C39*D39*E39*F39,2) -> 7.88 | J39: 10
B40: Road no. 10 | C40: 1 | D40: 44.5 | E40: 2 | F40: 0.25 | G40: 22.25 | J40: 10
B41: Road no. 2 | C41: 1 | D41: 50 | E41: 2.54 | F41: 0.25 | G41: 31.75 | J41: 2
B42: Road no. 4 | C42: 1 | D42: 21 | E42: 2.54 | F42: 0.15 | G42: 8 | J42: 4
B43: Road no. 13 | C43: 1 | D43: =D33 -> 0 | E43: 1.8 | F43: 0.2 | G43: 0 | J43: 13
G44: =G34 -> 85.72 | H44: =+Data!G49 -> 0 | I44: =ROUND(G44*H44,0) -> 0 | K44: =I44/180 -> 0 | L44: =82+58 -> 140
G45: Cum | H45: 1 Cum
A46: 6 | B46: Loosening of the ground upto a level of 300 mm below the subgrade level, watered, graded and compacted in layers to meet requirement of Tables 300.1 and 300.2 for subgrade construction as per Technical Specification Clause 303.5.2 MORD / 305 MORTH.
B47: for Subgrade
B48: =CONCATENATE("Road no. ",J48) -> Road no. 11 | C48: 1 | D48: 60 | E48: 5 | F48: 0.3 | G48: =ROUND(C48*D48*E48*F48,2) -> 90 | J48: 11
B49: Road no. 6 | C49: 1 | D49: 30 | E49: 5 | F49: 0.3 | G49: 45 | J49: 6
B50: Road no. 7 | C50: 1 | D50: 50 | E50: 3.5 | F50: 0.3 | G50: 52.5 | J50: 7
B51: Road no. 8 | C51: 1 | D51: 45 | E51: 3.3 | F51: 0.3 | G51: 44.55 | J51: 8
B52: Road no. 1 | C52: 1 | D52: 43 | E52: 4 | F52: 0.3 | G52: 51.6 | J52: 1
B53: Road no. 3 | C53: 1 | D53: 30 | E53: 3.4 | F53: 0.3 | G53: 30.6 | J53: 3
G55: =SUM(G48:G54) -> 314.25 | H55: =Data!#REF! ->  | I55: =ROUND(G55*H55,0) -> 
G56: Cum | H56: ="1"&G56 -> 1Cum
A57: 7 | B57: Supply and collection of Selected Earth including stacking to Departmental gauge for pre measurements for Subgrade (CSSR)
B58: for Subgrade
B59: =CONCATENATE("Road no. ",J59) -> Road no. 11 | C59: 1 | D59: 60 | E59: 5 | F59: =K59*1.28 -> 0.384 | G59: =ROUND(C59*D59*E59*F59,2) -> 115.2 | J59: 11 | K59: 0.3
B60: Road no. 6 | C60: 1 | D60: 30 | E60: 5 | F60: 0.256 | G60: 38.4 | J60: 6 | K60: 0.2
B61: Road no. 7 | C61: 1 | D61: 50 | E61: 3.5 | F61: 0.256 | G61: 44.8 | J61: 7 | K61: 0.2
B62: Road no. 8 | C62: 1 | D62: 45 | E62: 3.3 | F62: 0.256 | G62: 38.02 | J62: 8 | K62: 0.2
B63: Road no. 1 | C63: 1 | D63: 43 | E63: 4 | F63: 0.96 | G63: 165.12 | J63: 1 | K63: 0.75
B64: Road no. 3 | C64: 1 | D64: 30 | E64: 3.4 | F64: 0.256 | G64: 26.11 | J64: 3 | K64: 0.2
B65: for Shoulders
B66: =CONCATENATE("Road no. ",J66) -> Road no. 1 | C66: 2 | D66: 43 | E66: 0.6 | F66: 0.3 | G66: =ROUND(C66*D66*E66*F66,2) -> 15.48 | J66: 1
B67: Road no. 4 | C67: 2 | D67: 21 | E67: 0.75 | F67: 0.3 | G67: 9.45 | J67: 4
B68: Road no. 6 | C68: 2 | D68: 30 | E68: 0.75 | F68: 0.3 | G68: 13.5 | J68: 6
B69: Road no. 7 | C69: 2 | D69: 50 | E69: 0.75 | F69: 0.3 | G69: 22.5 | J69: 7
B70: Road no. 8 | C70: 1 | D70: 45 | E70: 0.6 | F70: 0.3 | G70: 8.1 | J70: 8
B71: Road no. 10 | C71: 1 | D71: 15 | E71: 1 | F71: 0.3 | G71: 4.5 | J71: 10
B72: Road no. 11 | C72: 2 | D72: 60 | E72: 0.9 | F72: 0.3 | G72: 32.4 | J72: 11
G73: =SUM(G59:G72) -> 533.58 | H73: ='Lead statement'!O22 -> 447.7 | I73: =ROUND(G73*H73,0) -> 238884
G74: Cum | H74: ="1"&G74 -> 1Cum
A75: 8 | B75: Engaging Un Skilled Labour for spreading the collected (Selected Earth) material and sectioning for Subgrade (RSSR)
B76: for Subgrade
B77: =CONCATENATE("Road no. ",J77) -> Road no. 11 | C77: 1 | D77: 60 | E77: =E59 -> 5 | F77: 0.384 | G77: =ROUND(C77*D77*E77*F77,2) -> 115.2 | J77: =J59 -> 11 | K77: 0.3
B78: Road no. 6 | C78: 1 | D78: 30 | E78: =E60 -> 5 | F78: 0.256 | G78: 38.4 | J78: 6 | K78: 0.2
B79: Road no. 7 | C79: 1 | D79: 50 | E79: 3.5 | F79: =F61 -> 0.256 | G79: 44.8 | J79: 7 | K79: 0.2
B80: Road no. 8 | C80: 1 | D80: 45 | E80: 3.3 | F80: 0.256 | G80: 38.02 | J80: 8 | K80: 0.2
B81: Road no. 1 | C81: 1 | D81: 43 | E81: 4 | F81: 0.96 | G81: 165.12 | J81: 1 | K81: 0.75
B82: Road no. 3 | C82: 1 | D82: 30 | E82: 3.4 | F82: 0.256 | G82: 26.11 | J82: 3 | K82: 0.2
B83: for Shoulders
B84: =CONCATENATE("Road no. ",J84) -> Road no. 1 | C84: 2 | D84: =D66 -> 43 | E84: 0.6 | F84: 0.3 | G84: =ROUND(C84*D84*E84*F84,2) -> 15.48 | J84: =J66 -> 1
B85: Road no. 4 | C85: 2 | D85: =D67 -> 21 | E85: 0.75 | F85: 0.3 | G85: 9.45 | J85: 4
B86: Road no. 6 | C86: 2 | D86: =D68 -> 30 | E86: 0.75 | F86: 0.3 | G86: 13.5 | J86: 6
B87: Road no. 7 | C87: 2 | D87: =D69 -> 50 | E87: 0.75 | F87: 0.3 | G87: 22.5 | J87: 7
B88: Road no. 8 | C88: 1 | D88: =D70 -> 45 | E88: 0.6 | F88: 0.3 | G88: 8.1 | J88: 8
B89: Road no. 10 | C89: 1 | D89: =D71 -> 15 | E89: 1 | F89: 0.3 | G89: 4.5 | J89: 10
B90: Road no. 11 | C90: 2 | D90: =D72 -> 60 | E90: 0.9 | F90: 0.3 | G90: 32.4 | J90: 11
G92: =SUM(G76:G91) -> 533.58 | H92: =Data!H186 -> 32.94 | I92: =ROUND(G92*H92,0) -> 17576
G93: Cum | H93: ="1"&G93 -> 1Cum
A94: 9 | B94: Compaction of collected Selected Earth using 8-10T Power Road Roller with required watering for Subgrade (CSSR)
B95: for Subgrade
B96: =CONCATENATE("Road no. ",J96) -> Road no. 11 | C96: 1 | D96: 60 | E96: =E77 -> 5 | F96: =K77 -> 0.3 | G96: =ROUND(C96*D96*E96*F96,2) -> 90 | J96: =J77 -> 11 | K96: 0.3
B97: Road no. 6 | C97: 1 | D97: 30 | E97: 5 | F97: 0.2 | G97: 30 | J97: 6 | K97: 0.2
B98: Road no. 7 | C98: 1 | D98: 50 | E98: 3.5 | F98: 0.2 | G98: 35 | J98: 7 | K98: 0.2
B99: Road no. 8 | C99: 1 | D99: 45 | E99: 3.3 | F99: 0.2 | G99: 29.7 | J99: 8 | K99: 0.2
B100: Road no. 1 | C100: 1 | D100: 43 | E100: 4 | F100: 0.75 | G100: 129 | J100: 1 | K100: 0.75
B101: Road no. 3 | C101: 1 | D101: 30 | E101: 3.4 | F101: 0.2 | G101: 20.4 | J101: 3 | K101: 0.2
G103: =SUM(G95:G102) -> 334.1 | H103: =Data!H199 -> 157.13 | I103: =ROUND(G103*H103,0) -> 52497
G104: Cum | H104: ="1"&G104 -> 1Cum
A105: 10 | B105: Construction of granular sub-base by providing coarse graded material, spreading in uniform layers with motor grader on prepared surface, mixing by mix in place method with rotavator at OMC, and compacting with vibratory roller to achieve the desired density, complete as per clause 401 MORTH. Table 400.2
B106: for Subbase
B107: =CONCATENATE("Road no. ",J107) -> Road no. 11 | C107: 1 | D107: 60 | E107: 4 | F107: =K107*1 -> 0.15 | G107: =ROUND(C107*D107*E107*F107,2) -> 36 | J107: 11 | K107: 0.15
B108: Road no. 6 | C108: 1 | D108: 30 | E108: 4 | F108: 0.15 | G108: 18 | J108: 6 | K108: 0.15
B109: Road no. 7 | C109: 1 | D109: 50 | E109: 3.5 | F109: 0.15 | G109: 26.25 | J109: 7 | K109: 0.15
B110: Road no. 8 | C110: 1 | D110: 45 | E110: 3.3 | F110: 0.15 | G110: 22.28 | J110: 8 | K110: 0.15
B111: Road no. 1 | C111: 1 | D111: 43 | E111: 4 | F111: 0.15 | G111: 25.8 | J111: 1 | K111: 0.15
B112: Road no. 3 | C112: 1 | D112: 30 | E112: 3.4 | F112: 0.15 | G112: 15.3 | J112: 3 | K112: 0.15
G113: =SUM(G107:G112) -> 143.63 | H113: =Data!#REF! ->  | I113: =ROUND(G113*H113,0) -> 
G114: Cum | H114: 1 Cum
A121: 6 | B121: Providing CC (1:4:8) using 40mm HBG metal including cost and conveyance of all materials and all labour charges etc., complete. Under CC Road
C122: 1x1 | D122: 60 | E122: 2.5 | F122: 0.075 | G122: =ROUND(F122*E122*D122*LEFT(C122,1)*RIGHT(C122,1),2) -> 11.25
H124: =+Data!#REF! ->  | I124: =ROUND(G124*H124,0) -> 
G125: Cum | H125: 1 Cum
A126: 11 | B126: =Data!E52 -> Construction of un-reinforced, dowel jointed at expansion and construction joint only, plain cement concrete pavement, thickness as per design, over a prepared sub base, with 43 grade cement or any other type as per Clause 1501.2.2 M20 (Grade), coarse and fine aggregates conforming to IS : 383, maximum in a concrete mixer of not less than 0.2 cum capacity and appropeiate weigh batcher using approved mix design, laid in approved fixed side formwork (steel channel, laying and fixing of 125 micron thick polythene film, wedges, steel plates including levelling the formwork as per drawing), spreading the concrete with sholvels, rakes, compacted using needle, scareed and plate vibrators and finished in continuous operation including provision of contraction and expansion, construction joints, applying debonding strips, primer, sealant, dowel bars, near approaches to bridge / culvert and construction joints, admixtures as approved, curing of concrete slabs for 14- days, curing compound (where specified) and water finishing to lines and grade as per drawing and including overhead charges & Contractor profit, but excluding GST & Seignorage Charges Technical Specification Clause 1501 MORD including overhead charges & Contractors profit but excluding GST .
B127: =CONCATENATE("Road no. ",J127) -> Road no. 1 | C127: 1 | D127: 43 | E127: 3 | F127: 0.17 | G127: =ROUND(C127*D127*E127*F127,2) -> 21.93 | J127: 1 | K127: =SUM(D127:D136) -> 384
B128: Road no. 2 | C128: 1 | D128: 50 | E128: 3 | F128: 0.17 | G128: 25.5 | J128: 2
B129: Road no. 3 | C129: 1 | D129: 30 | E129: 2.7 | F129: 0.17 | G129: 13.77 | J129: 3
B130: Road no. 4 | C130: 1 | D130: 21 | E130: 3 | F130: 0.17 | G130: 10.71 | J130: 4
B131: Road no. 6 | C131: 1 | D131: 30 | E131: 3 | F131: 0.17 | G131: 15.3 | J131: 6
B132: Road no. 7 | C132: 1 | D132: 50 | E132: 2 | F132: 0.17 | G132: 17 | J132: 7
B133: Road no. 8 | C133: 1 | D133: 45 | E133: 2.7 | F133: 0.17 | G133: 20.66 | J133: 8
B134: Road no. 10 | C134: 1 | D134: 10.5 | E134: 3 | F134: 0.17 | G134: 5.36 | J134: 10
B135: Road no. 10 | C135: 1 | D135: 44.5 | E135: 2 | F135: 0.17 | G135: 15.13 | J135: 10
B136: Road no. 11 | C136: 1 | D136: 60 | E136: 3 | F136: 0.17 | G136: 30.6 | J136: 11
B137: Road no. 13 | C137: 1 | D137: =D43 -> 0 | E137: 1.8 | F137: 0.17 | G137: 0 | J137: 13
G138: =SUM(G127:G137) -> 175.96 | H138: =Data!H91 -> 5727.44 | I138: =ROUND(G138*H138,0) -> 1007800
G139: Cum | H139: 1 Cum
A140: 12 | B140: Provision of Name Board | C140: 1x1 | G140: =ROUND(RIGHT(C140,1),0) -> 1 | H140: =+Data!#REF! ->  | I140: =ROUND(G140*H140,0) -> 
A141: 26 | B141: Provision for Joint Filler Board 20mm thick | H141: =Data!F84 -> 735
I142: =SUM(I7:I141) -> 
A143: 13 | B143: Seignorage Charges | I143: =Seignorage!G27 -> 24078
A144: =A143+1 -> 14 | B144: Provision for VAT Charges @ 5 % | I144: =+'Imput data'!G65 -> 
A145: 15 | B145: Provision for QC Charges @ 0.50% | I145: =ROUND((I142)*0.5%,0) -> 
A146: 16 | B146: Storage&Safe guard of Materials @2.50% | I146: =ROUND((I142)*2.5%,0) -> 
A147: 17 | B147: Provision for Unforseen Items | I147: =I148-I142-I143-I144-I145-I146 -> 
H148: TOTAL: | I148: ='Lead statement'!#REF!*100000 -> 
C154: Deputy Executive Engineer, | H154: Asst. Exe. Engineer,
C155: PRISD :: Mangalagiri. | H155: MPP (PRI) :: Mangalagiri.

Sheet Wor. Est. (hidden)
A1: DETAILED CUM ABSTRACT ESTIMATE
B2: ='Lead statement'!C3 -> Name of the Work :: | C2: ='Lead statement'!D3 -> Providing Interlocking pavers road from Lanke seshagiri rao (H) to kokkiligadda varma (H) in Duggirala (V&M).
G3: ='Lead statement'!J4 -> Estimate Cost :: Rs. | H3: ='Lead statement'!K4 -> 1.7 | I3: Lakhs | K3: =I176 ->  | M3: Length | N3: Breadth | O3: Depth
A4: Sl. No. | B4: Discription of Item | C4: Nos | D4: Measurements | G4: Qty | H4: Rate unit | I4: Amount | K4: =I175 ->  | L4: CC Road | M4: 250 | N4: 3 | O4: 0.17
D5: L | E5: B | F5: D | K5: =K3-K4 ->  | L5: Gravel Road
A6: 1 | B6: 2 | D6: 3 | E6: 4 | F6: 5 | G6: 6 | H6: 7 | I6: 8 | J6: =I176 ->  | L6: Sholders | M6: =M4 -> 250 | N6: 1 | O6: 0.3
A7: 1 | B7: Unskilled labour for Earth work exevation and depositing the soil on banks with an initial lead and lift in all soils etc., complete. | L7: Drain | M7: 160 | N7: 1.01 | O7: 0.45
B8: Key walls, L/S | C8: 1 | D8: 171 | E8: 0.23 | F8: 0.23 | G8: =ROUND(C8*D8*E8*F8,2) -> 9.05 | K8: Drain cum Retaining wall, L/S & R/S
B9: Key walls, R/S | C9: 1 | D9: 171 | E9: 0.23 | F9: 0.3 | G9: 11.8
B10: Key walls, L/S | C10: 1 | D10: 55 | E10: 0.23 | F10: 0.23 | G10: 2.91
B11: Key walls, R/S | C11: 1 | D11: 55 | E11: 0.23 | F11: 0.23 | G11: 2.91
B12: Trench for loose portion, R/S | C12: 1 | D12: 9 | E12: =IF(K12=L12,K12,CONCATENATE("(",K12,"+",L12,")/2")) -> (0.70+1.00)/2 | F12: 0.3 | G12: =ROUND(C12*D12*M12*F12,2) -> 2.3 | K12: 0.70 | L12: 1.00 | M12: =(K12+L12)/2 -> 0.85
C13: 1 | D13: 23 | E13: (1.00+0.60)/2 | F13: 0.3 | G13: 5.52 | K13: =L12 -> 1.00 | L13: 0.60 | M13: 0.8
C14: 1 | D14: 16 | E14: (0.60+1.00)/2 | F14: 0.3 | G14: 3.84 | K14: 0.60 | L14: 1.00 | M14: 0.8
C15: 1 | D15: 28 | E15: (1.00+1.20)/2 | F15: 0.3 | G15: 9.24 | K15: 1.00 | L15: 1.20 | M15: 1.1
C16: 1 | D16: 10.5 | E16: (1.20+1.50)/2 | F16: 0.3 | G16: 4.25 | K16: 1.20 | L16: 1.50 | M16: 1.35
C17: 1 | D17: 23 | E17: (1.50+0.90)/2 | F17: 0.3 | G17: 8.28 | K17: 1.50 | L17: 0.90 | M17: 1.2
C18: 1 | D18: 13 | E18: (0.90+0.80)/2 | F18: 0.3 | G18: 3.32 | K18: 0.90 | L18: 0.80 | M18: 0.85
C19: 1 | D19: 13.5 | E19: 0.80 | F19: 0.3 | G19: 3.24 | K19: 0.80 | L19: 0.80 | M19: 0.8
C20: 1 | D20: 27 | E20: (0.80+1.00)/2 | F20: 0.3 | G20: 7.29 | K20: 0.80 | L20: 1.00 | M20: 0.9
B21: Drain, L/S
B22: Welding Shop at NH16 to 1st Cross Road | C22: 1 | D22: 11.05 | E22: 1.01 | F22: 0.3 | G22: =ROUND(C22*D22*E22*F22,2) -> 3.35
B23: Culvert Portion @ 1st Cross Road | C23: 1 | D23: 4.4 | E23: 1 | F23: 0.3 | G23: 1.32 | R23: 11.05
B24: Deduct for Side drain Portion | C24: 1 | D24: 0.85 | E24: 0.3 | F24: 0.3 | G24: =-ROUND(C24*D24*E24*F24,2) -> -0.08 | R24: 4.4
B25: 1st Cross Road to 2nd Cross Road | C25: 1 | D25: 27.25 | E25: 1.01 | F25: 0.3 | G25: =ROUND(C25*D25*E25*F25,2) -> 8.26
B26: Culvert Portion @ 1st Cross Road | C26: 1 | D26: 4.8 | E26: 1.2 | F26: 0.3 | G26: 1.73 | R26: 27.25
B27: Deduct for Side drain Portion | C27: 1 | D27: 0.6 | E27: 0.3 | F27: 0.3 | G27: =-ROUND(C27*D27*E27*F27,2) -> -0.05 | R27: 4.8
B28: 2nd Cross Road to 3rd Cross Road | C28: 1 | D28: =11.7+14.65 -> 26.35 | E28: 1.01 | F28: =IF(L28=M28,L28,CONCATENATE("(",L28,"+",M28,")/2")) -> (0.30+0.50)/2 | G28: =ROUND(C28*D28*E28*N28,2) -> 10.65 | L28: 0.30 | M28: 0.50 | N28: =(L28+M28)/2 -> 0.4 | O28: House Side
B29: Culvert Portion @ 2nd Cross Road | C29: 1 | D29: 4.25 | E29: 1.1 | F29: 0.5 | G29: =ROUND(C29*D29*E29*F29,2) -> 2.34 | R29: 26.35
B30: Deduct for Side drain Portion | C30: 1 | D30: 0.9 | E30: 0.3 | F30: 0.5 | G30: =-ROUND(C30*D30*E30*F30,2) -> -0.14 | R30: 4.25
B31: 3rd Cross Road to | C31: 1 | D31: 14 | E31: 1.01 | F31: 0.6 | G31: =ROUND(C31*D31*E31*F31,2) -> 8.48
R32: 14
G33: =SUM(G8:G32) -> 109.81 | H33: =Data!H106 -> 244.608 | I33: =ROUND(G33*H33,0) -> 26860 | K33: =I33/180 -> 149.2222222
G34: Cum | H34: 1 Cum | R34: =SUM(R23:R33) -> 92.1 | S34: =R34+15 -> 107.1
A35: 2 | B35: Providing P. C.C. (1:4:8) Nominal mix using 40mm HBG metal including Cost and conveyance of all materials and labour charges, centring chares, curing etc complete
B36: =B8 -> Key walls, L/S | C36: 1 | D36: 171 | E36: 0.23 | F36: 0.15 | G36: =ROUND(C36*D36*E36*F36,2) -> 5.9
H39: =Data!#REF! ->  | I39: =ROUND(G39*H39,0) -> 
G40: Cum | H40: 1 Cum
A41: 2 | B41: Providing plain cement concrete M10 mix using 40mm to 20 mm Graded HBG crushed Metal with 220 Kgs of cement per 1cum of concrete, including C/c of all materials, curing ,labour charges etc., complete as per drawings & tech. specifications Clause 802, 803, 1202 & 1203 as per clause 800 & 1200 (1) of MORD and guidelines for shoe walls below G.L.
B42: =B8 -> Key walls, L/S | C42: 1 | D42: =169.4 -> 169.4 | E42: =E8 -> 0.23 | F42: 0.23 | G42: =ROUND(C42*D42*E42*F42,2) -> 8.96
B43: =B9 -> Key walls, R/S | C43: 1 | D43: =D42 -> 169.4 | E43: =E9 -> 0.23 | F43: 0.3 | G43: 11.69
B44: =B10 -> Key walls, L/S | C44: 1 | D44: 54 | E44: =E10 -> 0.23 | F44: 0.23 | G44: 2.86
B45: =B10 -> Key walls, L/S | C45: 1 | D45: =D44 -> 54 | E45: =E10 -> 0.23 | F45: 0.23 | G45: 2.86
G46: =SUM(G42:G45) -> 26.37 | H46: =Data!H22 -> 4497.69 | I46: =ROUND(G46*H46,0) -> 118604 | P46: =220/50 -> 4.4 | Q46: =G46*P46 -> 116.028
G47: Cum | H47: 1 Cum
A48: 3 | B48: Providing plain cement concrete M10 mix using 40mm to 20 mm Graded HBG crushed Metal with 220 Kgs of cement per 1cum of concrete, including C/c of all materials, curing ,labour charges etc., complete as per drawings & tech. specifications Clause 802, 803, 1202 & 1203 as per clause 800 & 1200 (1) of MORD and guidelines for Screen walls above G.L.
B49: =B42 -> Key walls, L/S | C49: =C8 -> 1 | D49: 15 | E49: 0.23 | F49: =IF(K49=L49,K49,CONCATENATE("(",K49,"+",L49,")/2")) -> (0.35+0.20)/2 | G49: =ROUND(C49*D49*E49*M49,2) -> 0.95 | K49: 0.35 | L49: 0.20 | M49: =(K49+L49)/2 -> 0.275
C50: 1 | D50: 15 | E50: 0.23 | F50: (0.20+0.17)/2 | G50: 0.64 | K50: =L49 -> 0.20 | L50: 0.17 | M50: 0.185
C51: 1 | D51: =139.4 -> 139.4 | E51: 0.23 | F51: 0.17 | G51: =ROUND(C51*D51*E51*F51,2) -> 5.45
B52: Key walls, R/S | C52: 1 | D52: 15 | E52: 0.23 | F52: =IF(K52=L52,K52,CONCATENATE("(",K52,"+",L52,")/2")) -> (0.30+0.15)/2 | G52: =ROUND(C52*D52*E52*M52,2) -> 0.78 | K52: 0.30 | L52: 0.15 | M52: =(K52+L52)/2 -> 0.225
C53: 1 | D53: =169.4-D52 -> 154.4 | E53: 0.23 | F53: 0.15 | G53: =ROUND(C53*D53*E53*F53,2) -> 5.33
B54: Key walls, L/S & R/S | C54: 2 | D54: 54 | E54: 0.23 | F54: 0.05 | G54: 1.24
G56: =SUM(G49:G55) -> 14.39 | H56: =Data!#REF! ->  | I56: =ROUND(G56*H56,0) ->  | P56: =220/50 -> 4.4 | Q56: =G56*P56 -> 63.316
G57: Cum | H57: 1 Cum
A58: 4 | B58: =Data!#REF! -> 
B59: Welding Shop at NH16 to 1st Cross Road | C59: 1 | D59: 11.05 | E59: 1.01 | F59: 0.15 | G59: =ROUND(C59*D59*E59*F59,2) -> 1.67
B60: Culvert Portion @ 1st Cross Road | C60: 1 | D60: 4.4 | E60: 1 | F60: 0.15 | G60: 0.66
B61: Deduct for Side drain Portion | C61: 1 | D61: 0.85 | E61: 0.3 | F61: 0.15 | G61: =-ROUND(C61*D61*E61*F61,2) -> -0.04
B62: 1st Cross Road to 2nd Cross Road | C62: 1 | D62: 27.25 | E62: 1.01 | F62: 0.15 | G62: =ROUND(C62*D62*E62*F62,2) -> 4.13
B63: Culvert Portion @ 1st Cross Road | C63: 1 | D63: 4.8 | E63: 1.2 | F63: 0.15 | G63: 0.86
B64: Deduct for Side drain Portion | C64: 1 | D64: 0.6 | E64: 0.3 | F64: 0.15 | G64: =-ROUND(C64*D64*E64*F64,2) -> -0.03
B65: 2nd Cross Road to 3rd Cross Road | C65: 1 | D65: =11.7+14.65 -> 26.35 | E65: 1.01 | F65: 0.15 | G65: =ROUND(C65*D65*E65*F65,2) -> 3.99
B66: Culvert Portion @ 2nd Cross Road | C66: 1 | D66: 4.25 | E66: 1.1 | F66: 0.15 | G66: 0.7
B67: Deduct for Side drain Portion | C67: 1 | D67: 0.9 | E67: 0.3 | F67: 0.15 | G67: =-ROUND(C67*D67*E67*F67,2) -> -0.04
B68: 3rd Cross Road to | C68: 1 | D68: 14 | E68: 1.01 | F68: 0.15 | G68: =ROUND(C68*D68*E68*F68,2) -> 2.12
G70: =SUM(G59:G69) -> 14.02 | H70: =Data!#REF! ->  | I70: =ROUND(G70*H70,0) ->  | P70: =275/50 -> 5.5 | Q70: =G70*P70 -> 77.11
G71: Cum | H71: 1 Cum
A72: 5 | B72: Laying of M15 nominal mix using 66% of 20 mm HBG Metal and 33% of 12mm HBG Metal including Cost and Conveyance of all materials, Centering and Labour Charges and Curing for Side Drains as Per the Section Covered in guidelines for Drainwalls on roadside and houseside
B73: Welding Shop at NH16 to 1st Cross Road
B74: =CONCATENATE(N74) -> House Side Wall | C74: 1 | D74: 11.05 | E74: =IF(K74=L74,K74,CONCATENATE("(",K74,"+",L74,")/2")) -> (0.15+0.30)/2 | F74: 0.3 | G74: =ROUND(C74*D74*M74*F74,2) -> 0.75 | K74: 0.15 | L74: 0.30 | M74: =(K74+L74)/2 -> 0.225 | N74: House Side Wall
B75: Deduct for Connecting Drain | C75: 1 | D75: 0.5 | E75: (0.15+0.30)/2 | F75: 0.3 | G75: =-ROUND(C75*D75*M75*F75,2) -> -0.03 | K75: 0.15 | L75: 0.30 | M75: 0.225
B76: =CONCATENATE(N76) -> Road Side Wall | C76: 1 | D76: 11.05 | E76: (0.20+0.35)/2 | F76: 0.45 | G76: =ROUND(C76*D76*M76*F76,2) -> 1.37 | K76: 0.20 | L76: 0.35 | M76: 0.275 | N76: Road Side Wall
B77: Culvert Body Walls | C77: 2 | D77: 4.4 | E77: 0.35 | F77: 0.23 | G77: =ROUND(C77*D77*E77*F77,2) -> 0.71
B78: Deduct for Connecting Drain | C78: 1 | D78: 0.85 | E78: 0.35 | F78: 0.23 | G78: =-ROUND(C78*D78*E78*F78,2) -> -0.07
B79: 1st Cross Road to 2nd Cross Road
B80: =CONCATENATE(N80) -> House Side Wall | C80: 1 | D80: 27.25 | E80: =IF(K80=L80,K80,CONCATENATE("(",K80,"+",L80,")/2")) -> (0.15+0.30)/2 | F80: 0.3 | G80: =ROUND(C80*D80*M80*F80,2) -> 1.84 | K80: 0.15 | L80: 0.30 | M80: =(K80+L80)/2 -> 0.225 | N80: House Side Wall
B81: Deduct for Connecting Drain | C81: 1 | D81: 0.9 | E81: (0.15+0.30)/2 | F81: 0.3 | G81: =-ROUND(C81*D81*M81*F81,2) -> -0.06 | K81: 0.15 | L81: 0.30 | M81: 0.225
B82: =CONCATENATE(N82) -> Road Side Wall | C82: 1 | D82: =D80 -> 27.25 | E82: (0.20+0.35)/2 | F82: 0.45 | G82: =ROUND(C82*D82*M82*F82,2) -> 3.37 | K82: 0.20 | L82: 0.35 | M82: 0.275 | N82: Road Side Wall
B83: Culvert Body Walls | C83: 2 | D83: 4.8 | E83: 0.35 | F83: 0.23 | G83: =ROUND(C83*D83*E83*F83,2) -> 0.77
B84: Deduct for Connecting Drain | C84: 1 | D84: 0.6 | E84: 0.35 | F84: 0.23 | G84: =-ROUND(C84*D84*E84*F84,2) -> -0.05
B85: 2nd Cross Road to 3rd Cross Road
B86: =CONCATENATE(N86) -> House Side Wall | C86: 1 | D86: =11.7+14.65 -> 26.35 | E86: =IF(K86=L86,K86,CONCATENATE("(",K86,"+",L86,")/2")) -> (0.15+0.30)/2 | F86: 0.3 | G86: =ROUND(C86*D86*M86*F86,2) -> 1.78 | K86: 0.15 | L86: 0.30 | M86: =(K86+L86)/2 -> 0.225 | N86: House Side Wall
B87: Deduct for Connecting Drain | C87: 1 | D87: 0.6 | E87: (0.15+0.30)/2 | F87: 0.3 | G87: =-ROUND(C87*D87*M87*F87,2) -> -0.04 | K87: 0.15 | L87: 0.30 | M87: 0.225
B88: =CONCATENATE(N88) -> Road Side Wall | C88: 1 | D88: =D86 -> 26.35 | E88: (0.20+0.35)/2 | F88: 0.3 | G88: =ROUND(C88*D88*M88*F88,2) -> 2.17 | K88: 0.20 | L88: 0.35 | M88: 0.275 | N88: Road Side Wall
B89: Culvert Body Walls | C89: 2 | D89: 4.25 | E89: 0.35 | F89: 0.23 | G89: =ROUND(C89*D89*E89*F89,2) -> 0.68
B90: Deduct for Connecting Drain | C90: 1 | D90: 0.9 | E90: 0.35 | F90: 0.23 | G90: =-ROUND(C90*D90*E90*F90,2) -> -0.07
B91: 3rd Cross Road to
B92: =CONCATENATE(N92) -> House Side Wall | C92: 1 | D92: 14 | E92: =IF(K92=L92,K92,CONCATENATE("(",K92,"+",L92,")/2")) -> (0.15+0.30)/2 | F92: 0.3 | G92: =ROUND(C92*D92*M92*F92,2) -> 0.95 | K92: 0.15 | L92: 0.30 | M92: =(K92+L92)/2 -> 0.225 | N92: House Side Wall
B93: Road Side Wall | C93: 1 | D93: =D92 -> 14 | E93: (0.20+0.35)/2 | F93: 0.3 | G93: 1.16 | K93: 0.20 | L93: 0.35 | M93: 0.275 | N93: Road Side Wall
G95: =SUM(G74:G94) -> 15.23 | H95: =Data!H130 ->  | I95: =ROUND(G95*H95,0) ->  | P95: =275/50 -> 5.5 | Q95: =G95*P95 -> 83.765
G96: Cum | H96: 1 Cum
A97: 6 | B97: Cost and supply of stone dust for including Cost and conveyance of all materials and labour charges for loading unloading charges etc , complete for foundation of | M97: 0 | N97: 0.35 | O97: 0.3 | P97: 0.38 | Q97: =AVERAGE(N97,O97,P97) -> 0.3433333333
B98: Underneath CC Pavement | C98: 1 | D98: =L98 -> 15 | E98: =4-0.23-0.23 -> 3.54 | F98: =R98 -> 0.27 | G98: =ROUND(C98*D98*E98*F98,2) -> 14.34 | L98: =M98-M97 -> 15 | M98: 15 | N98: 0.2 | O98: 0.15 | P98: 0.23 | Q98: 0.1933333333 | R98: =ROUNDUP(AVERAGE(Q97,Q98),2) -> 0.27
C99: 1 | D99: 15 | E99: 3.54 | F99: 0.19 | G99: 10.09 | L99: 15 | M99: 30 | N99: 0.17 | O99: 0.15 | P99: 0.21 | Q99: 0.1766666667 | R99: 0.19
C100: 1 | D100: 15 | E100: 3.54 | F100: 0.18 | G100: 9.56 | L100: 15 | M100: 45 | N100: 0.17 | O100: 0.15 | P100: 0.21 | Q100: 0.1766666667 | R100: 0.18
C101: 1 | D101: 15 | E101: 3.54 | F101: 0.18 | G101: 9.56 | L101: 15 | M101: 60 | N101: 0.17 | O101: 0.15 | P101: 0.21 | Q101: 0.1766666667 | R101: 0.18
C102: 1 | D102: 15 | E102: 3.54 | F102: 0.18 | G102: 9.56 | L102: 15 | M102: 75 | N102: 0.17 | O102: 0.15 | P102: 0.21 | Q102: 0.1766666667 | R102: 0.18
C103: 1 | D103: 15 | E103: 3.54 | F103: 0.18 | G103: 9.56 | L103: 15 | M103: 90 | N103: 0.17 | O103: 0.15 | P103: 0.21 | Q103: 0.1766666667 | R103: 0.18
C104: 1 | D104: 15 | E104: 3.54 | F104: 0.18 | G104: 9.56 | L104: 15 | M104: 105 | N104: 0.17 | O104: 0.15 | P104: 0.21 | Q104: 0.1766666667 | R104: 0.18
C105: 1 | D105: 15 | E105: 3.54 | F105: 0.18 | G105: 9.56 | L105: 15 | M105: 120 | N105: 0.17 | O105: 0.15 | P105: 0.21 | Q105: 0.1766666667 | R105: 0.18
C106: 1 | D106: 15 | E106: 3.54 | F106: 0.18 | G106: 9.56 | L106: 15 | M106: 135 | N106: 0.17 | O106: 0.15 | P106: 0.21 | Q106: 0.1766666667 | R106: 0.18
C107: 1 | D107: 15 | E107: 3.54 | F107: 0.18 | G107: 9.56 | L107: 15 | M107: 150 | N107: 0.17 | O107: 0.15 | P107: 0.21 | Q107: 0.1766666667 | R107: 0.18
C108: 1 | D108: 19.4 | E108: 3.54 | F108: 0.18 | G108: 12.36 | L108: 19.4 | M108: 169.4 | N108: 0.17 | O108: 0.15 | P108: 0.21 | Q108: 0.1766666667 | R108: 0.18
C109: 1 | D109: =54+6.6 -> 60.6 | E109: 3.54 | F109: 0.05 | G109: 10.73
B110: =B21 -> Drain, L/S
B111: Welding Shop at NH16 to 1st Cross Road | C111: 1 | D111: 11.05 | E111: 1.01 | F111: 0.2 | G111: =ROUND(C111*D111*E111*F111,2) -> 2.23
B112: Culvert Portion @ 1st Cross Road | C112: 1 | D112: 4.4 | E112: 1 | F112: 0.2 | G112: 0.88
B113: Deduct for Side drain Portion | C113: 1 | D113: 0.85 | E113: 0.3 | F113: 0.2 | G113: =-ROUND(C113*D113*E113*F113,2) -> -0.05
B114: 1st Cross Road to 2nd Cross Road | C114: 1 | D114: 27.25 | E114: 1.01 | F114: 0.2 | G114: =ROUND(C114*D114*E114*F114,2) -> 5.5
B115: Culvert Portion @ 1st Cross Road | C115: 1 | D115: 4.8 | E115: 1.2 | F115: 0.2 | G115: 1.15
B116: Deduct for Side drain Portion | C116: 1 | D116: 0.6 | E116: 0.3 | F116: 0.2 | G116: =-ROUND(C116*D116*E116*F116,2) -> -0.04
B117: 2nd Cross Road to 3rd Cross Road | C117: 1 | D117: =11.7+14.65 -> 26.35 | E117: 1.01 | F117: 0.2 | G117: =ROUND(C117*D117*E117*F117,2) -> 5.32
B118: Culvert Portion @ 2nd Cross Road | C118: 1 | D118: 4.25 | E118: 1.1 | F118: 0.2 | G118: 0.94
B119: Deduct for Side drain Portion | C119: 1 | D119: 0.9 | E119: 0.3 | F119: 0.2 | G119: =-ROUND(C119*D119*E119*F119,2) -> -0.05
B120: 3rd Cross Road to | C120: 1 | D120: 14 | E120: 1.01 | F120: 0.2 | G120: =ROUND(C120*D120*E120*F120,2) -> 2.83
G121: =SUM(G98:G120) -> 142.71 | H121: =+'Lead statement'!O19 -> 953.7 | I121: =ROUND(G121*H121,0) -> 136103
G122: Cum | H122: 1 Cum
A123: 7 | B123: Unskilled labour for filling Stone dust in foundation and Underneath CC pavement and foundations of side drains, including all labour charges etc., complete
B124: Underneath CC Pavement | C124: 1 | D124: =D98 -> 15 | E124: 3.54 | F124: 0.27 | G124: =ROUND(C124*D124*E124*F124,2) -> 14.34
B125: =B110 -> Drain, L/S | C125: 0 | D125: 0 | E125: 0 | F125: 0 | G125: 0 | J125: 13
G126: =G121 -> 142.71 | H126: =+Data!G49 -> 0 | I126: =ROUND(G126*H126,0) -> 0 | K126: =I126/180 -> 0 | L126: =82+58 -> 140 | N126: =I33+I126 -> 26860 | O126: =N126/194 -> 138.4536082 | P126: =160/6 -> 26.66666667
G127: Cum | H127: 1 Cum
A128: 7 | B128: Loosening of the ground upto a level of 300 mm below the subgrade level, watered, graded and compacted in layers to meet requirement of Tables 300.1 and 300.2 for subgrade construction as per Technical Specification Clause 303.5.2 MORD / 305 MORTH.
B129: for Subgrade
B130: =CONCATENATE("Road no. ",J130) -> Road no. 11 | C130: 1 | D130: 60 | E130: 5 | F130: 0.3 | G130: =ROUND(C130*D130*E130*F130,2) -> 90 | J130: 11
H132: =Data!#REF! ->  | I132: =ROUND(G132*H132,0) -> 
G133: Cum | H133: ="1"&G133 -> 1Cum
A134: 8 | B134: Supply and collection of Selected Earth including stacking to Departmental gauge for pre measurements for Shoulders (CSSR)
B135: for Subgrade
B136: =CONCATENATE("Road no. ",J136) -> Road no. 11 | C136: 1 | D136: 60 | E136: 5 | F136: =K136*1.28 -> 0.384 | J136: 11 | K136: 0.3
B137: Shoulders, L/S & R/S | C137: =C8 -> 1 | D137: 230 | E137: 0.5 | F137: =O6 -> 0.3 | G137: =ROUND(C137*D137*E137*F137,2) -> 34.5
G138: =SUM(G137) -> 34.5 | H138: ='Lead statement'!O22 -> 447.7 | I138: =ROUND(G138*H138,0) -> 15446
G139: Cum | H139: ="1"&G139 -> 1Cum
A140: 9 | B140: Engaging Un Skilled Labour for spreading the collected (Selected Earth) material and sectioning for Shoulders (RSSR)
B141: for Subgrade
C142: 1 | D142: 60 | E142: =E136 -> 5 | F142: 0.384 | K142: 0.3
B143: =B137 -> Shoulders, L/S & R/S | C143: 1 | D143: 230 | E143: 0.5 | F143: 0.3 | G143: =ROUND(C143*D143*E143*F143,2) -> 34.5
G144: =SUM(G143) -> 34.5 | H144: =Data!H186 -> 32.94 | I144: =ROUND(G144*H144,0) -> 1136
G145: Cum | H145: ="1"&G145 -> 1Cum
A146: 10 | B146: Compaction of collected Selected Earth using 8-10T Power Road Roller with required watering for Subgrade (CSSR)
B147: for Subgrade
C148: 1 | D148: 60 | E148: =E142 -> 5 | F148: =K142 -> 0.3 | K148: 0.3
G149: =SUM(G147:G148) -> 0 | H149: =Data!H199 -> 157.13 | I149: =ROUND(G149*H149,0) -> 0
G150: Cum | H150: ="1"&G150 -> 1Cum
A151: 11 | B151: Construction of granular sub-base by providing coarse graded material, spreading in uniform layers with motor grader on prepared surface, mixing by mix in place method with rotavator at OMC, and compacting with vibratory roller to achieve the desired density, complete as per clause 401 MORTH. Table 400.2
B152: for Subbase
B153: Trench for loose portion, R/S | C153: 1 | D153: 9 | E153: =IF(K153=L153,K153,CONCATENATE("(",K153,"+",L153,")/2")) -> (0.70+1.00)/2 | F153: 0.3 | G153: =ROUND(C153*D153*M153*F153,2) -> 2.3 | K153: 0.70 | L153: 1.00 | M153: =(K153+L153)/2 -> 0.85
C154: 1 | D154: 23 | E154: (1.00+0.60)/2 | F154: 0.3 | G154: 5.52 | K154: =L153 -> 1.00 | L154: 0.60 | M154: 0.8
C155: 1 | D155: 16 | E155: (0.60+1.00)/2 | F155: 0.3 | G155: 3.84 | K155: 0.60 | L155: 1.00 | M155: 0.8
C156: 1 | D156: 28 | E156: (1.00+1.20)/2 | F156: 0.3 | G156: 9.24 | K156: 1.00 | L156: 1.20 | M156: 1.1
C157: 1 | D157: 10.5 | E157: (1.20+1.50)/2 | F157: 0.3 | G157: 4.25 | K157: 1.20 | L157: 1.50 | M157: 1.35
C158: 1 | D158: 23 | E158: (1.50+0.90)/2 | F158: 0.3 | G158: 8.28 | K158: 1.50 | L158: 0.90 | M158: 1.2
C159: 1 | D159: 13 | E159: (0.90+0.80)/2 | F159: 0.3 | G159: 3.32 | K159: 0.90 | L159: 0.80 | M159: 0.85
C160: 1 | D160: 13.5 | E160: 0.80 | F160: 0.3 | G160: 3.24 | K160: 0.80 | L160: 0.80 | M160: 0.8
C161: 1 | D161: 27 | E161: (0.80+1.00)/2 | F161: 0.3 | G161: 7.29 | K161: 0.80 | L161: 1.00 | M161: 0.9
G162: =SUM(G153:G161) -> 47.28 | H162: 1357 | I162: =ROUND(G162*H162,0) -> 64159
G163: Cum | H163: 1 Cum
A164: 10 | B164: Costruction of un reinforced dowel jointed at Expansion and construction joint only plain cement concrete pavement , thicknees as per design over a perpared sub base, with 43 / 53 grade cement or any other type using M30 Grade Design mix coarse and fine aggregates conforming to IS :383, maximum size of coarse aggregate not lesst than 0.20 cum capacity and 25m ,MIxied in a concrete mixer of not less thand 0.20 cum capacity and appropriate weigh batcher using approved mix desigan laid in approved fixed side from work ( steel channel, laying andfixing the of 125 mircon thick polythene film, wedges, steel p;ates including levelling the from work per drawing ) spreadiang the concrete with shovels, rakes, pate vibrators and finished in contunous poeration inclluding provision of contraction and expansion construction joints curing of concrete slabs for 14days grade as per drwaing and Technical Specification clause 1501.22 including over haead & contractors prifit but exeluding VAT & seingnorage charges for Cement Concrete Pavement | Q164: =SUM(Q46:Q95) -> 340.219
C165: 1 | D165: =223.4+9 -> 232.4 | E165: 4 | F165: =O4 -> 0.17 | G165: =ROUND(C165*D165*E165*F165,2) -> 158.03 | K165: =SUM(D165) -> 232.4
G166: =SUM(G165) -> 158.03 | H166: =Data!H91 -> 5727.44 | I166: =ROUND(G166*H166,0) -> 905107 | P166: =390/50 -> 7.8 | Q166: =G166*P166 -> 1232.634
G167: Cum | H167: 1 Cum | N167: =13.5*1.15*0.2 -> 3.105 | Q167: =SUM(Q164:Q166) -> 1572.853
A168: 11 | B168: Provision of Name Board | C168: 1 | G168: =ROUND(RIGHT(C168,1),0) -> 1 | H168: =+Data!#REF! ->  | I168: =ROUND(G168*H168,0) ->  | L168: 169.4 | M168: 223.4 | N168: =M168-L168 -> 54
A169: 26 | B169: Provision for Joint Filler Board 20mm thick | H169: =Data!F84 -> 735
I170: =SUM(I7:I169) -> 
A171: 12 | B171: Seignorage Charges | I171: =Seignorage!G27 -> 24078
A172: =A171+1 -> 13 | B172: Provision for VAT Charges @ 5 % | I172: =+'Imput data'!G65 -> 
A173: 14 | B173: Provision for QC Charges @ 0.50% | I173: =ROUND((I170)*0.5%,0) -> 
A174: 15 | B174: Storage&Safe guard of Materials @ 2.50% | I174: =ROUND((I170)*2.5%,0) -> 
A175: 16 | B175: Provision for Unforeseen Items | I175: =I176-I170-I171-I172-I173-I174 -> 
H176: TOTAL :: Rs. | I176: ='Lead statement'!#REF!*100000 -> 
C181: Deputy Executive Engineer, | H181: Asst. Exe. Engineer,
C182: PRISD :: Mangalagiri. | H182: MPP (PRI) :: Mangalagiri.

Sheet MGNREGS (2) (hidden)
A1: WORKING ESTIMATE
B2: ='Lead statement'!C3 -> Name of the Work :: | C2: ='Lead statement'!D3 -> Providing Interlocking pavers road from Lanke seshagiri rao (H) to kokkiligadda varma (H) in Duggirala (V&M). | J2: MGNREGS | L2: CRDA
B3: M.Book No. :: 1933 / B / PRI / 2015 - 16 | G3: ='Lead statement'!J4 -> Estimate Cost :: Rs. | H3: ='Lead statement'!K4 -> 1.7 | I3: Lakhs | J3: =I245 ->  | L3: =CRDA!I92 ->  | N3: Length | O3: Breadth | P3: Depth
A4: Sl. No. | B4: Description of Item | C4: Nos | D4: Measurements | G4: Qty. | H4: Rate unit | I4: Amount | J4: =I244 ->  | L4: =CRDA!I91 ->  | M4: CC Road | N4: 230 | O4: 3.5 | P4: ='Det. Est.'!O4 -> 0.17
D5: L | E5: B | F5: D | J5: =J3-J4 ->  | L5: =L3-L4 ->  | M5: Gravel Road | N5: =N4 -> 230 | O5: 3.5 | P5: ='Det. Est.'!O5 -> 0.15
A6: 1 | B6: 2 | D6: 3 | E6: 4 | F6: 5 | G6: 6 | H6: 7 | I6: 8 | M6: Sholders | N6: =N4 -> 230 | O6: 1 | P6: ='Det. Est.'!O6 -> 0.3
C7: PART A - MGNREGS | M7: Drain | N7: ='Det. Est.'!M7 -> 0 | O7: ='Det. Est.'!N7 -> 1.01 | P7: ='Det. Est.'!O7 -> 0.45
B8: List of Roads Proposed in the Work ::
A9: Sl. No. | B9: Locality | C9: FROM | E9: TO | G9: Nature of Work | H9: Length
A10: 1 | B10: BC Locality | C10: Tadiboina Koteswara Rao (H) | E10: Market Yard | G10: CC Road | H10: 210
H11: =SUM(H10) -> 210
A12: 1 | B12: Unskilled labour for Earth work exevation and depositing the soil on banks with an initial lead and lift in all soils etc., complete.
B13: Key walls, L/S | C13: Tadiboina Koteswara Rao (H) to Market Yard Road
C14: 1 | D14: 176.1 | E14: 0.23 | F14: 0.23 | G14: =ROUND(C14*D14*E14*F14,2) -> 9.32
B15: Key walls, R/S | C15: Tadiboina Koteswara Rao (H) to 1st Cross Road
C16: 1 | D16: 16.8 | E16: 0.23 | F16: 0.23 | G16: =ROUND(C16*D16*E16*F16,2) -> 0.89
B17: Culvert @ Bontha Ramanaiah(H) | C17: 2 | D17: 1.6 | E17: 0.23 | F17: 0.23 | G17: 0.17
C18: 1st Cross Road to 2nd Cross Road
B19: Culvert @ Thati China Sambaiah(H) | C19: 1 | D19: 40.2 | E19: 0.23 | F19: 0.23 | G19: =ROUND(C19*D19*E19*F19,2) -> 2.13
C20: 2nd Cross Road to 3rd Cross Road
C21: 1 | D21: 22.2 | E21: 0.23 | F21: 0.23 | G21: =ROUND(C21*D21*E21*F21,2) -> 1.17
C22: 3rd Cross Road to 4th Cross Road
C23: 1 | D23: 36.8 | E23: 0.23 | F23: 0.23 | G23: =ROUND(C23*D23*E23*F23,2) -> 1.95
B24: Culvert @ Ala Srihari(H) | C24: 1 | D24: 2 | E24: 0.23 | F24: 0.23 | G24: =ROUNDDOWN(C24*D24*E24*F24,2) -> 0.1
B25: Culvert @ Ala Srihari(H) | C25: 1 | D25: 1.7 | E25: 0.23 | F25: 0.23 | G25: =ROUND(C25*D25*E25*F25,2) -> 0.09
C26: 4th Cross Road to Market Yard Road
C27: 1 | D27: 39.8 | E27: 0.23 | F27: 0.23 | G27: =ROUND(C27*D27*E27*F27,2) -> 2.11
G29: =SUM(G14:G28) -> 17.93 | H29: =Data!H106 -> 244.608 | I29: =ROUND(G29*H29,0) -> 4386 | L29: =I29/180 -> 24.36666667
G30: Cum | H30: 1 Cum
A31: 2 | B31: Providing P. C.C. (1:4:8) Nominal mix using 40mm HBG metal including Cost and conveyance of all materials and labour charges, centring chares, curing etc complete
B32: =B13 -> Key walls, L/S | C32: =C14 -> 1 | D32: 176.1 | E32: 0.23 | F32: 0.15 | G32: =ROUND(C32*D32*E32*F32,2) -> 6.08
H35: =Data!#REF! ->  | I35: =ROUND(G35*H35,0) -> 
G36: Cum | H36: 1 Cum
A37: 2 | B37: Providing plain cement concrete M10 mix using 40mm to 20 mm Graded HBG crushed Metal with 220 Kgs of cement per 1cum of concrete, including C/c of all materials, curing ,labour charges etc., complete as per drawings & tech. specifications Clause 802, 803, 1202 & 1203 as per clause 800 & 1200 (1) of MORD and guidelines for shoe walls below G.L.
B38: Key walls, L/S | C38: Tadiboina Koteswara Rao (H) to Market Yard Road | L38: 0.23 | M38: 0.23 | N38: =(L38+M38)/2 -> 0.23
C39: 1 | D39: 176.1 | E39: 0.23 | F39: 0.23 | G39: =ROUND(C39*D39*E39*F39,2) -> 9.32
B40: Key walls, R/S | C40: Tadiboina Koteswara Rao (H) to 1st Cross Road
C41: 1 | D41: 16.8 | E41: 0.23 | F41: 0.23 | G41: =ROUND(C41*D41*E41*F41,2) -> 0.89
B42: Culvert @ Bontha Ramanaiah(H) | C42: 2 | D42: 1.6 | E42: 0.23 | F42: 0.23 | G42: 0.17
C43: 1st Cross Road to 2nd Cross Road
B44: Culvert @ Thati China Sambaiah(H) | C44: 1 | D44: 40.2 | E44: 0.23 | F44: 0.23 | G44: =ROUND(C44*D44*E44*F44,2) -> 2.13
C45: 2nd Cross Road to 3rd Cross Road
C46: 1 | D46: 22.2 | E46: 0.23 | F46: 0.23 | G46: =ROUND(C46*D46*E46*F46,2) -> 1.17
C47: 3rd Cross Road to 4th Cross Road
C48: 1 | D48: 36.8 | E48: 0.23 | F48: 0.23 | G48: =ROUND(C48*D48*E48*F48,2) -> 1.95
B49: Culvert @ Ala Srihari(H) | C49: 1 | D49: 2 | E49: 0.23 | F49: 0.23 | G49: =ROUNDDOWN(C49*D49*E49*F49,2) -> 0.1
C50: 1 | D50: 1.7 | E50: 0.23 | F50: 0.23 | G50: =ROUND(C50*D50*E50*F50,2) -> 0.09
C51: 4th Cross Road to Market Yard Road
C52: 1 | D52: 39.8 | E52: 0.23 | F52: 0.23 | G52: =ROUND(C52*D52*E52*F52,2) -> 2.11
B53: Cross Wall | C53: 1 | D53: =3.5-0.46 -> 3.04 | E53: 0.23 | F53: 0.23 | G53: 0.16
G54: =SUM(G38:G53) -> 18.09 | H54: =Data!H22 -> 4497.69 | I54: =ROUND(G54*H54,0) -> 81363
G55: Cum | H55: 1 Cum
A56: 3 | B56: Providing plain cement concrete M10 mix using 40mm to 20 mm Graded HBG crushed Metal with 220 Kgs of cement per 1cum of concrete, including C/c of all materials, curing ,labour charges etc., complete as per drawings & tech. specifications Clause 802, 803, 1202 & 1203 as per clause 800 & 1200 (1) of MORD and guidelines for Screen walls above G.L.
B57: =B38 -> Key walls, L/S | C57: Tadiboina Koteswara Rao (H) to Market Yard Road
C58: =C14 -> 1 | D58: 26.1 | E58: 0.23 | F58: 0.1 | G58: =ROUND(C58*D58*E58*F58,2) -> 0.6 | J58: 0.1
C59: 1 | D59: 5 | E59: 0.23 | F59: =IF(J58=J59,L59,CONCATENATE("(",J58,"+",J59,")/2")) -> (0.1+0.13)/2 | G59: =ROUND(C59*D59*E59*L59,2) -> 0.13 | J59: 0.13 | L59: =(J58+J59)/2 -> 0.115
C60: 1 | D60: 5 | E60: 0.23 | F60: (0.13+0.15)/2 | G60: 0.16 | J60: 0.15 | L60: 0.14
C61: 1 | D61: 5 | E61: 0.23 | F61: (0.15+0.07)/2 | G61: 0.13 | J61: 0.07 | L61: 0.11
C62: 1 | D62: 5 | E62: 0.23 | F62: (0.07+0.1)/2 | G62: 0.1 | J62: 0.1 | L62: 0.085
C63: 1 | D63: 5 | E63: 0.23 | F63: (0.1+0.2)/2 | G63: 0.17 | J63: 0.2 | L63: 0.15
C64: 1 | D64: 5 | E64: 0.23 | F64: (0.2+0.15)/2 | G64: 0.2 | J64: 0.15 | L64: 0.175
C65: 1 | D65: 5 | E65: 0.23 | F65: (0.15+0.2)/2 | G65: 0.2 | J65: 0.2 | L65: 0.175
C66: 1 | D66: 5 | E66: 0.23 | F66: (0.2+0.23)/2 | G66: 0.25 | J66: 0.23 | L66: 0.215
C67: 1 | D67: 5 | E67: 0.23 | F67: (0.23+0.2)/2 | G67: 0.25 | J67: 0.2 | L67: 0.215
C68: 1 | D68: 5 | E68: 0.23 | F68: (0.2+0.18)/2 | G68: 0.22 | J68: 0.18 | L68: 0.19
C69: 1 | D69: 5 | E69: 0.23 | F69: (0.18+0.23)/2 | G69: 0.24 | J69: 0.23 | L69: 0.205
C70: 1 | D70: 5 | E70: 0.23 | F70: (0.23+0.2)/2 | G70: 0.25 | J70: 0.2 | L70: 0.215
C71: 1 | D71: 5 | E71: 0.23 | F71: (0.2+0.28)/2 | G71: 0.28 | J71: 0.28 | L71: 0.24
C72: 1 | D72: 5 | E72: 0.23 | F72: (0.28+0.3)/2 | G72: 0.33 | J72: 0.3 | L72: 0.29
C73: 1 | D73: 5 | E73: 0.23 | F73: (0.3+0.23)/2 | G73: 0.3 | J73: 0.23 | L73: 0.265
C74: 1 | D74: 5 | E74: 0.23 | F74: (0.23+0.3)/2 | G74: 0.3 | J74: 0.3 | L74: 0.265
C75: 1 | D75: 5 | E75: 0.23 | F75: (0.3+0.25)/2 | G75: 0.32 | J75: 0.25 | L75: 0.275
C76: 1 | D76: 5 | E76: 0.23 | F76: (0.25+0.23)/2 | G76: 0.28 | J76: 0.23 | L76: 0.24
C77: 1 | D77: 5 | E77: 0.23 | F77: (0.23+0.28)/2 | G77: 0.29 | J77: 0.28 | L77: 0.255
C78: 1 | D78: 5 | E78: 0.23 | F78: (0.28+0.23)/2 | G78: 0.29 | J78: 0.23 | L78: 0.255
C79: 1 | D79: 5 | E79: 0.23 | F79: (0.23+0.25)/2 | G79: 0.28 | J79: 0.25 | L79: 0.24
C80: 1 | D80: 10 | E80: 0.23 | F80: 0.25 | G80: 0.58 | J80: 0.25 | L80: 0.25
C81: 1 | D81: 5 | E81: 0.23 | F81: (0.25+0.23)/2 | G81: 0.28 | J81: 0.23 | L81: 0.24
C82: 1 | D82: 5 | E82: 0.23 | F82: (0.23+0.15)/2 | G82: 0.22 | J82: 0.15 | L82: 0.19
C83: 1 | D83: 5 | E83: 0.23 | F83: (0.15+0.18)/2 | G83: 0.19 | J83: 0.18 | L83: 0.165
C84: 1 | D84: 5 | E84: 0.23 | F84: (0.18+0.25)/2 | G84: 0.25 | J84: 0.25 | L84: 0.215
C85: 1 | D85: 5 | E85: 0.23 | F85: (0.25+0.3)/2 | G85: 0.32 | J85: 0.3 | L85: 0.275
C86: 1 | D86: 5 | E86: 0.23 | F86: (0.3+0.37)/2 | G86: 0.39 | J86: 0.37 | L86: 0.335
C87: 1 | D87: 5 | E87: 0.23 | F87: (0.37+0.35)/2 | G87: 0.41 | J87: 0.35 | L87: 0.36
B88: Key walls, R/S | C88: Tadiboina Koteswara Rao (H) to 1st Cross Road
C89: =C16 -> 1 | D89: 16.8 | E89: 0.23 | F89: 0.07 | G89: =ROUND(C89*D89*E89*F89,2) -> 0.27
B90: Culvert @ Bontha Ramanaiah(H) | C90: 2 | D90: 1.6 | E90: 0.23 | F90: 0.07 | G90: 0.05
C91: 1st Cross Road to 2nd Cross Road
C92: 1 | D92: =31.1-22.2 -> 8.9 | E92: 0.23 | F92: 0.07 | G92: =ROUND(C92*D92*E92*F92,2) -> 0.14 | J92: 0.07 | L92: 31.1 | M92: 0 | N92: 16.8 | P92: =N92-M92 -> 16.8
C93: 1 | D93: 5 | E93: 0.23 | F93: =IF(J92=J93,K93,CONCATENATE("(",J92,"+",J93,")/2")) -> (0.07+0.1)/2 | G93: =ROUND(C93*D93*E93*K93,2) -> 0.1 | J93: 0.1 | K93: =(J92+J93)/2 -> 0.085 | L93: 36.1 | M93: =N92+5.4 -> 22.2 | N93: =M93+40.2 -> 62.4 | O93: =M93-N92 -> 5.4 | P93: 40.2
C94: 1 | D94: 5 | E94: 0.23 | F94: (0.1+0.07)/2 | G94: 0.1 | J94: 0.07 | K94: 0.085 | L94: 41.1 | M94: =N93+4.2 -> 66.6 | N94: =M94+22.2 -> 88.8 | O94: 4.2 | P94: 22.2
C95: 1 | D95: 5 | E95: 0.23 | F95: 0.07 | G95: 0.08 | J95: 0.07 | K95: 0.07 | L95: 46.1 | M95: =N94+4.75 -> 93.55 | N95: =M95+36.8 -> 130.35 | O95: 4.75 | P95: 36.8
C96: 1 | D96: 5 | E96: 0.23 | F96: (0.07+0.1)/2 | G96: 0.1 | J96: 0.1 | K96: 0.085 | L96: 51.1 | M96: =N95+6.8 -> 137.15 | N96: =M96+39.8 -> 176.95 | O96: 6.8 | P96: 39.8
C97: 1 | D97: 5 | E97: 0.23 | F97: (0.1+0.13)/2 | G97: 0.13 | J97: 0.13 | K97: 0.115 | L97: 56.1
C98: 1 | D98: 5 | E98: 0.23 | F98: (0.13+0.18)/2 | G98: 0.18 | J98: 0.18 | K98: 0.155 | L98: 61.1
C99: 1 | D99: 1.3 | E99: 0.23 | F99: 0.18 | G99: 0.05 | J99: 0.18 | K99: 0.18 | L99: 66.1
C100: 2nd Cross Road to 3rd Cross Road
C101: 1 | D101: =71.1-66.6 -> 4.5 | E101: 0.23 | F101: =IF(J99=J101,K101,CONCATENATE("(",J99,"+",J101,")/2")) -> (0.18+0.2)/2 | G101: =ROUND(C101*D101*E101*K101,2) -> 0.2 | J101: 0.2 | K101: =(J99+J101)/2 -> 0.19 | L101: 71.1
C102: 1 | D102: 5 | E102: 0.23 | F102: =IF(J101=J102,K102,CONCATENATE("(",J101,"+",J102,")/2")) -> (0.2+0.28)/2 | G102: 0.28 | J102: 0.28 | K102: =(J101+J102)/2 -> 0.24 | L102: 76.1
C103: 1 | D103: 5 | E103: 0.23 | F103: (0.28+0.23)/2 | G103: 0.29 | J103: 0.23 | K103: 0.255 | L103: 81.1
C104: 1 | D104: 5 | E104: 0.23 | F104: (0.23+0.28)/2 | G104: 0.29 | J104: 0.28 | K104: 0.255 | L104: 86.1
C105: 1 | D105: 2.7 | E105: 0.23 | F105: (0.28+0.3)/2 | G105: 0.18 | J105: 0.3 | K105: 0.29 | L105: 91.1
C106: 3rd Cross Road to 4th Cross Road
C107: 1 | D107: =96.1-93.55 -> 2.55 | E107: 0.23 | F107: =IF(J105=J107,K107,CONCATENATE("(",J105,"+",J107,")/2")) -> 0.3 | G107: =ROUND(C107*D107*E107*K107,2) -> 0.18 | J107: 0.3 | K107: =(J105+J107)/2 -> 0.3 | L107: 96.1
C108: 1 | D108: 5 | E108: 0.23 | F108: =IF(J107=J108,K108,CONCATENATE("(",J107,"+",J108,")/2")) -> (0.3+0.25)/2 | G108: 0.32 | J108: 0.25 | K108: =(J107+J108)/2 -> 0.275 | L108: 101.1
C109: 1 | D109: 5 | E109: 0.23 | F109: (0.25+0.23)/2 | G109: 0.28 | J109: 0.23 | K109: 0.24 | L109: 106.1
C110: 1 | D110: 5 | E110: 0.23 | F110: 0.23 | G110: 0.26 | J110: 0.23 | K110: 0.23 | L110: 111.1
C111: 1 | D111: 5 | E111: 0.23 | F111: (0.23+0.13)/2 | G111: 0.21 | J111: 0.13 | K111: 0.18 | L111: 116.1
C112: 1 | D112: 5 | E112: 0.23 | F112: 0.13 | G112: 0.15 | J112: 0.13 | K112: 0.13 | L112: 121.1
C113: 1 | D113: 5 | E113: 0.23 | F113: (0.13+0.15)/2 | G113: 0.16 | J113: 0.15 | K113: 0.14 | L113: 126.1
C114: 1 | D114: 4.25 | E114: 0.23 | F114: 0.15 | G114: 0.15 | J114: 0.15 | K114: 0.15 | L114: 126.1
B115: Culvert @ Ala Srihari(H) | C115: 1 | D115: 2 | E115: 0.23 | F115: 0.15 | G115: =ROUNDDOWN(C115*D115*E115*F115,2) -> 0.06
C116: 1 | D116: 1.7 | E116: 0.23 | F116: 0.15 | G116: =ROUND(C116*D116*E116*F116,2) -> 0.06
C117: 4th Cross Road to Market Yard Road
C118: 1 | D118: =137.15-136.1+3.75 -> 4.8 | E118: 0.23 | F118: =IF(J113=J118,K118,CONCATENATE("(",J113,"+",J118,")/2")) -> 0.15 | G118: =ROUND(C118*D118*E118*K118,2) -> 0.17 | J118: 0.15 | K118: =(J113+J118)/2 -> 0.15 | L118: 131.1
C119: 1 | D119: 0 | E119: 0.23 | F119: =IF(J118=J119,K119,CONCATENATE("(",J118,"+",J119,")/2")) -> 0.15 | G119: 0 | J119: 0.15 | K119: =(J118+J119)/2 -> 0.15 | L119: 136.1
C120: 1 | D120: 0 | E120: 0.23 | F120: 0.15 | G120: 0 | J120: 0.15 | K120: 0.15 | L120: 141.1
C121: 1 | D121: 5 | E121: 0.23 | F121: (0.15+0.1)/2 | G121: 0.14 | J121: 0.1 | K121: 0.125 | L121: 146.1
C122: 1 | D122: 5 | E122: 0.23 | F122: 0.1 | G122: 0.12 | J122: 0.1 | K122: 0.1 | L122: 151.1
C123: 1 | D123: 5 | E123: 0.23 | F123: 0.1 | G123: 0.12 | J123: 0.1 | K123: 0.1 | L123: 156.1
C124: 1 | D124: 5 | E124: 0.23 | F124: (0.1+0.07)/2 | G124: 0.1 | J124: 0.07 | K124: 0.085 | L124: 161.1
C125: 1 | D125: 5 | E125: 0.23 | F125: 0.07 | G125: 0.08 | J125: 0.07 | K125: 0.07 | L125: 166.1
C126: 1 | D126: 5 | E126: 0.23 | F126: 0.07 | G126: 0.08 | J126: 0.07 | K126: 0.07 | L126: 171.1
C127: 1 | D127: 5 | E127: 0.23 | F127: (0.07+0.28)/2 | G127: 0.2 | J127: 0.28 | K127: 0.175 | L127: 176.1
B128: Cross Wall | C128: 1 | D128: =3.5-0.46 -> 3.04 | E128: 0.23 | F128: 0.28 | G128: 0.2 | J128: 0.28 | K128: 0.28 | L128: 176.1
G130: =SUM(G58:G129) -> 13.69 | H130: =Data!#REF! ->  | I130: =ROUND(G130*H130,0) -> 
G131: Cum | H131: 1 Cum
A132: 4 | B132: =Data!#REF! -> 
B133: =B13 -> Key walls, L/S | C133: 1 | D133: =D14 -> 176.1 | E133: 0.23 | F133: 0.1
C134: 1x1 | D134: =D28 -> 0 | E134: 0 | F134: 0.15 | G134: =ROUND(F134*E134*D134*LEFT(C134,1)*RIGHT(C134,1),2) -> 0
G135: =SUM(G133:G134) -> 0 | H135: =Data!#REF! ->  | I135: =ROUND(G135*H135,0) -> 
G136: Cum | H136: 1 Cum
A137: 4 | B137: Laying of M15 nominal mix using 66% of 20 mm HBG Metal and 33% of 12mm HBG Metal including Cost and Conveyance of all materials, Centering and Labour Charges and Curing for Side Drains as Per the Section Covered in guidelines for Drainwalls on roadside and houseside
B138: Raising of Culvert Body Walls
B139: =O139 -> House Side | C139: 1 | D139: 3.9 | E139: =IF(L139=M139,L139,CONCATENATE("(",L139,"+",M139,")/2")) -> 0.30 | F139: 0.28 | G139: =ROUND(C139*D139*N139*F139,2) -> 0.33 | L139: 0.30 | M139: 0.30 | N139: =(L139+M139)/2 -> 0.3 | O139: House Side
B140: Road Side | C140: 1 | D140: 4.75 | E140: 0.30 | F140: 0.28 | G140: 0.4 | L140: 0.30 | M140: 0.30 | N140: 0.3 | O140: Road Side
G141: =SUM(G139:G140) -> 0.73 | H141: =Data!H130 ->  | I141: =ROUND(G141*H141,0) -> 
G142: Cum | H142: 1 Cum
A143: 5 | B143: Cost and supply of stone dust for including Cost and conveyance of all materials and labour charges for loading unloading charges etc , complete for foundation of | K143: L/S | L143: R/S | M143: Centre
B144: Underneath CC Pavement | C144: Tadiboina Koteswara Rao (H) to Market Yard Road
C145: 1 | D145: 26.1 | E145: =3.5-0.46 -> 3.04 | F145: =CONCATENATE("(",K145,"+",M145,"+",L145,")/3") -> (0.1+0.1+0.07)/3 | G145: =ROUND(C145*D145*E145*N145,2) -> 7.14 | K145: 0.1 | L145: 0.07 | M145: 0.1 | N145: =(K145+L145+M145)/3 -> 0.09
C146: 1 | D146: 5 | E146: 3.04 | F146: (0.13+0.1+0.07)/3 | G146: 1.52 | K146: 0.13 | L146: 0.07 | M146: 0.1 | N146: 0.1
C147: 1 | D147: 5 | E147: 3.04 | F147: (0.15+0.1+0.1)/3 | G147: 1.77 | K147: 0.15 | L147: 0.1 | M147: 0.1 | N147: 0.1166666667
C148: 1 | D148: 5 | E148: 3.04 | F148: (0.07+0.12+0.07)/3 | G148: 1.32 | K148: 0.07 | L148: 0.07 | M148: 0.12 | N148: 0.08666666667
C149: 1 | D149: 5 | E149: 3.04 | F149: (0.1+0.07+0.07)/3 | G149: 1.22 | K149: 0.1 | L149: 0.07 | M149: 0.07 | N149: 0.08
C150: 1 | D150: 5 | E150: 3.04 | F150: (0.2+0.09+0.1)/3 | G150: 1.98 | K150: 0.2 | L150: 0.1 | M150: 0.09 | N150: 0.13
C151: 1 | D151: 5 | E151: 3.04 | F151: (0.15+0.16+0.13)/3 | G151: 2.23 | K151: 0.15 | L151: 0.13 | M151: 0.16 | N151: 0.1466666667
C152: 1 | D152: 5 | E152: 3.04 | F152: (0.2+0.16+0.18)/3 | G152: 2.74 | K152: 0.2 | L152: 0.18 | M152: 0.16 | N152: 0.18
C153: 1 | D153: 5 | E153: 3.04 | F153: (0.23+0.19+0.18)/3 | G153: 3.04 | K153: 0.23 | L153: 0.18 | M153: 0.19 | N153: 0.2
C154: 1 | D154: 5 | E154: 3.04 | F154: (0.2+0.25+0.2)/3 | G154: 3.29 | K154: 0.2 | L154: 0.2 | M154: 0.25 | N154: 0.2166666667
C155: 1 | D155: 5 | E155: 3.04 | F155: (0.18+0.25+0.28)/3 | G155: 3.6 | K155: 0.18 | L155: 0.28 | M155: 0.25 | N155: 0.2366666667
C156: 1 | D156: 5 | E156: 3.04 | F156: (0.23+0.23+0.23)/3 | G156: 3.5 | K156: 0.23 | L156: 0.23 | M156: 0.23 | N156: 0.23
C157: 1 | D157: 5 | E157: 3.04 | F157: (0.2+0.23+0.28)/3 | G157: 3.6 | K157: 0.2 | L157: 0.28 | M157: 0.23 | N157: 0.2366666667
C158: 1 | D158: 5 | E158: 3.04 | F158: (0.28+0.23+0.3)/3 | G158: 4.1 | K158: 0.28 | L158: 0.3 | M158: 0.23 | N158: 0.27
C159: 1 | D159: 5 | E159: 3.04 | F159: (0.3+0.25+0.3)/3 | G159: 4.31 | K159: 0.3 | L159: 0.3 | M159: 0.25 | N159: 0.2833333333
C160: 1 | D160: 5 | E160: 3.04 | F160: (0.23+0.25+0.25)/3 | G160: 3.7 | K160: 0.23 | L160: 0.25 | M160: 0.25 | N160: 0.2433333333
C161: 1 | D161: 5 | E161: 3.04 | F161: (0.3+0.23+0.23)/3 | G161: 3.85 | K161: 0.3 | L161: 0.23 | M161: 0.23 | N161: 0.2533333333
C162: 1 | D162: 5 | E162: 3.04 | F162: (0.25+0.25+0.23)/3 | G162: 3.7 | K162: 0.25 | L162: 0.23 | M162: 0.25 | N162: 0.2433333333
C163: 1 | D163: 5 | E163: 3.04 | F163: (0.23+0.23+0.13)/3 | G163: 2.99 | K163: 0.23 | L163: 0.13 | M163: 0.23 | N163: 0.1966666667
C164: 1 | D164: 5 | E164: 3.04 | F164: (0.28+0.20+0.13)/3 | G164: 3.09 | K164: 0.28 | L164: 0.13 | M164: 0.20 | N164: 0.2033333333
C165: 1 | D165: 5 | E165: 3.04 | F165: (0.23+0.2+0.15)/3 | G165: 2.94 | K165: 0.23 | L165: 0.15 | M165: 0.2 | N165: 0.1933333333
C166: 1 | D166: 5 | E166: 3.04 | F166: (0.25+0.2+0.15)/3 | G166: 3.04 | K166: 0.25 | L166: 0.15 | M166: 0.2 | N166: 0.2
C167: 1 | D167: 5 | E167: 3.04 | F167: (0.25+0.15+0.15)/3 | G167: 2.79 | K167: 0.25 | L167: 0.15 | M167: 0.15 | N167: 0.1833333333
C168: 1 | D168: 5 | E168: 3.04 | F168: (0.25+0.14+0.15)/3 | G168: 2.74 | K168: 0.25 | L168: 0.15 | M168: 0.14 | N168: 0.18
C169: 1 | D169: 5 | E169: 3.04 | F169: (0.23+0.14+0.1)/3 | G169: 2.38 | K169: 0.23 | L169: 0.1 | M169: 0.14 | N169: 0.1566666667
C170: 1 | D170: 5 | E170: 3.04 | F170: (0.15+0.13+0.1)/3 | G170: 1.93 | K170: 0.15 | L170: 0.1 | M170: 0.13 | N170: 0.1266666667
C171: 1 | D171: 5 | E171: 3.04 | F171: (0.18+0.06+0.1)/3 | G171: 1.72 | K171: 0.18 | L171: 0.1 | M171: 0.06 | N171: 0.1133333333
C172: 1 | D172: 5 | E172: 3.04 | F172: (0.25+0.05+0.07)/3 | G172: 1.87 | K172: 0.25 | L172: 0.07 | M172: 0.05 | N172: 0.1233333333
C173: 1 | D173: 5 | E173: 3.04 | F173: (0.3+0.07+0.07)/3 | G173: 2.23 | K173: 0.3 | L173: 0.07 | M173: 0.07 | N173: 0.1466666667
C174: 1 | D174: 5 | E174: 3.04 | F174: (0.37+0.05+0.07)/3 | G174: 2.48 | K174: 0.37 | L174: 0.07 | M174: 0.05 | N174: 0.1633333333
C175: 1 | D175: 5.4 | E175: 3.04 | F175: (0.35+0.1+0.28)/3 | G175: 3.99 | K175: 0.35 | L175: 0.28 | M175: 0.1 | N175: 0.2433333333
B176: Approah @ Market Yard Road | C176: 1 | D176: 2 | E176: 5.5 | F176: 0.1
G178: =SUM(G145:G177) -> 90.8 | H178: =Data!H49 -> 787.8233333 | I178: =ROUND(G178*H178,0) -> 71534
G179: Cum | H179: 1 Cum
A180: 2 | B180: Unskilled labour for filling Stone dust in foundation and Underneath CC pavement and foundations of side drains, including all labour charges etc., complete
B181: Underneath CC Pavement | C181: 1 | D181: =D145 -> 26.1 | E181: 3.04 | F181: (0.1+0.1+0.07)/3 | G181: =ROUND(C181*D181*E181*F181,2) -> 
B182: =B177 -> 0 | C182: 0 | D182: 0 | E182: 0 | F182: 0 | G182: 0 | J182: 13
G183: =G178 -> 90.8 | H183: =+Data!G49 -> 0 | L183: =I183/180 -> 0 | M183: =82+58 -> 140
G184: Cum | H184: 1 Cum
A185: 6 | B185: Loosening of the ground upto a level of 300 mm below the subgrade level, watered, graded and compacted in layers to meet requirement of Tables 300.1 and 300.2 for subgrade construction as per Technical Specification Clause 303.5.2 MORD / 305 MORTH.
B186: for Subgrade
B187: =CONCATENATE("Road no. ",J187) -> Road no. 11 | C187: 1 | D187: 60 | E187: 5 | F187: 0.3 | G187: =ROUND(C187*D187*E187*F187,2) -> 90 | J187: 11
H189: =Data!#REF! ->  | I189: =ROUND(G189*H189,0) -> 
G190: Cum | H190: ="1"&G190 -> 1Cum
A191: 6 | B191: Supply and collection of Selected Earth including stacking to Departmental gauge for pre measurements for Shoulders (CSSR)
B192: for Subgrade
B193: =CONCATENATE("Road ",J193) -> Road | D193: =N5 -> 230 | E193: 3.5 | F193: =L193*1.28 -> 0.192 | G193: =ROUND(C193*D193*E193*F193,2) -> 0 | L193: =P5 -> 0.15
B194: Shoulders, L/S & R/S | C194: 2 | D194: 196.5 | E194: 0.6 | F194: 0.35 | G194: 82.53
B195: Approah @ Market Yard Road | C195: 1 | D195: 2 | E195: 5.5 | F195: 0.45 | G195: 4.95
H196: ='Lead statement'!O22 -> 447.7 | I196: =ROUND(G196*H196,0) -> 0
G197: Cum | H197: ="1"&G197 -> 1Cum
A198: 7 | B198: Engaging Un Skilled Labour for spreading the collected (Selected Earth) material and sectioning for Shoulders (RSSR)
B199: for Subgrade
B200: =B193 -> Road | D200: =D193 -> 230 | E200: 3.5 | F200: 0.192 | G200: =ROUND(C200*D200*E200*F200,2) -> 0 | L200: =L193 -> 0.15
B201: Shoulders, L/S & R/S | C201: =C194 -> 2 | D201: 196.5 | E201: 0.6 | F201: 0.35 | G201: 82.53
B202: Approah @ Market Yard Road | C202: 1 | D202: 2 | E202: 5.5 | F202: 0.45 | G202: 4.95
H203: =Data!H186 -> 32.94 | I203: =ROUND(G203*H203,0) -> 0
G204: Cum | H204: ="1"&G204 -> 1Cum
A205: 6 | B205: Compaction of collected Selected Earth using 8-10T Power Road Roller with required watering for Subgrade (CSSR)
B206: for Subgrade
... 38 more rows

Sheet CC Bill(MGNREGS) (Material) (hidden)
A1: L.F.Form No 91
A2: Z.P. & P.S.No. 13 ( Full Sheet) | E2: MATERIAL STATEMENT - BILL
F3: ='[385]wor. Est.'!A5 -> PART - A (MGNREGS SHARE)
A4: Name of Work | C4: : | D4: ='Mat statement (MGNREGS)'!D2:W2 -> Providing Interlocking pavers road from Lanke seshagiri rao (H) to kokkiligadda varma (H) in Duggirala (V&M).
A5: Name of Contractor | C5: : | D5: ='CC Bill(CRDA)'!D5 -> Grampanchayat, Yerrabalem(V) | F5: =[386]Cover!E12 -> WORK ID :: | G5: ='CC Bill(CRDA)'!G5 -> 077041205003080009
A6: Voucher | C6: : | F6: MGNREGS in Convergence with CRDA Funds Grant
A7: Last Certificate if any | C7: :
A8: Month | C8: :
A9: Number in and month of the last Schedules, if any
A10: Mandal | B10: Mangalagiri | D10: Est Cost Rs: | E10: ='[386]CC Bill(CRDA) (Material)'!E10 -> 10.00 | F10: Lakhs | G10: Voucher No.
A11: Oversee's No | D11: Authority. | G11: Covering List No.
A12: ='CC Bill(MGNREGS)'!A12 -> M.Book No. :: 1933/ B /PRI / 2015 - 16 | G12: Schedule No.
A13: Quantity Executed Supplied | D13: ITEMS | E13: Rate Rs. Ps. | F13: Per | G13: Amount
A14: Upto Date | B14: Since Last Certificate | C14: Mile | G14: Upto Date Rs. Ps. | H14: Since Last Certificate Rs. Ps. | I14: Remarks
A15: 1 | B15: 2 | C15: 3 | D15: 4 | E15: 5 | F15: 6 | G15: 7 | H15: 8 | I15: 9
D18: ='[385]wor. Est.'!A5 -> PART - A (MGNREGS SHARE)
A19: ='Mat statement (MGNREGS)'!C9 ->  | B19: =A19 ->  | C19: 1 | D19: CW 01 - Unskilled labour for Earth work exevation and depositing the soil on banks with an initial lead and lift in all soils etc., complete. | E19: ='[387]CC Bill(MGNREGS)'!E19 -> 137.08 | F19: 1 | G19: =ROUND(A19*E19/F19,2) ->  | H19: =ROUND(B19*E19/F19,2) -> 
A20: ='Mat statement (MGNREGS)'!E26 ->  | C20: 2 | D20: CW 02 - Cost of Cement | E20: ='Mat statement (MGNREGS)'!E28 ->  | F20: 1
A21: ='Mat statement (MGNREGS)'!G25 ->  | C21: 3 | D21: CW04.sand for mortar | E21: ='Mat statement (MGNREGS)'!G28 -> 898.1 | F21: 1
A22: ='Mat statement (MGNREGS)'!I25 ->  | C22: 4 | D22: CW07.20mm to 12mm HBG/HBT graded Metal:Consisting of 20mm metal 66% and12mm metal 34% | E22: ='Mat statement (MGNREGS)'!I28 ->  | F22: 1
A23: ='Mat statement (MGNREGS)'!J25 ->  | C23: 5 | D23: CW08.40mm to 20mm HBG/HBT graded Metal:Consisting of 20mm metal 66% and12mm metal 34% | E23: ='Mat statement (MGNREGS)'!J28 ->  | F23: 1
A24: ='Mat statement (MGNREGS)'!C14 -> 90.8 | B24: 90.8 | C24: 6 | D24: CW 10 - Cost and supply of stone dust for including Cost and conveyance of all materials and labour charges for loading unloading charges etc , complete for foundations vp 2 & 4 | E24: ='Det.Est.'!H21 -> 787.8233333 | F24: 1 | G24: 71534.36 | H24: 71534.36
A25: ='Mat statement (MGNREGS)'!C10 ->  | C25: 7 | D25: CW10 - Laying of M15 nominal mix using 66% of 20 mm HBG Metal and 33% of 12mm HBG Metal including Cost and Conveyance of all materials, Centering and Labour Charges and Curing for Side Drains as Per the Section Covered in guidelines for Drainwalls on roadside and housesideFor side walls | E25: =Data!#REF! ->  | F25: 1
A26: ='Mat statement (MGNREGS)'!C12 -> 3.7 | B26: 3.7 | C26: 8 | D26: CW10 - Laying of M10 nominal mix using 66% of 40 mm HBG Metal and 33% of 20mm HBG Metal - Shoe Wall Below G.L. | E26: =Data!#REF! ->  | F26: 1
A27: ='Mat statement (MGNREGS)'!C13 ->  | C27: 9 | D27: CW10 - Laying of M10 nominal mix using 66% of 40 mm HBG Metal and 33% of 20mm HBG Metal - Screen Wall Above G.L. | E27: =Data!#REF! ->  | F27: 1
A28: ='Mat statement (MGNREGS)'!C24 -> 0 | B28: 0 | C28: 6 | D28: CW 10 - Construction of un reinforced, M30 Grade mix, plain cement concrete pavement , thickness as per design over a prepared sub base, with 43 / 53 grade cement, and using coarse and fine aggregates conforming to IS :383, approved admixtures and mixed in a concrete mixer of not less than 0.20 cum capacity and appropriate weigh batcher , laid in approved fixed side from work ( steel channel) wedges, steel plates including levelling the from work as per drawing, laying and fixing of 125 mircon thick polythene film, spreadiang the concrete with shovels, rakes etc.. and compacting the concrete mix properly and thoroughly with pin and plate vibrators and finished in continuous operation including provision of contraction and expansion and construction joints, and curing of concrete slabs for 14days with water, finished to the lines and grade as per drawing and Technical Specification clause 1501.2 MORD, for Cement Concrete Pavement | E28: =Data!#REF! ->  | F28: 1
A29: ='Mat statement (MGNREGS)'!C23 ->  | C29: 7 | D29: CW 10 - Cost and Fabrication Charges of Steel for Culvert Cover Slabs at Road Crossings | E29: =Data!H215 ->  | F29: 1
G31: =SUM(G19:G29) ->  | I31: (PTO)
A32: CONTRACT CERTIFICATE
E33: Rate Rs.
A34: Quantity Executed Supplied | D34: ITEMS | F34: Per | G34: Amount
A35: Upto Date | B35: Since Last Certificate | C35: Mile | E35: 5 | G35: Upto Date Rs. | H35: Since Last Certificate Rs. | I35: Remarks
A36: 1 | B36: 2 | C36: 3 | D36: 4 | F36: 6 | G36: 7 | H36: 8 | I36: 9
F37: B.F. | G37: =G31 -> 
K38: =G20-H20 -> 
K40: =G40-H40 -> 0
G91: =SUM(G37:G88) ->  | I91: (PTO)
A92: CONTRACT CERTIFICATE
E93: Rate Rs.
A94: Quantity Executed Supplied | D94: ITEMS | F94: Per | G94: Amount
A95: Upto Date | B95: Since Last Certificate | C95: Mile | E95: 5 | G95: Upto Date Rs. | H95: Since Last Certificate Rs. | I95: Remarks
A96: 1 | B96: 2 | C96: 3 | D96: 4 | F96: 6 | G96: 7 | H96: 8 | I96: 9
F97: B.F. | G97: =G91 ->  | K97: ='[388]CC Bill (Vouchers)'!H60 -> 112626.14 | L97: =H97-K97 ->  | N97: =G97-H97 -> 
K98: =H97 -> 
B101: Seignorage charges Rs. /- vp
D124: Total value of work done or supplies made to date deduct values of work or supplies shown on last certificate | G124: =SUM(G97:G123) -> 
D125: Net Value of work of supplies since Last Certificate
A128: Signature of Contractor: | G128: Date:
A130: Certified that the proceeding claim is correct that necessary measurement have been made by me on and recorded on pages of Measurement Book No. and that the Duty work has been satisfactiorily performed | F130: Check Measurement Certificate Work had Certified that the Materials were Checked
A131: Certified that the materials billed for have been received and brought to account | F131: Measured by me on (Dates)
C134: Assistant Executive Engineer,
C135: MPP(PRI) :: Mangalagiri.
A136: Date | D136: Officer Incharge | F136: Dated | H136: Designation
A137: MEMORANDUM OF PAYMENT MADE | G137: Rs | H137: Ps. Rs. | I137: Ps.
A138: Total value of work done:
A139: Amount of previous payments from last certificate No. of
A140: forworded with account for
A141: Fines and other deductions upto date | E141: Rs.
D142: By Cash
A143: Payments now made | D143: By Cheque No of
D144: By value of stock supplied
G145: Balance Value
E146: Rs.
A147: Allotment for the Year | F147: Ps.
A148: Expenditure including this bill
A149: Balance available
A151: PAY RUPEES (…………………………………………………….) RECEIVED RUPEES(………………………………..) | E151: Only as final payment in settlement or and demand
E152: ……………………………………………………………
E153: ……………………………………………………………
E154: Witness : ……………………………………………….
A156: Head Clerk or | D156: President or
A157: Hd.Accountant | D157: Engineer | G157: Date :
A158: INTERNACULR
H159: AUDIT ENFACEMENT
H160: Admitted Rs.
H161: Objected to Rs.
H162: Total Rs.
G163: Dated ……………2006 Auditor
A164: DISTRICT ENGINEERS REMARKS
A165: NOTES
A166: 1 | B166: This form is intended for use in the case of running account i.e. for works in progress or supplies in course of delivery when the liability is discharged in full single payment Form No. 38A should be used
A167: 2 | B167: Payment will be made only upto nineteenths of total value of the work done. The balance being returned as security both for the due performance of the contract or to cover possible over payment which may be deducted on check measurement in the case of work whose estimated cost does not exceed Rs. 50, payment may be made in full on the measuring officers certificate subject to subsequent check measuring authority
A168: 3 | B168: In calculating the amount of each item due to the contract in the bill sum of six paise or less shall be committed and sum exceeding six paise upto one anna shall be recorded as one anna
A169: 4 | B169: Payment made in case of sums exceeding Rs. 100 should be attested by two witness and for smaller sums by one witness payment made by cheque or to recognised firms or winstitution need not be if witnessed.
A170: 5 | B170: When the payee signs in the vernacular, amount acknowledged should be noted in the same vernacular as well as in English.
A171: 6 | B171: In the case other than well known firms all parties must sign if there be more than one contractor or the payees must produce a power of attorny from the firm.
A172: 7 | B172: No contract certificate bearing on reuses should be accepted, if anty corrections are necessary, the figures should nearly scored out and initialised by the office concerned in the case or corrections made in the Engineer office the Head accountant may be authorised to attest those due clericalerros etc out the Engineer should affix hs initials to all correction in the rate column as well as those in the total the bills and the pass order. This rule applies MUTATIS MUTANDIS to payment from miscellaneous grants.
A173: 8 | B173: In case in which the materials bined for are taken over charges by an officer other than the officer signing the certificate at form of the bill the names of the former should be noted in the remarks columns of bill necessary amendment being made at the same time in the excluding portion of the certificate relating so materials.

Sheet Mat statement (MGNREGS) (hidden)
A1: MATERIAL STATEMENT - 1st & Part Bill (MGNREGS SHARE)
B2: Name of the Work | C2: :: | D2: ='Lead statement'!D3 -> Providing Interlocking pavers road from Lanke seshagiri rao (H) to kokkiligadda varma (H) in Duggirala (V&M).
J3: =Cover!E33 -> Estimate Cost :: Rs. | K3: =Cover!F33 -> 1.7 | O3: ='Lead statement'!J4 -> Estimate Cost :: Rs. | P3: =Cover!F33 -> 1.7 | Q3: Lakhs | R3: ='Lead statement'!#REF! -> 
D4: CW01 | E4: CW02 | F4: CW03 | G4: CW04 | H4: CW05 | I4: CW07 | J4: CW08 | K4: CW09 | L4: CW10 | V4: CW13 | W4: TOTAL
A5: Sl No. | B5: Description of Item | C5: Quantity | D5: Wage component in Rs. | E5: Matrerial Component | L5: Others | V5: Seigniorage Charges in Rs.
E6: Cement in Mts | F6: Sand for filling | G6: Sand for Mortar | H6: Gr. II HBG Metal | I6: 20mm & 12mm HBG Chips | J6: 40mm & 20mm HBG Metal | K6: 40mm HBG Metal | L6: GSB | P6: 20mm HBG metal | Q6: Name Board | S6: Laying of M10 / M15 / M30 | T6: Laying of M30 CC pavement
L7: Gravel | M7: Stondust | N7: Stone Dust | O7: Compaction | R7: Laying of 1:4:8 | U7: Steel in MTs
A8: 1 | B8: 2 | C8: 3 | D8: 4 | E8: 5 | F8: 6 | G8: 7 | H8: 8 | I8: 9 | J8: 10 | K8: 11 | L8: 12 | M8: 13 | N8: 14 | O8: 15 | P8: 16 | Q8: 12 | R8: 18 | S8: 13 | T8: 20 | U8: 22 | V8: 20 | W8: 14
A9: 1 | B9: ='Det.Est.'!B7 -> Earth work exevation and depositing the soil on banks with an initial lead and lift in all soils etc., complete. | C9: ='Det.Est.'!#REF! ->  | D9: ='Det.Est.'!I9 -> 905 | W9: =SUM(D9:V9) -> 905
A10: 2 | B10: Providing M15 nominal mix using 66% of 20 mm HBG Metal and 33% of 12mm HBG Metal including Cost and Conveyance of all materials, Centering and Labour Charges and Curing for Side Drains as Per the Section Covered in guidelines for Drainwalls on roadside and housesideFor side walls | C10: ='Det.Est.'!#REF! ->  | E10: =C10*Data!C110 ->  | G10: =C10*Data!C111 ->  | I10: =C10*(Data!C112+Data!C113) ->  | S10: =C10*Data!#REF! ->  | W10: =E10*'Lead statement'!O26+G10*G28+I10*I28+'Mat statement (MGNREGS)'!S10 -> 
A11: 2 | B11: Providing P. C.C. (1:4:8) Nominal mix using 40mm HBG metal including Cost and conveyance of all materials and labour charges, centring chares, curing etc complete | C11: ='Det. Est.'!G24 -> 0 | E11: =C11*Data!#REF! ->  | G11: =C11*Data!#REF! ->  | K11: =C11*Data!#REF! ->  | S11: =C11*Data!#REF! ->  | W11: =(E11*E28*20)+(G11*G28)+(K11*K28)+S11 -> 
A12: 3 | B12: ='Det. Est.'!B26:H26 -> Providing plain cement concrete M10 mix using 40mm to 20 mm Graded HBG crushed Metal with 220 Kgs of cement per 1cum of concrete, including C/c of all materials, curing ,labour charges etc., complete as per drawings & tech. specifications Clause 802, 803, 1202 & 1203 as per clause 800 & 1200 (1) of MORD and guidelines for shoe walls below G.L. | C12: ='Det.Est.'!G13 -> 3.7 | E12: =C12*Data!C9 -> 0.814 | G12: =C12*Data!C10 -> 1.665 | J12: =C12*(Data!C11+Data!C12) -> 3.33 | S12: =C12*Data!#REF! ->  | W12: =(E12*E28*20)+(G12*G28)+(J12*J28)+S12 -> 
A13: 4 | B13: ='Det. Est.'!B31:H31 -> Providing plain cement concrete M10 mix using 40mm to 20 mm Graded HBG crushed Metal with 220 Kgs of cement per 1cum of concrete, including C/c of all materials, curing ,labour charges etc., complete as per drawings & tech. specifications Clause 802, 803, 1202 & 1203 as per clause 800 & 1200 (1) of MORD and guidelines for Screen walls above G.L. | C13: ='Det.Est.'!#REF! ->  | E13: =C13*Data!C9 ->  | G13: =C13*Data!C10 ->  | J13: =C13*(Data!C11+Data!C12) ->  | S13: =C13*Data!#REF! ->  | W13: =(E13*E28*20)+(G13*G28)+(J13*J28)+S13 -> 
A14: 5 | B14: Cost and supply of stone dust for filling | C14: 90.8 | S14: =C14*'Det.Est.'!H21 -> 71534.35867 | W14: =SUM(D14:V14) -> 71534.35867
A15: 4 | B15: =+'Det. Est.'!B51:F51 -> Unskilled labour for filling Stone dust in foundation and Underneath CC pavement and foundations of side drains, including all labour charges etc., complete | D15: ='Det. Est.'!I54 -> 0 | W15: 0
A16: 5 | B16: Unskilled labour for filling with excavated soils
A17: 7 | B17: Granular sub base
A18: 8 | B18: Loosening of the ground upto a level of 300 mm below the subgrade level, watered, graded and compacted in layers to meet requirement of Tables 300.1 and 300.2 for subgrade construction as per Technical Specification Clause 303.5.2 MORD / 305 MORTH. | C18: ='Det. Est.'!G60 -> 0 | S18: =C18*'Det. Est.'!H60 ->  | W18: =SUM(D18:V18) -> 
A19: 7 | B19: Supply and collection of Selected Earth including stacking to Departmental gauge for pre measurements for Subgrade (CSSR) | W19: 0
A20: 8 | B20: Engaging Un Skilled Labour for spreading the collected (Selected Earth) material and sectioning for Subgrade (RSSR) | W20: 0
A21: 7 | B21: Compaction of collected Selected Earth using 8-10T Power Road Roller with required watering for Subgrade (CSSR) | C21: ='Det.Est.'!#REF! ->  | S21: ='Det.Est.'!#REF! ->  | W21: =SUM(S21:V21) -> 
A22: 8 | B22: Construction of granular sub-base by providing coarse graded material, spreading in uniform layers with motor grader on prepared surface, mixing by mix in place method with rotavator at OMC, and compacting with vibratory roller to achieve the desired density, complete as per clause 401 MORTH. Table 400.2 | C22: ='Det.Est.'!#REF! ->  | S22: ='Det.Est.'!#REF! -> 
A23: 9 | B23: ='Det.Est.'!#REF! ->  | C23: ='Det.Est.'!#REF! ->  | S23: ='Mat statement (MGNREGS)'!C23*Data!H215 -> 
A24: 10 | B24: ='Det.Est.'!B23 -> Construction of un-reinforced, dowel jointed at expansion and construction joint only, plain cement concrete pavement, thickness as per design, over a prepared sub base, with 43 grade cement or any other type as per Clause 1501.2.2 M20 (Grade), coarse and fine aggregates conforming to IS : 383, maximum in a concrete mixer of not less than 0.2 cum capacity and appropeiate weigh batcher using approved mix design, laid in approved fixed side formwork (steel channel, laying and fixing of 125 micron thick polythene film, wedges, steel plates including levelling the formwork as per drawing), spreading the concrete with sholvels, rakes, compacted using needle, scareed and plate vibrators and finished in continuous operation including provision of contraction and expansion, construction joints, applying debonding strips, primer, sealant, dowel bars, near approaches to bridge / culvert and construction joints, admixtures as approved, curing of concrete slabs for 14- days, curing compound (where specified) and water finishing to lines and grade as per drawing and including overhead charges & Contractor profit, but excluding GST & Seignorage Charges Technical Specification Clause 1501 MORD including overhead charges & Contractors profit but excluding GST . | C24: ='Det.Est.'!G25 -> 0 | E24: =C24*Data!#REF!/1000 ->  | G24: =C24*0.45 -> 0 | I24: =C24*0.9 -> 0 | S24: =C24*Data!#REF! ->  | W24: =E24*'Lead statement'!O26+G24*Data!F76+'Mat statement (MGNREGS)'!I24*'Mat statement (MGNREGS)'!I28+S24 -> 
B25: Total : | D25: =SUM(D9:D24) -> 905 | F25: 0 | H25: 0 | L25: 0 | M25: 0 | N25: 0 | O25: 0 | P25: 0 | Q25: 0 | R25: 0 | U25: =SUM(U9:U24) -> 0 | W25: =SUM(W9:W24) -> 
D26: =D25/D28 -> 4.664948454 | E26: =E25*1000/50 -> 
D27: =D26 -> 4.664948454
B28: Cost of each Item | D28: 194 | E28: ='Lead statement'!#REF! ->  | G28: ='Lead statement'!O24 -> 898.1 | I28: =Data!#REF! ->  | J28: =Data!#REF! ->  | K28: ='Lead statement'!O15 -> 1503.7 | M28: =+'Lead statement'!O19 -> 953.7 | N28: =Data!#REF! ->  | O28: =Data!#REF! ->  | P28: =+'Lead statement'!O16 -> 2126.2 | X28: =W25+D41 -> 
B29: Total cost ; | D29: =ROUND(D27*D28,0) -> 905 | E29: =ROUND(E27*E28,2) ->  | F29: =ROUND(F25*F28,0) -> 0 | I29: =ROUND(I25*I28,0) ->  | M29: =ROUND(M25*M28,0) -> 0 | P29: 0 | Q29: =Q25 -> 0 | R29: 0 | U29: =U25 -> 0 | W29: =SUM(D29:V29) ->  | X29: =W29-W25 ->  | Y29: ='[73]Working Est'!K116 -> 2100000 | Z29: =Y29-W29 -> 
D30: =D31-D29-E29-G29-H29-I29-V29 ->  | F30: =F25*40 -> 0 | H30: =H25*50 -> 0 | L30: =L25*22 -> 0 | N30: =N25*50 -> 0 | P30: =P25*22 -> 0
B31: Sub - Estimate Cost : | D31: =ROUND(W25,0) -> 
B32: Seigniorage Charges | D32: ='Seignorage '!J30 -> 5044 | E32: . | U32: =N29+O29+P29+Q29+R29+S29+U29+D41 ->  | X32: 105282+4823 | Y32: =111719-105282 -> 6437
B33: ToTal :
D34: =#REF! -> 
B37: Estimate Cost | D37: =D31 -> 
B38: CW 13 - Seigniorage Charges | D38: 5044
B39: CW 11- Vat @ 5.00 % | D39: ='Det.Est.'!#REF!+CRDA!I87 -> 
B40: CW 12 - Quality control charges @ 0.50% | D40: ='Det.Est.'!#REF!+CRDA!I88 -> 
B41: Storage&Safe guard of Materials @2.50% | D41: ='Det.Est.'!#REF! -> 
B42: NAC @ 0.10% | D42: =CRDA!I90 -> 
B43: CW15 - LS amount for unforeseen items. | D43: ='Det.Est.'!I50+CRDA!I91+CRDA!I89+E43 ->  | E43: 2
B44: TOTAl : | D44: =SUM(D37:D43) -> 
G45: Asst. Exe. Engineer, | Q45: Deputy Executive Engineer, | R45: Asst. Exe. Engineer,
G46: MPP (PRI) :: Mangalagiri. | Q46: PRISD :: Mangalagiri. | R46: MPP :: Mangalagiri.

Sheet Mat statement (CRDA) (hidden)
A1: MATERIAL STATEMENT - 1st & Part Bill (CRDA SHARE)
B2: Name of the Work | C2: :: | D2: ='Lead statement'!D3 -> Providing Interlocking pavers road from Lanke seshagiri rao (H) to kokkiligadda varma (H) in Duggirala (V&M).
J3: =Cover!E33 -> Estimate Cost :: Rs. | K3: =Cover!F33 -> 1.7 | O3: ='Lead statement'!J4 -> Estimate Cost :: Rs. | P3: =Cover!F33 -> 1.7 | Q3: Lakhs | R3: ='Lead statement'!#REF! -> 
D4: CW01 | E4: CW02 | F4: CW03 | G4: CW04 | H4: CW05 | I4: CW07 | J4: CW08 | K4: CW09 | L4: CW10 | V4: CW13 | W4: TOTAL
A5: Sl No. | B5: Description of Item | C5: Quantity | D5: Wage component in Rs. | E5: Matrerial Component | L5: Others | V5: Seigniorage Charges in Rs.
E6: Cement in Mts | F6: Sand for filling | G6: Sand for Mortar | H6: Gr. II HBG Metal | I6: 20mm & 12mm HBG Chips | J6: 40mm & 20mm HBG Metal | K6: 40mm HBG Metal | L6: GSB | P6: 20mm HBG metal | Q6: Name Board | S6: Laying of M10 / M15 / M30 | T6: Laying of M30 CC pavement
L7: Gravel | M7: Stondust | N7: Stone Dust | O7: Compaction | R7: Laying of 1:4:8 | U7: Steel in MTs
A8: 1 | B8: 2 | C8: 3 | D8: 4 | E8: 5 | F8: 6 | G8: 7 | H8: 8 | I8: 9 | J8: 10 | K8: 11 | L8: 12 | M8: 13 | N8: 14 | O8: 15 | P8: 16 | Q8: 12 | R8: 18 | S8: 13 | T8: 20 | U8: 22 | V8: 20 | W8: 14
A9: 1 | B9: ='Det.Est.'!B23 -> Construction of un-reinforced, dowel jointed at expansion and construction joint only, plain cement concrete pavement, thickness as per design, over a prepared sub base, with 43 grade cement or any other type as per Clause 1501.2.2 M20 (Grade), coarse and fine aggregates conforming to IS : 383, maximum in a concrete mixer of not less than 0.2 cum capacity and appropeiate weigh batcher using approved mix design, laid in approved fixed side formwork (steel channel, laying and fixing of 125 micron thick polythene film, wedges, steel plates including levelling the formwork as per drawing), spreading the concrete with sholvels, rakes, compacted using needle, scareed and plate vibrators and finished in continuous operation including provision of contraction and expansion, construction joints, applying debonding strips, primer, sealant, dowel bars, near approaches to bridge / culvert and construction joints, admixtures as approved, curing of concrete slabs for 14- days, curing compound (where specified) and water finishing to lines and grade as per drawing and including overhead charges & Contractor profit, but excluding GST & Seignorage Charges Technical Specification Clause 1501 MORD including overhead charges & Contractors profit but excluding GST . | C9: =CRDA!G83 -> 0 | E9: =C9*Data!#REF!/1000 ->  | G9: =C9*0.45 -> 0 | I9: =C9*0.9 -> 0 | S9: =C9*Data!#REF! ->  | W9: =E9*'Lead statement'!O26+G9*Data!F76+'Mat statement (CRDA)'!I9*'Mat statement (CRDA)'!I13+S9 -> 
B10: Total : | D10: =SUM(D9) -> 0 | F10: 0 | G10: 0 | H10: 0 | I10: 0 | J10: 0 | K10: 0 | L10: 0 | M10: 0 | N10: 0 | O10: 0 | P10: 0 | Q10: 0 | R10: 0 | U10: =SUM(U9) -> 0 | W10: =SUM(W9) -> 
D11: =D10/D13 -> 0 | E11: =E10*1000/50 -> 
D12: =D11 -> 0
B13: Cost of each Item | D13: 194 | E13: ='Lead statement'!#REF! ->  | G13: ='Lead statement'!O24 -> 898.1 | I13: =Data!#REF! ->  | J13: =Data!#REF! ->  | K13: ='Lead statement'!O15 -> 1503.7 | M13: =+'Lead statement'!O19 -> 953.7 | N13: =Data!#REF! ->  | O13: =Data!#REF! ->  | P13: =+'Lead statement'!O16 -> 2126.2 | X13: =W10+D26 -> 
B14: Total cost ; | D14: =ROUND(D12*D13,0) -> 0 | E14: =ROUND(E12*E13,2) ->  | F14: =ROUND(F10*F13,0) -> 0 | G14: =ROUND(G10*G13,2) -> 0 | I14: =ROUND(I10*I13,2) ->  | J14: =ROUND(J10*J13,0) ->  | K14: 0 | M14: =ROUND(M10*M13,0) -> 0 | P14: 0 | Q14: =Q10 -> 0 | R14: 0 | U14: =U10 -> 0 | W14: =SUM(D14:V14) ->  | X14: =W14-W10 ->  | Y14: ='[73]Working Est'!K116 -> 2100000 | Z14: =Y14-W14 -> 
D15: =D16-D14-E14-G14-H14-I14-V14 ->  | F15: =F10*40 -> 0 | G15: 0 | H15: =H10*50 -> 0 | I15: 0 | J15: 0 | K15: 0 | L15: =L10*22 -> 0 | N15: =N10*50 -> 0 | P15: =P10*22 -> 0
B16: Sub - Estimate Cost : | D16: =ROUND(W10,0) -> 
B17: Seigniorage Charges | D17: ='Seignorage '!J30 -> 5044 | E17: . | U17: =N14+O14+P14+Q14+R14+S14+U14+D26 ->  | X17: 105282+4823 | Y17: =111719-105282 -> 6437
B18: ToTal :
D19: =#REF! -> 
B22: Estimate Cost | D22: =D16 -> 
B23: CW 13 - Seigniorage Charges | D23: 5044
B24: CW 11- Vat @ 5.00 % | D24: ='Det.Est.'!#REF!+CRDA!I87 -> 
B25: CW 12 - Quality control charges @ 0.50% | D25: ='Det.Est.'!#REF!+CRDA!I88 -> 
B26: Storage&Safe guard of Materials @2.50% | D26: ='Det.Est.'!#REF! -> 
B27: NAC @ 0.10% | D27: =CRDA!I90 -> 
B28: CW15 - LS amount for unforeseen items. | D28: ='Det.Est.'!I50+CRDA!I91+CRDA!I89+E28 ->  | E28: 2
B29: TOTAl : | D29: =SUM(D22:D28) -> 
G30: Asst. Exe. Engineer, | Q30: Deputy Executive Engineer, | R30: Asst. Exe. Engineer,
G31: MPP (PRI) :: Mangalagiri. | Q31: PRISD :: Mangalagiri. | R31: MPP :: Mangalagiri.

Sheet CC Bill(CRDA) (Material) (hidden)
A1: L.F.Form No 91
A2: Z.P. & P.S.No. 13 ( Full Sheet) | E2: MATERIAL STATEMENT - BILL
F3: ='[386]CC Bill(CRDA)'!F3 -> PART B - CRDA
A4: Name of Work | C4: : | D4: ='CC Bill(MGNREGS) (Material)'!D4:I4 -> Providing Interlocking pavers road from Lanke seshagiri rao (H) to kokkiligadda varma (H) in Duggirala (V&M).
A5: Name of Contractor | C5: : | D5: ='CC Bill(MGNREGS) (Material)'!D5 -> Grampanchayat, Yerrabalem(V) | F5: =[386]Cover!E12 -> WORK ID :: | G5: ='CC Bill(MGNREGS) (Material)'!G5 -> 077041205003080009
A6: Voucher | C6: : | F6: MGNREGS in Convergence with CRDA Funds Grant
A7: Last Certificate if any | C7: :
A8: Month | C8: :
A9: Number in and month of the last Schedules, if any
A10: Mandal | B10: Mangalagiri | D10: Est Cost Rs: | E10: ='[386]CC Bill(MGNREGS)'!E10 -> 10.00 | F10: Lakhs | G10: Voucher No.
A11: Oversee's No | D11: Authority. | G11: Covering List No.
A12: ='CC Bill(MGNREGS) (Material)'!A12 -> M.Book No. :: 1933/ B /PRI / 2015 - 16 | G12: Schedule No.
A13: Quantity Executed Supplied | D13: ITEMS | E13: Rate Rs. Ps. | F13: Per | G13: Amount
A14: Upto Date | B14: Since Last Certificate | C14: Mile | G14: Upto Date Rs. Ps. | H14: Since Last Certificate Rs. Ps. | I14: Remarks
A15: 1 | B15: 2 | C15: 3 | D15: 4 | E15: 5 | F15: 6 | G15: 7 | H15: 8 | I15: 9
D18: PART - B (CRDA SHARE)
A19: ='Mat statement (CRDA)'!E11 ->  | B19: =A19 ->  | C19: 1 | D19: CW 02 - Cost of Cement | E19: 240 | F19: 1 | G19: =ROUND(A19*E19/F19,2) ->  | H19: =ROUND(B19*E19/F19,2) -> 
A20: ='Mat statement (CRDA)'!G10 -> 0 | B20: 0 | C20: 2 | D20: CW04.sand for mortar | E20: ='Mat statement (CRDA)'!G13 -> 898.1 | F20: 1 | G20: 0 | H20: 0
A21: ='Mat statement (CRDA)'!I10 -> 0 | B21: 0 | C21: 3 | D21: CW07.20mm to 12mm HBG/HBT graded Metal:Consisting of 20mm metal 60% and12mm metal 40% | E21: ='Mat statement (CRDA)'!I13 ->  | F21: 1
A22: ='Mat statement (CRDA)'!C9 -> 0 | B22: 0 | C22: 4 | D22: CW 10 - Costruction of un reinforced dowel jointed at Expansion and construction joint only plain cement concrete pavement , thicknees as per design over a perpared sub base, with 43 / 53 grade cement or any other type using nominal mix of VCC(1:2:4) equivalent to M20 mix coarse and fine aggregates conforming to IS : 383, maximum size of coarse aggregate not lesst than 0.20 cum capacity and 25m ,MIxied in a concrete mixer of not less thand 0.20 cum capacity and appropriate weigh batcher using approved mix desigan laid in approved fixed side from work ( steel channel, laying andfixing the of 125 mircon thick polythene film, wedges, steel p;ates including levelling the from work per drawing ) spreadiang the concrete with shovels, rakes, pate vibrators and finished in contunous poeration inclluding provision of contraction and expansion construction joints curing of concrete slabs for 14days grade as per drwaing and Technical Specification clause 1501.22 including over haead & contractors prifit but exeluding VAT & seingnorage charges for Cement Concrete Pavement | E22: =Data!#REF! ->  | F22: 1
G45: =SUM(G19:G44) ->  | I45: (PTO)
A46: CONTRACT CERTIFICATE
A48: Quantity Executed Supplied | D48: ITEMS | E48: Rate Rs. | F48: Per | G48: Amount
A49: Upto Date | B49: Since Last Certificate | C49: Mile | G49: Upto Date Rs. | H49: Since Last Certificate Rs. | I49: Remarks
A50: 1 | B50: 2 | C50: 3 | D50: 4 | E50: 5 | F50: 6 | G50: 7 | H50: 8 | I50: 9
F51: B.F. | G51: =G45 -> 
K52: =#REF!-#REF! -> 
K54: =#REF!-#REF! -> 
G105: =SUM(G51:G102) ->  | I105: (PTO) | K105: ='[385]CC Bill(MGNREGS)'!G46 -> 120829.14 | M105: =G105+K105 -> 
A106: CONTRACT CERTIFICATE
A108: Quantity Executed Supplied | D108: ITEMS | E108: Rate Rs. | F108: Per | G108: Amount
A109: Upto Date | B109: Since Last Certificate | C109: Mile | G109: Upto Date Rs. | H109: Since Last Certificate Rs. | I109: Remarks
A110: 1 | B110: 2 | C110: 3 | D110: 4 | E110: 5 | F110: 6 | G110: 7 | H110: 8 | I110: 9
F111: B.F. | G111: =G105 ->  | K111: ='[388]CC Bill (Vouchers)'!H60 -> 112626.14 | L111: =H111-K111 ->  | N111: =G111-H111 -> 
K112: =H111 -> 
B115: Seignorage charges Rs. /- vp
D138: Total value of work done or supplies made to date deduct values of work or supplies shown on last certificate | G138: =SUM(G111:G137) -> 
D139: Net Value of work of supplies since Last Certificate
A142: Signature of Contractor: | G142: Date:
A144: Certified that the proceeding claim is correct that necessary measurement have been made by me on and recorded on pages of Measurement Book No. and that the Duty work has been satisfactiorily performed | F144: Check Measurement Certificate Work had Certified that the Materials were Checked
A145: Certified that the materials billed for have been received and brought to account | F145: Measured by me on (Dates)
C148: Assistant Executive Engineer,
C149: MPP(PRI) :: Mangalagiri.
A150: Date | D150: Officer Incharge | F150: Dated | H150: Designation
A151: MEMORANDUM OF PAYMENT MADE | G151: Rs | H151: Ps. Rs. | I151: Ps.
A152: Total value of work done:
A153: Amount of previous payments from last certificate No. of
A154: forworded with account for
A155: Fines and other deductions upto date
D156: By Cash | E156: Rs.
A157: Payments now made | D157: By Cheque No of
D158: By value of stock supplied
G159: Balance Value
A161: Allotment for the Year | E161: Rs. | F161: Ps.
A162: Expenditure including this bill
A163: Balance available
A165: PAY RUPEES (…………………………………………………….) RECEIVED RUPEES(………………………………..)
E166: Only as final payment in settlement or and demand
E167: ……………………………………………………………
E168: ……………………………………………………………
E169: Witness : ……………………………………………….
A170: Head Clerk or | D170: President or
A171: Hd.Accountant | D171: Engineer | G171: Date :
A172: INTERNACULR
H173: AUDIT ENFACEMENT
H174: Admitted Rs.
H175: Objected to Rs.
H176: Total Rs.
G177: Dated ……………2006 Auditor
A178: DISTRICT ENGINEERS REMARKS
A179: NOTES
A180: 1 | B180: This form is intended for use in the case of running account i.e. for works in progress or supplies in course of delivery when the liability is discharged in full single payment Form No. 38A should be used
A181: 2 | B181: Payment will be made only upto nineteenths of total value of the work done. The balance being returned as security both for the due performance of the contract or to cover possible over payment which may be deducted on check measurement in the case of work whose estimated cost does not exceed Rs. 50, payment may be made in full on the measuring officers certificate subject to subsequent check measuring authority
A182: 3 | B182: In calculating the amount of each item due to the contract in the bill sum of six paise or less shall be committed and sum exceeding six paise upto one anna shall be recorded as one anna
A183: 4 | B183: Payment made in case of sums exceeding Rs. 100 should be attested by two witness and for smaller sums by one witness payment made by cheque or to recognised firms or winstitution need not be if witnessed.
A184: 5 | B184: When the payee signs in the vernacular, amount acknowledged should be noted in the same vernacular as well as in English.
A185: 6 | B185: In the case other than well known firms all parties must sign if there be more than one contractor or the payees must produce a power of attorny from the firm.
A186: 7 | B186: No contract certificate bearing on reuses should be accepted, if anty corrections are necessary, the figures should nearly scored out and initialised by the office concerned in the case or corrections made in the Engineer office the Head accountant may be authorised to attest those due clericalerros etc out the Engineer should affix hs initials to all correction in the rate column as well as those in the total the bills and the pass order. This rule applies MUTATIS MUTANDIS to payment from miscellaneous grants.
A187: 8 | B187: In case in which the materials bined for are taken over charges by an officer other than the officer signing the certificate at form of the bill the names of the former should be noted in the remarks columns of bill necessary amendment being made at the same time in the excluding portion of the certificate relating so materials.

Sheet CC Bill(CRDA) (hidden)
A1: L.F.Form No 91 | E1: CC 1st & Part Bill
A2: Z.P. & P.S.No. 13 ( Full Sheet)
F3: ='[386]Mat statement (Bill)'!B17 -> PART B - CRDA
A4: Name of Work | C4: : | D4: ='[389]CC Bill(MGNREGS)'!D4:I4 -> Providing internal CC roads from Tadiboina Koteswara Rao (H) to Market Yard in Yerrabalem (V) of Mangalagiri(M)
A5: Name of Contractor | C5: : | D5: ='[389]CC Bill(MGNREGS)'!D5 -> Grampanchayat, Yerrabalem(V) | F5: =[386]Cover!E12 -> WORK ID :: | G5: ='[389]CC Bill(MGNREGS)'!G5 -> 077041205003080009
A6: Voucher | C6: : | F6: MGNREGS in Convergence with CRDA Funds Grant
A7: Last Certificate if any | C7: :
A8: Month | C8: :
A9: Number in and month of the last Schedules, if any
A10: Mandal | B10: Mangalagiri | D10: Est Cost Rs: | E10: ='[387]CC Bill(MGNREGS)'!E10 -> 10.00 | F10: Lakhs | G10: Voucher No.
A11: Oversee's No | D11: Authority. | G11: Covering List No.
A12: =[389]MGNREGS!B3 -> M.Book No. :: 1933 / B / PRI / 2015 - 16 | G12: Schedule No.
A13: Quantity Executed Supplied | D13: ITEMS | E13: Rate Rs. Ps. | F13: Per | G13: Amount
A14: Upto Date | B14: Since Last Certificate | C14: Mile | G14: Upto Date Rs. Ps. | H14: Since Last Certificate Rs. Ps. | I14: Remarks
A15: 1 | B15: 2 | C15: 3 | D15: 4 | E15: 5 | F15: 6 | G15: 7 | H15: 8 | I15: 9
D18: PART - A - CRDA
A19: =CRDA!G83 -> 0 | B19: =A19 -> 0 | C19: 1 | D19: =[389]CRDA!B84 -> Construction of un reinforced, M30 Grade mix, plain cement concrete pavement , thickness as per design over a prepared sub base, with 43 / 53 grade cement, and using coarse and fine aggregates conforming to IS :383, approved admixtures and mixed in a | E19: =CRDA!H83 -> 5727.44 | F19: 1 | G19: =ROUND(A19*E19/F19,2) -> 0 | H19: =ROUND(B19*E19/F19,2) -> 0
G33: =SUM(G17:G28) -> 0 | H33: 0 | I33: (PTO) | K33: =H33+'[386]CC Bill(MGNREGS)'!H40 -> 437683.56
A34: CONTRACT CERTIFICATE
A36: Quantity Executed Supplied | D36: ITEMS | E36: Rate Rs. | F36: Per | G36: Amount
A37: Upto Date | B37: Since Last Certificate | C37: Mile | G37: Upto Date Rs. | H37: Since Last Certificate Rs. | I37: Remarks
A38: 1 | B38: 2 | C38: 3 | D38: 4 | E38: 5 | F38: 6 | G38: 7 | H38: 8 | I38: 9
F39: B.F. | G39: =G33 -> 0 | H39: 0
K40: =G27-H27 -> 0
K42: =G19-H19 -> 0
G92: =SUM(G39:G89) -> 0 | H92: 0 | I92: (PTO) | K92: ='[385]CC Bill(MGNREGS)'!G46 -> 120829.14 | M92: =G92+K92 -> 120829.14
A93: CONTRACT CERTIFICATE
A95: Quantity Executed Supplied | D95: ITEMS | E95: Rate Rs. | F95: Per | G95: Amount
A96: Upto Date | B96: Since Last Certificate | C96: Mile | G96: Upto Date Rs. | H96: Since Last Certificate Rs. | I96: Remarks
A97: 1 | B97: 2 | C97: 3 | D97: 4 | E97: 5 | F97: 6 | G97: 7 | H97: 8 | I97: 9
F98: B.F. | G98: =G92 -> 0 | H98: 0 | K98: ='[388]CC Bill (Vouchers)'!H60 -> 112626.14 | L98: =H98-K98 -> -112626.14 | N98: =G98-H98 -> 0
K99: =H98 -> 0
B102: Seignorage charges Rs. /- vp
D124: Total value of work done or supplies made to date deduct values of work or supplies shown on last certificate | G124: =SUM(G98:G123) -> 0 | H124: 0
D125: Net Value of work of supplies since Last Certificate
A128: Signature of Contractor: | G128: Date:
A130: Certified that the proceeding claim is correct that necessary measurement have been made by me on and recorded on pages of Measurement Book No. and that the Duty work has been satisfactiorily performed | F130: Check Measurement Certificate Work had Certified that the Materials were Checked
A131: Certified that the materials billed for have been received and brought to account | F131: Measured by me on (Dates)
C134: Assistant Executive Engineer,
C135: MPP(PRI) :: Mangalagiri.
A136: Date | D136: Officer Incharge | F136: Dated | H136: Designation
A137: MEMORANDUM OF PAYMENT MADE | G137: Rs | H137: Ps. Rs. | I137: Ps.
A138: Total value of work done:
A139: Amount of previous payments from last certificate No. of
A140: forworded with account for
A141: Fines and other deductions upto date
D142: By Cash | E142: Rs.
A143: Payments now made | D143: By Cheque No of
D144: By value of stock supplied
G145: Balance Value
A147: Allotment for the Year | E147: Rs. | F147: Ps.
A148: Expenditure including this bill
A149: Balance available
A151: PAY RUPEES (…………………………………………………….) RECEIVED RUPEES(………………………………..)
E152: Only as final payment in settlement or and demand
E153: ……………………………………………………………
E154: ……………………………………………………………
E155: Witness : ……………………………………………….
A156: Head Clerk or | D156: President or
A157: Hd.Accountant | D157: Engineer | G157: Date :
A158: INTERNACULR
H159: AUDIT ENFACEMENT
H160: Admitted Rs.
H161: Objected to Rs.
H162: Total Rs.
G163: Dated ……………2006 Auditor
A164: DISTRICT ENGINEERS REMARKS
A165: NOTES
A166: 1 | B166: This form is intended for use in the case of running account i.e. for works in progress or supplies in course of delivery when the liability is discharged in full single payment Form No. 38A should be used
A167: 2 | B167: Payment will be made only upto nineteenths of total value of the work done. The balance being returned as security both for the due performance of the contract or to cover possible over payment which may be deducted on check measurement in the case of work whose estimated cost does not exceed Rs. 50, payment may be made in full on the measuring officers certificate subject to subsequent check measuring authority
A168: 3 | B168: In calculating the amount of each item due to the contract in the bill sum of six paise or less shall be committed and sum exceeding six paise upto one anna shall be recorded as one anna
A169: 4 | B169: Payment made in case of sums exceeding Rs. 100 should be attested by two witness and for smaller sums by one witness payment made by cheque or to recognised firms or winstitution need not be if witnessed.
A170: 5 | B170: When the payee signs in the vernacular, amount acknowledged should be noted in the same vernacular as well as in English.
A171: 6 | B171: In the case other than well known firms all parties must sign if there be more than one contractor or the payees must produce a power of attorny from the firm.
A172: 7 | B172: No contract certificate bearing on reuses should be accepted, if anty corrections are necessary, the figures should nearly scored out and initialised by the office concerned in the case or corrections made in the Engineer office the Head accountant may be authorised to attest those due clericalerros etc out the Engineer should affix hs initials to all correction in the rate column as well as those in the total the bills and the pass order. This rule applies MUTATIS MUTANDIS to payment from miscellaneous grants.
A173: 8 | B173: In case in which the materials bined for are taken over charges by an officer other than the officer signing the certificate at form of the bill the names of the former should be noted in the remarks columns of bill necessary amendment being made at the same time in the excluding portion of the certificate relating so materials.

Sheet CC Bill(MGNREGS) (hidden)
A1: L.F.Form No 91 | E1: CC 1st & Part Bill
A2: Z.P. & P.S.No. 13 ( Full Sheet)
F3: ='[385]wor. Est.'!A5 -> PART - A (MGNREGS SHARE)
A4: Name of Work | C4: : | D4: =[389]MGNREGS!C2 -> Providing internal CC roads from Tadiboina Koteswara Rao (H) to Market Yard in Yerrabalem (V) of Mangalagiri(M)
A5: Name of Contractor | C5: : | D5: Grampanchayat, Yerrabalem(V) | F5: =[386]Cover!E12 -> WORK ID :: | G5: =[389]Cover!F12 -> 077041205003080009
A6: Voucher | C6: : | F6: MGNREGS in Convergence with CRDA Funds Grant
A7: Last Certificate if any | C7: :
A8: Month | C8: :
A9: Number in and month of the last Schedules, if any
A10: Mandal | B10: Mangalagiri | D10: Est Cost Rs: | E10: =[387]MGNREGS!H3 -> 10.00 | F10: Lakhs | G10: Voucher No.
A11: Oversee's No | D11: Authority. | G11: Covering List No.
A12: M.Book No. :: 1933/ B /PRI / 2015 - 16 | G12: Schedule No.
A13: Quantity Executed Supplied | D13: ITEMS | E13: Rate Rs. Ps. | F13: Per | G13: Amount
A14: Upto Date | B14: Since Last Certificate | C14: Mile | G14: Upto Date Rs. Ps. | H14: Since Last Certificate Rs. Ps. | I14: Remarks
A15: 1 | B15: 2 | C15: 3 | D15: 4 | E15: 5 | F15: 6 | G15: 7 | H15: 8 | I15: 9
D18: ='[385]wor. Est.'!A5 -> PART - A (MGNREGS SHARE)
A19: ='Det.Est.'!#REF! ->  | B19: =A19 ->  | C19: 1 | D19: =[389]MGNREGS!B12 -> Unskilled labour for Earth work exevation and depositing the soil on banks with an initial lead and lift in all soils etc., complete. | E19: ='Det.Est.'!H9 -> 244.608 | F19: 1 | G19: =ROUND(A19*E19/F19,2) ->  | H19: =ROUND(B19*E19/F19,2) -> 
A20: ='Det.Est.'!G13 -> 3.7 | B20: 3.7 | C20: 2 | D20: =[389]MGNREGS!B37 -> Providing plain cement concrete M10 mix using 40mm to 20 mm Graded HBG crushed Metal with 220 Kgs of cement per 1cum of concrete, including C/c of all materials, curing ,labour charges etc., complete as per drawings & tech. specifications Clause 802, 8 | E20: ='Det.Est.'!H13 -> 4497.69 | F20: 1 | G20: 16641.45 | H20: 16641.45
A21: ='Det.Est.'!#REF! ->  | C21: 3 | D21: =[389]MGNREGS!B56 -> Providing plain cement concrete M10 mix using 40mm to 20 mm Graded HBG crushed Metal with 220 Kgs of cement per 1cum of concrete, including C/c of all materials, curing ,labour charges etc., complete as per drawings & tech. specifications Clause 802, 8 | E21: ='Det.Est.'!#REF! ->  | F21: 1
A22: ='Det.Est.'!#REF! ->  | B22: =[389]MGNREGS!G141 -> 0.73 | C22: 4 | D22: =[389]MGNREGS!B137 -> Laying of M15 nominal mix using 66% of 20 mm HBG Metal and 33% of 12mm HBG Metal including Cost and Conveyance of all materials, Centering and Labour Charges and Curing for Side Drains as Per the Section Covered in guidelines for Drainwalls on roadside an | E22: ='Det.Est.'!#REF! ->  | F22: 1
A23: ='Det.Est.'!G21 -> 34.97 | B23: =A23 -> 34.97 | C23: 5 | D23: =[389]MGNREGS!B143 -> Cost and supply of stone dust for including Cost and conveyance of all materials and labour charges for loading unloading charges etc , complete for foundation of | E23: ='Det.Est.'!H21 -> 787.8233333 | F23: 1 | G23: 27550.18 | H23: 27550.18
A24: ='Det.Est.'!G25 -> 0 | B24: 0 | C24: 6 | D24: =[389]MGNREGS!B214 -> Construction of un reinforced, M30 Grade mix, plain cement concrete pavement , thickness as per design over a prepared sub base, with 43 / 53 grade cement, and using coarse and fine aggregates conforming to IS :383, approved admixtures and mixed in a | E24: ='Det.Est.'!H25 -> 5727.44 | F24: 1 | G24: 0 | H24: 0
A25: ='Mat statement (MGNREGS)'!C23 ->  | B25: ='Mat statement (MGNREGS)'!C23 ->  | C25: 7 | D25: ='Mat statement (MGNREGS)'!B23 ->  | E25: ='Det.Est.'!#REF! ->  | F25: 1
G35: =SUM(G17:G28) ->  | I35: (PTO)
A36: CONTRACT CERTIFICATE
A38: Quantity Executed Supplied | D38: ITEMS | E38: Rate Rs. | F38: Per | G38: Amount
A39: Upto Date | B39: Since Last Certificate | C39: Mile | G39: Upto Date Rs. | H39: Since Last Certificate Rs. | I39: Remarks
A40: 1 | B40: 2 | C40: 3 | D40: 4 | E40: 5 | F40: 6 | G40: 7 | H40: 8 | I40: 9
F41: B.F. | G41: =G35 -> 
K42: =#REF!-#REF! -> 
K44: =G44-H44 -> 0
G90: =SUM(G41:G87) ->  | I90: (PTO)
A91: CONTRACT CERTIFICATE
A93: Quantity Executed Supplied | D93: ITEMS | E93: Rate Rs. | F93: Per | G93: Amount
A94: Upto Date | B94: Since Last Certificate | C94: Mile | G94: Upto Date Rs. | H94: Since Last Certificate Rs. | I94: Remarks
A95: 1 | B95: 2 | C95: 3 | D95: 4 | E95: 5 | F95: 6 | G95: 7 | H95: 8 | I95: 9
F96: B.F. | G96: =G90 ->  | K96: ='[388]CC Bill (Vouchers)'!H60 -> 112626.14 | L96: =H96-K96 ->  | N96: =G96-H96 -> 
K97: =H96 -> 
B100: Seignorage charges Rs. /- vp
D122: Total value of work done or supplies made to date deduct values of work or supplies shown on last certificate | G122: =SUM(G96:G121) -> 
D123: Net Value of work of supplies since Last Certificate
A126: Signature of Contractor: | G126: Date:
A128: Certified that the proceeding claim is correct that necessary measurement have been made by me on and recorded on pages of Measurement Book No. and that the Duty work has been satisfactiorily performed | F128: Check Measurement Certificate Work had Certified that the Materials were Checked
A129: Certified that the materials billed for have been received and brought to account | F129: Measured by me on (Dates)
C132: Assistant Executive Engineer,
C133: MPP(PRI) :: Mangalagiri.
A134: Date | D134: Officer Incharge | F134: Dated | H134: Designation
A135: MEMORANDUM OF PAYMENT MADE | G135: Rs | H135: Ps. Rs. | I135: Ps.
A136: Total value of work done:
A137: Amount of previous payments from last certificate No. of
A138: forworded with account for
A139: Fines and other deductions upto date
D140: By Cash | E140: Rs.
A141: Payments now made | D141: By Cheque No of
D142: By value of stock supplied
G143: Balance Value
A145: Allotment for the Year | E145: Rs. | F145: Ps.
A146: Expenditure including this bill
A147: Balance available
A149: PAY RUPEES (…………………………………………………….) RECEIVED RUPEES(………………………………..)
E150: Only as final payment in settlement or and demand
E151: ……………………………………………………………
E152: ……………………………………………………………
E153: Witness : ……………………………………………….
A154: Head Clerk or | D154: President or
A155: Hd.Accountant | D155: Engineer | G155: Date :
A156: INTERNACULR
H157: AUDIT ENFACEMENT
H158: Admitted Rs.
H159: Objected to Rs.
H160: Total Rs.
G161: Dated ……………2006 Auditor
A162: DISTRICT ENGINEERS REMARKS
A163: NOTES
A164: 1 | B164: This form is intended for use in the case of running account i.e. for works in progress or supplies in course of delivery when the liability is discharged in full single payment Form No. 38A should be used
A165: 2 | B165: Payment will be made only upto nineteenths of total value of the work done. The balance being returned as security both for the due performance of the contract or to cover possible over payment which may be deducted on check measurement in the case of work whose estimated cost does not exceed Rs. 50, payment may be made in full on the measuring officers certificate subject to subsequent check measuring authority
A166: 3 | B166: In calculating the amount of each item due to the contract in the bill sum of six paise or less shall be committed and sum exceeding six paise upto one anna shall be recorded as one anna
A167: 4 | B167: Payment made in case of sums exceeding Rs. 100 should be attested by two witness and for smaller sums by one witness payment made by cheque or to recognised firms or winstitution need not be if witnessed.
A168: 5 | B168: When the payee signs in the vernacular, amount acknowledged should be noted in the same vernacular as well as in English.
A169: 6 | B169: In the case other than well known firms all parties must sign if there be more than one contractor or the payees must produce a power of attorny from the firm.
A170: 7 | B170: No contract certificate bearing on reuses should be accepted, if anty corrections are necessary, the figures should nearly scored out and initialised by the office concerned in the case or corrections made in the Engineer office the Head accountant may be authorised to attest those due clericalerros etc out the Engineer should affix hs initials to all correction in the rate column as well as those in the total the bills and the pass order. This rule applies MUTATIS MUTANDIS to payment from miscellaneous grants.
A171: 8 | B171: In case in which the materials bined for are taken over charges by an officer other than the officer signing the certificate at form of the bill the names of the former should be noted in the remarks columns of bill necessary amendment being made at the same time in the excluding portion of the certificate relating so materials.

Sheet Seignorage (1st & Part Bill) (hidden)
A1: Seigniorage Charges (MGNREGS + CRDA)
B2: ='Lead statement'!C3 -> Name of the Work :: | C2: ='Lead statement'!D3 -> Providing Interlocking pavers road from Lanke seshagiri rao (H) to kokkiligadda varma (H) in Duggirala (V&M).
A3: Sl No. | B3: Descripition of Item | C3: Qty. | D3: Earth | E3: Sand | F3: Metal | J3: Cement
F4: stone dust | G4: 40 - 20 mm metal | H4: 60%-40mm & 40%-20-10mm chips | I4: 20-12mm chips
B6: PART A - MGNREGS
A7: 1 | B7: Earth work exevation and depositing for drain | C7: ='Det.Est.'!#REF! ->  | D7: =C7 -> 
A8: 2 | B8: Selected Earth | D8: 0
A9: 3 | B9: Plain cement concrete M10 for shoe wall & Screen walls | C9: ='Det.Est.'!G13+'Det.Est.'!#REF! ->  | E9: =C9*0.45 ->  | G9: =C9*0.9 ->  | J9: =ROUND(C9*Data!C9*1000,2) -> 
A10: 4 | B10: plain cement concrete M10 for screen wall
A11: 4 | B11: Plain cement concrete M15 for bed concrete & Body walls | C11: ='Det.Est.'!#REF! ->  | E11: =C11*0.45 ->  | I11: =C11*0.9 ->  | J11: =ROUND(C11*Data!#REF!*1000,2) -> 
A12: 6 | B12: plain cement concrete M15 for body walls | E12: =C12*0.48 -> 0 | G12: =C12*0.9 -> 0 | J12: =ROUND(C12*Data!C110*1000,2) -> 0
A13: 5 | B13: Cost and supply of stonedust for side berms and foundation of drain | C13: 90.8 | F13: =C13 -> 90.8
A14: 8 | B14: Providing CC (1:4:8) using 40mm HBG metal for road | E14: =C14*0.45 -> 0 | I14: =C14*0.9 -> 0 | J14: =ROUND(C14*Data!#REF!,2) -> 
A15: 4 | B15: Granular Sub-Base by providing coarse graded material | I15: =C15*(384/300) -> 0
A16: 6 | B16: Costruction of un refinforced dowel jointed for CC Road | C16: ='Det.Est.'!G25 -> 0 | E16: =C16*0.45 -> 0 | I16: =C16*0.9 -> 0 | J16: =ROUND(C16*Data!#REF!,2) -> 
D17: =SUM(D7:D16) ->  | F17: 90.8 | H17: 0 | K17: =J17/50 ->  | L17: =K17*'Imput data'!F56 -> 
B19: PART B - CRDA
A20: 1 | B20: ='Det.Est.'!B23 -> Construction of un-reinforced, dowel jointed at expansion and construction joint only, plain cement concrete pavement, thickness as per design, over a prepared sub base, with 43 grade cement or any other type as per Clause 1501.2.2 M20 (Grade), coarse and fine aggregates conforming to IS : 383, maximum in a concrete mixer of not less than 0.2 cum capacity and appropeiate weigh batcher using approved mix design, laid in approved fixed side formwork (steel channel, laying and fixing of 125 micron thick polythene film, wedges, steel plates including levelling the formwork as per drawing), spreading the concrete with sholvels, rakes, compacted using needle, scareed and plate vibrators and finished in continuous operation including provision of contraction and expansion, construction joints, applying debonding strips, primer, sealant, dowel bars, near approaches to bridge / culvert and construction joints, admixtures as approved, curing of concrete slabs for 14- days, curing compound (where specified) and water finishing to lines and grade as per drawing and including overhead charges & Contractor profit, but excluding GST & Seignorage Charges Technical Specification Clause 1501 MORD including overhead charges & Contractors profit but excluding GST . | C20: =CRDA!G83 -> 0 | E20: =C20*0.45 -> 0 | I20: =C20*0.9 -> 0 | J20: =ROUND(C20*Data!#REF!,2) -> 
D22: =SUM(D20:D21) -> 0 | E22: 0 | F22: 0 | G22: 0 | H22: 0 | I22: 0 | K22: =J22/50 ->  | L22: =K22*'Imput data'!F56 -> 
B24: Total : | D24: =D17+D22 ->  | F24: 90.8 | H24: 0 | K24: =J24/50 ->  | L24: =K24*240 -> 
C26: PART A - MGNREGS | F26: PART B - CRDA | K26: =K24+K17 -> 
B27: Earth : | C27: =D17 ->  | D27: 30 | E27: =ROUND(C27*D27,2) ->  | F27: =D22 -> 0 | G27: 30 | I27: =ROUND(F27*G27,2) -> 0 | K27: =C27+F27 ->  | L27: =Seignorage!D16 -> 181.16 | M27: =K27-L27 -> 
B28: Sand : | C28: =E17 ->  | D28: 50 | F28: =E22 -> 0 | G28: 50 | I28: 0 | L28: =Seignorage!E16 -> 58.464
B29: Granular Chips | C29: =F17 -> 90.8 | D29: 75 | E29: 6810 | F29: =F22 -> 0 | G29: 75 | I29: 0 | K29: 90.8 | L29: =Seignorage!F16 -> 0 | M29: 90.8
B30: 40 - 20 mm metal | C30: =G17 ->  | D30: 75 | F30: =G22 -> 0 | G30: 75 | I30: 0 | L30: =Seignorage!G16 -> 29.718
B31: 40mm & 20-10mm Metal : | C31: =H17 -> 0 | F31: =H22 -> 0 | K31: 0 | M31: 0
B32: 20-12mm Chips : | C32: =I17 ->  | D32: =D29 -> 75 | E32: =C32*D32 ->  | F32: =I22 -> 0 | G32: =G29 -> 75 | I32: =F32*G32 -> 0 | L32: =Seignorage!I16 -> 179.8692
B35: Total Seignorage charges : | E35: =SUM(E27:E34) ->  | I35: =SUM(I27:I34) -> 0 | J35: =ROUNDUP(SUM(E35:I35),0) ->  | K35: =J35 ->  | L35: =Seignorage!G27 -> 24078 | M35: =K35-L35 -> 
B37: Cement : | C37: =J24 ->  | E37: Kgs | F37: =+'Lead statement'!O26/1000 -> 4.22 | G37: =ROUND(C37*F37,0) -> 
D38: =C37/50 ->  | E38: Bags
B42: Deputy Executive Engineer, | G42: Asst. Exe. Engineer,
B43: PRISD :: Mangalagiri. | G43: MPP (PRI) :: Mangalagiri.

Sheet Seignorage (1st & P.Bill) (hidden)
A1: Seigniorage Charges (MGNREGS + CRDA)
B2: ='Lead statement'!C3 -> Name of the Work :: | C2: ='Lead statement'!D3 -> Providing Interlocking pavers road from Lanke seshagiri rao (H) to kokkiligadda varma (H) in Duggirala (V&M).
A3: Sl No. | B3: Descripition of Item | C3: Qty. | D3: Earth | E3: Sand | F3: Metal | J3: Cement
F4: stone dust | G4: 40 - 20 mm metal | H4: 60%-40mm & 40%-20-10mm chips | I4: 20-12mm chips
B6: PART A - MGNREGS
A7: 1 | B7: Earth work exevation and depositing for drain | C7: ='MGNREGS (1st & P.Bill)'!G64 -> 47.92 | D7: =C7 -> 47.92
A8: 2 | B8: Selected Earth | C8: ='Det.Est.'!#REF! -> 
A9: 2 | B9: Plain cement concrete M10 for shoe wall & Screen walls | C9: ='MGNREGS (1st & P.Bill)'!G118+'MGNREGS (1st & P.Bill)'!G219 -> 53.96 | E9: =C9*0.45 -> 24.282 | G9: =C9*0.9 -> 48.564 | J9: =ROUND(C9*Data!C9*1000,2) -> 11871.2 | K9: =C9*L9 -> 11871.2 | L9: 220
A10: 4 | B10: plain cement concrete M10 for screen wall
A11: 4 | B11: Plain cement concrete M15 for bed concrete & Body walls | C11: ='Det.Est.'!#REF! ->  | E11: =C11*0.45 ->  | I11: =C11*0.9 ->  | J11: =ROUND(C11*Data!#REF!*1000,2) -> 
A12: 6 | B12: plain cement concrete M15 for body walls | E12: =C12*0.48 -> 0 | G12: =C12*0.9 -> 0 | J12: =ROUND(C12*Data!C110*1000,2) -> 0
A13: 3 | B13: Cost and supply of stonedust for side berms and foundation of drain | C13: ='MGNREGS (1st & P.Bill)'!G319 -> 89.91 | F13: =C13 -> 89.91
A14: 8 | B14: Providing CC (1:4:8) using 40mm HBG metal for road | E14: =C14*0.45 -> 0 | I14: =C14*0.9 -> 0 | J14: =ROUND(C14*Data!#REF!,2) -> 
A15: 4 | B15: Granular Sub-Base by providing coarse graded material | I15: =C15*(384/300) -> 0
A16: 4 | B16: Costruction of un refinforced dowel jointed for CC Road | C16: ='MGNREGS (1st & P.Bill)'!G390 -> 166.24 | E16: =C16*0.45 -> 74.808 | I16: =C16*0.9 -> 149.616 | J16: =ROUND(C16*Data!#REF!,2) ->  | K16: =C16*L16 -> 53861.76 | L16: 324
D17: =SUM(D7:D16) ->  | F17: 89.91 | G17: 48.564 | H17: 0 | K17: =J17/50 ->  | L17: =K17*'Imput data'!F56 -> 
B19: PART B - CRDA
A20: 1 | B20: ='Det.Est.'!B23 -> Construction of un-reinforced, dowel jointed at expansion and construction joint only, plain cement concrete pavement, thickness as per design, over a prepared sub base, with 43 grade cement or any other type as per Clause 1501.2.2 M20 (Grade), coarse and fine aggregates conforming to IS : 383, maximum in a concrete mixer of not less than 0.2 cum capacity and appropeiate weigh batcher using approved mix design, laid in approved fixed side formwork (steel channel, laying and fixing of 125 micron thick polythene film, wedges, steel plates including levelling the formwork as per drawing), spreading the concrete with sholvels, rakes, compacted using needle, scareed and plate vibrators and finished in continuous operation including provision of contraction and expansion, construction joints, applying debonding strips, primer, sealant, dowel bars, near approaches to bridge / culvert and construction joints, admixtures as approved, curing of concrete slabs for 14- days, curing compound (where specified) and water finishing to lines and grade as per drawing and including overhead charges & Contractor profit, but excluding GST & Seignorage Charges Technical Specification Clause 1501 MORD including overhead charges & Contractors profit but excluding GST . | E20: =C20*0.45 -> 0 | I20: =C20*0.9 -> 0 | J20: =ROUND(C20*Data!#REF!,2) -> 
A21: 2 | B21: Selected Earth | D21: =C21 -> 0
D22: =SUM(D20:D21) -> 0 | E22: 0 | F22: 0 | G22: 0 | H22: 0 | I22: 0 | K22: =J22/50 ->  | L22: =K22*'Imput data'!F56 -> 
B24: Total : | D24: =D17+D22 ->  | F24: 89.91 | G24: 48.564 | H24: 0 | K24: =J24/50 ->  | L24: =K24*240 -> 
K26: =K24+K17 -> 
B27: Earth : | C27: =D17 ->  | D27: 30 | E27: =ROUND(C27*D27,2) ->  | K27: =C27+F27 ->  | L27: =Seignorage!D16 -> 181.16 | M27: =K27-L27 -> 
B28: Sand : | C28: =E17 ->  | D28: 50 | L28: =Seignorage!E16 -> 58.464
B29: Granular Chips | C29: =F17 -> 89.91 | D29: 75 | E29: 6743.25 | K29: 89.91 | L29: =Seignorage!F16 -> 0 | M29: 89.91
B30: 40 - 20 mm metal | C30: =G17 -> 48.564 | D30: 75 | E30: 3642.3 | K30: 48.564 | L30: =Seignorage!G16 -> 29.718 | M30: 18.846
B31: 40mm & 20-10mm Metal : | C31: =H17 -> 0 | K31: 0 | M31: 0
B32: 20-12mm Chips : | C32: =I17 ->  | D32: =D29 -> 75 | E32: =C32*D32 ->  | L32: =Seignorage!I16 -> 179.8692
B35: Total Seignorage charges : | E35: =SUM(E27:E34) ->  | J35: =ROUNDUP(SUM(E35:I35),0) ->  | K35: =J35 ->  | L35: =Seignorage!G27 -> 24078 | M35: =K35-L35 -> 
B37: Cement : | C37: =J24 ->  | E37: Kgs | F37: =+'Lead statement'!O26/1000 -> 4.22 | G37: =ROUND(C37*F37,0) -> 
D38: =C37/50 ->  | E38: Bags
B42: Deputy Executive Engineer, | G42: Asst. Exe. Engineer,
B43: PRISD :: Mangalagiri. | G43: MPP (PRI) :: Mangalagiri.

Sheet MGNREGS (1st & P.Bill) (hidden)
A1: WORKING ESTIMATE
B2: ='Lead statement'!C3 -> Name of the Work :: | C2: ='Lead statement'!D3 -> Providing Interlocking pavers road from Lanke seshagiri rao (H) to kokkiligadda varma (H) in Duggirala (V&M). | J2: MGNREGS
B3: M.Book No. :: 1935 / B / PRI / 2015 - 16 | G3: ='Lead statement'!J4 -> Estimate Cost :: Rs. | H3: ='Lead statement'!K4 -> 1.7 | I3: Lakhs | J3: =I409 ->  | N3: Length | O3: Breadth | P3: Depth
A4: Sl. No. | B4: Description of Item | C4: Nos | D4: Measurements | G4: Qty. | H4: Rate unit | I4: Amount | J4: =I408 ->  | M4: CC Road | N4: 230 | O4: 3.5 | P4: ='Det. Est.'!O4 -> 0.17
D5: L | E5: B | F5: D | J5: =J3-J4 ->  | M5: Gravel Road | N5: =N4 -> 230 | O5: 3.5 | P5: ='Det. Est.'!O5 -> 0.15
A6: 1 | B6: 2 | D6: 3 | E6: 4 | F6: 5 | G6: 6 | H6: 7 | I6: 8 | M6: Sholders | N6: =N4 -> 230 | O6: 1 | P6: ='Det. Est.'!O6 -> 0.3
M7: Drain | N7: ='Det. Est.'!M7 -> 0 | O7: ='Det. Est.'!N7 -> 1.01 | P7: ='Det. Est.'!O7 -> 0.45
B8: List of Roads Proposed in the Work ::
A9: Sl. No. | B9: Locality | C9: FROM | E9: TO | G9: Nature of Work | H9: Length
A10: 1 | B10: SC
H11: =SUM(H10) -> 0
A12: 1 | B12: Unskilled labour for Earth work exevation and depositing the soil on banks with an initial lead and lift in all soils etc., complete.
B13: I. Dasari Jayarao(H) to Karri David(H) | E13: VP 1 - 4
B14: Dasari Jayarao(H) to 1st Cross Road i.e. | C14: Dasari Jayarao(H) to K.Parisudharao(H)
B15: Key walls, L/S & R/S | C15: 2 | D15: 38.5 | E15: 0.23 | F15: 0.23 | G15: =ROUND(C15*D15*E15*F15,2) -> 4.07
B16: Cross Walls | C16: 2 | D16: 2.54 | E16: 0.23 | F16: 0.23 | G16: 0.27
B17: 1st Cross Road to 2nd Cross Road | C17: M.Dasu(H) to K.Baaji(H)
B18: Key walls, L/S & R/S | C18: 2 | D18: 31.9 | E18: 0.23 | F18: 0.23 | G18: =ROUND(C18*D18*E18*F18,2) -> 3.38
B19: Cross Walls | C19: 2 | D19: 2.54 | E19: 0.23 | F19: 0.23 | G19: 0.27
B20: 2nd Cross Road to 3rd Cross Road | C20: M.Samson(H) to M.Premanandam(H)
B21: Key walls, L/S & R/S | C21: 2 | D21: 33.5 | E21: 0.23 | F21: 0.23 | G21: =ROUND(C21*D21*E21*F21,2) -> 3.54
B22: Cross Walls | C22: 2 | D22: 2.54 | E22: 0.23 | F22: 0.23 | G22: 0.27
B23: 3rd Cross Road to 4th Cross Road | C23: K.Sastry(H) to M.Bosamma(H)
B24: Key walls, L/S & R/S | C24: 2 | D24: 32.3 | E24: 0.23 | F24: 0.23 | G24: =ROUND(C24*D24*E24*F24,2) -> 3.42
B25: Cross Walls | C25: 2 | D25: 2.54 | E25: 0.23 | F25: 0.23 | G25: 0.27
B26: 4th Cross Road to 5th Cross Road | C26: M.Nagabhushanam(H) to K.David(H)
B27: Key walls, L/S & R/S | C27: 2 | D27: 31.5 | E27: 0.23 | F27: 0.23 | G27: =ROUND(C27*D27*E27*F27,2) -> 3.33
B28: Cross Walls | C28: 2 | D28: 2.54 | E28: 0.23 | F28: 0.23 | G28: 0.27
B29: II. Kattepogu Baburao(H) to OC Burial Ground
B30: K.Nagaraju(H) to 1st Cross Road i.e. | C30: K.Nagaraju(H) to K.Baburao(H)
B31: Key walls, L/S & R/S | C31: 2 | D31: 14.7 | E31: 0.23 | F31: 0.23 | G31: =ROUND(C31*D31*E31*F31,2) -> 1.56
B32: 1st Cross Road to 2nd Cross Road | C32: K.Baburao(H) to K.Nagesh(H)
B33: Key walls, L/S & R/S | C33: 2 | D33: 28.5 | E33: 0.23 | F33: 0.23 | G33: =ROUND(C33*D33*E33*F33,2) -> 3.02
B34: Cross Wall | C34: 1 | D34: 2.54 | E34: 0.23 | F34: 0.23 | G34: 0.13
B35: 2nd Cross Road to 3rd Cross Road | C35: K.Ramulu(H) to K.Subbarao(H)
B36: Key walls, L/S & R/S | C36: 2 | D36: 28.7 | E36: 0.23 | F36: 0.23 | G36: =ROUND(C36*D36*E36*F36,2) -> 3.04
B37: Cross Wall | C37: 1 | D37: 2.54 | E37: 0.23 | F37: 0.23 | G37: 0.13
B38: 3rd Cross Road to 4th Cross Road | C38: P.Subbarao(H) to K.Chittemma(H)
B39: Key walls, L/S & R/S | C39: 2 | D39: 28.5 | E39: 0.23 | F39: 0.23 | G39: =ROUND(C39*D39*E39*F39,2) -> 3.02
B40: Cross Wall | C40: 1 | D40: 2.54 | E40: 0.23 | F40: 0.23 | G40: 0.13
B41: 4th Cross Road to 5th Cross Road | C41: Anganwadi School to K.Musalaiah(H)
B42: Key walls, L/S & R/S | C42: 2 | D42: 30.5 | E42: 0.23 | F42: 0.23 | G42: =ROUND(C42*D42*E42*F42,2) -> 3.23
B43: Cross Walls | C43: 2 | D43: 2.54 | E43: 0.23 | F43: 0.23 | G43: 0.27
B44: 5th Cross Road to 6th Cross Road | C44: K.Yohan(H) to O.C.Burial Ground
B45: Key walls, L/S & R/S | C45: 2 | D45: 27.3 | E45: 0.23 | F45: 0.23 | G45: =ROUND(C45*D45*E45*F45,2) -> 2.89
B46: Cross Wall | C46: 1 | D46: 2.54 | E46: 0.23 | F46: 0.23 | G46: 0.13
B47: III. S.C. Burial Ground to Mandepudi Nagaraju(H)
C48: Karri Koteswararao(H) to Mandepudi Hanodu(H)
B49: Key walls, L/S & R/S | C49: 2 | D49: 31.1 | E49: 0.23 | F49: 0.23 | G49: =ROUND(C49*D49*E49*F49,2) -> 3.29
B50: Cross Walls | C50: 2 | D50: 2.54 | E50: 0.23 | F50: 0.23 | G50: 0.27
C51: Gudisa Jakkayya(H) to Mandepudi Nagaraju(H)
B52: Key walls, L/S & R/S | C52: 2 | D52: 30.5 | E52: 0.23 | F52: 0.23 | G52: =ROUND(C52*D52*E52*F52,2) -> 3.23
B53: Cross Walls | C53: 1 | D53: 2.54 | E53: 0.23 | F53: 0.23 | G53: 0.13
B54: IV. Library to Mandepudi Saramma(H)
B55: Key walls, L/S & R/S | C55: 2 | D55: 40 | E55: 0.23 | F55: 0.23 | G55: =ROUND(C55*D55*E55*F55,2) -> 4.23
B56: Cross Walls | C56: 1 | D56: 2.54 | E56: 0.23 | F56: 0.23 | G56: 0.13
B57: V. Side drains for Road Crossings
D58: 5 | E58: 1.15 | F58: =0.45+0.15+0.15 -> 0.75 | G58: =ROUND(C58*D58*E58*F58,2) -> 0
B59: To be Executed
B60: V. For Pipe Culverts Foundation
D61: 2.5 | E61: 0.45 | F61: =0.45+0.15+0.15 -> 0.75 | G61: =ROUND(C61*D61*E61*F61,2) -> 0
G64: =SUM(G15:G63) -> 47.92 | H64: =Data!H106 -> 244.608 | I64: =ROUND(G64*H64,0) -> 11722 | L64: =I64/180 -> 65.12222222
G65: Cum | H65: 1 Cum
A66: 2 | B66: Providing P. C.C. (1:4:8) Nominal mix using 40mm HBG metal including Cost and conveyance of all materials and labour charges, centring chares, curing etc complete
B67: =B14 -> Dasari Jayarao(H) to 1st Cross Road i.e. | C67: =C15 -> 2 | D67: 38.5 | E67: 0.23 | F67: 0.15 | G67: =ROUND(C67*D67*E67*F67,2) -> 2.66
H70: =Data!#REF! ->  | I70: =ROUND(G70*H70,0) -> 
G71: Cum | H71: 1 Cum
A72: 2 | B72: Providing plain cement concrete M10 mix using 40mm to 20 mm Graded HBG crushed Metal with 220 Kgs of cement per 1cum of concrete, including C/c of all materials, curing ,labour charges etc., complete as per drawings & tech. specifications Clause 802, 803, 1202 & 1203 as per clause 800 & 1200 (1) of MORD and guidelines for shoe walls below G.L.
B73: I. Dasari Jayarao(H) to Karri David(H) | L73: 0.23 | M73: 0.23 | N73: =(L73+M73)/2 -> 0.23
B74: Dasari Jayarao(H) to 1st Cross Road i.e. | C74: Dasari Jayarao(H) to K.Parisudharao(H)
B75: Key walls, L/S & R/S | C75: 2 | D75: 38.5 | E75: 0.23 | F75: 0.23 | G75: =ROUND(C75*D75*E75*F75,2) -> 4.07
B76: Cross Walls | C76: 2 | D76: 2.54 | E76: 0.23 | F76: 0.23 | G76: 0.27
B77: 1st Cross Road to 2nd Cross Road | C77: M.Dasu(H) to K.Baaji(H)
B78: Key walls, L/S & R/S | C78: 2 | D78: 31.9 | E78: 0.23 | F78: 0.23 | G78: =ROUND(C78*D78*E78*F78,2) -> 3.38
B79: Cross Walls | C79: 2 | D79: 2.54 | E79: 0.23 | F79: 0.23 | G79: 0.27
B80: 2nd Cross Road to 3rd Cross Road | C80: M.Samson(H) to M.Premanandam(H)
B81: Key walls, L/S & R/S | C81: 2 | D81: 33.5 | E81: 0.23 | F81: 0.23 | G81: =ROUND(C81*D81*E81*F81,2) -> 3.54
B82: Cross Walls | C82: 2 | D82: 2.54 | E82: 0.23 | F82: 0.23 | G82: 0.27
B83: 3rd Cross Road to 4th Cross Road | C83: K.Sastry(H) to M.Bosamma(H)
B84: Key walls, L/S & R/S | C84: 2 | D84: 32.3 | E84: 0.23 | F84: 0.23 | G84: =ROUND(C84*D84*E84*F84,2) -> 3.42
B85: Cross Walls | C85: 2 | D85: 2.54 | E85: 0.23 | F85: 0.23 | G85: 0.27
B86: 4th Cross Road to 5th Cross Road | C86: M.Nagabhushanam(H) to K.David(H)
B87: Key walls, L/S & R/S | C87: 2 | D87: 31.5 | E87: 0.23 | F87: 0.23 | G87: =ROUND(C87*D87*E87*F87,2) -> 3.33
B88: Cross Walls | C88: 2 | D88: 2.54 | E88: 0.23 | F88: 0.23 | G88: 0.27
B89: II. Kattepogu Baburao(H) to OC Burial Ground
B90: K.Nagaraju(H) to 1st Cross Road i.e. | C90: K.Nagaraju(H) to K.Baburao(H)
B91: Key walls, L/S & R/S | C91: 2 | D91: 14.7 | E91: 0.23 | F91: 0.23 | G91: =ROUND(C91*D91*E91*F91,2) -> 1.56
B92: 1st Cross Road to 2nd Cross Road | C92: K.Baburao(H) to K.Nagesh(H)
B93: Key walls, L/S & R/S | C93: 2 | D93: 28.5 | E93: 0.23 | F93: 0.23 | G93: =ROUND(C93*D93*E93*F93,2) -> 3.02
B94: Cross Walls | C94: 1 | D94: 2.54 | E94: 0.23 | F94: 0.23 | G94: 0.13
B95: 2nd Cross Road to 3rd Cross Road | C95: K.Ramulu(H) to K.Subbarao(H)
B96: Key walls, L/S & R/S | C96: 2 | D96: 28.7 | E96: 0.23 | F96: 0.23 | G96: =ROUND(C96*D96*E96*F96,2) -> 3.04
B97: Cross Walls | C97: 1 | D97: 2.54 | E97: 0.23 | F97: 0.23 | G97: 0.13
B98: 3rd Cross Road to 4th Cross Road | C98: P.Subbarao(H) to K.Chittemma(H)
B99: Key walls, L/S & R/S | C99: 2 | D99: 28.5 | E99: 0.23 | F99: 0.23 | G99: =ROUND(C99*D99*E99*F99,2) -> 3.02
B100: Cross Walls | C100: 1 | D100: 2.54 | E100: 0.23 | F100: 0.23 | G100: 0.13
B101: 4th Cross Road to 5th Cross Road | C101: Anganwadi School to K.Musalaiah(H)
B102: Key walls, L/S & R/S | C102: 2 | D102: 30.5 | E102: 0.23 | F102: 0.23 | G102: =ROUND(C102*D102*E102*F102,2) -> 3.23
B103: Cross Walls | C103: 2 | D103: 2.54 | E103: 0.23 | F103: 0.23 | G103: 0.27
B104: 5th Cross Road to 6th Cross Road | C104: K.Yohan(H) to O.C.Burial Ground
B105: Key walls, L/S & R/S | C105: 2 | D105: 27.3 | E105: 0.23 | F105: 0.23 | G105: =ROUND(C105*D105*E105*F105,2) -> 2.89
B106: Cross Walls | C106: 1 | D106: 2.54 | E106: 0.23 | F106: 0.23 | G106: 0.13
B107: III. S.C. Burial Ground to Mandepudi Nagaraju(H)
C108: Karri Koteswararao(H) to Mandepudi Hanodu(H)
B109: Key walls, L/S & R/S | C109: 2 | D109: 31.1 | E109: 0.23 | F109: 0.23
B110: Cross Walls | C110: 2 | D110: 2.54 | E110: 0.23 | F110: 0.23
C111: Gudisa Jakkayya(H) to Mandepudi Nagaraju(H)
B112: Key walls, L/S & R/S | C112: 2 | D112: 30.5 | E112: 0.23 | F112: 0.23
B113: Cross Walls | C113: 1 | D113: 2.54 | E113: 0.23 | F113: 0.23
B114: IV. Library to Mandepudi Saramma(H)
B115: Key walls, L/S & R/S | C115: 2 | D115: 40 | E115: 0.23 | F115: 0.23
B116: Cross Walls | C116: 1 | D116: 2.54 | E116: 0.23 | F116: 0.23
G118: =SUM(G73:G117) -> 36.64 | H118: =Data!H22 -> 4497.69 | I118: =ROUND(G118*H118,0) -> 164795
G119: Cum | H119: 1 Cum
A120: 3 | B120: Providing plain cement concrete M10 mix using 40mm to 20 mm Graded HBG crushed Metal with 220 Kgs of cement per 1cum of concrete, including C/c of all materials, curing ,labour charges etc., complete as per drawings & tech. specifications Clause 802, 803, 1202 & 1203 as per clause 800 & 1200 (1) of MORD and guidelines for Screen walls above G.L.
B121: I. Dasari Jayarao(H) to Karri David(H)
B122: Dasari Jayarao(H) to 1st Cross Road i.e. | C122: Dasari Jayarao(H) to K.Parisudharao(H)
B123: Cross Wall @ D.Jayarao(H) | C123: 1 | D123: 2.54 | E123: 0.23 | F123: 0.23 | G123: =ROUND(C123*D123*E123*F123,2) -> 0.13 | J123: 0.23
B124: Key walls, L/S & R/S | C124: 2 | D124: 5 | E124: 0.23 | F124: =IF(J123=J124,L124,CONCATENATE("(",J123,"+",J124,")/2")) -> 0.23 | G124: 0.53 | J124: 0.23 | L124: =(J123+J124)/2 -> 0.23
C125: 2 | D125: 5 | E125: 0.23 | F125: (0.23+0.2)/2 | G125: =ROUND(C125*D125*E125*L125,2) -> 0.49 | J125: 0.2 | L125: 0.215
C126: 2 | D126: 5 | E126: 0.23 | F126: 0.2 | G126: 0.46 | J126: 0.2 | L126: 0.2
C127: 2 | D127: 5 | E127: 0.23 | F127: (0.2+0.17)/2 | G127: 0.43 | J127: 0.17 | L127: 0.185
C128: 2 | D128: 5 | E128: 0.23 | F128: (0.17+0.14)/2 | G128: 0.36 | J128: 0.14 | L128: 0.155
C129: 2 | D129: 5 | E129: 0.23 | F129: (0.14+0.1)/2 | G129: 0.28 | J129: 0.1 | L129: 0.12
C130: 2 | D130: 8.5 | E130: 0.23 | F130: 0.1 | G130: 0.39 | J130: 0.1 | L130: 0.1
B131: Cross Wall @ 1st Cross Road | C131: 1 | D131: 2.54 | E131: 0.23 | F131: =F130 -> 0.1 | G131: =ROUND(C131*D131*E131*F131,2) -> 0.06
B132: 1st Cross Road to 2nd Cross Road | C132: M.Dasu(H) to K.Baaji(H)
B133: Cross Wall @ 1st Cross Road | C133: 1 | D133: 2.54 | E133: 0.23 | F133: =J133 -> 0.1 | G133: =ROUND(C133*D133*E133*F133,2) -> 0.06 | J133: 0.1 | L133: =(J131+J133)/2 -> 0.05
B134: Key walls, L/S & R/S | C134: 2 | D134: 5 | E134: 0.23 | F134: =IF(J133=J134,L134,CONCATENATE("(",J133,"+",J134,")/2")) -> 0.1 | G134: =ROUND(C134*D134*E134*L134,2) -> 0.23 | J134: 0.1 | L134: =(J130+J134)/2 -> 0.1
C135: 2 | D135: 5 | E135: 0.23 | F135: (0.1+0.12)/2 | G135: 0.25 | J135: 0.12 | L135: =(J134+J135)/2 -> 0.11
C136: 2 | D136: 5 | E136: 0.23 | F136: 0.12 | G136: 0.28 | J136: 0.12 | L136: 0.12
C137: 2 | D137: 5 | E137: 0.23 | F137: (0.12+0.1)/2 | G137: 0.25 | J137: 0.1 | L137: 0.11
C138: 2 | D138: 5 | E138: 0.23 | F138: (0.1+0.075)/2 | G138: 0.2 | J138: 0.075 | L138: 0.0875
C139: 2 | D139: 6.9 | E139: 0.23 | F139: (0.075+0.1)/2 | G139: 0.28 | J139: 0.1 | L139: 0.0875
B140: Cross Wall @ 2nd Cross Road | C140: 1 | D140: 2.54 | E140: 0.23 | F140: 0.1 | G140: =ROUND(C140*D140*E140*F140,2) -> 0.06 | J140: =J139 -> 0.1 | L140: 0.1
B141: 2nd Cross Road to 3rd Cross Road | C141: M.Samson(H) to M.Premanandam(H)
B142: Cross Wall @ 2nd Cross Road | C142: 1 | D142: 2.54 | E142: 0.23 | F142: =F140 -> 0.1 | G142: =ROUND(C142*D142*E142*F142,2) -> 0.06
B143: Key walls, L/S & R/S | C143: 2 | D143: 10 | E143: 0.23 | F143: =IF(J140=J143,L143,CONCATENATE("(",J140,"+",J143,")/2")) -> 0.1 | G143: =ROUND(C143*D143*E143*L143,2) -> 0.46 | J143: 0.1 | L143: =(J140+J143)/2 -> 0.1
C144: 2 | D144: 5 | E144: 0.23 | F144: =IF(J143=J144,L144,CONCATENATE("(",J143,"+",J144,")/2")) -> (0.1+0.075)/2 | G144: 0.2 | J144: 0.075 | L144: =(J143+J144)/2 -> 0.0875
C145: 2 | D145: 5 | E145: 0.23 | F145: (0.075+0.1)/2 | G145: 0.2 | J145: 0.1 | L145: 0.0875
C146: 2 | D146: 5 | E146: 0.23 | F146: (0.1+0.075)/2 | G146: 0.2 | J146: 0.075 | L146: 0.0875
C147: 2 | D147: 8.5 | E147: 0.23 | F147: 0.075 | G147: 0.29 | J147: 0.075 | L147: 0.075
B148: Cross Wall @ 3rd Cross Road | C148: 1 | D148: 2.54 | E148: 0.23 | F148: =F147 -> 0.075 | G148: =ROUND(C148*D148*E148*F148,2) -> 0.04 | J148: 0.075 | L148: 0.075
B149: 3rd Cross Road to 4th Cross Road | C149: K.Sastry(H) to M.Bosamma(H)
B150: Cross Wall @ 3rd Cross Road | C150: 1 | D150: 2.54 | E150: 0.23 | F150: =F148 -> 0.075 | G150: =ROUND(C150*D150*E150*F150,2) -> 0.04
B151: Key walls, L/S & R/S | C151: 2 | D151: 5 | E151: 0.23 | F151: =IF(J148=J151,L151,CONCATENATE("(",J148,"+",J151,")/2")) -> (0.075+0.1)/2 | G151: =ROUND(C151*D151*E151*L151,2) -> 0.2 | J151: 0.1 | L151: =(J148+J151)/2 -> 0.0875
C152: 2 | D152: 10 | E152: 0.23 | F152: =IF(J151=J152,L152,CONCATENATE("(",J151,"+",J152,")/2")) -> 0.1 | G152: 0.46 | J152: 0.1 | L152: =(J151+J152)/2 -> 0.1
C153: 2 | D153: 5 | E153: 0.23 | F153: (0.1+0.075)/2 | G153: 0.2 | J153: 0.075 | L153: 0.0875
C154: 2 | D154: 5 | E154: 0.23 | F154: 0.075 | G154: 0.17 | J154: 0.075 | L154: 0.075
C155: 2 | D155: 7.3 | E155: 0.23 | F155: (0.075+0.1)/2 | G155: 0.29 | J155: 0.1 | L155: 0.0875
B156: Cross Wall @ 4th Cross Road | C156: 1 | D156: 2.54 | E156: 0.23 | F156: =J155 -> 0.1 | G156: =ROUND(C156*D156*E156*F156,2) -> 0.06 | J156: 0.12 | L156: 0.11
B157: 4th Cross Road to 5th Cross Road | C157: M.Nagabhushanam(H) to K.David(H)
B158: Cross Wall @ 5th Cross Road | C158: 1 | D158: 2.54 | E158: 0.23 | F158: 0.12 | G158: =ROUND(C158*D158*E158*F158,2) -> 0.07
B159: Key walls, L/S & R/S | C159: 2 | D159: 5 | E159: 0.23 | F159: =IF(J156=J159,L159,CONCATENATE("(",J156,"+",J159,")/2")) -> 0.12 | G159: =ROUND(C159*D159*E159*L159,2) -> 0.28 | J159: 0.12 | L159: =(J156+J159)/2 -> 0.12
C160: 2 | D160: 5 | E160: 0.23 | F160: =IF(J159=J160,L160,CONCATENATE("(",J159,"+",J160,")/2")) -> (0.12+0.1)/2 | G160: 0.25 | J160: 0.1 | L160: =(J159+J160)/2 -> 0.11
C161: 2 | D161: 10 | E161: 0.23 | F161: 0.1 | G161: 0.46 | J161: 0.1 | L161: 0.1
C162: 2 | D162: 5 | E162: 0.23 | F162: (0.1+0.075)/2 | G162: 0.2 | J162: 0.075 | L162: 0.0875
C163: 2 | D163: 6.5 | E163: 0.23 | F163: (0.075+0.1)/2 | G163: 0.26 | J163: 0.1 | L163: 0.0875
B164: Cross Wall @ 6th Cross Road | C164: 1 | D164: 2.54 | E164: 0.23 | F164: =J163 -> 0.1 | G164: =ROUND(C164*D164*E164*F164,2) -> 0.06
B165: II. Kattepogu Baburao(H) to OC Burial Ground
B166: K.Nagaraju(H) to 1st Cross Road i.e. | C166: K.Nagaraju(H) to K.Baburao(H) | J166: 0.12
B167: Key walls, L/S & R/S | C167: 2 | D167: 5 | E167: 0.23 | F167: =IF(J166=J167,L167,CONCATENATE("(",J166,"+",J167,")/2")) -> 0.12 | G167: =ROUND(C167*D167*E167*L167,2) -> 0.28 | J167: 0.12 | L167: =(J166+J167)/2 -> 0.12
C168: 2 | D168: 5 | E168: 0.23 | F168: (0.12+0.1)/2 | G168: 0.25 | J168: 0.1 | L168: 0.11
C169: 2 | D169: 4.7 | E169: 0.23 | F169: 0.1 | G169: 0.22 | J169: 0.1 | L169: 0.1
B170: 1st Cross Road to 2nd Cross Road | C170: K.Baburao(H) to K.Nagesh(H) | J170: 0.1
B171: Key walls, L/S & R/S | C171: 2 | D171: 10 | E171: 0.23 | F171: =IF(J170=J171,L171,CONCATENATE("(",J170,"+",J171,")/2")) -> 0.1 | G171: =ROUND(C171*D171*E171*L171,2) -> 0.46 | J171: 0.1 | L171: =(J170+J171)/2 -> 0.1
C172: 2 | D172: 5 | E172: 0.23 | F172: (0.1+0.12)/2 | G172: 0.25 | J172: 0.12 | L172: 0.11
C173: 2 | D173: 5 | E173: 0.23 | F173: 0.12 | G173: 0.28 | J173: 0.12 | L173: 0.12
C174: 2 | D174: 5 | E174: 0.23 | F174: (0.12+0.1)/2 | G174: 0.25 | J174: 0.1 | L174: 0.11
C175: 2 | D175: 3.5 | E175: 0.23 | F175: 0.1 | G175: 0.16 | J175: 0.1 | L175: 0.1
B176: Cross Wall | C176: 1 | D176: 2.54 | E176: 0.23 | F176: =J175 -> 0.1 | G176: =ROUND(C176*D176*E176*F176,2) -> 0.06
B177: 2nd Cross Road to 3rd Cross Road | C177: K.Ramulu(H) to K.Subbarao(H) | J177: 0.1
B178: Key walls, L/S & R/S | C178: 2 | D178: 5 | E178: 0.23 | F178: =IF(J177=J178,L178,CONCATENATE("(",J177,"+",J178,")/2")) -> (0.1+0.075)/2 | G178: =ROUND(C178*D178*E178*L178,2) -> 0.2 | J178: 0.075 | L178: =(J177+J178)/2 -> 0.0875
C179: 2 | D179: 5 | E179: 0.23 | F179: 0.075 | G179: 0.17 | J179: 0.075 | L179: 0.075
C180: 2 | D180: 5 | E180: 0.23 | F180: (0.075+0.1)/2 | G180: 0.2 | J180: 0.1 | L180: 0.0875
C181: 2 | D181: 10 | E181: 0.23 | F181: 0.1 | G181: 0.46 | J181: 0.1 | L181: 0.1
C182: 2 | D182: 3.7 | E182: 0.23 | F182: (0.1+0.125)/2 | G182: 0.19 | J182: 0.125 | L182: 0.1125
B183: Cross Wall | C183: 1 | D183: 2.54 | E183: 0.23 | F183: =J182 -> 0.125 | G183: =ROUND(C183*D183*E183*F183,2) -> 0.07
B184: 3rd Cross Road to 4th Cross Road | C184: P.Subbarao(H) to K.Chittemma(H)
B185: Cross Wall | C185: 1 | D185: 2.54 | E185: 0.23 | F185: =J185 -> 0.1 | G185: =ROUND(C185*D185*E185*F185,2) -> 0.06 | J185: 0.1 | L185: =(J184+J185)/2 -> 0.05
B186: Key walls, L/S & R/S | C186: 2 | D186: 5 | E186: 0.23 | F186: =IF(J185=J186,L186,CONCATENATE("(",J185,"+",J186,")/2")) -> (0.1+0.125)/2 | G186: =ROUND(C186*D186*E186*L186,2) -> 0.26 | J186: 0.125 | L186: 0.1125
C187: 2 | D187: 5 | E187: 0.23 | F187: (0.125+0.075)/2 | G187: 0.23 | J187: 0.075 | L187: 0.1
C188: 2 | D188: 5 | E188: 0.23 | F188: (0.075+0.125)/2 | G188: 0.23 | J188: 0.125 | L188: 0.1
C189: 2 | D189: 5 | E189: 0.23 | F189: (0.125+0.1)/2 | G189: 0.26 | J189: 0.1 | L189: 0.1125
C190: 2 | D190: 8.5 | E190: 0.23 | F190: 0.1 | G190: 0.39 | J190: 0.1 | L190: 0.1
B191: Cross Wall | C191: 1 | D191: 2.54 | E191: 0.23 | F191: =F190 -> 0.1 | G191: =ROUND(C191*D191*E191*F191,2) -> 0.06
B192: 4th Cross Road to 5th Cross Road | C192: Anganwadi School to K.Musalaiah(H)
B193: Cross Wall | C193: 1 | D193: 2.54 | E193: 0.23 | F193: =J193 -> 0.1 | G193: =ROUND(C193*D193*E193*F193,2) -> 0.06 | J193: 0.1 | L193: =(J192+J193)/2 -> 0.05
B194: Key walls, L/S & R/S | C194: 2 | D194: 10 | E194: 0.23 | F194: =IF(J193=J194,L194,CONCATENATE("(",J193,"+",J194,")/2")) -> 0.1 | G194: =ROUND(C194*D194*E194*L194,2) -> 0.46 | J194: 0.1 | L194: 0.1
C195: 2 | D195: 5 | E195: 0.23 | F195: (0.1+0.125)/2 | G195: 0.26 | J195: 0.125 | L195: 0.1125
C196: 2 | D196: 5 | E196: 0.23 | F196: 0.125 | G196: 0.29 | J196: 0.125 | L196: 0.125
C197: 2 | D197: 5 | E197: 0.23 | F197: (0.125+0.1)/2 | G197: 0.26 | J197: 0.1 | L197: 0.1125
C198: 2 | D198: 5.5 | E198: 0.23 | F198: 0.1 | G198: 0.25 | J198: 0.1 | L198: 0.1
B199: Cross Wall | C199: 1 | D199: 2.54 | E199: 0.23 | F199: =F198 -> 0.1 | G199: =ROUND(C199*D199*E199*F199,2) -> 0.06
B200: 5th Cross Road to 6th Cross Road | C200: K.Yohan(H) to O.C.Burial Ground | J200: 0.1
B201: Key walls, L/S & R/S | C201: 2 | D201: 5 | E201: 0.23 | F201: =IF(J200=J201,L201,CONCATENATE("(",J200,"+",J201,")/2")) -> (0.1+0.125)/2 | G201: =ROUND(C201*D201*E201*L201,2) -> 0.26 | J201: 0.125 | L201: =(J200+J201)/2 -> 0.1125
C202: 2 | D202: 5 | E202: 0.23 | F202: 0.125 | G202: 0.29 | J202: 0.125 | L202: 0.125
C203: 2 | D203: 5 | E203: 0.23 | F203: (0.125+0.1)/2 | G203: 0.26 | J203: 0.1 | L203: 0.1125
C204: 2 | D204: 5 | E204: 0.23 | F204: 0.1 | G204: 0.23 | J204: 0.1 | L204: 0.1
C205: 2 | D205: 5 | E205: 0.23 | F205: (0.1+0.125)/2 | G205: 0.26 | J205: 0.125 | L205: 0.1125
... 200 more rows

Sheet Cover
L4: G.P. 14th F.C.
C5: Sub Division : PRISD :: Mangalagiri | L5: CRDA
C6: Mandal : Duggirla | M6: 077041213011080008
C29: ='Det.Est.'!C2 -> Providing Interlocking pavers road from Lanke seshagiri rao (H) to kokkiligadda varma (H) in Duggirala (V&M).
E33: Estimate Cost :: Rs. | F33: ='Lead statement'!K4 -> 1.7 | G33: Lakhs
E34: ='Imput data'!C21 -> 50 :: 50 | F34: Ratio
F35: ='Imput data'!R11 -> 

Sheet SPE
A1: “Specification Report" to accompanying the Detailed Estimate for the Work
A3: ='Cover Page'!D25 -> Providing Interlocking pavers road from Lanke seshagiri rao (H) to kokkiligadda varma (H) in Duggirala (V&M).
A4: =CONCATENATE(C4,D4,E4,F4) -> Estimate Cost :: Rs. 1.7 Lakhs | C4: Estimate Cost :: Rs. | D4: 1.7 | F4: Lakhs
A6: =CONCATENATE(B6,C6,D6,F6,G6) ->  | B6: The above said work has been administratively sanctioned vide proceedings | C6: =Cover!C8 -> 0 | D6: under MGNREGS 50% convergance with CRDA Grant for Rs. | F6: ='Lead statement'!#REF! ->  | G6: lakhs.
A7: The work was administratively sanctioned with Resolution No:- 45dated :-01-11-2023 of the Duggirala grama panchayath Duggirala mandal.T.Hence the Detailed cum abstract estimate prepared as per the type designs communicated with the following provisions.
C8: The total length of the road now proposed is | D8: ='Det.Est.'!D25 -> 0 | E8: 0 mts. The existing surface of the road is | F8: Gravel | G8: surface of 3.00 m width with lot of undulationbs and it is one of the Important Traffic Road in the village and the Sarpanch, G.P., | H8: ='Lead statement'!D2 -> Duggirala | I8: village has passed resolution and requested the Executive Engineer, PR Division, Guntur for according sanction.
A9: The Work is entrusted to Grampanchayat,Nidamarru(V) and the work is executed as per estimate provisions except some minor deviations necessiated during execution of work. Approaches to connecting roads with 300 mm Dia. RCC NP3 Class pipe at 14 places is required and has been provided and adopted in the Working Estimate | D9: without considering the underground drainage
A10: The Detailed Estimate is prepared with the following provisions :: | J10: and most of the cc roads were laid without drainage.Hence there is no possibility to provide drainage.
A11: GST exemption for local bodies as per GOMS.No:- 482 with dated 24-09-2018.
A12: Earth work exevation and depositing the soil on banks with an initial lead and lift in all soils etc., complete. | B12: 1 | C12: Un Skilled labour for Earth work exevation and depositing the soil on banks with an initial lead and lift in all soils etc., complete.
A13: Providing plain cement concrete M10 mix using 40mm and 20 mm Graded HBG crushed Metal with 220 Kgs of cement per 1cum of concrete, including C/c of all materials, curing ,labour charges etc., complete as per drawings & tech. specifications Clause 802, 803, 1202 & 1203 as per clause 800 & 1200 (1) of MORD and guidelines for shoe walls below G.L.
A14: =CONCATENATE(B14,". ",C14) -> 4. Laying of M15 nominal mix using 66% of 20 mm HBG Metal and 34% of 12mm HBG Metal including Cost and Conveyance of all materials, Centering and Labour Charges and Curing for Side Drains as Per the Section Covered in guidelines for Bed concrete | B14: 4 | C14: Laying of M15 nominal mix using 66% of 20 mm HBG Metal and 34% of 12mm HBG Metal including Cost and Conveyance of all materials, Centering and Labour Charges and Curing for Side Drains as Per the Section Covered in guidelines for Bed concrete
A16: Providing plain cement concrete M10 mix using 40mm and 20 mm Graded HBG crushed Metal with 220 Kgs of cement per 1cum of concrete, including C/c of all materials, curing ,labour charges etc., complete as per drawings & tech. specifications Clause 802, 803, 1202 & 1203 as per clause 800 & 1200 (1) of MORD and guidelines for shoe walls Above G.L. | D16: Cost and supply of Stonedust for filling in between kee walls including Un Skilled Labour & conveyance to site etc., complete
A18: Cost and supply of sand for filling in between kee walls including Un Skilled Labour & conveyance to site etc., complete
A19: =CONCATENATE(B19,". ",C19) ->  | B19: =#REF!+1 ->  | C19: ='Det. Est.'!B51 -> Unskilled labour for filling Stone dust in foundation and Underneath CC pavement and foundations of side drains, including all labour charges etc., complete
B20: =B19+1 ->  | C20: ='Det. Est.'!B41 -> Laying of M15 nominal mix using 66% of 20 mm HBG Metal and 33% of 12mm HBG Metal including Cost and Conveyance of all materials, Centering and Labour Charges and Curing for Side Drains as Per the Section Covered in guidelines for Drainwalls on roadside and houseside
A21: 7. Supply and collection of Selected Earth including stacking to Departmental gauge for pre measurements for Subgrade and Shoulders (CSSR) | B21: 7 | C21: ='Det. Est.'!B62 -> Supply and collection of Selected Earth including stacking to Departmental gauge for pre measurements for Subgrade and Shoulders (CSSR)
A22: 8. Engaging Un Skilled Labour for spreading the collected (Selected Earth) material and sectioning for Subgrade and Shoulders (RSSR) | B22: 8 | C22: ='Det. Est.'!B68 -> Engaging Un Skilled Labour for spreading the collected (Selected Earth) material and sectioning for Subgrade and Shoulders (RSSR)
A23: 9. 4) Provision made for CC(1:4:8) mix concrete using 40 mm HBG metal over stone dust layer. | B23: =B22+1 -> 9 | C23: 4) Provision made for CC(1:4:8) mix concrete using 40 mm HBG metal over stone dust layer.
A24: 8. Compaction of collected Selected Earth using 8-10T Power Road Roller with required watering for Subgrade (CSSR) | B24: 8 | C24: Compaction of collected Selected Earth using 8-10T Power Road Roller with required watering for Subgrade (CSSR)
A25: 8. Construction of granular sub-base by providing coarse graded material, spreading in uniform layers with motor grader on prepared surface, mixing by mix in place method with rotavator at OMC, and compacting with vibratory roller to achieve the desired density, complete as per clause 401 MORTH. Table 400.2 | B25: 8 | C25: Construction of granular sub-base by providing coarse graded material, spreading in uniform layers with motor grader on prepared surface, mixing by mix in place method with rotavator at OMC, and compacting with vibratory roller to achieve the desired density, complete as per clause 401 MORTH. Table 400.2
E26: Cost and supply of Stonedust for filling in between kee walls including Un Skilled Labour & conveyance to site etc., complete
A27: Construction of un-reinforced, dowel jointed at expansion and construction joint only, plain cement concrete pavement, thickness as per design, over a prepared sub base, with 43 grade cement or any other type as per Clause 1501.2.2 M20 (Grade), coarse and fine aggregates conforming to IS : 383, maximum in a concrete mixer of not less than 0.2 cum capacity and appropeiate weigh batcher using approved mix design, laid in approved fixed side formwork (steel channel, laying and fixing of 125 micron thick polythene film, wedges, steel plates including levelling the formwork as per drawing), spreading the concrete with sholvels, rakes, compacted using needle, scareed and plate vibrators and finished in continuous operation including provision of contraction and expansion, construction joints, applying debonding strips, primer, sealant, dowel bars, near approaches to bridge / culvert and construction joints, admixtures as approved, curing of concrete slabs for 14- days, curing compound (where specified) and water finishing to lines and grade as per drawing and including overhead charges & Contractor profit, but excluding GST & Seignorage Charges Technical Specification Clause 1501 MORD including overhead charges & Contractors profit but excluding GST .
A28: Providing and Laying of Interlocking Concrete Block Pavements using CC M40 having thickness 80 mm as per drawing and Technical Specification Clause 1504 MORD
A29: Filling in foundation trenches (Hard Morrum/ Selected Earth) as per drawing and technical specification Clause 305.3.9 MORD & 304 MORTH ,including overhead charges & Contractors profit but excluding GST .
A30: Cost and supply Laying of hume pipe with collar 300 mm dia at requied level
A31: Provisions are made for the Quality Control (QC) Charges @ 0.50%,NAC 0.1%, and GST Charges @ 18% and Supervision Charges @3.0 % on the value of the work proposed for execution.Provision is also made for unforeseen items of the work.
A32: The Detailed Estimate is prepared as per the current Common Standard Schedule of Rates 2023-2024
A34: Assistant Executive Engineer, | F34: Asst .Exe.Engineer,
A35: MPP (PRI) :: Duggirala. | F35: M.P.P.(P.R.I.),Ponnur
D38: Dy.Executive Engineer
D39: PRISD,Mangalagiri.

Sheet Imput data (hidden)
A1: Rural Development Department
A2: MGNREGS-AP
A3: Input Data Sheet for the work
A4: “Construction of Pucca Internal Roads or streets including side drains,culverts within a village” | L4: ='Lead statement'!#REF! -> 
A6: Note: | L6: Mangalagiri Mandal | N6: 90 | O6: :: | P6: 10 | Q6: =CONCATENATE(N6,O6,P6) -> 90 :: 10 | R6: =N6*$L$4/100 ->  | S6: =P6*$L$4/100 ->  | U6: =CONCATENATE("Rs. ",R6," :: ",S6," Lakhs") -> 
A7: 1. The estimate should be prepared habitation wise. | K7: 1 | L7: Chirravuru | M7: 3697 | N7: 70 | O7: :: | P7: 30 | Q7: 70 :: 30
A8: 2.The entire length of road shall be covered in one estimate. | K8: 2 | L8: Gundimesa | M8: 2008 | N8: 50 | O8: :: | P8: 50 | Q8: 50 :: 50 | U8: =CONCATENATE("Rs. ",R8,"0 :: ",S8,"0 Lakhs") -> 
A9: 3. Wherever gravel thickness is partly existing, provide gravel of 100 mm loose thickness. | K9: 3 | L9: Ippatam | M9: 1873
A10: 4. The specification of MS name board has to be in detail in datasheet. | K10: 4 | L10: Kolanukonda | M10: 3186
A11: 5. The detailed estimate, datasheet and lead statement prepared manually outside the computer should be tied to the computer generated estimate. | K11: 5 | L11: Kunchanapalli | M11: 5665 | R11: =IF(C19>9000,U8,IF(C19>2000,U7,U6)) -> 
K12: 6 | L12: Mellampudi | M12: 2231
A13: A) General Information | K13: 7 | L13: Penumaka | M13: 7903
K14: 8 | L14: Praturu | M14: 2401
B15: DCC (Departmental Computer Center) Name : | C15: Guntur Division | K15: 9 | L15: Undavalli | M15: 9746
B16: Name of Mandal | C16: Mangalagiri | K16: 10 | L16: Vaddeswaram | M16: 6284
B17: Name of Gram Panchayat | C17: ='Lead statement'!D2 -> Duggirala
B18: Name of Habitation | C18: =C17 -> Duggirala | K18: 12 | L18: Vaddeswaram | M18: 9236
B19: Population of Habitation | C19: =M15 -> 9746 | K19: 13 | L19: Pedavadlapudi | M19: 13076
B20: MGNREGS | C20: =Cover!#REF! ->  | K20: 14 | L20: Ramachandrapuram | M20: 1077
B21: Ratio of Grant ( MGNREGS : Other ) | C21: =IF(C19>9000,Q8,IF(C19>2000,Q7,Q6)) -> 50 :: 50 | K21: 15 | L21: Yerrabalem | M21: 11216
B23: 1)Location_____________________
B25: 2) Total length of road within the Habitation_ | D25: =C29 -> 0 | E25: mts
B27: 3) Road connecting from | C27: ='Lead statement'!D3 -> Providing Interlocking pavers road from Lanke seshagiri rao (H) to kokkiligadda varma (H) in Duggirala (V&M).
B29: 4) Total length of the proposed Road: | C29: =SPE!D8 -> 0 | D29: mts
B31: 5) CC | C31: =C29 -> 0 | D31: mts
B33: 6) WBM | D33: mts
B35: 7) GRAVEL | D35: mts
B37: 8) EARTHEN | D37: mts
B39: 9) Road Width | C39: ='Det.Est.'!E24 -> 3.75 | D39: mts
B41: 10) Locality : SC/ST/GENERAL
B43: 11) Total Drain Length: | C43: ='Det. Est.'!M7 -> 0 | D43: mts
B45: 12) No. of CD Works | D45: Nos
B47: 13) Population being served by this Road: | C47: =ROUND(C31*5*2/7,0) -> 0
A49: B) Abstract estimate
A51: Quantites and Rates shall be as per technically sanctioned estimate. Rates shall be worked out as per standard data basing on rates available in RSSR and CSSR.
A53: SNo | B53: Task Name | C53: Unit | D53: Task code | E53: Qty | F53: Rate Per Unit | G53: Amount
F54: (in Rs) | G54: (Rs.)
A55: 1 | B55: CW01.Amount for wage component | C55: days | D55: 19376 | E55: =#REF! ->  | F55: =#REF! ->  | G55: =ROUND(E55*F55,0) -> 
A56: 2 | B56: CW02.cement | C56: bags | D56: 19377 | E56: =#REF! ->  | F56: =#REF! -> 
A57: 3 | B57: CW03. Plastering | C57: cum | D57: 19378 | E57: =#REF! ->  | F57: ='Lead statement'!O23 -> 993.1
A58: 3 | B58: CW04.sand for concrete | C58: cum | D58: 19379 | E58: =#REF! ->  | F58: =#REF! -> 
A59: 5 | B59: CW05.Grade II Metal:Consisting of 63mm to 45 mm IRC HBG/HBT metal 96% and 19mm to 22mm IRC HBG metal 4% | C59: cum | D59: 19380 | E59: 0 | F59: 0 | G59: 0
A60: 6 | B60: CW06.Grade III Metal:Consisting of 53mm to 22.4mm IRC HBG/HBT metal 95% and 20mm to 10 mm IRC HBG metal 5% | C60: cum | D60: 19381 | E60: 0 | F60: 0 | G60: 0
A61: 4 | B61: CW07.20mm to 12mm HBG/HBT graded Metal:Consisting of 20mm metal 60% and12mm metal 40% | C61: cum | D61: 19382 | E61: =#REF! ->  | F61: ='Mat statement'!I30 ->  | G61: =ROUND(E61*F61,0) -> 
A62: 5 | B62: CW08.Graded Metal consisting of 60% of 40mm and 40% of 40mm to 20mm graded HBG/HBT metal | C62: cum | D62: 19383 | E62: =#REF! ->  | F62: =#REF! -> 
A63: 6 | B63: CW09.40 mm nominal HBG/HBT Graded Metal | C63: cum | D63: 19384 | E63: =#REF! ->  | F63: =#REF! -> 
A64: 6 | B64: CW10.Cost towards engaging skilled labour,semi skilled labour,other materials and equipment charges including all other materials not covered above | C64: Rs | D64: 19385 | G64: =#REF! ->  | I64: =G72-G55-G56-G57-G58-G61-G62-G63-G65-G66-G67-G68-G69-G70-G71 -> 
A65: 7 | B65: CW11.VAT upto 12% | C65: Rs | D65: 19386 | G65: =#REF! ->  | H65: =G57+G58+G59+G60+G61+G62+G63+G64 ->  | I65: =ROUND(H65*5%,0) -> 
A66: 7 | B66: CW12.QC @0.5% | C66: Rs | D66: 19387 | G66: =#REF! -> 
A67: 8 | B67: CW13.Seignorage charges | C67: Rs | D67: 19388 | G67: =#REF! -> 
A68: 10 | B68: CW14.cost of NP, other Pipes and Precast chambers etc., | C68: Rs | D68: 19389 | G68: 0
A69: 11 | B69: Storage&Safe guard of Materials @2.50% | G69: =#REF! -> 
A70: 12 | B70: NAC Charges @ 0.10% | G70: ='Mat statement'!D44 -> 0
A71: 9 | B71: CW15.LS amount for unforcen items. | C71: Rs | D71: 19390 | G71: =#REF! -> 
A72: Sub Total : | G72: =SUM(G55:G71) -> 
A75: Name of the official filling the details : | E75: G.Varada Raju
B76: Signature:
B78: Date:
A80: Designation of the official filling the details : | E80: Assistant Engineer,
E81: MPP (PRI) :: Tadepalli.
B83: Dy.Executive Engineer
B84: PRISD,Mangalagiri.

Sheet Mat statement (hidden)
A1: MATERIAL STATEMENT
B2: Name of the Work | C2: :: | D2: ='Lead statement'!D3 -> Providing Interlocking pavers road from Lanke seshagiri rao (H) to kokkiligadda varma (H) in Duggirala (V&M).
J3: =Cover!E33 -> Estimate Cost :: Rs. | K3: =Cover!F33 -> 1.7 | O3: ='Lead statement'!J4 -> Estimate Cost :: Rs. | P3: =Cover!F33 -> 1.7 | Q3: Lakhs | R3: ='Lead statement'!#REF! -> 
D4: CW01 | E4: CW02 | F4: CW03 | G4: CW04 | H4: CW05 | I4: CW07 | J4: CW08 | K4: CW09 | L4: CW10 | V4: CW13 | W4: TOTAL
A5: Sl No. | B5: Description of Item | C5: Quantity | D5: Wage component in Rs. | E5: Matrerial Component | L5: Others | V5: Seigniorage Charges in Rs.
E6: Cement in Mts | F6: Sand for filling | G6: Sand for Mortar | H6: Gr. II HBG Metal | I6: 20mm & 12mm HBG Chips | J6: 40mm & 20mm HBG Metal | K6: 40mm HBG Metal | L6: GSB | P6: 20mm HBG metal | Q6: Name Board | S6: Laying of M10 / M15 / M30 | T6: Laying of M30 CC pavement
L7: Gravel | M7: Stondust | N7: Stone Dust | O7: Compaction | R7: Laying of 1:4:8 | U7: Steel in MTs
A8: 1 | B8: 2 | C8: 3 | D8: 4 | E8: 5 | F8: 6 | G8: 7 | H8: 8 | I8: 9 | J8: 10 | K8: 11 | L8: 12 | M8: 13 | N8: 14 | O8: 15 | P8: 16 | Q8: 12 | R8: 18 | S8: 13 | T8: 20 | U8: 22 | V8: 20 | W8: 14
A9: 1 | B9: ='Det.Est.'!B7 -> Earth work exevation and depositing the soil on banks with an initial lead and lift in all soils etc., complete. | C9: ='Det.Est.'!#REF! ->  | D9: ='Det.Est.'!I9 -> 905 | W9: =SUM(D9:V9) -> 905
A10: 2 | B10: Providing M15 nominal mix using 66% of 20 mm HBG Metal and 33% of 12mm HBG Metal including Cost and Conveyance of all materials, Centering and Labour Charges and Curing for Side Drains as Per the Section Covered in guidelines for Drainwalls on roadside and houseside | E10: =C10*Data!#REF! ->  | G10: =C10*Data!#REF! ->  | I10: =C10*(Data!#REF!+Data!#REF!) ->  | S10: =C10*Data!#REF! ->  | W10: =(E10*E30*20)+(G10*G30)+(I10*I30)+S10 ->  | X10: =(E10*E30*20) ->  | Y10: =(G10*G30) ->  | Z10: =(I10*I30) ->  | AA10: =S10 ->  | AB10: =SUM(X10:AA10) -> 
A11: A | B11: For side walls | C11: ='Det.Est.'!#REF! ->  | E11: =C11*Data!C110 ->  | G11: =C11*Data!C111 ->  | I11: =C11*(Data!C112+Data!C113) ->  | S11: =C11*Data!#REF! ->  | W11: =E11*'Lead statement'!O26+G11*G30+I11*I30+'Mat statement'!S11 -> 
A12: 2 | B12: Providing P. C.C. (1:4:8) Nominal mix using 40mm HBG metal including Cost and conveyance of all materials and labour charges, centring chares, curing etc complete | C12: ='Det. Est.'!G24 -> 0 | E12: =C12*Data!#REF! ->  | G12: =C12*Data!#REF! ->  | K12: =C12*Data!#REF! ->  | S12: =C12*Data!#REF! ->  | W12: =(E12*E30*20)+(G12*G30)+(K12*K30)+S12 -> 
A13: 2 | B13: ='Det. Est.'!B26:H26 -> Providing plain cement concrete M10 mix using 40mm to 20 mm Graded HBG crushed Metal with 220 Kgs of cement per 1cum of concrete, including C/c of all materials, curing ,labour charges etc., complete as per drawings & tech. specifications Clause 802, 803, 1202 & 1203 as per clause 800 & 1200 (1) of MORD and guidelines for shoe walls below G.L. | C13: ='Det.Est.'!G13 -> 3.7 | E13: =C13*Data!C9 -> 0.814 | G13: =C13*Data!C10 -> 1.665 | J13: =C13*(Data!C11+Data!C12) -> 3.33 | S13: =C13*Data!#REF! ->  | W13: =(E13*E30*20)+(G13*G30)+(J13*J30)+S13 -> 
A14: 3 | B14: ='Det. Est.'!B31:H31 -> Providing plain cement concrete M10 mix using 40mm to 20 mm Graded HBG crushed Metal with 220 Kgs of cement per 1cum of concrete, including C/c of all materials, curing ,labour charges etc., complete as per drawings & tech. specifications Clause 802, 803, 1202 & 1203 as per clause 800 & 1200 (1) of MORD and guidelines for Screen walls above G.L. | C14: ='Det.Est.'!#REF! ->  | E14: =ROUND(C14*0.22*1000,2) ->  | G14: =ROUND(C14*0.45,2) ->  | J14: =ROUND(C14*0.9,2) ->  | S14: =ROUND(C14*Data!#REF!,2) ->  | W14: =(ROUND(E14/50,2)*E30)+(G14*G30)+(J14*J30)+S14 -> 
A15: 4 | B15: Cost and supply of stone dust for filling | C15: ='Det.Est.'!G21 -> 34.97 | S15: =C15*'Det.Est.'!H21 -> 27550.18197 | W15: =SUM(D15:V15) -> 27550.18197
A16: 4 | B16: =+'Det. Est.'!B51:F51 -> Unskilled labour for filling Stone dust in foundation and Underneath CC pavement and foundations of side drains, including all labour charges etc., complete | C16: =C15 -> 34.97 | D16: ='Det.Est.'!#REF! -> 
A17: 5 | B17: Unskilled labour for filling with excavated soils
A18: 7 | B18: Granular sub base
A19: 8 | B19: ='Det.Est.'!#REF! ->  | C19: ='Det.Est.'!#REF! ->  | E19: =ROUND(C19*0.162*1000,2) ->  | G19: =ROUND(C19*0.45,2) ->  | J19: =ROUND(C19*0.9,2) ->  | S19: =C19*'Det. Est.'!H60 ->  | W19: =SUM(D19:V19) -> 
A20: 5 | B20: Supply and collection of Selected Earth including stacking to Departmental gauge for pre measurements for Subgrade (CSSR) | C20: ='Det.Est.'!#REF! ->  | S20: ='Det.Est.'!#REF! -> 
A21: 6 | B21: Engaging Un Skilled Labour for spreading the collected (Selected Earth) material and sectioning for Subgrade (RSSR) | D21: ='Det.Est.'!#REF! -> 
A22: 7 | B22: Compaction of collected Selected Earth using 8-10T Power Road Roller with required watering for Subgrade (CSSR) | C22: ='Det.Est.'!#REF! ->  | S22: ='Det.Est.'!#REF! ->  | W22: =SUM(S22:V22) -> 
A23: 3 | B23: ='Det.Est.'!#REF! ->  | C23: ='Det.Est.'!#REF! ->  | S23: ='Det.Est.'!#REF! -> 
A24: 4 | B24: ='Det.Est.'!#REF! ->  | C24: ='Det.Est.'!#REF! ->  | S24: ='Det.Est.'!#REF! -> 
A25: 7 | B25: ='Det.Est.'!B23 -> Construction of un-reinforced, dowel jointed at expansion and construction joint only, plain cement concrete pavement, thickness as per design, over a prepared sub base, with 43 grade cement or any other type as per Clause 1501.2.2 M20 (Grade), coarse and fine aggregates conforming to IS : 383, maximum in a concrete mixer of not less than 0.2 cum capacity and appropeiate weigh batcher using approved mix design, laid in approved fixed side formwork (steel channel, laying and fixing of 125 micron thick polythene film, wedges, steel plates including levelling the formwork as per drawing), spreading the concrete with sholvels, rakes, compacted using needle, scareed and plate vibrators and finished in continuous operation including provision of contraction and expansion, construction joints, applying debonding strips, primer, sealant, dowel bars, near approaches to bridge / culvert and construction joints, admixtures as approved, curing of concrete slabs for 14- days, curing compound (where specified) and water finishing to lines and grade as per drawing and including overhead charges & Contractor profit, but excluding GST & Seignorage Charges Technical Specification Clause 1501 MORD including overhead charges & Contractors profit but excluding GST . | C25: ='Det.Est.'!G25 -> 0 | E25: =C25*Data!#REF!/1000 ->  | G25: =C25*0.45 -> 0 | I25: =C25*0.9 -> 0 | S25: =C25*Data!#REF! ->  | W25: =E25*'Lead statement'!O26+G25*Data!F76+'Mat statement'!I25*'Mat statement'!I30+S25 -> 
A26: 8 | B26: Provision of Name Board | Q26: ='Det.Est.'!#REF! ->  | W26: =SUM(D26:V26) -> 
B27: Total : | D27: =SUM(D9:D26) ->  | F27: 0 | H27: 0 | L27: 0 | M27: 0 | N27: 0 | O27: 0 | P27: 0 | R27: 0 | U27: =SUM(U9:U26) -> 0 | W27: =SUM(W9:W26) -> 
D28: =D27/D30 ->  | E28: =E27/50 -> 
D29: =D28 -> 
B30: Cost of each Item | D30: 197 | E30: ='Lead statement'!#REF! ->  | G30: ='Lead statement'!O24 -> 898.1 | I30: =Data!#REF! ->  | J30: =Data!#REF! ->  | K30: ='Lead statement'!O15 -> 1503.7 | M30: =+'Lead statement'!O19 -> 953.7 | N30: =Data!#REF! ->  | O30: =Data!#REF! ->  | P30: =+'Lead statement'!O16 -> 2126.2 | X30: =W27+D43 -> 
B31: Total cost ; | D31: =ROUND(D29*D30,0) ->  | E31: =ROUND(E29*E30,2) ->  | F31: =ROUND(F27*F30,0) -> 0 | I31: =ROUND(I27*I30,0) ->  | M31: =ROUND(M27*M30,0) -> 0 | P31: 0 | Q31: =Q27 ->  | R31: 0 | U31: =U27 -> 0 | W31: =SUM(D31:V31) ->  | X31: =W31-W27 ->  | Y31: ='[73]Working Est'!K116 -> 2100000 | Z31: =Y31-W31 -> 
D32: =D33-D31-E31-G31-H31-I31-V31 ->  | F32: =F27*40 -> 0 | H32: =H27*50 -> 0 | L32: =L27*22 -> 0 | N32: =N27*50 -> 0 | P32: =P27*22 -> 0
B33: Sub - Estimate Cost : | D33: =ROUND(W27,0) -> 
B34: Seigniorage Charges | D34: ='Seignorage '!J30 -> 5044 | E34: . | U34: =N31+O31+P31+Q31+R31+S31+U31+D43 ->  | X34: 105282+4823 | Y34: =111719-105282 -> 6437
B35: ToTal :
D36: =#REF! -> 
B39: Estimate Cost | D39: =D33 -> 
B40: CW 13 - Seigniorage Charges | D40: 5044
B41: CW 11- Vat @ 5.00 % | D41: ='Det.Est.'!#REF! -> 
B42: CW 12 - Quality control charges @ 0.50% | D42: ='Det.Est.'!#REF! -> 
B43: Storage&Safe guard of Materials @2.50% | D43: ='Det.Est.'!#REF! -> 
B44: NAC @ 0.10%
B45: CW15 - LS amount for unforeseen items. | D45: ='Det.Est.'!I50+E45 -> 1792 | E45: 0
B46: TOTAl : | D46: =SUM(D39:D45) -> 
G47: Asst. Exe. Engineer, | Q47: Deputy Executive Engineer, | R47: Asst. Exe. Engineer,
G48: MPP (PRI) :: Tadepalli. | Q48: PRISD :: Mangalagiri. | R48: MPP :: Mangalagiri.

Sheet Det.Est.
A1: Detailed cum Abstract Estimate
B2: ='Lead statement'!C3 -> Name of the Work :: | C2: Providing Interlocking pavers road from Lanke seshagiri rao (H) to kokkiligadda varma (H) in Duggirala (V&M).
D3: Grant :: | E3: GPGF/15th Finance | G3: ='Lead statement'!J4 -> Estimate Cost :: Rs. | H3: ='Lead statement'!K4 -> 1.7 | I3: Lakhs
A4: Sl. No. | B4: Description of Item | C4: Nos | D4: Measurements | G4: Qty. | H4: Rate unit | I4: Amount
D5: L | E5: B | F5: D
A6: 1 | B6: 2 | D6: 3 | E6: 4 | F6: 5 | G6: 6 | H6: 7 | I6: 8
A7: 1 | B7: Earth work exevation and depositing the soil on banks with an initial lead and lift in all soils etc., complete.
C8: 2 | D8: 35 | E8: 0.23 | F8: 0.23 | G8: =ROUND(F8*E8*D8*C8,2) -> 3.7
G9: =SUM(G8:G8) -> 3.7 | H9: =Data!H106 -> 244.608 | I9: =ROUND(G9*H9,0) -> 905
G10: Cum | H10: 1 Cum
A11: 2 | B11: Providing plain cement concrete M10 mix using 40mm and 20 mm Graded HBG crushed Metal with 220 Kgs of cement per 1cum of concrete, including C/c of all materials, curing ,labour charges etc., complete as per drawings & tech. specifications Clause 802, 803, 1202 & 1203 as per clause 800 & 1200 (1) of MORD and guidelines for shoe walls below G.L.
C12: 2 | D12: =D8 -> 35 | E12: 0.23 | F12: 0.23 | G12: =ROUND(F12*E12*D12*C12,2) -> 3.7 | K12: =0.15+0.39+0.37+0.36+0.38 -> 1.65 | L12: =0.2+0.35+0.32+0.29+0.28 -> 1.44
G13: =SUM(G12:G12) -> 3.7 | H13: =Data!H27 -> 4497.69 | I13: =ROUND(G13*H13,0) -> 16641 | K13: =K12/5 -> 0.33 | L13: =L12/5 -> 0.288
G14: Cum | H14: 1 Cum
A15: 3 | B15: Providing plain cement concrete M10 mix using 40mm and 20 mm Graded HBG crushed Metal with 220 Kgs of cement per 1cum of concrete, including C/c of all materials, curing ,labour charges etc., complete as per drawings & tech. specifications Clause 802, 803, 1202 & 1203 as per clause 800 & 1200 (1) of MORD and guidelines for shoe walls Above G.L.
C16: 2 | D16: =D12 -> 35 | E16: 0.23 | F16: 0.45 | G16: =ROUND(F16*E16*D16*C16,2) -> 7.25
G17: =SUM(G16:G16) -> 7.25 | H17: =Data!H31 -> 4677.5976 | I17: =ROUND(G17*H17,0) -> 33913
G18: Cum | H18: 1 Cum
A19: 4 | B19: Cost and supply of sand for filling in between kee walls including Un Skilled Labour & conveyance to site etc., complete
C20: 1X1 | D20: =D16 -> 35 | E20: 2.7 | F20: 0.37 | G20: =ROUND((F20*E20*D20),2) -> 34.97
G21: =SUM(G20:G20) -> 34.97 | H21: =Data!H51 -> 787.8233333 | I21: =ROUND(G21*H21,0) -> 27550
G22: Cum | H22: 1 Cum
A23: 5 | B23: =Data!E52 -> Construction of un-reinforced, dowel jointed at expansion and construction joint only, plain cement concrete pavement, thickness as per design, over a prepared sub base, with 43 grade cement or any other type as per Clause 1501.2.2 M20 (Grade), coarse and fine aggregates conforming to IS : 383, maximum in a concrete mixer of not less than 0.2 cum capacity and appropeiate weigh batcher using approved mix design, laid in approved fixed side formwork (steel channel, laying and fixing of 125 micron thick polythene film, wedges, steel plates including levelling the formwork as per drawing), spreading the concrete with sholvels, rakes, compacted using needle, scareed and plate vibrators and finished in continuous operation including provision of contraction and expansion, construction joints, applying debonding strips, primer, sealant, dowel bars, near approaches to bridge / culvert and construction joints, admixtures as approved, curing of concrete slabs for 14- days, curing compound (where specified) and water finishing to lines and grade as per drawing and including overhead charges & Contractor profit, but excluding GST & Seignorage Charges Technical Specification Clause 1501 MORD including overhead charges & Contractors profit but excluding GST .
B24: Road | C24: 1 | D24: 0 | E24: 3.75 | F24: 0.17 | G24: =ROUND(C24*D24*E24*F24,2) -> 0
G25: =SUM(G24) -> 0 | H25: =Data!H93 -> 5727.44 | I25: =ROUND(G25*H25,0) -> 0
G26: Cum | H26: 1 Cum
A27: 5 | B27: Providing and Laying of Interlocking Concrete Block Pavements using CC M40 having thickness 80 mm as per drawing and Technical Specification Clause 1504 MORD.
C28: 1X1 | D28: =D20 -> 35 | E28: 2.7 | G28: =E28*D28 -> 94.5
G29: =SUM(G28:G28) -> 94.5 | H29: =Data!H282 -> 830.5357867 | I29: =ROUND(H29*G29,0) -> 78486
G30: Sqm | H30: Sqm
A34: 8 | B34: Filling in foundation trenches (Hard Morrum/ Selected Earth) as per drawing and technical specification Clause 305.3.9 MORD & 304 MORTH ,including overhead charges & Contractors profit but excluding GST .
B35: for shoulders | C35: 2 | D35: =#REF! ->  | E35: 0.4 | F35: =F24+#REF! ->  | G35: =ROUND(C35*D35*E35*F35,2) -> 
H36: =Data!H144 -> 769.42 | I36: =ROUND(G36*H36,0) -> 0
G37: Cum | H37: 1 Cum
A39: 6 | B39: Cost and supply Laying of hume pipe with collar 300 mm dia at requied level
B40: entrance | C40: 1x1 | D40: 5 | H40: =Data!H285 -> 598 | I40: =H40*G40 -> 0
G41: Rmt | H41: Rmt
D43: =I43 -> 157495 | E43: ='Seignorage '!G32 -> 10166 | F43: =D43-E43 -> 147329 | I43: =SUM(I8:I42) -> 157495
A44: 6 | B44: Seignorage Charges | I44: ='Seignorage '!J30 -> 5044
A45: 7 | B45: Provision for NAC Charges @ 0.10% | F45: 0.001 | I45: =ROUND(I43*F45,0) -> 157
A46: 8 | B46: VWD+Seignorage+NAC | F46: =ROUND(I43+I44+I45,0) -> 162696
A47: 9 | B47: Supervision Charges @ 3.00% | F47: 0.03 | I47: =ROUND(F47*I43,0) -> 4725
A48: 10 | B48: Provision for QC Charges @ 0.50% | F48: 0.005 | I48: =ROUND(F48*I43,0) -> 787
A49: 11 | B49: Provision for GST Charges @ 18 % | F49: 0.18
A50: 11 | B50: Provision for Unforeseen Items | I50: 1792
G51: TOTAL :: Rs. | I51: =SUM(I43:I50) -> 170000
H54: Assistant Executive Engineer,
H55: MPP (PRI) :: Duggirala.

Sheet CRDA (hidden)
A1: WORKING ESTIMATE
B2: ='Lead statement'!C3 -> Name of the Work :: | C2: ='Lead statement'!D3 -> Providing Interlocking pavers road from Lanke seshagiri rao (H) to kokkiligadda varma (H) in Duggirala (V&M).
B3: ='Det.Est.'!B3 -> 0 | G3: ='Lead statement'!J4 -> Estimate Cost :: Rs. | H3: ='Lead statement'!K4 -> 1.7 | I3: Lakhs
A4: Sl. No. | B4: Discription of Item | C4: Nos | D4: Measurements | G4: Qty. | H4: Rate unit | I4: Amount
D5: L | E5: B | F5: D
A6: 1 | B6: 2 | D6: 3 | E6: 4 | F6: 5 | G6: 6 | H6: 7 | I6: 8
C7: PART B - CRDA
B8: List of Roads Proposed in the Work ::
A9: Sl. No. | B9: Locality | C9: FROM | E9: TO | G9: Nature of Work | H9: Length
A10: 1 | B10: ='Det. Est.'!B9 -> SC Locality | C10: ='Det. Est.'!C9:D9 -> Nallagorla Sesharathnam plot | E10: ='Det. Est.'!E9:F9 -> Polu Ramesh(H) | G10: ='Det. Est.'!G9 -> CC Road | H10: ='Det. Est.'!H9 -> 110 | L10: Providing internal CC roads from Nallagorla Sesharathnam plot to Polu Ramesh(H) and from Kommuri Mariyamma(H) to Gooduri Hariprasad(H) in Kuragallu village of Mangalagiri Mandal
A11: 2 | B11: ='Det. Est.'!B10 -> SC Locality | C11: ='Det. Est.'!C10:D10 -> Kommuri Mariyamma(H) | E11: ='Det. Est.'!E10:F10 -> Gooduri Hariprasad(H) | G11: ='Det. Est.'!G10 -> CC Road | H11: ='Det. Est.'!H10 -> 80
A12: 3 | B12: SC Locality | G12: CC Road
A13: 4 | B13: SC Locality | G13: CC Road
A14: 5 | B14: SC Locality | G14: CC Road
H15: =SUM(H10:H14) -> 190
A16: 1 | B16: Unskilled labour for Earth work exevation and depositing the soil on banks with an initial lead and lift in all soils etc., complete.
B17: Key walls, L/S & R/S | C17: 2 | D17: =M4 -> 0 | E17: 0.23 | F17: 0.23 | G17: =ROUND(C17*D17*E17*F17,2) -> 0
B18: Drain, L/S | C18: 1 | D18: =M7 -> 0 | E18: 0 | F18: =O7+F49+F39 -> 0.35 | G18: =ROUND(F18*E18*D18*LEFT(C18,1)*RIGHT(C18,1),2) -> 0
H19: =Data!H106 -> 244.608 | I19: =ROUND(G19*H19,0) -> 0 | K19: =I19/180 -> 0
G20: Cum | H20: 1 Cum
A21: 2 | B21: Providing P. C.C. (1:4:8) Nominal mix using 40mm HBG metal including Cost and conveyance of all materials and labour charges, centring chares, curing etc complete
B22: =B17 -> Key walls, L/S & R/S | C22: 2 | D22: 0 | E22: 0.23 | F22: 0.15 | G22: =ROUND(C22*D22*E22*F22,2) -> 0
H25: =Data!#REF! ->  | I25: =ROUND(G25*H25,0) -> 
G26: Cum | H26: 1 Cum
A27: 2 | B27: Providing plain cement concrete M10 mix using 40mm to 20 mm Graded HBG crushed Metal with 220 Kgs of cement per 1cum of concrete, including C/c of all materials, curing ,labour charges etc., complete as per drawings & tech. specifications Clause 802, 803, 1202 & 1203 as per clause 800 & 1200 (1) of MORD and guidelines for shoe walls below G.L.
B28: =B17 -> Key walls, L/S & R/S | C28: 2 | D28: 0 | E28: 0.23 | F28: 0.23 | G28: =ROUND(C28*D28*M28*F28,2) -> 0 | K28: 0.23 | L28: 0.23 | M28: =(K28+L28)/2 -> 0.23
H30: =Data!H22 -> 4497.69 | I30: =ROUND(G30*H30,0) -> 0
G31: Cum | H31: 1 Cum
A32: 3 | B32: Providing plain cement concrete M10 mix using 40mm to 20 mm Graded HBG crushed Metal with 220 Kgs of cement per 1cum of concrete, including C/c of all materials, curing ,labour charges etc., complete as per drawings & tech. specifications Clause 802, 803, 1202 & 1203 as per clause 800 & 1200 (1) of MORD and guidelines for Screen walls above G.L.
B33: =B28 -> Key walls, L/S & R/S | C33: =C17 -> 2 | D33: 0 | E33: =E28 -> 0.23 | F33: 0.1 | G33: =ROUND(C33*D33*M33*F33,2) -> 0 | J33: 10 | K33: 0.23 | L33: 0.45 | M33: =(K33+L33)/2 -> 0.34
H35: =Data!#REF! ->  | I35: =ROUND(G35*H35,0) -> 
G36: Cum | H36: 1 Cum
A37: 4 | B37: =Data!#REF! -> 
B38: =B17 -> Key walls, L/S & R/S | C38: 1 | D38: =D17 -> 0 | E38: 0.23 | F38: 0.1
B39: Drain, L/S | C39: 1x1 | D39: =D18 -> 0 | E39: 0 | F39: 0.15 | G39: =ROUND(F39*E39*D39*LEFT(C39,1)*RIGHT(C39,1),2) -> 0
G40: =SUM(G38:G39) -> 0 | H40: =Data!#REF! ->  | I40: =ROUND(G40*H40,0) -> 
G41: Cum | H41: 1 Cum
A42: 5 | B42: Laying of M15 nominal mix using 66% of 20 mm HBG Metal and 33% of 12mm HBG Metal including Cost and Conveyance of all materials, Centering and Labour Charges and Curing for Side Drains as Per the Section Covered in guidelines for Drainwalls on roadside and houseside
B43: =CONCATENATE(B39,", ",N43) -> Drain, L/S, House Side | C43: 1 | D43: =D39 -> 0 | E43: =IF(K43=L43,K43,CONCATENATE("(",K43,"+",L43,")/2")) -> (0.15+0.30)/2 | F43: 0.45 | G43: =ROUND(C43*D43*M43*F43,2) -> 0 | K43: 0.15 | L43: 0.30 | M43: =(K43+L43)/2 -> 0.225 | N43: House Side
B44: =CONCATENATE(B39,", ",N44) -> Drain, L/S, Road Side | C44: 1 | D44: =D43 -> 0 | E44: (0.20+0.35)/2 | F44: 0.45 | G44: 0 | K44: 0.20 | L44: 0.35 | M44: 0.275 | N44: Road Side
G45: =SUM(G43:G44) -> 0 | H45: =Data!H130 ->  | I45: =ROUND(G45*H45,0) -> 
G46: Cum | H46: 1 Cum
A47: 4 | B47: Cost and supply of stone dust for including Cost and conveyance of all materials and labour charges for loading unloading charges etc , complete for foundation of | K47: Between Drain & CC Road
B48: Underneath CC Pavement | C48: 1 | D48: =D17 -> 0 | E48: =E69-(C33*E33) -> -0.46 | F48: =F33+0.025 -> 0.125 | G48: =ROUND(C48*D48*E48*F48,2) -> 0
B49: =B18 -> Drain, L/S | C49: 1 | D49: 0 | E49: 0 | F49: 0.2 | G49: 0 | J49: 13
H50: =+'Lead statement'!O19 -> 953.7 | I50: =ROUND(G50*H50,0) -> 0
G51: Cum | H51: 1 Cum
A52: 5 | B52: Unskilled labour for filling Stone dust in foundation and Underneath CC pavement and foundations of side drains, including all labour charges etc., complete
B53: Underneath CC Pavement | C53: 1 | D53: =D48 -> 0 | E53: -0.46 | F53: 0.125 | G53: =ROUND(C53*D53*E53*F53,2) -> 0
B54: =B49 -> Drain, L/S | C54: 1 | D54: 0 | E54: 0 | F54: 0.2 | G54: 0 | J54: 13
G55: =G50 -> 0 | H55: =+Data!G49 -> 0 | I55: =ROUND(G55*H55,0) -> 0 | K55: =I55/180 -> 0 | L55: =82+58 -> 140
G56: Cum | H56: 1 Cum
A57: 6 | B57: Loosening of the ground upto a level of 300 mm below the subgrade level, watered, graded and compacted in layers to meet requirement of Tables 300.1 and 300.2 for subgrade construction as per Technical Specification Clause 303.5.2 MORD / 305 MORTH.
B58: for Subgrade
B59: =CONCATENATE("Road no. ",J59) -> Road no. 11 | C59: 1 | D59: 60 | E59: 5 | F59: 0.3 | G59: =ROUND(C59*D59*E59*F59,2) -> 90 | J59: 11
H61: =Data!#REF! ->  | I61: =ROUND(G61*H61,0) -> 
G62: Cum | H62: ="1"&G62 -> 1Cum
A63: 1 | B63: Supply and collection of Selected Earth including stacking to Departmental gauge for pre measurements for Shoulders (CSSR)
B64: for Subgrade
B65: Shoulders, L/S & R/S | D65: =196.5-'Det.Est.'!#REF! ->  | E65: 0.6 | F65: 0.35 | G65: =ROUND(C65*D65*E65*F65,2) -> 
G66: =SUM(G65) ->  | H66: ='Lead statement'!O22 -> 447.7 | I66: =ROUND(G66*H66,0) -> 
G67: Cum | H67: ="1"&G67 -> 1Cum
A68: 2 | B68: =Data!E52 -> Construction of un-reinforced, dowel jointed at expansion and construction joint only, plain cement concrete pavement, thickness as per design, over a prepared sub base, with 43 grade cement or any other type as per Clause 1501.2.2 M20 (Grade), coarse and fine aggregates conforming to IS : 383, maximum in a concrete mixer of not less than 0.2 cum capacity and appropeiate weigh batcher using approved mix design, laid in approved fixed side formwork (steel channel, laying and fixing of 125 micron thick polythene film, wedges, steel plates including levelling the formwork as per drawing), spreading the concrete with sholvels, rakes, compacted using needle, scareed and plate vibrators and finished in continuous operation including provision of contraction and expansion, construction joints, applying debonding strips, primer, sealant, dowel bars, near approaches to bridge / culvert and construction joints, admixtures as approved, curing of concrete slabs for 14- days, curing compound (where specified) and water finishing to lines and grade as per drawing and including overhead charges & Contractor profit, but excluding GST & Seignorage Charges Technical Specification Clause 1501 MORD including overhead charges & Contractors profit but excluding GST .
C69: Bontha Nageswararao(H) to Market Yard Road
E70: 3.5 | F70: 0.17 | G70: =ROUND(C70*D70*E70*F70,2) -> 0
B71: Approach to Culvert @ 1st Cross Road i.e. Culvert @ Boththa Ramanaiah(H)
D72: 1.4 | E72: =IF(N72=O72,P72,CONCATENATE("(",N72,"+",O72,")/2")) -> (5.40+4.10)/2 | F72: =IF(K72=L72,M72,CONCATENATE("(",K72,"+",L72,")/2")) -> (0.17+0.10)/2 | G72: =ROUND(C72*D72*P72*M72,2) -> 0 | K72: 0.17 | L72: 0.10 | M72: =(K72+L72)/2 -> 0.135 | N72: 5.40 | O72: 4.10 | P72: =(N72+O72)/2 -> 4.75
B73: Approach to Culvert @ 2nd Cross Road i.e. Culvert @ Thati China Sambaiah(H)
D74: 0.8 | E74: =IF(N74=O74,P74,CONCATENATE("(",N74,"+",O74,")/2")) -> (4.20+3.95)/2 | F74: =IF(K74=L74,M74,CONCATENATE("(",K74,"+",L74,")/2")) -> 0.17 | G74: =ROUND(C74*D74*P74*M74,2) -> 0 | K74: 0.17 | L74: 0.17 | M74: =(K74+L74)/2 -> 0.17 | N74: 4.20 | O74: 3.95 | P74: =(N74+O74)/2 -> 4.075
D75: 1 | E75: (3.95+3.70)/2 | F75: (0.17+0.15)/2 | G75: 0 | K75: 0.17 | L75: 0.15 | M75: 0.16 | N75: 3.95 | O75: 3.70 | P75: 3.825
D76: 0.4 | E76: (3.70+3.00)/2 | F76: (0.15+0.07)/2 | G76: 0 | K76: 0.15 | L76: 0.07 | M76: 0.11 | N76: 3.70 | O76: 3.00 | P76: 3.35
B77: Approach to Culvert @ 3rd Cross Road i.e. Culvert @ Chimata Yesaiah(H)
D78: 1.65 | E78: =IF(N78=O78,P78,CONCATENATE("(",N78,"+",O78,")/2")) -> (4.75+3.90)/2 | F78: =IF(K78=L78,M78,CONCATENATE("(",K78,"+",L78,")/2")) -> 0.17 | G78: =ROUND(C78*D78*P78*M78,2) -> 0 | K78: 0.17 | L78: 0.17 | M78: =(K78+L78)/2 -> 0.17 | N78: 4.75 | O78: 3.90 | P78: =(N78+O78)/2 -> 4.325
D79: 2.25 | E79: (3.90+3.00)/2 | F79: (0.17+0.07)/2 | G79: 0 | K79: 0.17 | L79: 0.07 | M79: 0.12 | N79: 3.90 | O79: 3.00 | P79: 3.45
B80: Approach to Culvert @ 4th Cross Road i.e. Culvert @ Ala Srihari(H)
D81: 1.1 | E81: =IF(N81=O81,P81,CONCATENATE("(",N81,"+",O81,")/2")) -> (6.80+3.40)/2 | F81: =IF(K81=L81,M81,CONCATENATE("(",K81,"+",L81,")/2")) -> (0.17+0.125)/2 | G81: =ROUND(C81*D81*P81*M81,2) -> 0 | K81: 0.17 | L81: 0.125 | M81: =(K81+L81)/2 -> 0.1475 | N81: 6.80 | O81: 3.40 | P81: =(N81+O81)/2 -> 5.1
D83: =SUM(D70:D82) -> 8.6 | G83: =SUM(G69:G82) -> 0 | H83: =Data!H91 -> 5727.44 | I83: =ROUND(G83*H83,0) -> 0
D84: ='Det.Est.'!D25 -> 0 | G84: Cum | H84: 1 Cum
D85: =SUM(D83:D84) -> 8.6 | I85: =SUM(I16:I84) -> 
A86: 2 | B86: Seignorage Charges | I86: =ROUNDUP('Seignorage '!I30,0) -> 0 | K86: Cement
A87: =A86+1 -> 3 | B87: Provision for VAT Charges @ 5 % | H87: 0.05 | I87: =ROUND(J87*H87,0) ->  | J87: =I85 ->  | K87: =ROUND('Seignorage '!#REF!,0) -> 
A88: 4 | B88: Provision for QC Charges @ 0.50% | H88: 0.005 | J88: =I85 -> 
A89: 5 | B89: Supervision Charges @ 3% | H89: 0.03 | J89: =J88 -> 
A90: 6 | B90: Provision for NAC Charges @ 0.10% | H90: 0.001
A91: 7 | B91: Provision for Unforeseen Items | I91: =I92-I85-I86-I87-I88-I89-I90 ->  | J91: ='Det.Est.'!I50 -> 1792 | K91: =I91-J91 -> 
H92: TOTAL :: Rs. | I92: ='Lead statement'!#REF!*100000/2 -> 
C97: Deputy Executive Engineer, | H97: Asst. Exe. Engineer,
C98: PRISD :: Mangalagiri. | H98: MPP (PRI) :: Mangalagiri.

Sheet Comprtve stmt. - CRDA (hidden)
A1: Comparitive Statement - CRDA
A2: =Cover!C29 -> Providing Interlocking pavers road from Lanke seshagiri rao (H) to kokkiligadda varma (H) in Duggirala (V&M).
A4: ='Det.Est.'!B3 -> 0 | R4: Estimate cost :: Rs 20.00 Lakhs
A5: Sl. No. | B5: Description of item | C5: As per Sanctioned estimate | J5: As per Working estimate | Q5: Difference | S5: Remarks
C6: Quantity | E6: Rate/per | I6: Amount | J6: Quantity | L6: Rate/per | P6: Amount | Q6: Excess | R6: Less
A7: 1 | B7: 2 | C7: 3 | E7: 4 | I7: 5 | J7: 6 | L7: 7 | P7: 8 | Q7: 9 | R7: 10 | S7: 11
A8: 1 | B8: Costruction of un reinforced dowel jointed at Expansion and construction joint only plain cement concrete pavement , thicknees as per design over a perpared sub base, with 43 grade cement or any other type using nominal mix of VCC(1:2:4) equivalent to | C8: 86.28 | D8: Cum | E8: 5245.51 | F8: / | G8: 1 | H8: =D8 -> Cum | I8: =ROUND(C8*E8/G8,0) -> 452583 | J8: =CRDA!G83 -> 0 | K8: =D8 -> Cum | L8: =CRDA!H83 -> 5727.44 | M8: / | N8: 1 | O8: =K8 -> Cum | P8: =ROUND(J8*L8/N8,0) -> 0 | Q8: =IF((P8-I8)>0,P8-I8,0) -> 0 | R8: =IF((I8-P8)>0,I8-P8,0) -> 452583 | S8: -- DO --
A9: 2 | B9: =CRDA!B63 -> Supply and collection of Selected Earth including stacking to Departmental gauge for pre measurements for Shoulders (CSSR) | J9: =CRDA!G66 ->  | K9: =K8 -> Cum | L9: =CRDA!H66 -> 447.7 | M9: / | N9: 1 | O9: Cum | S9: -- DO --
A10: =A8+1 -> 2 | B10: Provision for VAT Charges @ 5 % | C10: At 5 % | I10: 22629 | J10: At 5 % | P10: =CRDA!I87 ->  | S10: -- DO --
A11: =A10+1 -> 3 | B11: Provision for QC Charges @ 0.50% | C11: At 0.50 % | I11: 2263 | J11: At 0.5% | P11: =CRDA!I88 -> 
A12: 4 | B12: =CRDA!B89 -> Supervision Charges @ 3% | C12: At 3 % | I12: 13577 | J12: At 2.50% | P12: =CRDA!I89 -> 
A13: 5 | B13: =CRDA!B90 -> Provision for NAC Charges @ 0.10% | C13: At 0.10 % | I13: 453 | P13: =CRDA!I90 -> 
A14: 6 | B14: Seignorage Charges | I14: 7765 | J14: At 1% | P14: =CRDA!I86 -> 0 | Q14: 0 | R14: 7765
A15: 7 | B15: Provision for Unforeseen items, if any, | E15: LS | I15: 730 | L15: LS | P15: =CRDA!I91 ->  | S15: -- DO --
I16: =SUM(I8:I15) -> 500000 | P16: =SUM(P8:P15) -> 
B17: Amount as per sanctioned Estimate : | C17: =I16 -> 500000 | F17: Excess : | J17: =Q16 -> 
B18: Amount as per Working Estimate : | C18: =P16 ->  | I18: Less : | J18: =R16 -> 
B19: Difference : | C19: =ABS(C17-C18) ->  | J19: =ABS(J17-J18) -> 
T20: =SUM(T8:T19) -> 0
A21: Comparitive Statement
A22: Name of the work : Providing Borewell at
A23: Estimate Cost : Rs.
A24: Sl. No. | B24: Description of item | D24: As per Sanctioned estimate | J24: As per Working estimate | Q24: Difference | S24: Remarks
D25: Quantity | E25: Rate/per | I25: Amount | J25: Quantity | L25: Rate/per | P25: Amount | Q25: Excess | R25: Less
A26: 1 | B26: 2 | D26: 3 | E26: 4 | I26: 5 | J26: 6 | L26: 7 | P26: 8 | Q26: 9 | R26: 10 | S26: 11
A27: 1 | S27: As per Execution
A28: =A27+1 -> 2 | S28: -- DO --
A29: 3 | S29: -- DO --
A30: 4 | S30: -- DO --
A31: 5 | S31: -- DO --
A32: 6 | S32: -- DO --
A33: 7 | S33: -- DO --
A34: 8 | S34: -- DO --
B36: Amount as per sanctioned Estimate : | I36: Excess :
B37: Amount as per Working Estimate : | I37: Less :
B38: Difference :
O39: Assistant Executive Engineer, ( P.R. ) RWS Section, Edlapadu.
H48: Deputy Executive Engineer, | O48: Assistant Executive Engineer,
H49: PRISD :: Mangalagiri. | O49: MPP(PRI) :: Mangalagiri.

Sheet Comprtve stmt. - MGNREGS (hidden)
A1: Comparitive Statement
A2: =Cover!C29 -> Providing Interlocking pavers road from Lanke seshagiri rao (H) to kokkiligadda varma (H) in Duggirala (V&M).
A4: ='Det.Est.'!B3 -> 0 | R4: Estimate cost :: Rs 20.00 Lakhs
A5: Sl. No. | B5: Description of item | C5: As per Sanctioned estimate | J5: As per Working estimate | Q5: Difference | S5: Remarks
C6: Quantity | E6: Rate/per | I6: Amount | J6: Quantity | L6: Rate/per | P6: Amount | Q6: Excess | R6: Less
A7: 1 | B7: 2 | C7: 3 | E7: 4 | I7: 5 | J7: 6 | L7: 7 | P7: 8 | Q7: 9 | R7: 10 | S7: 11
A8: 1 | B8: ='Det.Est.'!B7 -> Earth work exevation and depositing the soil on banks with an initial lead and lift in all soils etc., complete. | C8: 52.48 | D8: Cum | E8: =L8 -> 244.608 | F8: / | G8: =N8 -> 1 | H8: =D8 -> Cum | I8: =ROUND(C8*E8/G8,0) -> 12837 | J8: ='Det.Est.'!#REF! ->  | K8: =D8 -> Cum | L8: ='Det.Est.'!H9 -> 244.608 | M8: / | N8: 1 | O8: =K8 -> Cum | P8: =ROUND(J8*L8/N8,0) ->  | Q8: =IF((P8-I8)>0,P8-I8,0) ->  | R8: =IF((I8-P8)>0,I8-P8,0) ->  | S8: As per Execu tion | T8: =ROUND(J8*L8/N8,2) -> 
A9: 2 | B9: Laying of M15 nominal mix using 66% of 20 mm HBG Metal and 33% of 12mm HBG Metal including Cost and Conveyance of all materials, Centering and Labour Charges and Curing for Side Drains as Per the Section Covered in guidelines for Drain Walls | D9: Cum | F9: / | G9: 1 | H9: Cum | J9: ='Det.Est.'!#REF! ->  | K9: Cum | L9: ='Det.Est.'!#REF! ->  | M9: / | N9: 1 | O9: Cum | S9: -- DO --
A10: 2 | B10: Providing plain cement concrete M10 mix using 40mm to 20 mm Graded HBG crushed Metal with 220 Kgs of cement per 1cum of concrete, including C/c of all materials, curing ,labour charges etc., complete as per drawings & tech. specifications Clause 802, 8 | C10: =C8 -> 52.48 | D10: Cum | E10: 3472.46 | F10: / | G10: 1 | H10: Cum | I10: =ROUND(C10*E10/G10,0) -> 182235 | J10: ='Det.Est.'!G13 -> 3.7 | K10: Cum | L10: ='Det.Est.'!H13 -> 4497.69 | M10: / | N10: 1 | O10: Cum | P10: 16641 | Q10: 0 | R10: 165594 | S10: -- DO -- | T10: =ROUND(J10*L10/N10,2) -> 16641.45 | V10: =24 -> 24 | W10: 16 | X10: 4 | Y10: =V10*W10*(X10-1) -> 1152
A11: 3 | B11: Providing plain cement concrete M10 mix using 40mm to 20 mm Graded HBG crushed Metal with 220 Kgs of cement per 1cum of concrete, including C/c of all materials, curing ,labour charges etc., complete as per drawings & tech. specifications Clause 802, 8 | C11: 22.82 | D11: Cum | E11: 3611.36 | F11: / | G11: 1 | H11: Cum | I11: 82411 | J11: ='Det.Est.'!#REF! ->  | K11: Cum | L11: ='Det.Est.'!#REF! ->  | M11: / | N11: 1 | O11: Cum | S11: -- DO -- | V11: =V10*0.3048 -> 7.3152 | W11: 4.8768 | X11: =(X10-1)*0.3048 -> 0.9144 | Y11: =V11*W11*X11 -> 32.62100727 | Z11: =Y11*1000 -> 32621.00727
A12: 4 | B12: ='Det.Est.'!B19 -> Cost and supply of sand for filling in between kee walls including Un Skilled Labour & conveyance to site etc., complete | C12: 125.98 | D12: Cum | E12: 756.65 | F12: / | G12: =N12 -> 1 | H12: Cum | I12: 95323 | J12: ='Det.Est.'!G21 -> 34.97 | K12: =K11 -> Cum | L12: ='Det.Est.'!H21 -> 787.8233333 | M12: / | N12: 1 | O12: =O11 -> Cum | P12: 27550 | Q12: 0 | R12: 67773 | S12: -- DO --
A13: 5 | B13: Supply and collection of Selected Earth including stacking to Departmental gauge for pre measurements for Subgrade (CSSR) VP 4 - 10 / 1922 / B / PRI / 2015 - 16 & VP 12 - 15 / 1928 / B / PRI / 2015 - 16 | C13: 178.56 | D13: Cum | E13: 502.86 | F13: / | G13: 1 | H13: Cum | I13: 89791 | J13: ='Det.Est.'!#REF! ->  | K13: =D13 -> Cum | L13: ='Det.Est.'!#REF! ->  | M13: / | N13: 1 | O13: =K13 -> Cum | S13: -- DO --
A14: 6 | B14: Engaging Un Skilled Labour for spreading the collected (Selected Earth) material and sectioning for Subgrade (RSSR) VP 11 - 13 | C14: =C13 -> 178.56 | D14: Cum | E14: 28.24 | F14: / | G14: 1 | H14: Cum | I14: 5043 | J14: ='Det.Est.'!#REF! ->  | K14: Cum | L14: ='Det.Est.'!#REF! ->  | M14: / | N14: 1 | O14: Cum | S14: -- DO --
A15: 7 | B15: Filling Stone dust for including labour charges for loading unloading charges etc , complete for foundation of | C15: =C12 -> 125.98 | D15: Cum | E15: 130.2 | F15: / | G15: 1 | H15: Cum | I15: 16403 | K15: Cum | M15: / | N15: 1 | O15: Cum | P15: 0 | Q15: 0 | R15: 16403 | S15: -- DO --
A16: 8 | B16: Costruction of un reinforced dowel jointed at Expansion and construction joint only plain cement concrete pavement , thicknees as per design over a perpared sub base, with 43 grade cement or any other type using nominal mix of VCC(1:2:4) equivalent to | C16: 252.96 | D16: Cum | E16: 5046.28 | F16: / | G16: 1 | H16: Cum | I16: 1276507 | J16: ='Det.Est.'!G25 -> 0 | K16: Cum | L16: ='Det.Est.'!H25 -> 5727.44 | M16: / | N16: 1 | O16: Cum | P16: 0 | Q16: 0 | R16: 1276507 | S16: -- DO --
A17: 9 | B17: ='Det.Est.'!#REF! ->  | J17: ='Det.Est.'!#REF! ->  | K17: ='Det.Est.'!#REF! ->  | L17: ='Det.Est.'!#REF! ->  | M17: / | N17: 1 | S17: -- DO --
A18: 7 | B18: Supplying, fitting and placing HYSD bar reinforcement in foundation complete as per drawings and technical specifications for Bars below 36 mm dia including over laps and wastage, where they are not welded. | J18: ='Det.Est.'!#REF! ->  | K18: ='[390]Wor. Est.'!D573 -> M.T. | L18: ='Det.Est.'!#REF! ->  | M18: / | N18: =N16 -> 1 | O18: M.T. | S18: -- DO --
A19: 10 | B19: Supply and fixing of MS name board of size 2’.6”x4’ including painting and required lettering | C19: 1 | D19: No. | E19: 4748 | F19: / | G19: 1 | H19: =D19 -> No. | I19: =ROUND(C19*E19/G19,0) -> 4748 | J19: 1 | K19: =D19 -> No. | L19: ='Det.Est.'!#REF! ->  | M19: / | N19: 1 | O19: No. | S19: -- DO --
A20: =A19+1 -> 11 | B20: Provision for VAT Charges @ 5 % | C20: At 5 % | I20: 62541 | J20: At 12 % | P20: ='Det.Est.'!#REF! ->  | S20: -- DO --
A21: 12 | B21: Provision for QC Charges @ 0.50% | C21: At 0.5% | I21: 8798 | J21: At 0.5% | P21: ='Det.Est.'!#REF! -> 
A22: 13 | B22: Storage&Safe guard of Materials @2.50% | C22: At 2.50% | I22: 50000 | J22: At 2.50% | P22: ='Det.Est.'!#REF! -> 
A23: 14 | B23: Seignorage Charges | I23: 44349 | J23: At 1% | P23: ='Det.Est.'!I44 -> 5044 | Q23: 0 | R23: 39305
A24: 15 | B24: Provision for Unforeseen items, if any, | E24: LS | I24: 74657 | L24: LS | P24: ='Det.Est.'!I50 -> 1792 | Q24: 0 | R24: 72865 | S24: -- DO --
I25: =SUM(I8:I24) -> 2005643 | P25: =SUM(P8:P24) -> 
B26: Amount as per sanctioned Estimate : | C26: =I25 -> 2005643 | F26: Excess : | J26: =Q25 -> 
B27: Amount as per Working Estimate : | C27: =P25 ->  | I27: Less : | J27: =R25 -> 
B28: Difference : | C28: =ABS(C26-C27) ->  | J28: =ABS(J26-J27) -> 
T29: =SUM(T8:T28) -> 
A30: Comparitive Statement
A31: Name of the work : Providing Borewell at
A32: Estimate Cost : Rs.
A33: Sl. No. | B33: Description of item | D33: As per Sanctioned estimate | J33: As per Working estimate | Q33: Difference | S33: Remarks
D34: Quantity | E34: Rate/per | I34: Amount | J34: Quantity | L34: Rate/per | P34: Amount | Q34: Excess | R34: Less
A35: 1 | B35: 2 | D35: 3 | E35: 4 | I35: 5 | J35: 6 | L35: 7 | P35: 8 | Q35: 9 | R35: 10 | S35: 11
A36: 1 | S36: As per Execution
A37: =A36+1 -> 2 | S37: -- DO --
A38: 3 | S38: -- DO --
A39: 4 | S39: -- DO --
A40: 5 | S40: -- DO --
A41: 6 | S41: -- DO --
A42: 7 | S42: -- DO --
A43: 8 | S43: -- DO --
B45: Amount as per sanctioned Estimate : | I45: Excess :
B46: Amount as per Working Estimate : | I46: Less :
B47: Difference :
O48: Assistant Executive Engineer, ( P.R. ) RWS Section, Edlapadu.
H57: Deputy Executive Engineer, | O57: Assistant Executive Engineer,
H58: PRISD :: Mangalagiri. | O58: MPP(PRI) :: Mangalagiri.

Sheet Cover Page (hidden)
D5: Programme : MGNREGS+14 th Finance Commission Grant
D6: Sub Division: PRISD Mangalagiri
D8: Mandal : Mangalagiri
D11: WORK ID :: | E11: 077041211009080009
C14: Rc. No. 638/2016/D, dated 04.07.2016 of District Collector & DPC, MGNREGS, GUNTUR.
D25: =+'Lead statement'!D3:O3 -> Providing Interlocking pavers road from Lanke seshagiri rao (H) to kokkiligadda varma (H) in Duggirala (V&M).
F30: Estimate Cost :: Rs. | G30: =+'Lead statement'!K4 -> 1.7 | H30: Lakhs

Sheet Det. Est. (hidden)
A1: DETAILED CUM ABSTRACT ESTIMATE
B2: ='Lead statement'!C3 -> Name of the Work :: | C2: ='Lead statement'!D3 -> Providing Interlocking pavers road from Lanke seshagiri rao (H) to kokkiligadda varma (H) in Duggirala (V&M).
G3: ='Lead statement'!J4 -> Estimate Cost :: Rs. | H3: ='Lead statement'!K4 -> 1.7 | I3: Lakhs | K3: =I96 ->  | M3: Length | N3: Breadth | O3: Depth
A4: Sl. No. | B4: Discription of Item | C4: Nos | D4: Measurements | G4: Qty. | H4: Rate unit | I4: Amount | K4: =I95 ->  | L4: CC Road | M4: =H14 -> 190 | N4: 3 | O4: 0.17 | P4: =171+68+50+162+95 -> 546
D5: L | E5: B | F5: D | K5: =K3-K4 ->  | L5: Gravel Road | M5: =M4 -> 190 | N5: =N4-0.46 -> 2.54 | O5: 0.15
A6: 1 | B6: 2 | D6: 3 | E6: 4 | F6: 5 | G6: 6 | H6: 7 | I6: 8 | J6: =I96 ->  | L6: Sholders | M6: =M4 -> 190 | N6: 0.6 | O6: 0.3
B7: List of Roads Proposed in the Work :: | L7: Drain | M7: 0 | N7: 1.01 | O7: 0.45
A8: Sl. No. | B8: Locality | C8: FROM | E8: TO | G8: Nature of Work | H8: Length
A9: 1 | B9: SC Locality | C9: Nallagorla Sesharathnam plot | E9: Polu Ramesh(H) | G9: CC Road | H9: 110 | L9: Providing internal CC roads from Nallagorla Sesharathnam plot to Polu Ramesh(H) and from Kommuri Mariyamma(H) to Gooduri Hariprasad(H) in Kuragallu village of Mangalagiri Mandal
A10: 2 | B10: SC Locality | C10: Kommuri Mariyamma(H) | E10: Gooduri Hariprasad(H) | G10: CC Road | H10: 80
A11: 3 | B11: SC Locality | G11: CC Road
A12: 4 | B12: SC Locality | G12: CC Road
A13: 5 | B13: SC Locality | G13: CC Road
H14: =SUM(H9:H13) -> 190
A15: 1 | B15: Unskilled labour for Earth work excavation and depositing the soil on banks with an initial lead and lift in all soils etc., complete.
B16: Key walls, L/S & R/S | C16: 2 | D16: =M4 -> 190 | E16: 0.23 | F16: 0.23 | G16: =ROUND(C16*D16*E16*F16,2) -> 20.1
B17: Drain, L/S | C17: 1 | D17: =M7 -> 0 | E17: 1.01 | F17: =O7+F48+F38 -> 0.8 | G17: =ROUND(F17*E17*D17*LEFT(C17,1)*RIGHT(C17,1),2) -> 0
G18: =SUM(G16:G17) -> 20.1 | H18: =Data!H106 -> 244.608 | I18: =ROUND(G18*H18,0) -> 4917 | K18: =I18/180 -> 27.31666667
G19: Cum | H19: 1 Cum
A20: 2 | B20: Providing P. C.C. (1:4:8) Nominal mix using 40mm HBG metal including Cost and conveyance of all materials and labour charges, centring chares, curing etc complete
B21: =B16 -> Key walls, L/S & R/S | C21: 2 | D21: 190 | E21: 0.23 | F21: 0.15 | G21: =ROUND(C21*D21*E21*F21,2) -> 13.11
H24: =Data!#REF! ->  | I24: =ROUND(G24*H24,0) -> 
G25: Cum | H25: 1 Cum
A26: 2 | B26: Providing plain cement concrete M10 mix using 40mm to 20 mm Graded HBG crushed Metal with 220 Kgs of cement per 1cum of concrete, including C/c of all materials, curing ,labour charges etc., complete as per drawings & tech. specifications Clause 802, 803, 1202 & 1203 as per clause 800 & 1200 (1) of MORD and guidelines for shoe walls below G.L.
B27: =B16 -> Key walls, L/S & R/S | C27: 2 | D27: 190 | E27: 0.23 | F27: 0.23 | G27: =ROUND(C27*D27*M27*F27,2) -> 20.1 | K27: 0.23 | L27: 0.23 | M27: =(K27+L27)/2 -> 0.23
G29: =SUM(G27:G28) -> 20.1 | H29: =Data!H22 -> 4497.69 | I29: =ROUND(G29*H29,0) -> 90404
G30: Cum | H30: 1 Cum
A31: 3 | B31: Providing plain cement concrete M10 mix using 40mm to 20 mm Graded HBG crushed Metal with 220 Kgs of cement per 1cum of concrete, including C/c of all materials, curing ,labour charges etc., complete as per drawings & tech. specifications Clause 802, 803, 1202 & 1203 as per clause 800 & 1200 (1) of MORD and guidelines for Screen walls above G.L.
B32: =B27 -> Key walls, L/S & R/S | C32: =C16 -> 2 | D32: 190 | E32: =E27 -> 0.23 | F32: 0.1 | G32: =ROUND(C32*D32*M32*F32,2) -> 12.92 | J32: 10 | K32: 0.23 | L32: 0.45 | M32: =(K32+L32)/2 -> 0.34
G34: =SUM(G32:G33) -> 12.92 | H34: =Data!#REF! ->  | I34: =ROUND(G34*H34,0) -> 
G35: Cum | H35: 1 Cum
A36: 4 | B36: =Data!#REF! -> 
B37: =B16 -> Key walls, L/S & R/S | C37: 1 | D37: =D16 -> 190 | E37: 0.23 | F37: 0.1
B38: Drain, L/S | C38: 1x1 | D38: =D17 -> 0 | E38: 1.01 | F38: 0.15 | G38: =ROUND(F38*E38*D38*LEFT(C38,1)*RIGHT(C38,1),2) -> 0
G39: =SUM(G37:G38) -> 0 | H39: =Data!#REF! ->  | I39: =ROUND(G39*H39,0) -> 
G40: Cum | H40: 1 Cum
A41: 5 | B41: Laying of M15 nominal mix using 66% of 20 mm HBG Metal and 33% of 12mm HBG Metal including Cost and Conveyance of all materials, Centering and Labour Charges and Curing for Side Drains as Per the Section Covered in guidelines for Drainwalls on roadside and houseside
B42: =CONCATENATE(B38,", ",N42) -> Drain, L/S, House Side | C42: 1 | D42: =D38 -> 0 | E42: =IF(K42=L42,K42,CONCATENATE("(",K42,"+",L42,")/2")) -> (0.15+0.30)/2 | F42: 0.45 | G42: =ROUND(C42*D42*M42*F42,2) -> 0 | K42: 0.15 | L42: 0.30 | M42: =(K42+L42)/2 -> 0.225 | N42: House Side
B43: =CONCATENATE(B38,", ",N43) -> Drain, L/S, Road Side | C43: 1 | D43: =D42 -> 0 | E43: (0.20+0.35)/2 | F43: 0.45 | G43: 0 | K43: 0.20 | L43: 0.35 | M43: 0.275 | N43: Road Side
G44: =SUM(G42:G43) -> 0 | H44: =Data!H130 ->  | I44: =ROUND(G44*H44,0) -> 
G45: Cum | H45: 1 Cum
A46: 4 | B46: Cost and supply of stone dust for including Cost and conveyance of all materials and labour charges for loading unloading charges etc , complete for foundation of | K46: Between Drain & CC Road
B47: Underneath CC Pavement | C47: 1 | D47: 0 | E47: =E84-(C32*E32) -> 2.54 | F47: =F32+0.025 -> 0.125 | G47: =ROUND(C47*D47*E47*F47,2) -> 0
B48: =B17 -> Drain, L/S | C48: 1 | D48: 0 | E48: 1.01 | F48: 0.2 | G48: 0 | J48: 13
G49: =SUM(G47:G48) -> 0 | H49: =+'Lead statement'!O19 -> 953.7 | I49: =ROUND(G49*H49,0) -> 0
G50: Cum | H50: 1 Cum
A51: 5 | B51: Unskilled labour for filling Stone dust in foundation and Underneath CC pavement and foundations of side drains, including all labour charges etc., complete
B52: Underneath CC Pavement | C52: 1 | D52: =D47 -> 0 | E52: 2.54 | F52: 0.125 | G52: =ROUND(C52*D52*E52*F52,2) -> 0
B53: =B48 -> Drain, L/S | C53: 1 | D53: 0 | E53: 1.01 | F53: 0.2 | G53: 0 | J53: 13
G54: =G49 -> 0 | H54: =+Data!G49 -> 0 | I54: =ROUND(G54*H54,0) -> 0 | K54: =I54/180 -> 0 | L54: =82+58 -> 140
G55: Cum | H55: 1 Cum
A56: 6 | B56: Loosening of the ground upto a level of 300 mm below the subgrade level, watered, graded and compacted in layers to meet requirement of Tables 300.1 and 300.2 for subgrade construction as per Technical Specification Clause 303.5.2 MORD / 305 MORTH.
B57: for Subgrade
B58: =CONCATENATE("Road no. ",J58) -> Road no. 11 | C58: 1 | D58: 60 | E58: 5 | F58: 0.3 | G58: =ROUND(C58*D58*E58*F58,2) -> 90 | J58: 11
H60: =Data!#REF! ->  | I60: =ROUND(G60*H60,0) -> 
G61: Cum | H61: ="1"&G61 -> 1Cum
A62: 4 | B62: Supply and collection of Selected Earth including stacking to Departmental gauge for pre measurements for Subgrade and Shoulders (CSSR)
B63: for Subgrade
B64: =CONCATENATE("Road ",J64) -> Road | C64: 1 | D64: =M5 -> 190 | E64: 2.54 | F64: =K64*1.28 -> 0.192 | G64: =ROUND(C64*D64*E64*F64,2) -> 92.66 | K64: =O5 -> 0.15
B65: Shoulders, L/S & R/S | C65: =C16 -> 2 | D65: =M6 -> 190 | E65: 0.6 | F65: 0.3 | G65: 68.4
G66: =SUM(G64:G65) -> 161.06 | H66: ='Lead statement'!O22 -> 447.7 | I66: =ROUND(G66*H66,0) -> 72107
G67: Cum | H67: ="1"&G67 -> 1Cum
A68: 5 | B68: Engaging Un Skilled Labour for spreading the collected (Selected Earth) material and sectioning for Subgrade and Shoulders (RSSR)
B69: for Subgrade
B70: =B64 -> Road | C70: 1 | D70: =D64 -> 190 | E70: 2.54 | F70: 0.192 | G70: =ROUND(C70*D70*E70*F70,2) -> 92.66 | K70: =K64 -> 0.15
B71: Shoulders, L/S & R/S | C71: =C65 -> 2 | D71: 190 | E71: 0.6 | F71: 0.3 | G71: 68.4
G72: =SUM(G70:G71) -> 161.06 | H72: =Data!H186 -> 32.94 | I72: =ROUND(G72*H72,0) -> 5305
G73: Cum | H73: ="1"&G73 -> 1Cum
A74: 6 | B74: Compaction of collected Selected Earth using 8-10T Power Road Roller with required watering for for Subgrade and Shoulders (CSSR)
B75: for Subgrade
B76: =B70 -> Road | C76: 1 | D76: =D70 -> 190 | E76: 2.54 | F76: =K70 -> 0.15 | G76: =ROUND(C76*D76*E76*F76,2) -> 72.39 | K76: =K70 -> 0.15
G77: =SUM(G75:G76) -> 72.39 | H77: =Data!H199 -> 157.13 | I77: =ROUND(G77*H77,0) -> 11375
G78: Cum | H78: ="1"&G78 -> 1Cum
A79: 7 | B79: Construction of granular sub-base by providing coarse graded material, spreading in uniform layers with motor grader on prepared surface, mixing by mix in place method with rotavator at OMC, and compacting with vibratory roller to achieve the desired density, complete as per clause 401 MORTH. Table 400.2
B80: for Subbase
B81: =B76 -> Road | C81: 1 | D81: =D70 -> 190 | E81: =E76 -> 2.54 | F81: =K81 -> 0.15 | G81: =ROUND(C81*D81*E81*F81,2) -> 72.39 | H81: =Data!#REF! ->  | I81: =ROUND(G81*H81,0) ->  | K81: 0.15
G82: Cum | H82: 1 Cum
A83: 8 | B83: =Data!E52 -> Construction of un-reinforced, dowel jointed at expansion and construction joint only, plain cement concrete pavement, thickness as per design, over a prepared sub base, with 43 grade cement or any other type as per Clause 1501.2.2 M20 (Grade), coarse and fine aggregates conforming to IS : 383, maximum in a concrete mixer of not less than 0.2 cum capacity and appropeiate weigh batcher using approved mix design, laid in approved fixed side formwork (steel channel, laying and fixing of 125 micron thick polythene film, wedges, steel plates including levelling the formwork as per drawing), spreading the concrete with sholvels, rakes, compacted using needle, scareed and plate vibrators and finished in continuous operation including provision of contraction and expansion, construction joints, applying debonding strips, primer, sealant, dowel bars, near approaches to bridge / culvert and construction joints, admixtures as approved, curing of concrete slabs for 14- days, curing compound (where specified) and water finishing to lines and grade as per drawing and including overhead charges & Contractor profit, but excluding GST & Seignorage Charges Technical Specification Clause 1501 MORD including overhead charges & Contractors profit but excluding GST .
B84: =B81 -> Road | C84: 1 | D84: =M4 -> 190 | E84: 3 | F84: 0.17 | G84: =ROUND(C84*D84*E84*F84,2) -> 96.9 | K84: =SUM(D84) -> 190
G85: =SUM(G84) -> 96.9 | H85: =Data!H91 -> 5727.44 | I85: =ROUND(G85*H85,0) -> 554989
G86: Cum | H86: 1 Cum
A87: 9 | B87: Provision of Name Board | C87: 1 | G87: =ROUND(RIGHT(C87,1),0) -> 1 | H87: =+Data!#REF! ->  | I87: =ROUND(G87*H87,0) ->  | K87: =I18+I54+I72 -> 10222 | L87: =ROUND('Seignorage '!#REF!,0) -> 
A88: 26 | B88: Provision for Joint Filler Board 20mm thick | H88: =Data!F84 -> 735
I89: =SUM(I15:I88) ->  | M89: ='Det.Est.'!I43+CRDA!I85 -> 
A90: =A87+1 -> 10 | B90: Seignorage Charges | I90: =Seignorage!G27 -> 24078 | K90: ='Det.Est.'!I44 -> 5044 | L90: =CRDA!I86 -> 0 | M90: =SUM(K90:L90) -> 5044
A91: =A90+1 -> 11 | B91: Provision for VAT Charges @ 5 % | H91: 0.05 | I91: =ROUND(J91*H91,0) ->  | J91: =I89-K87-L87 ->  | K91: ='Det.Est.'!#REF! ->  | L91: =CRDA!I87 -> 
A92: 12 | B92: Provision for QC Charges @ 0.50% | H92: 0.005 | J92: =I89 ->  | K92: ='Det.Est.'!#REF! ->  | L92: =CRDA!I88 -> 
A93: 13 | B93: Provision for NAC Charges @ 0.10% | H93: 0.001 | J93: =I89/2 ->  | K93: =ROUND(J93*0.1%,0) -> 
A94: 14 | B94: Storage&Safe guard of Materials @ 2.50% | H94: 0.025 | I94: ='Det.Est.'!#REF! ->  | J94: =J92 ->  | K94: ='Det.Est.'!#REF! ->  | L94: =CRDA!I89 ->  | M94: =SUM(K94:L94) -> 
A95: =A94+1 -> 15 | B95: Provision for Unforeseen Items | I95: =I96-I89-I90-I91-I92-I94-I93 ->  | J95: ='Det.Est.'!I50 -> 1792 | K95: =CRDA!I91 ->  | L95: =J95+K95 ->  | M95: =J95-K95 -> 
H96: TOTAL :: Rs. | I96: ='Lead statement'!#REF!*100000 -> 
C101: Deputy Executive Engineer, | H101: Asst. Exe. Engineer,
C102: PRISD :: Mangalagiri. | H102: MPP (PRI) :: Mangalagiri.

Sheet Seignorage
A1: Seigniorage Charges
B2: ='Lead statement'!C3 -> Name of the Work :: | C2: ='Det.Est.'!C2 -> Providing Interlocking pavers road from Lanke seshagiri rao (H) to kokkiligadda varma (H) in Duggirala (V&M).
A3: Sl No. | B3: Descripition of Item | C3: Qty. | D3: Earth | E3: Sand | F3: Metal | J3: Cement
F4: stone dust | G4: 40 - 20 mm metal | H4: 60%-40mm & 40%-20-10mm chips | I4: 20-12mm chips
A6: 1 | B6: Earth work exevation | C6: ='Det.Est.'!G9 -> 3.7 | D6: =C6 -> 3.7
A7: 2 | B7: PCC M10 For Shoe Wall Below GL | C7: ='Det.Est.'!G13 -> 3.7 | E7: =ROUND(C7*0.45,2) -> 1.67 | G7: =ROUND(C7*0.9,2) -> 3.33 | J7: =ROUND(C7*0.22*1000,2) -> 814
A8: 3 | B8: PCC M10 For Shoe Wall Above GL | C8: ='Det.Est.'!G17 -> 7.25 | E8: 3.26 | G8: 6.53 | J8: 1595
A9: 4 | B9: Cost and supply of sand for filling | C9: ='Det.Est.'!G21 -> 34.97 | E9: =C9 -> 34.97
A10: 6 | B10: ='Det.Est.'!B23 -> Construction of un-reinforced, dowel jointed at expansion and construction joint only, plain cement concrete pavement, thickness as per design, over a prepared sub base, with 43 grade cement or any other type as per Clause 1501.2.2 M20 (Grade), coarse and fine aggregates conforming to IS : 383, maximum in a concrete mixer of not less than 0.2 cum capacity and appropeiate weigh batcher using approved mix design, laid in approved fixed side formwork (steel channel, laying and fixing of 125 micron thick polythene film, wedges, steel plates including levelling the formwork as per drawing), spreading the concrete with sholvels, rakes, compacted using needle, scareed and plate vibrators and finished in continuous operation including provision of contraction and expansion, construction joints, applying debonding strips, primer, sealant, dowel bars, near approaches to bridge / culvert and construction joints, admixtures as approved, curing of concrete slabs for 14- days, curing compound (where specified) and water finishing to lines and grade as per drawing and including overhead charges & Contractor profit, but excluding GST & Seignorage Charges Technical Specification Clause 1501 MORD including overhead charges & Contractors profit but excluding GST . | C10: ='Det.Est.'!G25 -> 0 | E10: =ROUND(C10*0.45,2) -> 0 | I10: =ROUND(C10*0.9,2) -> 0 | J10: =ROUND(C10*0.324*1000,2) -> 0
A11: 7 | B11: ='Det.Est.'!B34 -> Filling in foundation trenches (Hard Morrum/ Selected Earth) as per drawing and technical specification Clause 305.3.9 MORD & 304 MORTH ,including overhead charges & Contractors profit but excluding GST . | C11: ='Det.Est.'!G36 -> 0 | D11: =C11 -> 0
D12: =SUM(D6:D11) -> 3.7 | E12: =SUM(E7:E11) -> 39.9 | F12: =SUM(F6:F11) -> 0 | G12: =SUM(G6:G11) -> 9.86 | H12: =SUM(H6:H11) -> 0 | I12: =SUM(I6:I11) -> 0 | J12: =SUM(J6:J11) -> 2409
B14: PART B - CRDA
A15: 1 | B15: ='Det.Est.'!B23 -> Construction of un-reinforced, dowel jointed at expansion and construction joint only, plain cement concrete pavement, thickness as per design, over a prepared sub base, with 43 grade cement or any other type as per Clause 1501.2.2 M20 (Grade), coarse and fine aggregates conforming to IS : 383, maximum in a concrete mixer of not less than 0.2 cum capacity and appropeiate weigh batcher using approved mix design, laid in approved fixed side formwork (steel channel, laying and fixing of 125 micron thick polythene film, wedges, steel plates including levelling the formwork as per drawing), spreading the concrete with sholvels, rakes, compacted using needle, scareed and plate vibrators and finished in continuous operation including provision of contraction and expansion, construction joints, applying debonding strips, primer, sealant, dowel bars, near approaches to bridge / culvert and construction joints, admixtures as approved, curing of concrete slabs for 14- days, curing compound (where specified) and water finishing to lines and grade as per drawing and including overhead charges & Contractor profit, but excluding GST & Seignorage Charges Technical Specification Clause 1501 MORD including overhead charges & Contractors profit but excluding GST . | E15: =C15*0.45 -> 0 | I15: =C15*0.9 -> 0 | J15: =ROUND(C15*Data!#REF!,2) -> 
A16: 2 | B16: Selected Earth | D16: =C16 -> 0
D17: =SUM(D15:D16) -> 0 | E17: 0 | F17: 0 | G17: 0 | H17: 0 | I17: 0
B19: Total : | D19: =D12+D17 -> 3.7 | E19: 39.9 | F19: 0 | G19: 9.86 | H19: 0 | I19: 0
B22: Selected Earth : | C22: =D12 -> 3.7 | D22: 45 | E22: =ROUND(C22*D22,2) -> 166.5
B23: Sand : | C23: =E12 -> 39.9 | D23: 100 | E23: 3990
B24: Stone Dust | C24: =F12 -> 0 | D24: 90 | E24: 0
B25: 40 - 20 mm metal | C25: =G12 -> 9.86 | D25: 90 | E25: 887.4
B26: 40mm & 20-10mm Metal : | C26: =H12 -> 0
B27: 20-12mm Chips : | C27: =I12 -> 0 | D27: =D24 -> 90 | E27: =C27*D27 -> 0
B30: Total Seignorage charges : | E30: =SUM(E22:E29) -> 5043.9 | J30: =ROUNDUP(SUM(E30:I30),0) -> 5044
B32: Cement : | C32: =J12 -> 2409 | E32: Kgs | F32: =+'Lead statement'!O26/1000 -> 4.22 | G32: =ROUND(C32*F32,0) -> 10166
D33: =C32/50 -> 48.18 | E33: Bags
G37: Assistant Executive Engineer,
G38: MPP (PRI) :: Duggirala. | H38: Assistant Engineer,
H39: MPP (PRI) :: Tadepalli.

Sheet Seignorage (hidden)
A1: Seigniorage Charges (MGNREGS + 14th Finance)
B2: ='Lead statement'!C3 -> Name of the Work :: | C2: ='Lead statement'!D3 -> Providing Interlocking pavers road from Lanke seshagiri rao (H) to kokkiligadda varma (H) in Duggirala (V&M).
A3: Sl No. | B3: Descripition of Item | C3: Qty. | D3: Earth | E3: Sand | F3: Metal | J3: Cement
F4: stone dust | G4: 40 - 20 mm metal | H4: 60%-40mm & 40%-20-10mm chips | I4: 20-12mm chips
A6: 1 | B6: Earth work exevation and depositing for drain | C6: ='Det. Est.'!G18 -> 20.1 | D6: =C6 -> 20.1
A7: 2 | B7: Selected Earth | C7: ='Det. Est.'!G66 -> 161.06 | D7: 161.06
A8: 3 | B8: Plain cement concrete M10 for shoe wall & Screen walls | C8: ='Det. Est.'!G29+'Det. Est.'!G34 -> 33.02 | E8: =C8*0.45 -> 14.859 | G8: =C8*0.9 -> 29.718 | J8: =ROUND(C8*Data!#REF!*1000,2) -> 
A9: 4 | B9: plain cement concrete M10 for screen wall
A10: 5 | B10: Plain cement concrete M15 for bed concrete & Body walls | C10: =+'Det. Est.'!G39+'Det. Est.'!G44 -> 0 | E10: =C10*0.45 -> 0 | I10: =C10*0.9 -> 0 | J10: =ROUND(C10*Data!#REF!*1000,2) -> 
A11: 6 | B11: plain cement concrete M15 for body walls | E11: =C11*0.48 -> 0 | G11: =C11*0.9 -> 0 | J11: =ROUND(C11*Data!C110*1000,2) -> 0
A12: 7 | B12: Cost and supply of stonedust for side berms and foundation of drain | C12: =+'Det. Est.'!G54 -> 0 | F12: =C12 -> 0
A13: 8 | B13: Providing CC (1:4:8) using 40mm HBG metal for road | C13: ='Det. Est.'!G24 -> 0 | E13: =C13*0.45 -> 0 | I13: =C13*0.9 -> 0 | J13: =ROUND(C13*Data!#REF!,2) -> 
A14: 9 | B14: Granular Sub-Base by providing coarse graded material | C14: ='Det. Est.'!G81 -> 72.39 | I14: =C14*(384/300) -> 92.6592
A15: 10 | B15: Costruction of un refinforced dowel jointed for CC Road | C15: =+'Det. Est.'!G85 -> 96.9 | E15: =C15*0.45 -> 43.605 | I15: =C15*0.9 -> 87.21 | J15: =ROUND(C15*Data!#REF!,2) -> 
B16: Total : | D16: =SUM(D6:D15) -> 181.16 | E16: 58.464 | F16: 0 | G16: 29.718 | I16: =SUM(I6:I15) -> 179.8692 | K16: =J16/50 ->  | L16: =K16*320 -> 
B19: Earth : | C19: =D16 -> 181.16 | D19: 30 | E19: =ROUND(C19*D19,2) -> 5434.8
B20: Sand : | C20: =E16 -> 58.464 | D20: 50 | E20: 2923.2
B21: Granular Chips | C21: =F16 -> 0 | D21: 75 | E21: 0
B22: 40 mm Metal : | C22: =G16 -> 29.718 | D22: 75 | E22: 2228.85
B23: 40mm & 20-10mm Metal :
B24: 20-12mm Chips : | C24: =I16 -> 179.8692 | D24: =D21 -> 75 | E24: =C24*D24 -> 13490.19
B27: Total Seignarage charges : | E27: =SUM(E19:E26) -> 24077.04 | G27: =ROUNDUP(E27,0) -> 24078
B29: Cement : | C29: =J16 ->  | E29: Kgs | F29: =+'Lead statement'!O26/1000 -> 4.22 | G29: =ROUND(C29*F29,0) -> 
D30: =C29/50 ->  | E30: Bags
B34: Deputy Executive Engineer, | G34: Asst. Exe. Engineer,
B35: PRISD :: Mangalagiri. | G35: MPP (PRI) :: Mangalagiri.

Sheet compa
A1: COMPARATIVE STATEMENT
B2: Name of the Work : | C2: ='Det.Est.'!C2 -> Providing Interlocking pavers road from Lanke seshagiri rao (H) to kokkiligadda varma (H) in Duggirala (V&M).
A3: S No | B3: Description | C3: per | D3: As per Original Estimate | G3: As per Working Estimate | J3: Excess | K3: Less | L3: Remarks
D4: Qty | E4: Rate | F4: Amount | G4: Qty | H4: Rate | I4: Amount
A5: 1 | B5: 2 | C5: 3 | D5: 4 | E5: 5 | F5: 6 | G5: 7 | H5: 8 | I5: 9 | J5: 10 | K5: 11 | L5: 12
A6: 1 | B6: Earthwork in excavation for structures as per drawing and technical specifications Clause 305.1 including setting out, construction of shoring and bracing, removal of stumps and other deleterious material and disposal upto a lead of 50 m | C6: Cum | D6: 1.83 | E6: 229.32 | F6: 420 | G6: ='Det.Est.'!G9 -> 3.7 | H6: ='Det.Est.'!H9 -> 244.608 | I6: ='Det.Est.'!I9 -> 905 | K6: =F6-I6 -> -485 | N6: =E6*D6 -> 419.6556
A7: 2 | B7: Providing plain cement concrete M10 mix using 40mm and 20 mm Graded HBG crushed Metal with 220 Kgs of cement per 1cum of concrete, including C/c of all materials, curing ,labour charges etc., complete as per drawings & tech. specifications Clause 802, 803, 1202 & 1203 as per clause 800 & 1200 (1) of MORD and guidelines for shoe walls below G.L | C7: Cum | D7: 1.83 | E7: 4360.99 | F7: 7981 | G7: ='Det.Est.'!G13 -> 3.7 | H7: ='[391]retaining wall'!H24 -> 938.5 | I7: ='Det.Est.'!I13 -> 16641 | K7: =F7-I7 -> -8660
A8: 3 | B8: Providing plain cement concrete M10 mix using 40mm and 20 mm Graded HBG crushed Metal with 220 Kgs of cement per 1cum of concrete, including C/c of all materials, curing ,labour charges etc., complete as per drawings & tech. specifications Clause 802, 803, 1202 & 1203 as per clause 800 & 1200 (1) of MORD and guidelines for shoe walls Above G.L | C8: Cum | D8: 3.58 | E8: 4535.43 | F8: 16237 | G8: ='Det.Est.'!G17 -> 7.25 | H8: ='Det.Est.'!H17 -> 4677.5976 | I8: ='Det.Est.'!I17 -> 33913 | K8: =F8-I8 -> -17676
A9: 4 | B9: Cost and supply of Stonedust for filling in between kee walls including Un Skilled Labour & conveyance to site etc., complete | C9: Cum | D9: 40.2 | E9: 955.43 | F9: 38408 | G9: ='Det.Est.'!G21 -> 34.97 | H9: ='Det.Est.'!H21 -> 787.8233333 | I9: ='Det.Est.'!I21 -> 27550 | J9: =I9-F9 -> -10858
A10: 5 | B10: Providing and Laying of Interlocking Concrete Block Pavements using CC M40 having thickness 80 mm as per drawing and Technical Specification Clause 1504 MORD. | C10: sqm | D10: 108.65 | E10: 853.77 | F10: 92763 | G10: ='Det.Est.'!G29 -> 94.5 | H10: ='Det.Est.'!H29 -> 830.5357867 | I10: ='Det.Est.'!I29 -> 78486 | K10: =F10-I10 -> 14277
A11: 6 | B11: Add GST @ 18% | F11: 28862 | I11: ='Det.Est.'!I49 -> 0 | J11: =I11-F11 -> -28862
A12: 7 | B12: Add seignorage charges | F12: 4382 | I12: ='Det.Est.'!I44 -> 5044 | J12: =I12-F12 -> 662
A13: 8 | B13: Add QC Charges @ 0.50 % | F13: 779 | I13: ='Det.Est.'!I48 -> 787 | J13: 8
A14: 9 | B14: Add service charges @ 3.00% | F14: 4674 | I14: ='Det.Est.'!I47 -> 4725 | J14: 51
A15: 10 | B15: Provision for NAC Charges 0.1% | F15: 156 | I15: ='Det.Est.'!I45 -> 157 | J15: 1
A16: 11 | B16: Provision for unforeseen items and Fluctuation of Rates | F16: 5338 | I16: ='Det.Est.'!I50 -> 1792 | K16: =F16-I16 -> 3546
F17: =SUM(F6:F16) -> 200000 | I17: =SUM(I6:I16) -> 170000 | J17: =SUM(J6:J16) -> -38998 | K17: =SUM(K6:K16) -> -8998
B19: As per Sanctioned Estimate | C19: =F17 -> 200000 | F19: As per Excess | H19: =J17 -> -38998
B20: As per Recost Estimate | C20: =I17 -> 170000 | F20: As per Less | H20: =K17 -> -8998
C21: =C19-C20 -> 30000 | H21: =H19-H20 -> -30000
B24: Asst Executive Engineer, (PRI ) MPP,Duggirala | G24: Deputy Executive Engineer P.R.I., Sub-Division Mangalagiri

Sheet Lead statement
A1: LEAD STATEMENT - 2023-2024
C2: Work spot | D2: Duggirala | E2: 0.2
C3: Name of the Work :: | D3: ='Det.Est.'!C2 -> Providing Interlocking pavers road from Lanke seshagiri rao (H) to kokkiligadda varma (H) in Duggirala (V&M).
C4: Duggirala | J4: Estimate Cost :: Rs. | K4: ='Det.Est.'!I51/100000 -> 1.7 | O4: Lakhs
A5: Sl. No | B5: Name of the Material | D5: Source | E5: Lead in Km | F5: Conveyance charges Excluding 13.615% OHC & CP | G5: Intial Cost | H5: GST @28% | I5: unloding | J5: Machine crushing charges | K5: Blasting charges | L5: Loading Charges without idle (Manual) | M5: Un-Loading Charges without idle (Manual) | N5: Add Seigniorage charges | O5: Total
A6: 1 | B6: 2 | D6: 3 | E6: 4 | F6: 7 | G6: 8 | H6: 9 | I6: 10 | J6: 11 | K6: 12 | L6: 11 | M6: 12 | N6: 13 | O6: 13
A7: 13 | B7: 60-63mm HBT Metal IRC | D7: Ramatheerdam | E7: 70 | F7: =ROUND((#REF!-#REF!)/1.14,2) ->  | G7: ='Basic data-1'!E22 -> 399.05 | L7: 0 | M7: 0 | N7: 50 | O7: =G7+F7+J7+K7+L7+M7+N7 -> 
A8: 14 | B8: 40-45mm HBT Metal IRC | D8: Ramatheerdam | E8: =E7 -> 70 | F8: =ROUND((#REF!-#REF!)/1.14,2) ->  | G8: ='Basic data-1'!E20 -> 560 | J8: =ROUND(G8*25%,2) -> 140 | K8: 70 | L8: 0 | M8: 0 | N8: 50
A9: 15 | B9: 19-22mm HBT Metal IRC | D9: Ramatheerdam | E9: 70 | F9: =ROUND((#REF!-#REF!)/1.14,2) ->  | G9: ='Basic data-1'!E18 -> 937.15 | J9: 234.29 | K9: 70 | L9: 0 | M9: 0 | N9: 50
A10: 6 | B10: 9.50 - 11.20 mm size HBG M/C metal-IRC | D10: Ramatheerdam | E10: 70 | F10: =ROUND((#REF!-#REF!)/1.14,2) ->  | G10: ='Basic data-1'!E16 -> 624.75 | J10: 156.19 | K10: 70 | L10: 0 | M10: 0 | N10: 50
A11: 1 | B11: 5 - 7 mm size HBG M/C metal-IRC | D11: Ibrahimpatnam | E11: =LOOKUP(D2,#REF!,#REF!) ->  | F11: =#REF!+#REF! ->  | G11: ='Basic data-1'!E15 -> 480 | J11: 120 | K11: 70 | L11: 0 | M11: 0 | N11: 0
A12: =A11+1 -> 2 | B12: 2.36mm - 5mm HBG chips | D12: =D11 -> Ibrahimpatnam | F12: =#REF!+#REF! ->  | G12: ='Basic data-1'!E14 -> 293.35 | J12: 73.34 | K12: 70 | N12: 0
A13: 3 | B13: 9.5-11.2 mm HBG M/C Metal | D13: =D19 -> Ibrahimpatnam | E13: 34 | F13: =#REF!+#REF! ->  | G13: ='Basic data-1'!E16 -> 624.75 | J13: 156.19 | K13: 70 | N13: 0
A14: 4 | B14: 5-7 mm HBGM/C Metal | D14: =D13 -> Ibrahimpatnam | E14: 34 | F14: =#REF!+#REF! ->  | G14: 504 | J14: 126 | K14: 70 | N14: 0
A15: 1 | B15: 40mm HBG MC Chips - SS-5 | D15: =D19 -> Ibrahimpatnam | E15: =' Duggirala Villages'!D7 -> 34 | F15: =LOOKUP(ROUND(E15,0),'conveyance 23-24'!A3:A151,'conveyance 23-24'!D3:D151) -> 503.7 | G15: 744 | J15: =ROUND(G15*25%,2) -> 186 | K15: 70 | L15: 0 | M15: 0 | N15: 0 | O15: 1503.7
A16: =A15+1 -> 2 | B16: 20mm HBG MC Chips - SS-5 | D16: =D15 -> Ibrahimpatnam | E16: =+E15 -> 34 | F16: =F15 -> 503.7 | G16: 1242 | J16: 310.5 | K16: 70 | L16: 0 | M16: 0 | N16: 0 | O16: 2126.2
A17: 3 | B17: 12mm HBG MC Chips - SS-5 | D17: Ibrahimpatnam | E17: =E16 -> 34 | F17: =F15 -> 503.7 | G17: 989 | J17: 247.25 | K17: 70 | L17: 0 | M17: 0 | N17: 0 | O17: 1809.95
A18: 4 | B18: 10mm HBG MC Chips - SS-5 | D18: Ibrahimpatnam | E18: 34 | F18: =F15 -> 503.7 | G18: 831 | J18: 207.75 | K18: 70 | L18: 0 | M18: 0 | N18: 0 | O18: =F18+G18+J18+K18 -> 1612.45
A19: 5 | B19: 2.36mm & below HBG Stone Chips (Stone Dust) | D19: =D12 -> Ibrahimpatnam | E19: 34 | F19: =F15 -> 503.7 | G19: 450 | L19: 0 | M19: 0 | N19: 0 | O19: =G19+F19+J19+K19+L19+M19+N19 -> 953.7
A20: 6 | B20: Gravel | D20: =LOOKUP(D2,[392]Villages!A3:A14,[392]Villages!F3:F14) -> Vejendla | E20: 24 | F20: ='conveyance 23-24'!C24 -> 352.7 | G20: 130 | L20: 0 | M20: 0 | N20: 0 | O20: 482.7
B21: Selected earth | C21: M-092 MAT-00252 | D21: =D20 -> Vejendla | E21: =E20 -> 24 | F21: =F20 -> 352.7 | G21: 101 | O21: 453.7
A22: =A20+1 -> 7 | B22: Hard Morrum | D22: =D20 -> Vejendla | E22: 24 | F22: 352.7 | G22: 95 | L22: 0 | M22: 0 | N22: 0 | O22: =F22+G22 -> 447.7
A23: 8 | B23: Sand for mortor | D23: Krishna River -- Munnangi | E23: =' Duggirala Villages'!C7 -> 18 | F23: =LOOKUP(ROUND(E23,0),'conveyance 23-24'!A3:A151,'conveyance 23-24'!C3:C151) -> 293.1 | G23: 700 | L23: 0 | M23: 0 | N23: 0 | O23: =G23+F23+J23+K23+L23+M23+N23 -> 993.1
A24: 9 | B24: Sand for Concrete | D24: Krishna River -- Munnangi | E24: =+E23 -> 18 | F24: =F23 -> 293.1 | G24: 605 | L24: 0 | M24: 0 | N24: 0 | O24: =F24+G24 -> 898.1
A25: 10 | B25: Sand for Filling | D25: Krishna River -- Munnangi | E25: 18 | F25: =F23 -> 293.1 | G25: 460 | L25: 0 | M25: 0 | N25: 0 | O25: 753.1
A26: 11 | B26: Cement | D26: Local | E26: - | F26: 0 | G26: 4220 | L26: 0 | M26: 0 | O26: =G26+F26+J26+K26+L26+M26+N26+H26 -> 4220
A27: =A26+1 -> 12 | B27: HYSD Steel bars | D27: Local | E27: - | G27: 42000 | L27: 0 | M27: 0 | O27: =G27+H27+J27+K27+L27+M27+N27 -> 42000
A28: 13 | B28: 2nd Class Bricks BMT-A-01(23x11x7Cm) | D28: Prathuru | E28: 8 | F28: =#REF!+#REF! ->  | G28: 5607 | H28: 232.5 | I28: 232.5 | L28: 0 | M28: 0 | O28: =F28+G28+H28+I28 -> 
A29: 19 | B29: 20mm HBG Chips SS-5 (e-tender) | G29: 1579 | H29: 1579.00 - 50.00 | O29: =G29-50 -> 1529
A30: 20 | B30: 12mm HBG Chips SS-5 (e-tender) | G30: 1579 | O30: =O29 -> 1529
A31: 21 | B31: Cement (e-tender) | G31: 4780 | O31: =G31 -> 4780
B32: M40 Grade 80 mm thick inter locking tiles (BMT-D.14) | D32: Tenali | E32: 10 | F32: =LOOKUP(ROUND(E32,0),'conveyance 23-24'!A3:A151,'conveyance 23-24'!F3:F151) -> 13.91 | G32: 550 | O32: =G32+F32 -> 563.91
A33: Certified that above rates and leads provided in this Estimate are correct to the best of my knowledge and belief as per SSR 2023 - 24
A34: Certified that the work spot is situated with in 12 kms radius from Tenali Muncipal Corporation Limits. Hence, 20% M.A. is allowed.
A38: Certified that the Approved Sand quary Indented from Munnangi is now proposed.
J42: Assistant Executive Engineer,
J43: MPP (PRI) ::Duggirala.

Sheet Data
A1: D A T A S - 2023 - 24
A2: ='Lead statement'!C3 -> Name of the Work :: | E2: ='Lead statement'!D3 -> Providing Interlocking pavers road from Lanke seshagiri rao (H) to kokkiligadda varma (H) in Duggirala (V&M).
E3: ='Lead statement'!J4 -> Estimate Cost :: Rs. | F3: ='Lead statement'!K4 -> 1.7 | G3: Lakhs
A4: Sl.No. | C4: Quantity | D4: Unit | E4: Description | F4: Rate Rs. | G4: Per | H4: Amount Rs.
A5: 1 | C5: 2 | D5: 3 | E5: 4 | F5: 5 | G5: 6 | H5: 7
A6: 1 | C6: 1 | E6: Providing plain cement concrete M10 mix using 40mm to 20 mm Graded HBG crushed Metal with 220 Kgs of cement per 1cum of concrete, including C/c of all materials, curing ,labour charges etc., complete as per drawings & tech. specifications Clause 802, 803, 1202 & 1203 as per clause 800 & 1200 (1) of MORD and guidelines for shoe walls
E7: (M10 Grade PCC - Nominal Mix) Unit - 1 Cum
E8: (a) Material
B9: 1 | C9: 0.22 | D9: M.T. | E9: Cement | F9: ='Lead statement'!O26 -> 4220 | G9: 1 MT | H9: =ROUND(F9*C9,2) -> 928.4
B10: 1 | C10: 0.45 | D10: Cum | E10: Coarse Sand for Concrete | F10: ='Lead statement'!O24 -> 898.1 | G10: 1 cum | H10: 404.15
B11: 1 | C11: 0.6 | D11: Cum | E11: 40mm aggregate | F11: ='Lead statement'!O15 -> 1503.7 | G11: 1 cum | H11: 902.22
C12: 0.3 | D12: Cum | E12: 20 mm aggregate | F12: =+'Lead statement'!O16 -> 2126.2 | G12: 1 Cum | H12: 637.86
B13: 1 | C13: 1.2 | D13: Kl | E13: Water | F13: 99 | G13: Kl | H13: 118.8
E14: (b)Machinary
B15: 1 | C15: 0.4 | D15: Hour | E15: Concrete Mixer 10/7 cft (0.40/0.28 cum) | F15: 692.7 | G15: 1 No | H15: =ROUND(F15*C15,2) -> 277.08
C16: 0.4 | D16: Hour | E16: Vibrating charges (60 mm - Petrol) | F16: 274.8 | G16: Hour | H16: 109.92
C17: 0.13 | D17: Hour | E17: Water Tanker 6 KL capacity | F17: 806 | G17: Hour | H17: 104.78
E18: (c) Labour
B19: 1 | C19: 0.1 | D19: Day | E19: Mason (1st class) | F19: 670 | G19: 1 No | H19: =ROUND(F19*C19,2) -> 67
B20: 1 | C20: 1.39 | D20: Day | E20: Mazdoor unskilled | F20: 560 | G20: 1 No | H20: 778.4
C21: 0.2 | E21: Add 20% MA ON Labour Charges | F21: =SUM(H19:H20) -> 845.4 | H21: =ROUND(C21*F21,2) -> 169.08
H22: =SUM(H9:H21) -> 4497.69
E23: sundries | H23: 0
H24: =SUM(H22:H23) -> 4497.69
E25: Shoe walls Below GL - Rate for cum = a + b + c | H25: =SUM(H22:H23) -> 4497.69
E26: Add 13.615% for Over head charges & Contractors profit | G26: 0 | H26: 0
E27: Rate per 1 Cum Below GL | H27: =SUM(H25:H26) -> 4497.69
A28: 2 | C28: 2 | E28: Providing plain cement concrete M10 mix using 40mm to 20 mm Graded HBG crushed Metal with 220 Kgs of cement per 1cum of concrete, including C/c of all materials, curing ,labour charges etc., complete as per drawings & tech. specifications Clause 802, 803, 1202 & 1203 as per clause 800 & 1200 (1) of MORD and guidelines for shoe walls
E29: (M10 Grade PCC - Nominal Mix) Unit - 1 Cum | H29: =H22 -> 4497.69
E30: Form work @ 4% | F30: 0.04 | G30: =H29 -> 4497.69 | H30: =G30*F30 -> 179.9076
E31: Shoe walls Above GL - Rate for cum | H31: =SUM(H29:H30) -> 4677.5976
A32: 3 | C32: 3 | D32: RBR-FNDN-2(i) | E32: Sand filling beneath CC pavement and for side berms including cost and conveyabce of all materials and all labour charges etc., complete
B33: 1 | C33: 1 | D33: Cum | E33: Sand filling | F33: ='Lead statement'!O25 -> 753.1 | G33: 1Cum | H33: =ROUND(C33*F33,2) -> 753.1
C34: 0.1 | D34: Kl | E34: water | F34: =F44 -> 99 | G34: 1 KL | H34: 9.9
E35: Labour
B36: 1 | C36: 0.31 | D36: day | E36: Mazdoor (Unskilled) | F36: =F46 -> 560 | G36: 1day | H36: =ROUND(C36*F36,2)/6 -> 28.93333333
C37: 0.2 | E37: Add 20% MA ON Labour Charges | F37: =SUM(H36) -> 28.93333333 | H37: =ROUND(C37*F37,2) -> 5.79
E38: Sundries | H38: 0.06
E39: Rate per 1 Cum | H39: =SUM(H33:H38) -> 797.7833333
E40: Add 13.615% for Over head charges & Contractors profit | G40: 0.13615 | H40: 0
E41: Rate per 1 Cum | H41: =SUM(H39:H40) -> 797.7833333
A42: 4 | C42: 4 | D42: RBR-FNDN-2(i) | E42: Sand filling beneath CC pavement and for side berms including cost and conveyabce of all materials and all labour charges etc., complete
B43: 1 | C43: 1 | D43: Cum | E43: sand | F43: ='Lead statement'!O25 -> 753.1 | G43: 1Cum | H43: =ROUND(C43*F43,2) -> 753.1
C44: 0.1 | D44: Kl | E44: water | F44: =F13 -> 99 | G44: 1 KL
E45: Labour
B46: 1 | C46: =0.31/6 -> 0.05166666667 | D46: day | E46: Mazdoor (Unskilled) | F46: 560 | G46: 1day | H46: =F46*C46 -> 28.93333333
C47: 0.2 | E47: Add 20% MA ON Labour Charges | F47: =SUM(H46) -> 28.93333333 | H47: =ROUND(C47*F47,2) -> 5.79
E48: Sundries
E49: Rate per 1 Cum | H49: =SUM(H43:H48) -> 787.8233333
E50: Sundries
E51: Rate per 1 Cum | H51: =SUM(H49:H50) -> 787.8233333
A52: 5 | C52: 5 | D52: RBR-CCPV-5 | E52: Construction of un-reinforced, dowel jointed at expansion and construction joint only, plain cement concrete pavement, thickness as per design, over a prepared sub base, with 43 grade cement or any other type as per Clause 1501.2.2 M20 (Grade), coarse and fine aggregates conforming to IS : 383, maximum in a concrete mixer of not less than 0.2 cum capacity and appropeiate weigh batcher using approved mix design, laid in approved fixed side formwork (steel channel, laying and fixing of 125 micron thick polythene film, wedges, steel plates including levelling the formwork as per drawing), spreading the concrete with sholvels, rakes, compacted using needle, scareed and plate vibrators and finished in continuous operation including provision of contraction and expansion, construction joints, applying debonding strips, primer, sealant, dowel bars, near approaches to bridge / culvert and construction joints, admixtures as approved, curing of concrete slabs for 14- days, curing compound (where specified) and water finishing to lines and grade as per drawing and including overhead charges & Contractor profit, but excluding GST & Seignorage Charges Technical Specification Clause 1501 MORD including overhead charges & Contractors profit but excluding GST .
E53: Unit = cum | H53: ='Det.Est.'!D24 -> 0
E54: Taking output = 75 cum (172.50 t) | F54: 324 | G54: kg/cum | H54: ='Det.Est.'!E24 -> 3.75
E55: (100 x 3.75 x 0.200) / | F55: (32x3.75x0.17) | H55: ='Det.Est.'!F24 -> 0.17
E56: (a) Labour
B57: 1 | C57: 5 | D57: day | E57: Mason (1st class) | F57: 585 | G57: 1 No | H57: =ROUND((B57*C57*F57),2) -> 2925
B58: 1 | C58: 5 | D58: day | E58: Mason (2nd class) | F58: 525 | G58: 1 No | H58: 2625
B59: 1 | C59: 150 | D59: day | E59: Mazdoor (Unskilled) | F59: 490 | G59: 1 No | H59: 73500
B60: 1 | C60: 6 | D60: day | E60: Mazdoor (Skilled)) | F60: 525 | G60: 1 No | H60: 3150
B61: 1 | C61: 2 | D61: day | E61: Surveyor | F61: ='Basic data-1'!E8 -> 675 | G61: 1 No
B62: 1 | C62: 6 | D62: day | E62: Mazdoor (semi-skilled) | F62: 490 | G62: 1 No | H62: =ROUND((B62*C62*F62),2) -> 2940
C63: 0.2 | E63: Add 20% MA ON Labour Charges | F63: =SUM(H57:H62) -> 85140 | H63: =ROUND(C63*F63,2) -> 17028
E65: (b) Machinery
B66: 1 | C66: 36 | D66: hr / cum | E66: Concrete mixer 0.28/0.40 cum capacity (6mixer) with weight batcger and suitable capacity calibrated water tank | F66: =F15 -> 692.7 | G66: 1 Hour | H66: =ROUND((B66*C66*F66),2) -> 24937.2
B67: 1 | C67: 9 | D67: hr / cum | E67: PlateVibrating Charges | F67: 62.7 | G67: 1 Hour | H67: 564.3
B68: 1 | C68: 9 | D68: hr / cum | E68: Needle Vibrator 60mm (Petrole) | F68: =F16 -> 274.8 | G68: 1 Hour | H68: 2473.2
B69: 1 | C69: 5 | D69: hr / cum | E69: Water tanker 6KL capacity | F69: =F17 -> 806 | G69: 1 Hour | H69: 4030
C70: 4 | E70: Concrete joint cutting machine for initial & final cuts BMC-X.02 | F70: 102 | G70: hour | H70: =ROUND(C70*F70,2) -> 408
B71: 1 | C71: 2 | D71: hr / cum | E71: Air Compressor ( 1 hour initial + 1 hour final ) | F71: 590.8 | G71: 1 Hour
E73: (c) Material
B74: 1 | C74: 44.55 | D74: Cum | E74: 20 mm aggregate | F74: ='Lead statement'!O16 -> 2126.2 | G74: 1 Cum | H74: =ROUND((B74*C74*F74),2) -> 94722.21
B75: 1 | C75: 22.95 | D75: Cum | E75: 12 mm aggregate | F75: ='Lead statement'!O17 -> 1809.95 | G75: 1 Cum | H75: 41538.35
B76: 1 | C76: 33.75 | D76: Cum | E76: Coarse Sand for Concrete | F76: ='Lead statement'!O24 -> 898.1 | G76: 1 Cum | H76: 30310.88
B77: 1 | C77: =75*(324/1000) -> 24.3 | D77: Tonne | E77: Cement @324 kgs/Cum | F77: ='Lead statement'!O26 -> 4220 | G77: 1 Tonne | H77: 102546
B78: 1 | C78: 412.5 | D78: Sqm | E78: Cost of Polythene sheet 125 m micron | F78: ='Basic data-1'!E127 -> 15.25 | G78: Sqm | H78: 6290.63
C79: 0 | D79: M.T. | E79: Mild steel dowel bar 25 mm dia of grade S 240. 500 mm long 20 Nos. at culvert/bridge slab and at construction joint including 5 per cent wastage. - 4x16x0.5x2.346 = 75.07 Kgs | G79: 0
C80: 5 | D80: Kg | E80: Bitumen primer @ 200 ml per joint for 50 joints | F80: 78 | G80: 1 kg | H80: =ROUND(C80*F80,2) -> 390
C81: 19 | D81: Lit. | E81: Bituminous sealant 800 ml per joint for 50 joints | F81: 53.95 | G81: 1 ltr | H81: 1025.05
C82: 0 | D82: RM | E82: Debonding strips 3.00 m (length) x 10 mm (width) x 5 mm (thick) cut-out of rubber filler board or similar material including 5 per cent wastage - 50 * 3 * 1.05 = 157.50 RM | F82: 8.55 | G82: 0
B83: 1 | C83: 9.72 | D83: Lits | E83: Super Plasticizer @ 0.5% by weight of Cement | F83: 200 | G83: 1 Lit | H83: =ROUND((B83*C83*F83),2) -> 1944
B84: 1 | C84: 3 | D84: Sqm | E84: Joint filler board of 25.40 mm thick | F84: 735 | G84: 1Sqm | H84: 2205
C85: 18 | D85: KL | E85: Water for curing | F85: 83 | G85: 1 Kl | H85: =C85*F85 -> 1494
E87: (d) Formwork @ 3% on (a+b+c) | F87: =SUM(H57:H85) -> 417046.82 | H87: =ROUND(F87*3/100,2) -> 12511.4
E88: Rate per 75 cum = a+b+c+d+e+f | H88: =F87+H87 -> 429558.22
E89: Rate per cum = (a+b+c+d+e+f)/75 | H89: =ROUND(H88/75,2) -> 5727.44
E90: Sundries
E91: Rate per cum = (a+b+c+d+e+f)/75 | H91: =SUM(H89:H90) -> 5727.44
E92: Add 13.615% for Over head charges & Contractors profit | G92: 0 | H92: =H91*G92 -> 0
E93: Rate per 1 Cum | H93: =SUM(H91:H92) -> 5727.44
A99: 6 | C99: 6 | D99: RBR-FNDN-1-1-1(A) | E99: Earthwork in excavation for structures as per drawing and technical specifications Clause 305.1 including setting out, construction of shoring and bracing, removal of stumps and other deleterious material and disposal upto a lead of 50 m, dressing of sides and bottom and backfilling in trenches with excavated suitable material as per Technical Specification 305 MORD / 304 MORTH
B100: 1 | C100: 1 | D100: Cum | E100: Taking output = 10 cum
E101: a) Labour
B102: 10 | C102: 10 Cum | E102: Mate
E103: Mazdoor (Unskilled) | F103: 3.64 | G103: 560 | H103: =ROUND(F103*G103,2) -> 2038.4
C104: 0.2 | E104: Add 20% MA ON Labour Charges | H104: =H103*C104 -> 407.68
E105: Cost for 10 cum = a+b+c | H105: =SUM(H103:H104) -> 2446.08
E106: Rate per 1 Cum | H106: =H105/10 -> 244.608
A107: 7 | E107: Laying of M15 nominal mix using 40mm, 20 mm HBG Metal and 10mm HBG Metal including Cost and Conveyance of all materials, Centering and Labour Charges and Curing for as Per the Section Covered in guidelines
E108: Culvert Walls | F108: Unit = cum
E109: (a) Material
C110: 0.275 | D110: t | E110: Cement | F110: ='Lead statement'!O26 -> 4220 | G110: 1 Tonne | H110: =ROUND((C110*F110)/LEFT(G110,2),2) -> 1160.5
C111: 0.48 | D111: cum | E111: Coarse sand | F111: ='Lead statement'!O24 -> 898.1 | G111: 1 Cum | H111: 431.09
C112: 0.48 | D112: cum | E112: 40 mm aggregate | F112: ='Lead statement'!O15 -> 1503.7 | G112: 1 Cum | H112: 721.78
C113: 0.24 | D113: cum | E113: 20 mm aggregate | F113: ='Lead statement'!O16 -> 2126.2 | G113: 1 Cum | H113: 510.29
C114: 0.08 | D114: cum | E114: 10 mm aggregate | F114: ='Lead statement'!O18 -> 1612.45 | G114: 1 Cum | H114: 129
C115: 1.2 | D115: kl | E115: Water(including curing) | F115: =F85 -> 83 | G115: 1 Kl | H115: 99.6
E116: (b) Labour
C117: - | D117: day | E117: Mate
C118: 0.1 | D118: day | E118: Mason (1st Class) | F118: 550 | G118: 1 No | H118: =ROUND((C118*F118)/LEFT(G118,2),2) -> 55
C119: - | D119: day | E119: Mason 2nd Class
C120: 1.39 | D120: day | E120: Mazdoor (Unskilled) | F120: 460 | G120: 1 No | H120: =ROUND((C120*F120)/LEFT(G120,2),2) -> 639.4
C121: =#REF! ->  | E121: =CONCATENATE("Add ",#REF!,"% MA on Labour charges") ->  | F121: =SUM(H118:H120) -> 694.4 | G121: 1 Cum | H121: =ROUND(C121*F121,2) -> 
E123: (c) Machinery
C124: 0.4 | D124: hour | E124: Concrete mixer 0.4/0.28 cum capacity | F124: =F66 -> 692.7 | G124: 1 Hour | H124: =ROUND((C124*F124)/LEFT(G124,2),2) -> 277.08
C125: 0.13 | D125: hour | E125: Water tanker 6 kl capacity | F125: =F69 -> 806 | G125: 1 Hour | H125: 104.78
C126: 0.4 | D126: hour | E126: Needle vibrator 60 mm ( petrol ) | F126: =F68 -> 274.8 | G126: 1 Hour | H126: 109.92
E127: (d) Formwork @ 10% on cost of material, labour and machinery (a+b+c) | F127: =#REF! ->  | G127: 0.1 | H127: =SUM(H110:H126)*G127 -> 
E128: Rate per cum = a+b+c | H128: =SUM(H110:H127) -> 
E129: Sundries | H129: =CEILING(H128,0.1)-H128 -> 
E130: Rate per cum = a+b+c | H130: =SUM(H128:H129) -> 
E131: Add 13.615% for Over head charges & Contractors profit | G131: 0.13615 | H131: =G131*H106 -> 33.3033792
E132: Rate per 1 Cum | H132: =H131+H106 -> 277.9113792
A133: 8 | C133: 7 | D133: RBR-FNDN-2(i) | E133: Filling with Hard Morrum/ Selected Earth from approved source including cost and conveyabce of all materials and all labour charges etc., complete for approaches and side berms.
B134: 1 | C134: 6 | D134: Cum | E134: Cost of Hard Morrum | F134: ='Lead statement'!O21 -> 453.7 | G134: 1Cum | H134: =ROUND(C134*F134,2) -> 2722.2
E135: Labour
B136: 1 | C136: 3.12 | D136: day | E136: Mazdoor (Unskilled) | F136: 490 | G136: 1day | H136: =ROUND(C136*F136,2) -> 1528.8
C137: 0.72 | D137: KL | E137: Water | F137: 83 | G137: 1 KL | H137: 59.76
E138: Add 20% MA on Labour charges | H138: =ROUND(H136*0.2,2) -> 305.76
E139: Cost for 6 cum | H139: =SUM(H134:H138) -> 4616.52
E140: Ret for 1 cum | H140: =ROUND(H139/6,2) -> 769.42
E141: Add Sundries | H141: 0
E142: Rate per 1.00 Cum | H142: =SUM(H140:H141) -> 769.42
E143: Add 13.615% for Over head charges & Contractors profit | G143: 0 | H143: =H142*G143 -> 0
E144: Rate per 1 Cum | H144: =H142+H143 -> 769.42
A146: 9 | C146: 8 | E146: Plain Cement concrete (1:5:10) using 40 mm HBG Metal from approved quarry including cost and conveyance of allmaterials like Cement, Sand, coarse aggregate, water etc., to site (Hand Mixing), complete for finished item of work for Foundations and flooring bed (APSS No.402)(CSSR)
E147: Unit = 1cum
E148: A. MATERIALS:
C149: 129.6 | D149: kg | E149: Cement | F149: 4700 | G149: =F9 -> 4220 | H149: =F149*C149/1000 -> 609.12
C150: 0.9 | D150: cum | E150: Coarse aggregate 40 mm | F150: ='Lead statement'!O15 -> 1503.7 | H150: =F150*C150 -> 1353.33
C151: 0.45 | D151: cum | E151: Fine aggregate (Sand) | F151: ='Lead statement'!O24 -> 898.1 | H151: =F151*C151 -> 404.145
C152: 1.2 | D152: kl | E152: Water (including for Curing) | F152: =F137 -> 83 | H152: 99.6
E153: B. MACHINERY
C154: 1 | D154: hour | E154: Concrete Mixer 10 / 7 cft (0.2 / 0.8 cum) capacity(P.130&S.No :16) | F154: =F15 -> 692.7 | H154: =F154*C154 -> 692.7
E155: C. LABOUR:
C156: 0.1 | D156: day | E156: Mason 1st class | F156: =F19 -> 670 | H156: =F156*C156 -> 67
C157: 1.39 | D157: day | E157: Mazdoor (unskilled) | F157: =F136 -> 490 | H157: =F157*C157 -> 681.1
C158: 0.2 | E158: Add.20% on labour for MAA. | F158: =H157+H156 -> 748.1 | H158: =F158*C158 -> 149.62
E159: Total of A+ B+C | H159: =SUM(H149:H158) -> 4056.615
E160: Add 13.615% for Over head charges & Contractors profit | G160: 0.13615 | H160: =H159*G160 -> 552.3081322
E161: Rate per 1 Cum | H161: =SUM(H159:H160) -> 4608.923132
A162: 10 | C162: 9 | E162: Plastering with CM 2 coats, 12 mm thick, base coat in CM (1:5), 8 mm thick and top coat in CM (1:3), 4mm thick with Dubara sponze finishing.Internal walls for ground Floor
E163: Unit = 10 sqm
E164: A. MATERIALS:
E165: Base Coat in CM(1:5), 8 mm thick
C166: 31.7 | D166: kg | E166: Cement | F166: =F149 -> 4700 | G166: =D166 -> kg | H166: =F166*C166/1000 -> 148.99
C167: 0.11 | D167: cum | E167: Fine aggregate (Sand) | F167: ='Lead statement'!O23 -> 993.1 | G167: =D167 -> cum | H167: =F167*C167 -> 109.241
E168: Top Coat in CM(1:3), 4 mm thick
C169: 19.2 | D169: kg | E169: Cement | F169: =F166 -> 4700 | G169: kg | H169: =C169*F169/1000 -> 90.24
C170: 0.04 | D170: cum | E170: Fine aggregate (Sand) | F170: ='Lead statement'!O23 -> 993.1 | G170: cum | H170: =F170*C170 -> 39.724
E172: B. LABOUR:
C173: 0.63 | D173: day | E173: Mason 1st class | F173: =F156 -> 670 | G173: day | H173: =F173*C173 -> 422.1
C174: 1.47 | D174: day | E174: Mason 2nd class | F174: =500 -> 500 | G174: day | H174: =F174*C174 -> 735
C175: 3.9 | D175: day | E175: Mazdoor (unskilled) | F175: =F157 -> 490 | G175: day | H175: 1911
C176: 0.2 | E176: Add.20% on labour for MAA. | F176: =H175+H174+H173 -> 3068.1 | H176: =F176*C176 -> 613.62
H177: =SUM(H166:H176) -> 4069.915
E178: Add 13.615% for Over head charges & Contractors profit | G178: 0.13615 | H178: =H177*G178 -> 554.1189272
E179: Rate per 10 Sqm | H179: =SUM(H177:H178) -> 4624.033927
A180: 8 | C180: 3.9 | D180: day | E180: Supply and collection of Selected Earth including stacking to Departmental gauge for pre measurements for Subgrade (CSSR)
C181: 1 | D181: Cum | E181: Selected Earth | F181: ='Lead statement'!O22 -> 447.7 | G181: 1 Cum | H181: =ROUND(C181*F181,2) -> 447.7
E182: Rate per cum = | H182: =H181 -> 447.7
A183: 9 | E183: Engaging Un Skilled Labour for spreading the collected (Selected Earth) material and sectioning for Subgrade (RSSR)
C184: 1 | D184: Cum | E184: Rate as per Rural SSR | F184: 23.53 | G184: 1 Cum | H184: =ROUND(C184*F184,2) -> 23.53
C185: 0.4 | E185: Add 20% MA On Labour Charges | F185: =H184 -> 23.53 | H185: =ROUND(SUM(H184)*C185,2) -> 9.41
E186: Rate per cum = | H186: =SUM(H184:H185) -> 32.94
A187: 11 | E187: PISD25-Compaction of collected Selected Earth using 8-10T Power Road Roller with required watering for Subgrade (CSSR)
E188: Unit = cum | F188: (Machinary part of MORD DATA)
E189: Taking output = 300 cum
E190: a) Machinery
C191: 6 | D191: hour | E191: Motor Grader 110 HP @ 50 cum per hour | F191: 3216 | G191: 1 Hour
C192: 12 | D192: hour | E192: Tractor with Grader @ 25 cum per hour | F192: 425 | G192: 1 Hour | H192: =ROUND(C192*F192,2) -> 5100
C193: 30 | D193: hour | E193: Three wheel 80-100 kN static roller @ 10 cum per hour | F193: 1122.1 | G193: 1 Hour | H193: 33663
C194: 12 | D194: hour | E194: Tractor with Rotavator 25 cum per hour | F194: 425 | G194: 1 Hour | H194: 5100
C195: 3 | D195: hour | E195: Water tanker 6 kl capacity | F195: 630 | G195: 1 Hour | H195: 1890
E196: b) Material
C197: 18 | D197: kl | E197: Water | F197: 77 | G197: 1 KL | H197: =ROUND(C197*F197,2) -> 1386
E198: Cost for 300cum (3 Wheel Roller) | H198: =SUM(H192:H197) -> 47139
E199: Rate per cum = | H199: =ROUND(H198/300,2) -> 157.13
A203: 9 | E203: Supplying, fitting and placing HYSD bar reinforcement in foundation complete as per drawings and technical specifications for Bars below 36 mm dia including over laps and wastage, where they are not welded.
E204: Unit = tonne
E205: (a) Material
C206: 1.05 | D206: Tonne | E206: HYSD bars including 5 per cent for overlaps and wastage | F206: 38500 | H206: =ROUND(F206*C206,2) -> 40425
C207: 6 | D207: Kg | E207: Binding wire | F207: 56 | H207: 336
E208: (b) Labour for cutting, bending, shifting to site, tying and placing in position
C209: 10 | D209: Day | E209: Bar bender | F209: 665 | H209: =ROUND(F209*C209,2) -> 6650
C210: 10 | D210: Day | E210: Mazdoor (Unskilled) | F210: 460 | H210: 4600
C211: =#REF! ->  | E211: =CONCATENATE("Add ",#REF!,"% MA on Labour charges") ->  | F211: =SUM(H208:H210) -> 11250 | G211: 1 Cum | H211: =ROUND(C211*F211,2) -> 
E212: Rate per 1 M.T. | H212: =SUM(H206:H211) -> 
E213: =#REF! ->  | H213: =ROUND(H212*#REF!,2) -> 
E214: Sundries | H214: =CEILING(H213,0.1)-H213 -> 
... 155 more rows

Sheet Data (2) (hidden)
A1: S U P P L E M E N T A L D A T A S - 2017 - 18
A2: ='Lead statement'!C3 -> Name of the Work :: | E2: ='Lead statement'!D3 -> Providing Interlocking pavers road from Lanke seshagiri rao (H) to kokkiligadda varma (H) in Duggirala (V&M). | J2: ='Lead statement'!E2 -> 0.2 | K2: =J2*100 -> 20
E3: ='Lead statement'!J4 -> Estimate Cost :: Rs. | F3: ='Lead statement'!K4 -> 1.7 | G3: Lakhs
A4: Sl.No. | C4: Quantity | D4: Unit | E4: Description | F4: Rate Rs. | G4: Per | H4: Amount Rs.
A5: 1 | C5: 2 | D5: 3 | E5: 4 | F5: 5 | G5: 6 | H5: 7
E6: JUNGLE CLEARANCE
A7: 1 | E7: RW01-Engaging USL for light bush clearance(Net Area)- (RSSR)
C8: Sqm | D8: 1 | E8: Rate as per Rural SSR | F8: 2.5 | G8: 1 Sqm | H8: =ROUND((D8*F8)/LEFT(G8,2),2) -> 2.5
H9: =SUM(H8) -> 2.5
A11: =A7+1 -> 2 | E11: RW02-Engaging USL for medium bush clearance(Net Area))- (RSSR)
C12: Sqm | D12: 1 | E12: Rate as per Rural SSR | F12: 3.15 | G12: 1 Sqm | H12: =ROUND((D12*F12)/LEFT(G12,2),2) -> 3.15
H13: =SUM(H12) -> 3.15
A15: =A11+1 -> 3 | E15: RW03-Engaging Unskilled Labour for Juliflora clearance(Net Area) - (RSSR)
C16: Sqm | D16: 1 | E16: Rate as per Rural SSR | F16: 6.25 | G16: 1 Sqm | H16: =ROUND((D16*F16)/LEFT(G16,2),2) -> 6.25
H17: =SUM(H16) -> 6.25
A19: =A15+1 -> 4 | E19: RW04-Engaging USL for Removal of small stumps (30 cm to 100 cm girth) - (RSSR)
C20: No | D20: 1 | E20: Rate as per Rural SSR | F20: 50 | G20: 1 No | H20: =ROUND((D20*F20)/LEFT(G20,2),2) -> 50
H21: =SUM(H20) -> 50
A22: =A19+1 -> 5 | E22: RW05-Engaging Unskilled Labour for Removal of medium stumps (101 cm to 200 cm girth)- (RSSR)
C23: No | D23: 1 | E23: Rate as per Rural SSR | F23: 62.5 | G23: 1 No | H23: =ROUND((D23*F23)/LEFT(G23,2),2) -> 62.5
H24: =SUM(H23) -> 62.5
A26: =A22+1 -> 6 | E26: RW06-Engaging Unskilled Labour for Removal of large stumps (201 cm to 300 cm girth ) - (RSSR)
C27: No | D27: 1 | E27: Rate as per Rural SSR | F27: 81.25 | G27: 1 No | H27: =ROUND((D27*F27)/LEFT(G27,2),2) -> 81.25
H28: =SUM(H27) -> 81.25
A30: =A26+1 -> 7 | E30: RW07-Engaging Unskilled Labour for earth work excavation in ordinary soils AT SITE with initial lead & initial lift and breaking clods and sectioning for formation of embankment - (RSSR)
C31: Cum | D31: 1 | E31: Rate as per Rural SSR | F31: 58.75 | G31: 1 cum | H31: =ROUND((D31*F31)/LEFT(G31,2),2) -> 58.75
C32: Cum | D32: 1 | E32: Labour charges for bracking clods and sectioning as per Rural SSR | F32: 15 | G32: 1 cum | H32: 15
G33: TOTAL | H33: =SUM(H31:H32) -> 73.75
A35: =A30+1 -> 8 | E35: RW08-Engaging Unskilled Labour for earth work excavation in hard soils AT SITE with initial lead & initial lift and breaking clods and sectioning for formation of embankment- (RSSR)
C36: Cum | D36: 1 | E36: Rate as per Rural SSR | F36: 85 | G36: 1 cum | H36: =ROUND((D36*F36)/LEFT(G36,2),2) -> 85
C37: Cum | D37: 1 | E37: Labour charges for bracking clods and sectioning as per Rural SSR | F37: 17.5 | G37: 1 cum | H37: 17.5
G38: TOTAL | H38: =SUM(H36:H37) -> 102.5
A40: =A35+1 -> 9 | E40: RW09-Engaging Unskilled Labour for earth work excavation in soils AT SITE with mixture of gravel and SDR(stoney earth) with initial lead & initial lift and breaking clods and sectioning for formation of embankment- (RSSR)
C41: Cum | D41: 1 | E41: Rate as per Rural SSR | F41: 90 | G41: 1 cum | H41: =ROUND((D41*F41)/LEFT(G41,2),2) -> 90
C42: Cum | D42: 1 | E42: Labour charges for bracking clods and sectioning as per Rural SSR | F42: 20 | G42: 1 cum | H42: 20
G43: TOTAL | H43: =SUM(H41:H42) -> 110
A44: 1 | E44: Earth work excavation and depositing on bank with initial lead and lift in all soils for key walls etc., complete. (RSSR rate)
C45: 1 | D45: Cum | E45: In BC soils, Red earthy soils | F45: 114.23 | G45: Cum | H45: =ROUND(C45*F45,2) -> 114.23
C46: =$J$2 -> 0.2 | E46: =CONCATENATE("Add ",$K$2,"% MA on Labour charges") -> Add 20% MA on Labour charges | F46: =H45 -> 114.23 | H46: 22.85
E47: Seignorage
H48: =SUM(H45:H47) -> 137.08 | J48: 152.05
A49: 3 | E49: USL for Refilling the trench with excated soils
C50: 0.5 | E50: 50% rate of excavation | F50: =+H48 -> 137.08 | G50: Cum
A52: 2 | E52: Providing plain cement concrete M10 mix using 40mm to 20 mm Graded HBG crushed Metal with 220 Kgs of cement per 1cum of concrete, including C/c of all materials, curing ,labour charges etc., complete as per drawings & tech. specifications Clause 802, 803, 1202 & 1203 as per clause 800 & 1200 (1) of MORD and guidelines for shoe walls
E53: (M10 Grade PCC - Nominal Mix) Unit - 1 Cum
E54: (a) Material | K54: =0.92*1441/6 -> 220.9533333
B55: 1 | C55: 0.22 | D55: M.T. | E55: Cement | F55: ='Lead statement'!O26 -> 4220 | G55: 1 MT | H55: =ROUND(F55*C55,2) -> 928.4 | I55: =C55*1000 -> 220 | L55: =H55+H56+H57+H58 -> 2876.37
B56: 1 | C56: 0.45 | D56: Cum | E56: Coarse Sand for Concrete | F56: ='Lead statement'!O24 -> 898.1 | G56: 1 cum | H56: 404.15 | L56: =H71-L55 -> 1266.45
B57: 1 | C57: 0.594 | D57: Cum | E57: 40mm aggregate | F57: =+'Lead statement'!O15 -> 1503.7 | G57: 1 cum | H57: 893.2 | L57: =H57+H58 -> 1543.82 | M57: =L57/0.9 -> 1715.355556
C58: 0.306 | D58: Cum | E58: 20 mm aggregate | F58: =+'Lead statement'!O16 -> 2126.2 | G58: 1 Cum | H58: 650.62
B59: 1 | C59: 1.2 | D59: Kl | E59: Water | F59: ='Basic data-1'!E124 -> 77 | G59: Kl | H59: 92.4 | L59: =H59+H61+H62+H63+H65+H66+H67+H69 -> 1266.45
E60: (b)Machinary
B61: 1 | C61: 0.4 | D61: Hour | E61: Concrete Mixer 10/7 cft (0.40/0.28 cum) | F61: ='Basic data-2'!E45 -> 471.9 | G61: 1 No | H61: =ROUND(F61*C61,2) -> 188.76
C62: 0.4 | D62: Hour | E62: Vibrating charges (60 mm - Petrol) | F62: ='Basic data-2'!E50 -> 191.2 | G62: Hour | H62: 76.48
C63: 0.13 | D63: Hour | E63: Water Tanker 6 KL capacity | F63: ='Basic data-2'!E34 -> 588.5 | G63: Hour | H63: 76.51
E64: (c) Labour
B65: 1 | C65: 0.1 | D65: Day | E65: Mason (1st class) | F65: ='Basic data-1'!E5 -> 465 | G65: 1 No | H65: =ROUND(F65*C65,2) -> 46.5
B66: 1 | C66: 1.39 | D66: Day | E66: Mazdoor unskilled | F66: ='Basic data-1'!E7 -> 370 | G66: 1 No | H66: 514.3 | K66: =H59+H61+H62+H63+H65+H66+H67 -> 1107.11 | N66: =4.93*K66 -> 5458.0523
C67: =$J$2 -> 0.2 | E67: =CONCATENATE("Add ",$K$2,"% MA on Labour charges") -> Add 20% MA on Labour charges | F67: =SUM(H65:H66) -> 560.8 | H67: =ROUND(C67*F67,2) -> 112.16
E68: shoe walls Below G.L. - Rate for cum = a + b + c | H68: =SUM(H55:H67) -> 3983.48 | I68: =H68-H55-H56-H57-H58 -> 1107.11 | L68: =H71-H55-H56-H57-H58 -> 1266.45
C69: 1 | D69: Cum | E69: Form work 4% | F69: =+H68 -> 3983.48 | G69: Cum | H69: =ROUND(F69*0.04,2) -> 159.34
E70: Sundries | I70: =H71-H55-H56-H57-H58 -> 1266.45
E71: shoe walls Above G.L. - Rate for cum = a + b + c | H71: =SUM(H68:H70) -> 4142.82 | L71: =H59+H61+H63+H65+H66+H67+H69+H62 -> 1266.45
A72: 2 | C72: RBR-EECD-7 | E72: Removal of Unsuitable/Unserviceble soil including excavation, loading and disposal upto 1000 mts lead but excluding compaction ground supporting embankment subgrade replacement by suitable soil, which shall be paid seperately as per clause 303.5.2 as per Technical Specification clause 302.3.11 MORD/301 MORTH - Unit : 1.00 Cum
E73: Takng Out put : 360 Cum
E74: (a) Labour :
B75: 1 | C75: 2.08 | D75: Days | E75: Mazdoor ( Unskilled) | F75: ='Basic data-1'!E6 -> 420 | G75: Day | H75: =ROUND(C75*F75,2) -> 873.6
E76: =E46 -> Add 20% MA on Labour charges | H76: =+H75*J2 -> 174.72
E77: (b) Machinary :
B78: 1 | C78: 3.6 | D78: Hours | E78: Excavator 0.90 Cum bucket Capacity @ 100 Cum/hour | F78: ='Basic data-2'!E28 -> 2506.9 | H78: =ROUND(C78*F78,2) -> 9024.84
B79: 1 | C79: 15 | D79: Hours | E79: Tipper 5.5 Cum Capacity, 4 Trips/hour | F79: ='Basic data-2'!E30 -> 853.9 | H79: 12808.5
E80: Cost for 360 Cum | H80: =SUM(H75:H79) -> 22881.66
E81: Rate for Cum | H81: =ROUND(H80/360,2) -> 63.56
A83: 1 | E83: Construction of Quarry rubbish Sub Grade including spreding in uniform layers with tractor mounted grader on prepared surface and compacting with Smooth whel roller to achive the desired density , Complete as per technical speficaction clause 401 of MORD
E84: Taking Output : 300 Cum
E85: (a) Labour :
B86: 1 | C86: 2.4 | D86: Day | E86: Mazdoor (Skilled) | F86: ='Basic data-1'!E6 -> 420 | G86: 1Cum | H86: =ROUND(C86*F86,2) -> 1008
B87: 1 | C87: 8 | D87: Day | E87: Mazdoor (unSkilled) | F87: ='Basic data-1'!E6 -> 420 | G87: 1Cum | H87: 3360
E88: (b) Machniery :
B89: 1 | C89: 12 | D89: Hour | E89: Tarctor mount grader @ 25 Cum per hour | F89: ='Basic data-2'!E36 -> 380.6 | G89: Hour | H89: =ROUND(C89*F89,2) -> 4567.2
B90: 1 | C90: 30 | D90: Hour | E90: Three wheel 80-100KN Static Roller @10 Cum per hour | F90: ='Basic data-2'!E32 -> 1137.9 | G90: Hour | H90: 34137
B91: 1 | C91: 5 | D91: Hour | E91: Water tanker 6 KL capacity | F91: ='Basic data-2'!E34 -> 588.5 | G91: Hour | H91: 2942.5
E92: (c) Material :
C93: 360 | D93: Cum | E93: Quarry rubbish | F93: ='Lead statement'!O22 -> 447.7 | G93: Cum | H93: =ROUND(C93*F93,2) -> 161172
C94: 18 | D94: Kl | E94: Water | F94: ='Basic data-1'!E124 -> 77 | G94: Kl
E95: Basic rate of grnular sub bsase for 300Cum | H95: =SUM(H86:H94) -> 207186.7
E96: Rate for Cum | H96: =ROUND(H95/300,2) -> 690.62
A97: 5 | E97: Construction of Granular Sub Base using well graded material, spreding in uniform layers with tractor mounted grader on prepared surface , mixing by mix in place method with rotovator at OMC and compacting with Smooth whel roller to achive the desired density , Complete as per technical speficaction clause 401 of MORD
E98: Taking Output : 300 Cum
E99: (a) Labour :
B100: 1 | C100: 2.4 | D100: Day | E100: Mazdoor (Skilled) | F100: ='Basic data-1'!E6 -> 420 | G100: 1Cum | H100: =ROUND(C100*F100,2) -> 1008
B101: 1 | C101: 8 | D101: Day | E101: Mazdoor (unSkilled) | F101: ='Basic data-1'!E6 -> 420 | G101: 1Cum | H101: 3360
E102: =E76 -> Add 20% MA on Labour charges | H102: =SUM(H100:H101)*J2 -> 873.6
E103: (b) Machniery :
B104: 1 | C104: 12 | D104: Hour | E104: Tractor mount grader @ 25 Cum per hour | F104: ='Basic data-2'!E36 -> 380.6 | G104: Hour | H104: =ROUND(C104*F104,2) -> 4567.2
B105: 1 | C105: 30 | D105: Hour | E105: Three wheel 80-100KN Static Roller @10 Cum per hour | F105: ='Basic data-2'!E32 -> 1137.9 | G105: Hour | H105: 34137 | L105: =360/300 -> 1.2
B106: 1 | C106: 3 | D106: Hour | E106: Water tanker 6 KL capacity | F106: ='Basic data-2'!E34 -> 588.5 | G106: Hour | H106: 1765.5
B107: 1 | C107: 12 | D107: Hour | E107: Tractor with rotovator @ 25 cum per hour | F107: ='Basic data-2'!E36 -> 380.6 | G107: Hour | H107: 4567.2
E108: (c) Material :
B109: 126 | C109: 126 | D109: Cum | E109: 9.5mm - 4.75mm HBG chips ( 35 %) | F109: ='Lead statement'!O11 ->  | G109: Cum | H109: =ROUND(C109*F109,2) -> 
B110: 45 | C110: 45 | D110: Cum | E110: 4.75mm - 2.36mm HBG chips ( 12.5%) | F110: ='Lead statement'!O12 ->  | G110: Cum
B111: 189 | C111: 189 | D111: Cum | E111: 2.36mm & below HBG chips (52.50%) - Stone dust | F111: ='Lead statement'!O19 -> 953.7 | G111: Cum | H111: 180249.3 | L111: =H109+H110+H111 -> 
C112: 18 | D112: Kl | E112: Water | F112: ='Basic data-1'!E124 -> 77 | G112: Kl | H112: =C112*F112 -> 1386 | I112: =ROUND(C112*F112,2) -> 1386 | L112: =L111/300 ->  | M112: =L112/1.2 ->  | N112: =M112*1.2 -> 
E113: Basic rate of grnular sub bsase for 300Cum | H113: =SUM(H100:H112) ->  | L113: =H114-L112 ->  | N113: 168.1
E114: Rate for Cum | H114: =ROUND(H113/300,2) ->  | L114: =SUM(L112:L113) -> 
A116: 3 | C116: RBR-FNDN-2(i) | E116: Stone dust filling beneath CC pavement and for side berms including cost and conveyabce of all materials and all labour charges etc., complete
B117: 1 | C117: 1 | D117: Cum | E117: Stone dust | F117: =+'Lead statement'!O19 -> 953.7 | G117: 1Cum | H117: =ROUND(C117*F117,2) -> 953.7
E118: Labour
B119: 1 | C119: 0.31 | D119: day | E119: Mazdoor (Unskilled) | F119: ='Basic data-1'!E7 -> 370 | G119: 1day | H119: =ROUND(C119*F119,2) -> 114.7
C120: =$J$2 -> 0.2 | E120: =CONCATENATE("Add ",$K$2,"% MA on Labour charges") -> Add 20% MA on Labour charges | F120: =SUM(H119) -> 114.7 | H120: 22.94
E121: Sundries | F121: Stone dust | G121: Labour
E122: Rate per 1 Cum | F122: =H117 -> 953.7 | G122: =H122-H117 -> 137.64 | H122: =SUM(H117:H121) -> 1091.34
I135: =H242-H232-H233-H234 -> 1196.04
A137: 4 | C137: RBR-CCPV-5 | E137: Construction of un reinforced, VCC(1:2:4) equivalent to M20 grade nominal mix, plain cement concrete pavement , thickness as per design over a prepared sub base, with 43 / 53 grade cement, and using coarse and fine aggregates conforming to IS :383, approved admixtures and mixed in a concrete mixer of not less than 0.20 cum capacity and appropriate weigh batcher , laid in approved fixed side from work ( steel channel, wedges, steel plates) including levelling the from work as per drawing, laying and fixing of 125 mircon thick polythene film, spreadiang the concrete with shovels, rakes etc.. and compacting the concrete mix properly and thoroughly with pin and plate vibrators and finished in continuous operation including provision of contraction and expansion and construction joints, and curing of concrete slabs for 14days, finished to the lines and grade as per drawing and Technical Specification clause 1501.22, for Cement Concrete Pavement | K137: Construction of un reinforced, VCC(1:2:4) equivalent to M20 grade nominal mix, plain cement concrete pavement , thickness as per design over a prepared sub base, with 43 / 53 grade cement, and using coarse and fine aggregates conforming to IS :383, approved admixtures and mixed in a concrete mixer of not less than 0.20 cum capacity and appropriate weigh batcher , laid in approved fixed side from work ( steel channel, wedges, steel plates) including levelling the from work as per drawing, laying and fixing of 125 mircon thick polythene film, spreadiang the concrete with shovels, rakes etc.. and compacting the concrete mix properly and thoroughly with pin and plate vibrators and finished in continuous operation including provision of contraction and expansion and construction joints, and curing of concrete slabs for 14days, finished to the lines and grade as per drawing and Technical Specification clause 1501.22, for Cement Concrete Pavement | L137: using nominal mix of VCC(1:2:4) equivalent to M20 mix
E138: Unit = cum
E139: (a) Labour
B140: 1 | C140: 5 | D140: day | E140: Mason (1st class) | F140: ='Basic data-1'!E5 -> 465 | G140: 1 No | H140: =ROUND((B140*C140*F140),2) -> 2325 | M140: Labour | N140: =9.28*0.17 -> 1.5776 | R140: =1200/1.57765 -> 760.6249802 | S140: 760
B141: 1 | C141: 5 | D141: day | E141: Mason (2nd class) | F141: ='Basic data-1'!E6 -> 420 | G141: 1 No | H141: 2100 | M141: CEMENT | S141: =7.6*240 -> 1824
B142: 1 | C142: 150 | D142: day | E142: Mazdoor (Unskilled) | F142: ='Basic data-1'!E7 -> 370 | G142: 1 No | H142: 55500 | M142: 20 mm / dust | N142: 7000 | O142: =N142/2.25 -> 3111.111111 | P142: =O142/2.83 -> 1099.332548 | Q142: =P142*0.66 -> 725.5594817 | R142: =(Q142+Q143)*0.9 -> 941.3427562 | S142: 950
B143: 1 | C143: 6 | D143: day | E143: Mazdoor (Unskilled) | F143: =F142 -> 370 | G143: 1 No | H143: 2220 | M143: 12mm / dust | N143: 6000 | O143: 2666.666667 | P143: 942.2850412 | Q143: =P143*0.34 -> 320.376914
B144: 1 | C144: 2 | D144: day | E144: Surveyor | F144: ='Basic data-1'!E8 -> 675 | G144: 1 No
B145: 1 | C145: 6 | D145: day | E145: Mazdoor (semi-skilled) | F145: =F143 -> 370 | G145: 1 No | H145: =ROUND((B145*C145*F145),2) -> 2220 | M145: SAND | N145: 1700 | O145: =N145/1 -> 1700 | P145: =O145/2.83 -> 600.7067138 | R145: =P145*0.6 -> 360.4240283 | S145: 360
C146: =$J$2 -> 0.2 | E146: =CONCATENATE("Add ",$K$2,"% MA on Labour charges") -> Add 20% MA on Labour charges | F146: =SUM(H140:H145) -> 64365 | H146: =ROUND(C146*F146,2) -> 12873
I147: =SUM(H140:H146) -> 77238 | N147: =7 -> 7 | S147: =SUM(S140:S146) -> 3894
E148: (b) Machinery | N148: =7.6*1*240 -> 1824 | S148: 106
B149: 1 | C149: 36 | D149: hr / cum | E149: Concrete mixer 0.28/0.40 cum capacity (6mixer) with weight batcger and suitable capacity calibrated water tank | F149: ='Basic data-2'!E45 -> 471.9 | G149: 1 Hour | H149: =ROUND((B149*C149*F149),2) -> 16988.4 | N149: =1200/1.58 -> 759.4936709 | S149: =SUM(S147:S148) -> 4000
B150: 1 | C150: 9 | D150: hr / cum | E150: PlateVibrating Charges | F150: ='Basic data-2'!E48 -> 52.1 | G150: 1 Hour | H150: 468.9 | S150: =S149*0.1 -> 400
B151: 1 | C151: 9 | D151: hr / cum | E151: Needle Vibrator 60mm (Petrole) | F151: ='Basic data-2'!E50 -> 191.2 | G151: 1 Hour | H151: 1720.8 | S151: =SUM(S149:S150) -> 4400 | T151: ='Det.Est.'!H25 -> 5727.44 | U151: =T151-S151 -> 1327.44 | V151: =U151*100/T151 -> 23.1768469
B152: 1 | C152: 5 | D152: hr / cum | E152: Water tanker 6KL capacity | F152: ='Basic data-2'!E34 -> 588.5 | G152: 1 Hour | H152: 2942.5 | L152: =44.55/75 -> 0.594 | U152: =1/0.9 -> 1.111111111
B153: 1 | C153: 2 | D153: hr / cum | E153: Air Compressor ( 1 hour initial + 1 hour final ) | F153: ='Basic data-2'!E37 -> 447.9 | G153: 1 Hour | I153: =SUM(H149:H153) -> 22120.6 | L153: =C157/75 -> 0.306
E155: (c) Material | P155: 0.9 | Q155: 0.594
B156: 1 | C156: 44.55 | D156: Cum | E156: 20 mm aggregate | F156: ='Lead statement'!O16 -> 2126.2 | G156: 1 Cum | H156: =ROUND((B156*C156*F156),2) -> 94722.21 | N156: =F156*0.594 -> 1262.9628 | Q156: =0.9*0.66 -> 0.594 | R156: =F156*Q156 -> 1262.9628 | S156: =R156*75 -> 94722.21
B157: 1 | C157: 22.95 | D157: Cum | E157: 12 mm aggregate | F157: ='Lead statement'!O17 -> 1809.95 | G157: 1 Cum | H157: 41538.35 | J157: =H156+H157 -> 136260.56 | K157: =C156+C157 -> 67.5 | L157: =J157/K157 -> 2018.674963 | M157: =J157/K157 -> 2018.674963 | N157: =F157*0.306 -> 553.8447 | O157: =M157*2.83 -> 5712.850145 | Q157: =0.9*0.34 -> 0.306 | R157: 553.8447 | S157: 41538.3525
B158: 1 | C158: 33.75 | D158: Cum | E158: Coarse Sand for Concrete | F158: ='Lead statement'!O24 -> 898.1 | G158: 1 Cum | H158: 30310.88 | N158: =SUM(N156:N157) -> 1816.8075 | R158: =SUM(R156:R157) -> 1816.8075 | S158: =R158/0.9 -> 2018.675
B159: 1 | C159: =75*(I159/1000) -> 28.5 | D159: Tonne | E159: =CONCATENATE("Cement @ ",I159," Kg/Cum") -> Cement @ 380 Kg/Cum | F159: ='Lead statement'!O26 -> 4220 | G159: 1 Tonne | H159: 120270 | I159: 380 | J159: =I159/50 -> 7.6 | K159: =J159*300 -> 2280 | N159: =U152*N158 -> 2018.675
B160: 1 | C160: 485.29 | D160: Sqm | E160: Cost of Polythene sheet 125 m micron | F160: ='Basic data-1'!E127 -> 15.25 | G160: Sqm | H160: 7400.67
C161: 0.07507 | D161: M.T. | E161: Mild steel dowel bar 25 mm dia of grade S 240. 500 mm long 20 Nos. at culvert/bridge slab and at construction joint including 5 per cent wastage. - 4x16x0.5x2.346 = 75.07 Kgs | F161: ='Lead statement'!O27 -> 42000 | G161: =CONCATENATE(J161," ",D161) -> 1 M.T. | J161: 1 | K161: 50
C162: =K161*200/1000 -> 10 | D162: Kg | E162: Bitumen primer @ 200 ml per joint for 50 joints | F162: ='Basic data-1'!E64 -> 74 | G162: 1 Kg | H162: =ROUND(C162*F162,2) -> 740 | J162: 1
C163: =K161*800/1000 -> 40 | D163: Lit. | E163: Bituminous sealant 800 ml per joint for 50 joints | F163: ='Basic data-1'!E128 -> 148 | G163: 1 Lit. | H163: 5920 | J163: 1
C164: =K161*K164*1.05 -> 157.5 | D164: RM | E164: Debonding strips 3.00 m (length) x 10 mm (width) x 5 mm (thick) cut-out of rubber filler board or similar material including 5 per cent wastage - 50 * 3 * 1.05 = 157.50 RM | F164: 11 | G164: 1 RM | J164: 1 | K164: 3 | L164: =K161*K164*1.05 -> 157.5
B165: 1 | C165: 122 | D165: Lits | E165: Super Plasticizer @ 0.5% by weight of Cement | F165: ='Basic data-1'!E110 -> 95 | G165: 1 Lit | H165: =ROUND((B165*C165*F165),2) -> 11590 | L165: =H156+H157+H158+H159 -> 286841.44
B166: 1 | C166: 2.55 | D166: Sqm | E166: Joint filler board of 25.40 mm thick | F166: ='Basic data-1'!E129 -> 902 | G166: 1Sqm | H166: 2300.1 | L166: =L165/75 -> 3824.552533 | N166: =L166*'Det. Est.'!G85 -> 370599.1405
C167: 18 | D167: KL | E167: Water for curing | F167: ='Basic data-1'!E124 -> 77 | G167: 1 Kl | H167: =C167*F167 -> 1386
I168: =SUM(H156:H167)+H172 -> 316178.21 | J168: =I147+I153+I168 -> 415536.81 | L168: =H173-L166 -> 1882.157467 | N168: ='Mat statement'!E25+'Mat statement'!G25+'Mat statement'!I25 -> 
E169: (d) Formwork @ 3% on (a+b+c) | F169: =SUM(H140:H167) -> 415536.81 | H169: =ROUND(F169*3/100,2) -> 12466.1
E170: Rate per 75 cum = a+b+c+d+e+f | H170: =F169+H169 -> 428002.91 | L170: =H170-H156-H157-H158-H159 -> 141161.47
E171: Rate per cum = (a+b+c+d+e+f)/75 | H171: =ROUND(H170/75,2) -> 5706.71
E172: Sundries
E173: Rate per cum = (a+b+c+d+e+f)/75 | H173: =SUM(H171:H172) -> 5706.71 | J173: =H173/75 -> 76.08946667 | L173: =(L170/75)+H172 -> 1882.152933
A176: 3 | C176: RBR-FNDN-1-1-1(A) | E176: Earth work exevation and depositing the soil on banks with an initial lead and lift in red earth and ordinary soils for foundation
E177: Unit : 10 Cum
B178: 1 | C178: 1 | D178: Cum | E178: Mazdoor | F178: 114.23 | G178: 1 Cum | H178: 114.23
C179: =$J$2 -> 0.2 | E179: =CONCATENATE("Add ",$K$2,"% MA on Labour charges") -> Add 20% MA on Labour charges | F179: =SUM(H178) -> 114.23 | H179: =ROUND(C179*F179,2) -> 22.85
B180: 10 | C180: 10 Cum | E180: Add Seignorage Charges | F180: 30 | G180: 1 Cum
E182: Cost for 1 cum = a+b+c | H182: =SUM(H178:H181) -> 137.08
E183: Rate per 1 Cum | H183: =H182 -> 137.08
H184: Cum
A185: 5 | C185: RBR-FNDN-2(i) | E185: Filling the shoulders with Gravel including cost and conveyance of all materials and all labour charges ete as per Technical Specification Clause 305.3.9 MORD & 304 MORTH - for Shoulders
B186: 1 | C186: 1 | D186: Cum | E186: Gavel | F186: ='Lead statement'!O20 -> 482.7 | G186: 1Cum | H186: =ROUND(C186*F186,2) -> 482.7
E187: Labour | I187: =H188+H189 -> 162.75
B188: 1 | C188: 0.31 | D188: day | E188: Mazdoor (Unskilled) | F188: ='Basic data-1'!E6 -> 420 | G188: 1day | H188: =ROUND(C188*F188,2) -> 130.2
E189: Add 25% MA on Labour charges | H189: =+H188*0.25 -> 32.55
H190: =SUM(H186:H189) -> 645.45
E191: Rate per 1.00 Cum | H191: =SUM(H190) -> 645.45
A192: 7 | C192: RBR-PCVT-3 | E192: Providng and laying reinforced cement concrete pipe NP3for culverts on first class bedding of granular material including fixing collar with cement motarl 1:2 but excluding excation portection works back filling concrete and masonry work in head wall and parapets tech specification cluse 1106 MORD
E193: Unit=1Rm
D194: ='[394]Lead statement '!B23 -> 300 | E194: mmdia
E195: a) labour
B196: 1 | C196: 0.09 | D196: day | E196: Mason (1st Class) | F196: ='Basic data-1'!#REF! ->  | G196: 1day | H196: =ROUND(C196*F196,2) -> 
B197: 1 | C197: 0.73 | D197: day | E197: Mazdoor (unskilled ) | F197: ='Basic data-1'!E6 -> 420 | G197: 1day | H197: 306.6
E198: Add 20% MA on Labour charges | H198: =SUM(H196:H197)*J2 -> 
E199: Laying & fixing of pipes with colors in position including lifiting aligning ete
E200: b) Material
B201: 1 | C201: 0.014 | D201: Cum | E201: Sand for mortar | F201: ='Basic data-1'!E32 -> 170 | G201: 1Cum | H201: =ROUND(C201*F201,2) -> 2.38
B202: 1 | C202: 0.011 | D202: t | E202: Cement for mortar | F202: ='Lead statement'!O26 -> 4220 | G202: MT | H202: 46.42
B203: 1 | C203: 7.5 | D203: m | E203: RCC pipr NP3 with including collar at site | F203: ='Lead statement'!O28 ->  | G203: Rm | I203: =ROUND(C203*F203,2) -> 
E204: Cost for 7.50M =(a+b+c+d) | H204: =SUM(H196:H203) -> 
E205: Rate per Rm | H205: =ROUND(H204/7.5,2) -> 
A206: 8 | E206: Earth work excavation for Sewer line using 300mm dia RCC Pipes including earth work excavation for the trench of 0.75X1.00m size, sand encasement, laying and jointing of RCC pipes and refilling the trenches etc., complete - 1.00 Rm
C207: 1 | D207: Cum | E207: Earth work excavation ( 0.75x1.00 ) | F207: =#REF! ->  | G207: Cum | H207: =ROUND(C207*F207,2) -> 
C208: 0.75 | E208: Add allowance for restricted place | H208: =C208*H207 -> 
H209: =SUM(H207:H208) -> 
E210: =E198 -> Add 20% MA on Labour charges | H210: =+H209*J2 -> 
H211: =SUM(H209:H210) -> 
A213: 6 | C213: RBR-FNDN-4-1(i) | E213: Laying of C.C (1:3:6) mix using 40mm HB(G) metal including Cost and conveyance of all materials and labour charges, centring chares, curing etc complete.
E214: (M10 Grade concrete) Unit - 1 Cum
E215: (a) Material
B216: 1 | C216: 220 | D216: Kgs | E216: Cement | F216: ='Lead statement'!O26 -> 4220 | G216: 1 MT | H216: =ROUND(F216*C216/1000,2) -> 928.4
B217: 1 | C217: 0.45 | D217: Cum | E217: Coarse Sand for Concrete | F217: ='Lead statement'!O23 -> 993.1 | G217: 1 cum | H217: =ROUND(F217*C217,2) -> 446.9
B218: 1 | C218: 0.9 | D218: Cum | E218: 40mm aggregate | F218: ='Lead statement'!O19 -> 953.7 | G218: 1 cum | H218: 858.33
B219: 1 | C219: 1.2 | D219: Kl | E219: Water | F219: ='Basic data-1'!E123 -> 2616 | G219: Kl | H219: 3139.2
E220: (b)Machinary
B221: 1 | C221: 0.4 | D221: Hour | E221: Concrete Mixer 10/7 cft (0.40/0.28 cum) | F221: ='Basic data-2'!E44 -> 196.7 | G221: 1 No | H221: =ROUND(F221*C221,2) -> 78.68
C222: 0.13 | D222: Hour | E222: Water Tanker 6 KL capacity | F222: ='Basic data-2'!E33 -> 849.6 | G222: Hour | H222: 110.45
E223: (c) Labour
B224: 1 | C224: 0.1 | D224: Day | E224: Mason (1st class) | F224: ='Basic data-1'!E4 -> 585 | G224: 1 No | H224: =ROUND(F224*C224,2) -> 58.5
B225: 1 | C225: 1.39 | D225: Day | E225: Mazdoor unskilled | F225: ='Basic data-1'!E5 -> 465 | G225: 1 No | H225: 646.35
E227: Sundries
G228: Rate for Cum | H228: =SUM(H71) -> 4142.82
A229: 4 | C229: BLD-CSTN-2-4 | E229: Providing P. C.C. (1:4:8) Nominal mix using 40mm HBG metal including Cost and conveyance of all materials and labour charges, centring chares, curing etc complete
... 201 more rows

Sheet Key Map (hidden)
A1: KEY MAP
A2: ='[395]Lead statement'!C3 -> Name of the Work :: | C2: ='Lead statement'!D3 -> Providing Interlocking pavers road from Lanke seshagiri rao (H) to kokkiligadda varma (H) in Duggirala (V&M).
F3: =Cover!E33 -> Estimate Cost :: Rs. | G3: =Cover!F33 -> 1.7 | H3: =Cover!G33 -> Lakhs
F8: SC Colony
B11: NH 16 | F11: Babu Jagjeevaram Statue
C17: ST Colony
F20: Proposed ST Colony Road
E23: ='Det. Est.'!D16 -> 190 | F23: RM
D41: Deputy Executive Engineer | H41: Asst. Exe. Engineer,
D42: PRISD, Mangalagiri. | H42: MPP (PRI) :: Mangalagiri.

Sheet Villages (hidden)
A1: Name of the Habitation | B1: Sand for filling | D1: Sand for Mortar | F1: Gravel or Quarry rubbish | H1: HBG Metal | J1: Country Bricks and RR Stones | N1: VILLAGE | O1: MAA | R1: Steel | S1: Country Wood | T1: Cement | X1: Sattenapalli
A2: 1 | B2: 2 | C2: 3 | D2: 4 | E2: 5 | F2: 6 | G2: 7 | H2: 8 | I2: 9 | J2: 10 | K2: 11 | N2: 1 | R2: 5 | S2: 6 | T2: 7 | W2: 10 | X2: 11
A3: Aluru | B3: Chndolu | C3: 13.2 | D3: Krishna River | E3: 61.7 | F3: Vejendla | G3: 23.6 | H3: Lam | I3: =E3-20.7 -> 41 | J3: Kolluru | K3: =I3+6.4 -> 47.4 | N3: Aluru | O3: 20% | X3: 10
A4: Aremanda | B4: Chndolu | C4: 19.2 | D4: Krishna River | E4: 58.7 | F4: Vejendla | G4: 19.2 | H4: Lam | I4: 38 | J4: Kolluru | K4: 53.4 | N4: Aramanda | O4: 20% | X4: 12
A5: Brahmana Koduru | B5: Chndolu | C5: 21.4 | D5: Krishna River | E5: 52.9 | F5: Vejendla | G5: 14.8 | H5: Lam | I5: 32.2 | J5: Kolluru | K5: 55.6 | N5: B.Koduru | O5: 20% | X5: 14
A6: China Itekampadu | B6: Chndolu | C6: 14.8 | D6: Krishna River | E6: 73.7 | F6: Vejendla | G6: 35.6 | H6: Lam | I6: 53 | J6: Kolluru | K6: 57 | N6: China Itekampadu | O6: 20% | X6: 13
A7: Chintalapudi | B7: Chndolu | C7: 12.3 | D7: Krishna River | E7: 63.7 | F7: Vejendla | G7: 25.6 | H7: Lam | I7: 42.5 | J7: Kolluru | K7: 46.5 | N7: Chintalapudi | O7: 20% | X7: 3
A8: Dandamudi | B8: Chndolu | C8: 16.9 | D8: Krishna River | E8: 56.4 | F8: Vejendla | G8: 16.9 | H8: Lam | I8: =E8-20.7 -> 35.7 | J8: Kolluru | K8: 51.1 | N8: Dandamudi | O8: 20% | X8: 14
A9: Doppalapudi | B9: Chndolu | C9: 16.2 | D9: Krishna River | E9: 59.5 | F9: Vejendla | G9: 21.4 | H9: Lam | I9: 38.8 | J9: Kolluru | K9: 50.4 | N9: Doppalapudi | O9: 20% | X9: 11
A10: Gayamvari Palem | B10: Chndolu | C10: 19.2 | D10: Krishna River | E10: 58.7 | F10: Vejendla | G10: 19.2 | H10: Lam | I10: 37.1 | J10: Kolluru | K10: 52.5 | N10: Gayamvari Palem | O10: 20% | X10: 13
A11: Gollamudi Padu | B11: Chndolu | C11: 19.1 | D11: Krishna River | E11: 56.4 | F11: Vejendla | G11: 18.1 | H11: Lam | I11: 35.5 | J11: Kolluru | K11: 53.3 | N11: Gollamudi Padu | O11: 20% | X11: 5
A12: Jadavalli | B12: Chndolu | C12: 4.8 | D12: Krishna River | E12: 65.1 | F12: Vejendla | G12: 27 | H12: Lam | I12: =E12-20.7 -> 44.4 | J12: Kolluru | K12: 44 | N12: Jadavalli | O12: 20% | X12: 12
A13: Jupudi | B13: Chndolu | C13: 26.7 | D13: Krishna River | E13: 57.5 | F13: Vejendla | G13: 19.4 | H13: Lam | I13: 36.8 | J13: Kolluru | K13: 60.4 | N13: Jupudi | O13: 20% | X13: 12
A14: Kassukarru | B14: Chndolu | C14: 12.4 | D14: Krishna River | E14: 62.5 | F14: Vejendla | G14: 24.4 | H14: Lam | I14: 41.8 | J14: Kolluru | K14: 46.6 | N14: Kassukarru | O14: 20% | X14: 11
A15: Kattempudi | B15: Chndolu | C15: 14.4 | D15: Krishna River | E15: 58.1 | F15: Vejendla | G15: 20 | H15: Lam | I15: 37.4 | J15: Kolluru | K15: 52.8 | N15: Kattempudi | O15: 20%
A16: Kondamudi | B16: Chndolu | C16: 11.7 | D16: Krishna River | E16: 65.8 | F16: Vejendla | G16: 27.7 | H16: Lam | I16: 45.1 | J16: Kolluru | K16: 45.9 | N16: Kondamudi | O16: 20%
A17: Machavaram | B17: Chndolu | C17: 12.8 | D17: Krishna River | E17: 66.7 | F17: Vejendla | G17: 28.6 | H17: Lam | I17: 46 | J17: Kolluru | K17: 50 | N17: Machavaram | O17: 20%
A18: Mammillapalli | B18: Chndolu | C18: 20.7 | D18: Krishna River | E18: 54.2 | F18: Vejendla | G18: 16.1 | H18: Lam | I18: 33.5 | J18: Kolluru | K18: 54.9 | N18: Mammillapalli | O18: 20%
A19: Mannava | B19: Chndolu | C19: 20.1 | D19: Krishna River | E19: 61.9 | F19: Vejendla | G19: 23.8 | H19: Lam | I19: 41.2 | J19: Kolluru | K19: 52.8 | N19: Mannava | O19: 20%
A20: Mulukuduru | B20: Chndolu | C20: 10.2 | D20: Krishna River | E20: 67.5 | F20: Vejendla | G20: 29.4 | H20: Lam | I20: 46.8 | J20: Kolluru | K20: 50.8 | N20: Mulukuduru | O20: 20%
A21: Munipalle | B21: Chndolu | C21: 16.9 | D21: Krishna River | E21: 53.6 | F21: Vejendla | G21: 15.5 | H21: Lam | I21: 32.9 | J21: Kolluru | K21: 72.1 | N21: Munipalle | O21: 20%
A22: Nanduru | B22: Chndolu | C22: 11.8 | D22: Krishna River | E22: 70.7 | F22: Vejendla | G22: 32.6 | H22: Lam | I22: 50 | J22: Kolluru | K22: 59 | N22: Nanduru | O22: 20%
A23: Pacchla tadiparru | B23: Chndolu | C23: 15.5 | D23: Krishna River | E23: 55 | F23: Vejendla | G23: 16.9 | H23: Lam | I23: 34.3 | J23: Kolluru | K23: 49.7 | N23: Pacchla tadiparru | O23: 20%
A24: Peda Itekampadu | B24: Chndolu | C24: 14.7 | D24: Krishna River | E24: 64.8 | F24: Vejendla | G24: 26.7 | H24: Lam | I24: 43.9 | J24: Kolluru | K24: 48.9 | N24: Peda Itekampadu | O24: 20%
A25: Pedapalem | B25: Chndolu | C25: 22.4 | D25: Krishna River | E25: 72.5 | F25: Vejendla | G25: 34.4 | H25: Lam | I25: =E25-20.7 -> 51.8 | J25: Kolluru | K25: 56.6 | N25: Pedapalem | O25: 20%
A26: Sitarampuram | B26: Chndolu | C26: 15.6 | D26: Krishna River | E26: 65.7 | F26: Vejendla | G26: 27.6 | H26: Lam | I26: 45 | J26: Kolluru | K26: 49.8 | N26: Sitarampuram | O26: 20%
A27: Tallapalem | B27: Chndolu | C27: 15.6 | D27: Krishna River | E27: 59.3 | F27: Vejendla | G27: 21.2 | H27: Lam | I27: 38.6 | J27: Kolluru | K27: 49.8 | N27: Tallapalem | O27: 20%
A28: Upparrapalem | B28: Chndolu | C28: 16.7 | D28: Krishna River | E28: 66.8 | F28: Vejendla | G28: 28.7 | H28: Lam | I28: 46.1 | J28: Kolluru | K28: 50.9 | N28: Upparrapalem | O28: 20%
A29: Vaddimukkala | B29: Chndolu | C29: 11.2 | D29: Krishna River | E29: 64.9 | F29: Vejendla | G29: 26.8 | H29: Lam | I29: 44.2 | J29: Kolluru | K29: 45.4 | N29: Vaddimukkala | O29: 20%
A30: Vallabharao Palem | B30: Chndolu | C30: 15 | D30: Krishna River | E30: 65.1 | F30: Vejendla | G30: 27 | H30: Lam | I30: 44.4 | J30: Kolluru | K30: 49.2 | N30: VV raao Plaem | O30: 20%
A31: Vellaluru | B31: Chndolu | C31: 20 | D31: Krishna River | E31: 50.2 | F31: Vejendla | G31: 12.2 | H31: Lam | I31: 29.5 | J31: Kolluru | K31: 54.6 | N31: Vellaluru | O31: 20%

Sheet Conveyence (hidden)
A1: Lead Chart SS rate for 17 - 18 | G1: RCC Pipes
A2: Lead in Km | B2: Earth, Sand, Gravel | C2: Metal, Stone | D2: Cement and steel | E2: PCC Slabs, Shahabad slabs | F2: Brick | G2: 300NP3 | H2: 350 | I2: 450 | J2: 600 | K2: 700 | L2: 900 | M2: 1000 | O2: RCC Pipes Dia | P2: RCC Pipes Initial Cost | R2: Sand | S2: Cement | T2: Mason(1st Class) | U2: Mazdoor
A3: 1 | B3: 29.1 | C3: 30.4 | D3: 19.6 | E3: 46.2 | F3: 50.7 | G3: 40.95 | H3: 44.1 | I3: 56.7 | J3: 93.45 | K3: 103.95 | L3: 163.8 | M3: 197.4 | O3: 300 | P3: 906 | Q3: 300 | R3: 2.5 | S3: 2.6
A4: 2 | B4: 40.7 | C4: 42.5 | D4: 27.5 | E4: 64.6 | F4: 71 | G4: =G3 -> 40.95 | H4: 44.1 | I4: 56.7 | J4: 93.45 | K4: 103.95 | L4: 163.8 | M4: 197.4 | O4: 350 | P4: 1117 | Q4: 350 | R4: 3.5 | S4: 3.6
A5: 3 | B5: 54.3 | C5: 58.8 | D5: 37.9 | E5: 89.2 | F5: 94.6 | G5: =G3 -> 40.95 | H5: 44.1 | I5: 56.7 | J5: 93.45 | K5: 103.95 | L5: 163.8 | M5: 197.4 | O5: 450 | P5: 1412 | Q5: 450 | R5: 4 | S5: 6
A6: 4 | B6: 66 | C6: 71.4 | D6: 46.1 | E6: 108.4 | F6: 114.9 | G6: =G3 -> 40.95 | H6: 44.1 | I6: 56.7 | J6: 93.45 | K6: 103.95 | L6: 163.8 | M6: 197.4 | O6: 600 | P6: 2309 | Q6: 600 | R6: 5 | S6: 7
A7: 5 | B7: 77.6 | C7: 84 | D7: 54.2 | E7: 127.5 | F7: 135.2 | G7: =G3 -> 40.95 | H7: 44.1 | I7: 56.7 | J7: 93.45 | K7: 103.95 | L7: 163.8 | M7: 197.4 | O7: 700 | P7: 2870 | Q7: 750
A8: 6 | B8: =B7+$Q$15 -> 89.2 | C8: =C7+$T$15 -> 95.6 | D8: =+D7+8.1 -> 62.3 | E8: =E7+19.1 -> 146.6 | F8: =F7+$V$15 -> 154 | G8: =G7+1.12 -> 42.07 | H8: =H7+1.26 -> 45.36 | I8: =I7+1.95 -> 58.65 | J8: =J7+4.34 -> 97.79 | K8: =K7+5.04 -> 108.99 | L8: =L7+9.5 -> 173.3 | M8: 206.9 | O8: 900 | P8: 4764 | Q8: 900
A9: 7 | B9: 100.8 | C9: 107.2 | D9: 70.4 | E9: 165.7 | F9: 172.8 | G9: 43.19 | H9: 46.62 | I9: 60.6 | J9: 102.13 | K9: 114.03 | L9: =L8+9.5 -> 182.8 | M9: 216.4 | O9: 1000 | P9: 5917 | Q9: 1000
A10: 8 | B10: 112.4 | C10: 118.8 | D10: 78.5 | E10: 184.8 | F10: 191.6 | G10: 44.31 | H10: 47.88 | I10: 62.55 | J10: 106.47 | K10: 119.07 | L10: =L9+9.5 -> 192.3 | M10: 225.9
A11: 9 | B11: 124 | C11: 130.4 | D11: 86.6 | E11: 203.9 | F11: 210.4 | G11: 45.43 | H11: 49.14 | I11: 64.5 | J11: 110.81 | K11: 124.11 | L11: =L10+9.5 -> 201.8 | M11: 235.4
A12: 10 | B12: 135.6 | C12: 142 | D12: 94.7 | E12: 223 | F12: 229.2 | G12: 46.55 | H12: 50.4 | I12: 66.45 | J12: 115.15 | K12: 129.15 | L12: =L11+9.5 -> 211.3 | M12: 244.9
A13: 11 | B13: 147.2 | C13: 153.6 | D13: 102.8 | E13: 242.1 | F13: 248 | G13: 47.67 | H13: 51.66 | I13: 68.4 | J13: 119.49 | K13: 134.19 | L13: =L12+9.5 -> 220.8 | M13: 254.4 | P13: Earth,Gravel & Sand | S13: Metal | U13: Bricks
A14: 12 | B14: 158.8 | C14: 165.2 | D14: 110.9 | E14: 261.2 | F14: 266.8 | G14: 48.79 | H14: 52.92 | I14: 70.35 | J14: 123.83 | K14: 139.23 | L14: =L13+9.5 -> 230.3 | M14: 263.9
A15: 13 | B15: 170.4 | C15: 176.8 | D15: 119 | E15: 280.3 | F15: 285.6 | G15: 49.91 | H15: 54.18 | I15: 72.3 | J15: 128.17 | K15: 144.27 | L15: =L14+9.5 -> 239.8 | M15: 273.4 | P15: for Every km beyond 5 km up to 30 km | Q15: 11.6 | T15: 11.6 | V15: 18.8
A16: 14 | B16: 182 | C16: 188.4 | D16: 127.1 | E16: 299.4 | F16: 304.4 | G16: 51.03 | H16: 55.44 | I16: 74.25 | J16: 132.51 | K16: 149.31 | L16: =L15+9.5 -> 249.3 | M16: 282.9 | P16: for Every km beyond 30 km | Q16: 9.7 | T16: 9.7 | V16: 15.7
A17: 15 | B17: 193.6 | C17: 200 | D17: 135.2 | E17: 318.5 | F17: 323.2 | G17: 52.15 | H17: 56.7 | I17: 76.2 | J17: 136.85 | K17: 154.35 | L17: =L16+9.5 -> 258.8 | M17: 292.4
A18: 16 | B18: 205.2 | C18: 211.6 | D18: 143.3 | E18: 337.6 | F18: 342 | G18: 53.27 | H18: 57.96 | I18: 78.15 | J18: 141.19 | K18: 159.39 | L18: =L17+9.5 -> 268.3 | M18: 301.9
A19: 17 | B19: 216.8 | C19: 223.2 | D19: 151.4 | E19: 356.7 | F19: 360.8 | G19: 54.39 | H19: 59.22 | I19: 80.1 | J19: 145.53 | K19: 164.43 | L19: =L18+9.5 -> 277.8 | M19: 311.4
A20: 18 | B20: 228.4 | C20: 234.8 | D20: 159.5 | E20: 375.8 | F20: 379.6 | G20: 55.51 | H20: 60.48 | I20: 82.05 | J20: 149.87 | K20: 169.47 | L20: =L19+9.5 -> 287.3 | M20: 320.9
A21: 19 | B21: 240 | C21: 246.4 | D21: 167.6 | E21: 394.9 | F21: 398.4 | G21: 56.63 | H21: 61.74 | I21: 84 | J21: 154.21 | K21: 174.51 | L21: =L20+9.5 -> 296.8 | M21: 330.4
A22: 20 | B22: 251.6 | C22: 258 | D22: 175.7 | E22: 414 | F22: 417.2 | G22: 57.75 | H22: 63 | I22: 85.95 | J22: 158.55 | K22: 179.55 | L22: =L21+9.5 -> 306.3 | M22: 339.9
A23: 21 | B23: 263.2 | C23: 269.6 | D23: 183.8 | E23: 433.1 | F23: 436 | G23: 58.87 | H23: 64.26 | I23: 87.9 | J23: 162.89 | K23: 184.59 | L23: =L22+9.5 -> 315.8 | M23: 349.4
A24: 22 | B24: 274.8 | C24: 281.2 | D24: 191.9 | E24: 452.2 | F24: 454.8 | G24: 59.99 | H24: 65.52 | I24: 89.85 | J24: 167.23 | K24: 189.63 | L24: =L23+9.5 -> 325.3 | M24: 358.9
A25: 23 | B25: 286.4 | C25: 292.8 | D25: 200 | E25: 471.3 | F25: 473.6 | G25: 61.11 | H25: 66.78 | I25: 91.8 | J25: 171.57 | K25: 194.67 | L25: =L24+9.5 -> 334.8 | M25: 368.4
A26: 24 | B26: 298 | C26: 304.4 | D26: 208.1 | E26: 490.4 | F26: 492.4 | G26: 62.23 | H26: 68.04 | I26: 93.75 | J26: 175.91 | K26: 199.71 | L26: =L25+9.5 -> 344.3 | M26: 377.9
A27: 25 | B27: 309.6 | C27: 316 | D27: 216.2 | E27: 509.5 | F27: 511.2 | G27: 63.35 | H27: 69.3 | I27: 95.7 | J27: 180.25 | K27: 204.75 | L27: =L26+9.5 -> 353.8 | M27: 387.4
A28: 26 | B28: 321.2 | C28: 327.6 | D28: 224.3 | E28: 528.6 | F28: 530 | G28: 64.47 | H28: 70.56 | I28: 97.65 | J28: 184.59 | K28: 209.79 | L28: =L27+9.5 -> 363.3 | M28: 396.9
A29: 27 | B29: 332.8 | C29: 339.2 | D29: 232.4 | E29: 547.7 | F29: 548.8 | G29: 65.59 | H29: 71.82 | I29: 99.6 | J29: 188.93 | K29: 214.83 | L29: =L28+9.5 -> 372.8 | M29: 406.4
A30: 28 | B30: 344.4 | C30: 350.8 | D30: 240.5 | E30: 566.8 | F30: 567.6 | G30: 66.71 | H30: 73.08 | I30: 101.55 | J30: 193.27 | K30: 219.87 | L30: =L29+9.5 -> 382.3 | M30: 415.9
A31: 29 | B31: 356 | C31: 362.4 | D31: 248.6 | E31: 585.9 | F31: 586.4 | G31: 67.83 | H31: 74.34 | I31: 103.5 | J31: 197.61 | K31: 224.91 | L31: =L30+9.5 -> 391.8 | M31: 425.4
A32: 30 | B32: 367.6 | C32: 374 | D32: 256.7 | E32: 605 | F32: 605.2 | G32: 68.95 | H32: 75.6 | I32: 105.45 | J32: 201.95 | K32: 229.95 | L32: =L31+9.5 -> 401.3 | M32: 434.9
A33: 31 | B33: =B32+$Q$16 -> 377.3 | C33: =C32+$T$16 -> 383.7 | D33: =+D32+6.8 -> 263.5 | E33: =E32+15.9 -> 620.9 | F33: =F32+$V$16 -> 620.9 | G33: 70.07 | H33: 76.86 | I33: 107.4 | J33: 206.29 | K33: 234.99 | L33: =L32+9.5 -> 410.8 | M33: 444.4
A34: 32 | B34: 387 | C34: 393.4 | D34: 270.3 | E34: 636.8 | F34: 636.6 | G34: 71.19 | H34: 78.12 | I34: 109.35 | J34: 210.63 | K34: 240.03 | L34: =L33+9.5 -> 420.3 | M34: 453.9
A35: 33 | B35: 396.7 | C35: 403.1 | D35: 277.1 | E35: 652.7 | F35: 652.3 | G35: 72.31 | H35: 79.38 | I35: 111.3 | J35: 214.97 | K35: 245.07 | L35: =L34+9.5 -> 429.8 | M35: 463.4
A36: 34 | B36: 406.4 | C36: 412.8 | D36: 283.9 | E36: 668.6 | F36: 668 | G36: 73.43 | H36: 80.64 | I36: 113.25 | J36: 219.31 | K36: 250.11 | L36: =L35+9.5 -> 439.3 | M36: 472.9
A37: 35 | B37: 416.1 | C37: 422.5 | D37: 290.7 | E37: 684.5 | F37: 683.7 | G37: 74.55 | H37: 81.9 | I37: 115.2 | J37: 223.65 | K37: 255.15 | L37: =L36+9.5 -> 448.8 | M37: 482.4
A38: 36 | B38: 425.8 | C38: 432.2 | D38: 297.5 | E38: 700.4 | F38: 699.4 | G38: 75.67 | H38: 83.16 | I38: 117.15 | J38: 227.99 | K38: 260.19 | L38: =L37+9.5 -> 458.3 | M38: 491.9
A39: 37 | B39: 435.5 | C39: 441.9 | D39: 304.3 | E39: 716.3 | F39: 715.1 | G39: 76.79 | H39: 84.42 | I39: 119.1 | J39: 232.33 | K39: 265.23 | L39: =L38+9.5 -> 467.8 | M39: 501.4
A40: 38 | B40: 445.2 | C40: 451.6 | D40: 311.1 | E40: 732.2 | F40: 730.8 | G40: 77.91 | H40: 85.68 | I40: 121.05 | J40: 236.67 | K40: 270.27 | L40: =L39+9.5 -> 477.3 | M40: 510.9
A41: 39 | B41: 454.9 | C41: 461.3 | D41: 317.9 | E41: 748.1 | F41: 746.5 | G41: 79.03 | H41: 86.94 | I41: 123 | J41: 241.01 | K41: 275.31 | L41: =L40+9.5 -> 486.8 | M41: 520.4
A42: 40 | B42: 464.6 | C42: 471 | D42: 324.7 | E42: 764 | F42: 762.2 | G42: 80.15 | H42: 88.2 | I42: 124.95 | J42: 245.35 | K42: 280.35 | L42: =L41+9.5 -> 496.3 | M42: 529.9
A43: 41 | B43: 474.3 | C43: 480.7 | D43: 331.5 | E43: 779.9 | F43: 777.9 | G43: 81.27 | H43: 89.46 | I43: 126.9 | J43: 249.69 | K43: 285.39 | L43: =L42+9.5 -> 505.8 | M43: 539.4
A44: 42 | B44: 484 | C44: 490.4 | D44: 338.3 | E44: 795.8 | F44: 793.6 | G44: 82.39 | H44: 90.72 | I44: 128.85 | J44: 254.03 | K44: 290.43 | L44: =L43+9.5 -> 515.3 | M44: 548.9
A45: 43 | B45: 493.7 | C45: 500.1 | D45: 345.1 | E45: 811.7 | F45: 809.3 | G45: 83.51 | H45: 91.98 | I45: 130.8 | J45: 258.37 | K45: 295.47 | L45: =L44+9.5 -> 524.8 | M45: 558.4
A46: 44 | B46: 503.4 | C46: 509.8 | D46: 351.9 | E46: 827.6 | F46: 825 | G46: 84.63 | H46: 93.24 | I46: 132.75 | J46: 262.71 | K46: 300.51 | L46: =L45+9.5 -> 534.3 | M46: 567.9
A47: 45 | B47: 513.1 | C47: 519.5 | D47: 358.7 | E47: 843.5 | F47: 840.7 | G47: 85.75 | H47: 94.5 | I47: 134.7 | J47: 267.05 | K47: 305.55 | L47: =L46+9.5 -> 543.8 | M47: 577.4
A48: 46 | B48: 522.8 | C48: 529.2 | D48: 365.5 | E48: 859.4 | F48: 856.4 | G48: 86.87 | H48: 95.76 | I48: 136.65 | J48: 271.39 | K48: 310.59 | L48: =L47+9.5 -> 553.3 | M48: 586.9
A49: 47 | B49: 532.5 | C49: 538.9 | D49: 372.3 | E49: 875.3 | F49: 872.1 | G49: 87.99 | H49: 97.02 | I49: 138.6 | J49: 275.73 | K49: 315.63 | L49: =L48+9.5 -> 562.8 | M49: 596.4
A50: 48 | B50: 542.2 | C50: 548.6 | D50: 379.1 | E50: 891.2 | F50: 887.8 | G50: 89.11 | H50: 98.28 | I50: 140.55 | J50: 280.07 | K50: 320.67 | L50: =L49+9.5 -> 572.3 | M50: 605.9
A51: 49 | B51: 551.9 | C51: 558.3 | D51: 385.9 | E51: 907.1 | F51: 903.5 | G51: 90.23 | H51: 99.54 | I51: 142.5 | J51: 284.41 | K51: 325.71 | L51: =L50+9.5 -> 581.8 | M51: 615.4
A52: 50 | B52: 561.6 | C52: 568 | D52: 392.7 | E52: 923 | F52: 919.2 | G52: 91.35 | H52: 100.8 | I52: 144.45 | J52: 288.75 | K52: 330.75 | L52: =L51+9.5 -> 591.3 | M52: 624.9
A53: 51 | B53: 571.3 | C53: 577.7 | D53: 399.5 | E53: 938.9 | F53: 934.9 | G53: 92.47 | H53: 102.06 | I53: 146.4 | J53: 293.09 | K53: 335.79 | L53: =L52+9.5 -> 600.8 | M53: 634.4
A54: 52 | B54: 581 | C54: 587.4 | D54: 406.3 | E54: 954.8 | F54: 950.6 | G54: 93.59 | H54: 103.32 | I54: 148.35 | J54: 297.43 | K54: 340.83 | L54: =L53+9.5 -> 610.3 | M54: 643.9
A55: 53 | B55: 590.7 | C55: 597.1 | D55: 413.1 | E55: 970.7 | F55: 966.3 | G55: 94.71 | H55: 104.58 | I55: 150.3 | J55: 301.77 | K55: 345.87 | L55: =L54+9.5 -> 619.8 | M55: 653.4
A56: 54 | B56: 600.4 | C56: 606.8 | D56: 419.9 | E56: 986.6 | F56: 982 | G56: 95.83 | H56: 105.84 | I56: 152.25 | J56: 306.11 | K56: 350.91 | L56: =L55+9.5 -> 629.3 | M56: 662.9
A57: 55 | B57: 610.1 | C57: 616.5 | D57: 426.7 | E57: 1002.5 | F57: 997.7 | G57: 96.95 | H57: 107.1 | I57: 154.2 | J57: 310.45 | K57: 355.95 | L57: =L56+9.5 -> 638.8 | M57: 672.4
A58: 56 | B58: 619.8 | C58: 626.2 | D58: 433.5 | E58: 1018.4 | F58: 1013.4 | G58: 98.07 | H58: 108.36 | I58: 156.15 | J58: 314.79 | K58: 360.99 | L58: =L57+9.5 -> 648.3 | M58: 681.9
A59: 57 | B59: 629.5 | C59: 635.9 | D59: 440.3 | E59: 1034.3 | F59: 1029.1 | G59: 99.19 | H59: 109.62 | I59: 158.1 | J59: 319.13 | K59: 366.03 | L59: =L58+9.5 -> 657.8 | M59: 691.4
A60: 58 | B60: 639.2 | C60: 645.6 | D60: 447.1 | E60: 1050.2 | F60: 1044.8 | G60: 100.31 | H60: 110.88 | I60: 160.05 | J60: 323.47 | K60: 371.07 | L60: =L59+9.5 -> 667.3 | M60: 700.9
A61: 59 | B61: 648.9 | C61: 655.3 | D61: 453.9 | E61: 1066.1 | F61: 1060.5 | G61: 101.43 | H61: 112.14 | I61: 162 | J61: 327.81 | K61: 376.11 | L61: =L60+9.5 -> 676.8 | M61: 710.4
A62: 60 | B62: 658.6 | C62: 665 | D62: 460.7 | E62: 1082 | F62: 1076.2 | G62: 102.55 | H62: 113.4 | I62: 163.95 | J62: 332.15 | K62: 381.15 | L62: =L61+9.5 -> 686.3 | M62: 719.9
A63: 61 | B63: 668.3 | C63: 674.7 | D63: 467.5 | E63: 1097.9 | F63: 1091.9 | G63: 103.67 | H63: 114.66 | I63: 165.9 | J63: 336.49 | K63: 386.19 | L63: =L62+9.5 -> 695.8 | M63: 729.4
A64: 62 | B64: 678 | C64: 684.4 | D64: 474.3 | E64: 1113.8 | F64: 1107.6 | G64: 104.79 | H64: 115.92 | I64: 167.85 | J64: 340.83 | K64: 391.23 | L64: =L63+9.5 -> 705.3 | M64: 738.9
A65: 63 | B65: 687.7 | C65: 694.1 | D65: 481.1 | E65: 1129.7 | F65: 1123.3 | G65: 105.91 | H65: 117.18 | I65: 169.8 | J65: 345.17 | K65: 396.27 | L65: =L64+9.5 -> 714.8 | M65: 748.4
A66: 64 | B66: 697.4 | C66: 703.8 | D66: 487.9 | E66: 1145.6 | F66: 1139 | G66: 107.03 | H66: 118.44 | I66: 171.75 | J66: 349.51 | K66: 401.31 | L66: =L65+9.5 -> 724.3 | M66: 757.9
A67: 65 | B67: 707.1 | C67: 713.5 | D67: 494.7 | E67: 1161.5 | F67: 1154.7 | G67: 108.15 | H67: 119.7 | I67: 173.7 | J67: 353.85 | K67: 406.35 | L67: =L66+9.5 -> 733.8 | M67: 767.4
A68: 66 | B68: 716.8 | C68: 723.2 | D68: 501.5 | E68: 1177.4 | F68: 1170.4 | G68: 109.27 | H68: 120.96 | I68: 175.65 | J68: 358.19 | K68: 411.39 | L68: =L67+9.5 -> 743.3 | M68: 776.9
A69: 67 | B69: 726.5 | C69: 732.9 | D69: 508.3 | E69: 1193.3 | F69: 1186.1 | G69: 110.39 | H69: 122.22 | I69: 177.6 | J69: 362.53 | K69: 416.43 | L69: =L68+9.5 -> 752.8 | M69: 786.4
A70: 68 | B70: 736.2 | C70: 742.6 | D70: 515.1 | E70: 1209.2 | F70: 1201.8 | G70: 111.51 | H70: 123.48 | I70: 179.55 | J70: 366.87 | K70: 421.47 | L70: =L69+9.5 -> 762.3 | M70: 795.9
A71: 69 | B71: 745.9 | C71: 752.3 | D71: 521.9 | E71: 1225.1 | F71: 1217.5 | G71: 112.63 | H71: 124.74 | I71: 181.5 | J71: 371.21 | K71: 426.51 | L71: =L70+9.5 -> 771.8 | M71: 805.4
A72: 70 | B72: 755.6 | C72: 762 | D72: 528.7 | E72: 1241 | F72: 1233.2 | G72: 113.75 | H72: 126 | I72: 183.45 | J72: 375.55 | K72: 431.55 | L72: =L71+9.5 -> 781.3 | M72: 814.9
A73: 71 | B73: 765.3 | C73: 771.7 | D73: 535.5 | E73: 1256.9 | F73: 1248.9 | G73: 114.87 | H73: 127.26 | I73: 185.4 | J73: 379.89 | K73: 436.59 | L73: =L72+9.5 -> 790.8 | M73: 824.4
A74: 72 | B74: 775 | C74: 781.4 | D74: 542.3 | E74: 1272.8 | F74: 1264.6 | G74: 115.99 | H74: 128.52 | I74: 187.35 | J74: 384.23 | K74: 441.63 | L74: =L73+9.5 -> 800.3 | M74: 833.9
A75: 73 | B75: 784.7 | C75: 791.1 | D75: 549.1 | E75: 1288.7 | F75: 1280.3 | G75: 117.11 | H75: 129.78 | I75: 189.3 | J75: 388.57 | K75: 446.67 | L75: =L74+9.5 -> 809.8 | M75: 843.4
A76: 74 | B76: 794.4 | C76: 800.8 | D76: 555.9 | E76: 1304.6 | F76: 1296 | G76: 118.23 | H76: 131.04 | I76: 191.25 | J76: 392.91 | K76: 451.71 | L76: =L75+9.5 -> 819.3 | M76: 852.9
A77: 75 | B77: 804.1 | C77: 810.5 | D77: 562.7 | E77: 1320.5 | F77: 1311.7 | G77: 119.35 | H77: 132.3 | I77: 193.2 | J77: 397.25 | K77: 456.75 | L77: =L76+9.5 -> 828.8 | M77: 862.4
A78: 76 | B78: 813.8 | C78: 820.2 | D78: 569.5 | E78: 1336.4 | F78: 1327.4 | G78: 120.47 | H78: 133.56 | I78: 195.15 | J78: 401.59 | K78: 461.79 | L78: =L77+9.5 -> 838.3 | M78: 871.9
A79: 77 | B79: 823.5 | C79: 829.9 | D79: 576.3 | E79: 1352.3 | F79: 1343.1 | G79: 121.59 | H79: 134.82 | I79: 197.1 | J79: 405.93 | K79: 466.83 | L79: =L78+9.5 -> 847.8 | M79: 881.4
A80: 78 | B80: 833.2 | C80: 839.6 | D80: 583.1 | E80: 1368.2 | F80: 1358.8 | G80: 122.71 | H80: 136.08 | I80: 199.05 | J80: 410.27 | K80: 471.87 | L80: =L79+9.5 -> 857.3 | M80: 890.9
A81: 79 | B81: 842.9 | C81: 849.3 | D81: 589.9 | E81: 1384.1 | F81: 1374.5 | G81: 123.83 | H81: 137.34 | I81: 201 | J81: 414.61 | K81: 476.91 | L81: =L80+9.5 -> 866.8 | M81: 900.4
A82: 80 | B82: 852.6 | C82: 859 | D82: 596.7 | E82: 1400 | F82: 1390.2 | G82: 124.95 | H82: 138.6 | I82: 202.95 | J82: 418.95 | K82: 481.95 | L82: =L81+9.5 -> 876.3 | M82: 909.9
A83: 81 | B83: 862.3 | C83: 868.7 | D83: 603.5 | E83: 1415.9 | F83: 1405.9 | G83: 126.07 | H83: 139.86 | I83: 204.9 | J83: 423.29 | K83: 486.99 | L83: =L82+9.5 -> 885.8 | M83: 919.4
A84: 82 | B84: 872 | C84: 878.4 | D84: 610.3 | E84: 1431.8 | F84: 1421.6 | G84: 127.19 | H84: 141.12 | I84: 206.85 | J84: 427.63 | K84: 492.03 | L84: =L83+9.5 -> 895.3 | M84: 928.9
A85: 83 | B85: 881.7 | C85: 888.1 | D85: 617.1 | E85: 1447.7 | F85: 1437.3 | G85: 128.31 | H85: 142.38 | I85: 208.8 | J85: 431.97 | K85: 497.07 | L85: =L84+9.5 -> 904.8 | M85: 938.4
A86: 84 | B86: 891.4 | C86: 897.8 | D86: 623.9 | E86: 1463.6 | F86: 1453 | G86: 129.43 | H86: 143.64 | I86: 210.75 | J86: 436.31 | K86: 502.11 | L86: =L85+9.5 -> 914.3 | M86: 947.9
A87: 85 | B87: 901.1 | C87: 907.5 | D87: 630.7 | E87: 1479.5 | F87: 1468.7 | G87: 130.55 | H87: 144.9 | I87: 212.7 | J87: 440.65 | K87: 507.15 | L87: =L86+9.5 -> 923.8 | M87: 957.4
A88: 86 | B88: 910.8 | C88: 917.2 | D88: 637.5 | E88: 1495.4 | F88: 1484.4 | G88: 131.67 | H88: 146.16 | I88: 214.65 | J88: 444.99 | K88: 512.19 | L88: =L87+9.5 -> 933.3 | M88: 966.9
A89: 87 | B89: 920.5 | C89: 926.9 | D89: 644.3 | E89: 1511.3 | F89: 1500.1 | G89: 132.79 | H89: 147.42 | I89: 216.6 | J89: 449.33 | K89: 517.23 | L89: =L88+9.5 -> 942.8 | M89: 976.4
A90: 88 | B90: 930.2 | C90: 936.6 | D90: 651.1 | E90: 1527.2 | F90: 1515.8 | G90: 133.91 | H90: 148.68 | I90: 218.55 | J90: 453.67 | K90: 522.27 | L90: =L89+9.5 -> 952.3 | M90: 985.9
A91: 89 | B91: 939.9 | C91: 946.3 | D91: 657.9 | E91: 1543.1 | F91: 1531.5 | G91: 135.03 | H91: 149.94 | I91: 220.5 | J91: 458.01 | K91: 527.31 | L91: =L90+9.5 -> 961.8 | M91: 995.4
A92: 90 | B92: 949.6 | C92: 956 | D92: 664.7 | E92: 1559 | F92: 1547.2 | G92: 136.15 | H92: 151.2 | I92: 222.45 | J92: 462.35 | K92: 532.35 | L92: =L91+9.5 -> 971.3 | M92: 1004.9
A93: 91 | B93: 959.3 | C93: 965.7 | D93: 671.5 | E93: 1574.9 | F93: 1562.9 | G93: 137.27 | H93: 152.46 | I93: 224.4 | J93: 466.69 | K93: 537.39 | L93: =L92+9.5 -> 980.8 | M93: 1014.4
A94: 92 | B94: 969 | C94: 975.4 | D94: 678.3 | E94: 1590.8 | F94: 1578.6 | G94: 138.39 | H94: 153.72 | I94: 226.35 | J94: 471.03 | K94: 542.43 | L94: =L93+9.5 -> 990.3 | M94: 1023.9
A95: 93 | B95: 978.7 | C95: 985.1 | D95: 685.1 | E95: 1606.7 | F95: 1594.3 | G95: 139.51 | H95: 154.98 | I95: 228.3 | J95: 475.37 | K95: 547.47 | L95: =L94+9.5 -> 999.8 | M95: 1033.4
A96: 94 | B96: 988.4 | C96: 994.8 | D96: 691.9 | E96: 1622.6 | F96: 1610 | G96: 140.63 | H96: 156.24 | I96: 230.25 | J96: 479.71 | K96: 552.51 | L96: =L95+9.5 -> 1009.3 | M96: 1042.9
A97: 95 | B97: 998.1 | C97: 1004.5 | D97: 698.7 | E97: 1638.5 | F97: 1625.7 | G97: 141.75 | H97: 157.5 | I97: 232.2 | J97: 484.05 | K97: 557.55 | L97: =L96+9.5 -> 1018.8 | M97: 1052.4
A98: 96 | B98: 1007.8 | C98: 1014.2 | D98: 705.5 | E98: 1654.4 | F98: 1641.4 | G98: 142.87 | H98: 158.76 | I98: 234.15 | J98: 488.39 | K98: 562.59 | L98: =L97+9.5 -> 1028.3 | M98: 1061.9
A99: 97 | B99: 1017.5 | C99: 1023.9 | D99: 712.3 | E99: 1670.3 | F99: 1657.1 | G99: 143.99 | H99: 160.02 | I99: 236.1 | J99: 492.73 | K99: 567.63 | L99: =L98+9.5 -> 1037.8 | M99: 1071.4
A100: 98 | B100: 1027.2 | C100: 1033.6 | D100: 719.1 | E100: 1686.2 | F100: 1672.8 | G100: 145.11 | H100: 161.28 | I100: 238.05 | J100: 497.07 | K100: 572.67 | L100: =L99+9.5 -> 1047.3 | M100: 1080.9
A101: 99 | B101: 1036.9 | C101: 1043.3 | D101: 725.9 | E101: 1702.1 | F101: 1688.5 | G101: 146.23 | H101: 162.54 | I101: 240 | J101: 501.41 | K101: 577.71 | L101: =L100+9.5 -> 1056.8 | M101: 1090.4
A102: 100 | B102: 1046.6 | C102: 1053 | D102: 732.7 | E102: 1718 | F102: 1704.2 | G102: 147.35 | H102: 163.8 | I102: 241.95 | J102: 505.75 | K102: 582.75 | L102: =L101+9.5 -> 1066.3 | M102: 1099.9
A103: 101 | B103: 1056.3 | C103: 1062.7 | D103: 739.5 | E103: 1733.9 | F103: 1719.9 | G103: 148.47 | H103: 165.06 | I103: 243.9 | J103: 510.09 | K103: 587.79 | L103: =L102+9.5 -> 1075.8 | M103: 1109.4
A104: 102 | B104: 1066 | C104: 1072.4 | D104: 746.3 | E104: 1749.8 | F104: 1735.6 | G104: 149.59 | H104: 166.32 | I104: 245.85 | J104: 514.43 | K104: 592.83 | L104: =L103+9.5 -> 1085.3 | M104: 1118.9
A105: 103 | B105: 1075.7 | C105: 1082.1 | D105: 753.1 | E105: 1765.7 | F105: 1751.3 | G105: 150.71 | H105: 167.58 | I105: 247.8 | J105: 518.77 | K105: 597.87 | L105: =L104+9.5 -> 1094.8 | M105: 1128.4
A106: 104 | B106: 1085.4 | C106: 1091.8 | D106: 759.9 | E106: 1781.6 | F106: 1767 | G106: 151.83 | H106: 168.84 | I106: 249.75 | J106: 523.11 | K106: 602.91 | L106: =L105+9.5 -> 1104.3 | M106: 1137.9
A107: 105 | B107: 1095.1 | C107: 1101.5 | D107: 766.7 | E107: 1797.5 | F107: 1782.7 | G107: 152.95 | H107: 170.1 | I107: 251.7 | J107: 527.45 | K107: 607.95 | L107: =L106+9.5 -> 1113.8 | M107: 1147.4
A108: 106 | B108: 1104.8 | C108: 1111.2 | D108: 773.5 | E108: 1813.4 | F108: 1798.4 | G108: 154.07 | H108: 171.36 | I108: 253.65 | J108: 531.79 | K108: 612.99 | L108: =L107+9.5 -> 1123.3 | M108: 1156.9
A109: 107 | B109: 1114.5 | C109: 1120.9 | D109: 780.3 | E109: 1829.3 | F109: 1814.1 | G109: 155.19 | H109: 172.62 | I109: 255.6 | J109: 536.13 | K109: 618.03 | L109: =L108+9.5 -> 1132.8 | M109: 1166.4
A110: 108 | B110: 1124.2 | C110: 1130.6 | D110: 787.1 | E110: 1845.2 | F110: 1829.8 | G110: 156.31 | H110: 173.88 | I110: 257.55 | J110: 540.47 | K110: 623.07 | L110: =L109+9.5 -> 1142.3 | M110: 1175.9
A111: 109 | B111: 1133.9 | C111: 1140.3 | D111: 793.9 | E111: 1861.1 | F111: 1845.5 | G111: 157.43 | H111: 175.14 | I111: 259.5 | J111: 544.81 | K111: 628.11 | L111: =L110+9.5 -> 1151.8 | M111: 1185.4
A112: 110 | B112: 1143.6 | C112: 1150 | D112: 800.7 | E112: 1877 | F112: 1861.2 | G112: 158.55 | H112: 176.4 | I112: 261.45 | J112: 549.15 | K112: 633.15 | L112: =L111+9.5 -> 1161.3 | M112: 1194.9
A113: 111 | B113: 1153.3 | C113: 1159.7 | D113: 807.5 | E113: 1892.9 | F113: 1876.9 | G113: 159.67 | H113: 177.66 | I113: 263.4 | J113: 553.49 | K113: 638.19 | L113: =L112+9.5 -> 1170.8 | M113: 1204.4
A114: 112 | B114: 1163 | C114: 1169.4 | D114: 814.3 | E114: 1908.8 | F114: 1892.6 | G114: 160.79 | H114: 178.92 | I114: 265.35 | J114: 557.83 | K114: 643.23 | L114: =L113+9.5 -> 1180.3 | M114: 1213.9
A115: 113 | B115: 1172.7 | C115: 1179.1 | D115: 821.1 | E115: 1924.7 | F115: 1908.3 | G115: 161.91 | H115: 180.18 | I115: 267.3 | J115: 562.17 | K115: 648.27 | L115: =L114+9.5 -> 1189.8 | M115: 1223.4
A116: 114 | B116: 1182.4 | C116: 1188.8 | D116: 827.9 | E116: 1940.6 | F116: 1924 | G116: 163.03 | H116: 181.44 | I116: 269.25 | J116: 566.51 | K116: 653.31 | L116: =L115+9.5 -> 1199.3 | M116: 1232.9
A117: 115 | B117: 1192.1 | C117: 1198.5 | D117: 834.7 | E117: 1956.5 | F117: 1939.7 | G117: 164.15 | H117: 182.7 | I117: 271.2 | J117: 570.85 | K117: 658.35 | L117: =L116+9.5 -> 1208.8 | M117: 1242.4
A118: 116 | B118: 1201.8 | C118: 1208.2 | D118: 841.5 | E118: 1972.4 | F118: 1955.4 | G118: 165.27 | H118: 183.96 | I118: 273.15 | J118: 575.19 | K118: 663.39 | L118: =L117+9.5 -> 1218.3 | M118: 1251.9
A119: 117 | B119: 1211.5 | C119: 1217.9 | D119: 848.3 | E119: 1988.3 | F119: 1971.1 | G119: 166.39 | H119: 185.22 | I119: 275.1 | J119: 579.53 | K119: 668.43 | L119: =L118+9.5 -> 1227.8 | M119: 1261.4
A120: 118 | B120: 1221.2 | C120: 1227.6 | D120: 855.1 | E120: 2004.2 | F120: 1986.8 | G120: 167.51 | H120: 186.48 | I120: 277.05 | J120: 583.87 | K120: 673.47 | L120: =L119+9.5 -> 1237.3 | M120: 1270.9
A121: 119 | B121: 1230.9 | C121: 1237.3 | D121: 861.9 | E121: 2020.1 | F121: 2002.5 | G121: 168.63 | H121: 187.74 | I121: 279 | J121: 588.21 | K121: 678.51 | L121: =L120+9.5 -> 1246.8 | M121: 1280.4
A122: 120 | B122: 1240.6 | C122: 1247 | D122: 868.7 | E122: 2036 | F122: 2018.2 | G122: 169.75 | H122: 189 | I122: 280.95 | J122: 592.55 | K122: 683.55 | L122: =L121+9.5 -> 1256.3 | M122: 1289.9
A123: 121 | B123: 1250.3 | C123: 1256.7 | D123: 875.5 | E123: 2051.9 | F123: 2033.9 | G123: 170.87 | H123: 190.26 | I123: 282.9 | J123: 596.89 | K123: 688.59 | L123: =L122+9.5 -> 1265.8 | M123: 1299.4
A124: 122 | B124: 1260 | C124: 1266.4 | D124: 882.3 | E124: 2067.8 | F124: 2049.6 | G124: 171.99 | H124: 191.52 | I124: 284.85 | J124: 601.23 | K124: 693.63 | L124: =L123+9.5 -> 1275.3 | M124: 1308.9
A125: 123 | B125: 1269.7 | C125: 1276.1 | D125: 889.1 | E125: 2083.7 | F125: 2065.3 | G125: 173.11 | H125: 192.78 | I125: 286.8 | J125: 605.57 | K125: 698.67 | L125: =L124+9.5 -> 1284.8 | M125: 1318.4
A126: 124 | B126: 1279.4 | C126: 1285.8 | D126: 895.9 | E126: 2099.6 | F126: 2081 | G126: 174.23 | H126: 194.04 | I126: 288.75 | J126: 609.91 | K126: 703.71 | L126: =L125+9.5 -> 1294.3 | M126: 1327.9
A127: 125 | B127: 1289.1 | C127: 1295.5 | D127: 902.7 | E127: 2115.5 | F127: 2096.7 | G127: 175.35 | H127: 195.3 | I127: 290.7 | J127: 614.25 | K127: 708.75 | L127: =L126+9.5 -> 1303.8 | M127: 1337.4
A128: 126 | B128: 1298.8 | C128: 1305.2 | D128: 909.5 | E128: 2131.4 | F128: 2112.4 | G128: 176.47 | H128: 196.56 | I128: 292.65 | J128: 618.59 | K128: 713.79 | L128: =L127+9.5 -> 1313.3 | M128: 1346.9
A129: 127 | B129: 1308.5 | C129: 1314.9 | D129: 916.3 | E129: 2147.3 | F129: 2128.1 | G129: 177.59 | H129: 197.82 | I129: 294.6 | J129: 622.93 | K129: 718.83 | L129: =L128+9.5 -> 1322.8 | M129: 1356.4
A130: 128 | B130: 1318.2 | C130: 1324.6 | D130: 923.1 | E130: 2163.2 | F130: 2143.8 | G130: 178.71 | H130: 199.08 | I130: 296.55 | J130: 627.27 | K130: 723.87 | L130: =L129+9.5 -> 1332.3 | M130: 1365.9
A131: 129 | B131: 1327.9 | C131: 1334.3 | D131: 929.9 | E131: 2179.1 | F131: 2159.5 | G131: 179.83 | H131: 200.34 | I131: 298.5 | J131: 631.61 | K131: 728.91 | L131: =L130+9.5 -> 1341.8 | M131: 1375.4
A132: 130 | B132: 1337.6 | C132: 1344 | D132: 936.7 | E132: 2195 | F132: 2175.2 | G132: 180.95 | H132: 201.6 | I132: 300.45 | J132: 635.95 | K132: 733.95 | L132: =L131+9.5 -> 1351.3 | M132: 1384.9
A133: 131 | B133: 1347.3 | C133: 1353.7 | D133: 943.5 | E133: 2210.9 | F133: 2190.9 | G133: 182.07 | H133: 202.86 | I133: 302.4 | J133: 640.29 | K133: 738.99 | L133: =L132+9.5 -> 1360.8 | M133: 1394.4
A134: 132 | B134: 1357 | C134: 1363.4 | D134: 950.3 | E134: 2226.8 | F134: 2206.6 | G134: 183.19 | H134: 204.12 | I134: 304.35 | J134: 644.63 | K134: 744.03 | L134: =L133+9.5 -> 1370.3 | M134: 1403.9
A135: 133 | B135: 1366.7 | C135: 1373.1 | D135: 957.1 | E135: 2242.7 | F135: 2222.3 | G135: 184.31 | H135: 205.38 | I135: 306.3 | J135: 648.97 | K135: 749.07 | L135: =L134+9.5 -> 1379.8 | M135: 1413.4
A136: 134 | B136: 1376.4 | C136: 1382.8 | D136: 963.9 | E136: 2258.6 | F136: 2238 | G136: 185.43 | H136: 206.64 | I136: 308.25 | J136: 653.31 | K136: 754.11 | L136: =L135+9.5 -> 1389.3 | M136: 1422.9
A137: 135 | B137: 1386.1 | C137: 1392.5 | D137: 970.7 | E137: 2274.5 | F137: 2253.7 | G137: 186.55 | H137: 207.9 | I137: 310.2 | J137: 657.65 | K137: 759.15 | L137: =L136+9.5 -> 1398.8 | M137: 1432.4
A138: 136 | B138: 1395.8 | C138: 1402.2 | D138: 977.5 | E138: 2290.4 | F138: 2269.4 | G138: 187.67 | H138: 209.16 | I138: 312.15 | J138: 661.99 | K138: 764.19 | L138: =L137+9.5 -> 1408.3 | M138: 1441.9
A139: 137 | B139: 1405.5 | C139: 1411.9 | D139: 984.3 | E139: 2306.3 | F139: 2285.1 | G139: 188.79 | H139: 210.42 | I139: 314.1 | J139: 666.33 | K139: 769.23 | L139: =L138+9.5 -> 1417.8 | M139: 1451.4
A140: 138 | B140: 1415.2 | C140: 1421.6 | D140: 991.1 | E140: 2322.2 | F140: 2300.8 | G140: 189.91 | H140: 211.68 | I140: 316.05 | J140: 670.67 | K140: 774.27 | L140: =L139+9.5 -> 1427.3 | M140: 1460.9
A141: 139 | B141: 1424.9 | C141: 1431.3 | D141: 997.9 | E141: 2338.1 | F141: 2316.5 | G141: 191.03 | H141: 212.94 | I141: 318 | J141: 675.01 | K141: 779.31 | L141: =L140+9.5 -> 1436.8 | M141: 1470.4
A142: 140 | B142: 1434.6 | C142: 1441 | D142: 1004.7 | E142: 2354 | F142: 2332.2 | G142: 192.15 | H142: 214.2 | I142: 319.95 | J142: 679.35 | K142: 784.35 | L142: =L141+9.5 -> 1446.3 | M142: 1479.9
A143: 141 | B143: 1444.3 | C143: 1450.7 | D143: 1011.5 | E143: 2369.9 | F143: 2347.9 | G143: 193.27 | H143: 215.46 | I143: 321.9 | J143: 683.69 | K143: 789.39 | L143: =L142+9.5 -> 1455.8 | M143: 1489.4
A144: 142 | B144: 1454 | C144: 1460.4 | D144: 1018.3 | E144: 2385.8 | F144: 2363.6 | G144: 194.39 | H144: 216.72 | I144: 323.85 | J144: 688.03 | K144: 794.43 | L144: =L143+9.5 -> 1465.3 | M144: 1498.9
A145: 143 | B145: 1463.7 | C145: 1470.1 | D145: 1025.1 | E145: 2401.7 | F145: 2379.3 | G145: 195.51 | H145: 217.98 | I145: 325.8 | J145: 692.37 | K145: 799.47 | L145: =L144+9.5 -> 1474.8 | M145: 1508.4
A146: 144 | B146: 1473.4 | C146: 1479.8 | D146: 1031.9 | E146: 2417.6 | F146: 2395 | G146: 196.63 | H146: 219.24 | I146: 327.75 | J146: 696.71 | K146: 804.51 | L146: =L145+9.5 -> 1484.3 | M146: 1517.9
A147: 145 | B147: 1483.1 | C147: 1489.5 | D147: 1038.7 | E147: 2433.5 | F147: 2410.7 | G147: 197.75 | H147: 220.5 | I147: 329.7 | J147: 701.05 | K147: 809.55 | L147: =L146+9.5 -> 1493.8 | M147: 1527.4
A148: 146 | B148: 1492.8 | C148: 1499.2 | D148: 1045.5 | E148: 2449.4 | F148: 2426.4 | G148: 198.87 | H148: 221.76 | I148: 331.65 | J148: 705.39 | K148: 814.59 | L148: =L147+9.5 -> 1503.3 | M148: 1536.9
A149: 147 | B149: 1502.5 | C149: 1508.9 | D149: 1052.3 | E149: 2465.3 | F149: 2442.1 | G149: 199.99 | H149: 223.02 | I149: 333.6 | J149: 709.73 | K149: 819.63 | L149: =L148+9.5 -> 1512.8 | M149: 1546.4
A150: 148 | B150: 1512.2 | C150: 1518.6 | D150: 1059.1 | E150: 2481.2 | F150: 2457.8 | G150: 201.11 | H150: 224.28 | I150: 335.55 | J150: 714.07 | K150: 824.67 | L150: =L149+9.5 -> 1522.3 | M150: 1555.9
A151: 149 | B151: 1521.9 | C151: 1528.3 | D151: 1065.9 | E151: 2497.1 | F151: 2473.5 | G151: 202.23 | H151: 225.54 | I151: 337.5 | J151: 718.41 | K151: 829.71 | L151: =L150+9.5 -> 1531.8 | M151: 1565.4
A152: 150 | B152: 1531.6 | C152: 1538 | D152: 1072.7 | E152: 2513 | F152: 2489.2 | G152: 203.35 | H152: 226.8 | I152: 339.45 | J152: 722.75 | K152: 834.75 | L152: =L151+9.5 -> 1541.3 | M152: 1574.9
A154: Loading | B154: 19.9 | C154: 40 | F154: 227.6
A155: Unloading | B155: 9.95 | C155: 20 | F155: 227.6

Sheet Basic data-1 (hidden)
A1: RATES OF MATERIALS 2017-2018 SoR
A2: Page | B2: SoR | C2: S No | D2: Name of the Material | E2: Rate | F2: Per | G2: Reference
A3: P-7 | B3: 35 | C3: 1 | D3: 1st Class Painter | E3: 535 | F3: Day | G3: R & Bridge works
A4: P-6 | B4: 1 | C4: 2 | D4: 1st Class Barbender | E4: 585 | F4: Day | G4: R & Bridge works
A5: P-6 | B5: 11 | C5: 3 | D5: 1st Class Mason, Brick Layer, Carpentor, Blacksmith | E5: 465 | F5: Day | G5: R & Bridge works
A6: P-8 | B6: 35 | C6: 4 | D6: 2nd Class Mason, Brick Layer, Carpentor, Blacksmith, painter & Mate | E6: 420 | F6: Day | G6: R & Bridge works
A7: P-8 | B7: 3 | C7: 5 | D7: Man / Women Mazdoor | E7: 370 | F7: Day | G7: R & Bridge works
A8: P-256 | B8: 4 | C8: 6 | D8: Diploma Engineer / Surveyor | E8: 675 | F8: Day | G8: labour wages
A9: P-12 | B9: 71 | C9: 6 | D9: Mate | E9: 425 | F9: Day | G9: R &B
A10: P-13 | B10: 1 | C10: 8 | D10: Rough Stone for Masonary OTG | E10: 160 | F10: 1 M3 | G10: Material & Work
A11: P-13 | B11: 2 | C11: 9 | D11: 225mm thick Revetment stone | E11: 144 | F11: 1 M3 | G11: Material & Work
A12: P-13 | B12: 3 | C12: 10 | D12: 300mm thick Apron stone | E12: 164 | F12: 1 M3
A13: P-13 | B13: 12 | C13: 11 | D13: Rough Stone for Masonary Granite, Trap | E13: 252 | F13: 1 M3
A14: P-16 | B14: 45 | C14: 12 | D14: HBG /HBT MORTH 2.36mm to 5 mm | E14: 293.35 | F14: 1 M3
A15: P16/14 | B15: 46/25 | C15: 13 | D15: HBG /HBT MORTH 5 to 7 mm | E15: 480 | F15: 1 M3 | G15: 6 mm (SS 5) | H15: 506.4
B16: 47/26 | C16: 14 | D16: HBG /HBT MORTH 9.5 to 11.2mm | E16: 624.75 | F16: 1 M3 | G16: 10 mm (SS 5) | H16: 659.2
A17: P16/15 | B17: 48/27 | C17: 15 | D17: HBG /HBT MORTH 12 to 14mm | E17: 742.85 | F17: 1 M3 | G17: 12 mm (SS 5) | H17: 782.4
B18: 49/28 | C18: 16 | D18: HBG /HBT MORTH 19 to 22mm | E18: 937.15 | F18: 1 M3 | G18: 20 mm (SS 5) | H18: 986.4
B19: 50/29 | C19: 17 | D19: HBG /HBT MORTH 25 to 27mm | E19: 899.05 | F19: 1 M3 | G19: 25 mm (SS 5) | H19: 947.2
B20: 51/30 | C20: 18 | D20: HBG /HBT MORTH 40 to 45mm | E20: 560 | F20: 1 M3 | G20: 40 mm (SS 5) | H20: 590.4
A21: P17/15 | B21: 52/31 | C21: 19 | D21: HBG /HBT MORTH 50 to 55mm | E21: 434.3 | F21: 1 M3 | G21: 50 mm (SS 5) | H21: 434.3
B22: 53/32 | C22: 20 | D22: HBG /HBT MORTH 60 to 63mm | E22: 399.05 | F22: 1 M3 | G22: 60 mm (SS 5) | H22: 399.05
B23: 54/33 | C23: 21 | D23: HBG /HBT MORTH 65mm | E23: 360.95 | F23: 1 M3 | G23: 65 mm (SS 5) | H23: 360.95
B24: 55/34 | C24: 22 | D24: HBG /HBT MORTH 75mm | E24: 289.5 | F24: 1 M3 | G24: 75 mm (SS 5) | H24: 289.5
A25: P-15 | B25: 36 | C25: 23 | D25: Add Rs 70-00 towards Blasting charges item S No 12 to 22 | E25: 70 | F25: 1 M3 | G25: Material & Work
A26: P-18 | B26: 79 | C26: 24 | D26: Soling Stone 150mm Granite, Trap | E26: 95 | F26: 1 M3 | G26: Material & Work
A27: P-18 | B27: 81 | C27: 25 | D27: Soling Stone 150mm OTG | E27: 66 | F27: 1 M3 | G27: Material & Work
A28: P-18 | B28: 90 | C28: 26 | D28: Gravel | E28: 110 | F28: 1 M3 | G28: Material & Work
A29: P-18 | B29: 91 | C29: 27 | D29: Quarry Rubbish | E29: 84.75 | F29: 1 M3 | G29: Material & Work
A30: P-18 | B30: 91 | C30: 27 | D30: Selected Earth | E30: 55 | F30: 1 M3 | G30: Material & Work
A31: P-18 | B31: 92 | C31: 28 | D31: HBG Stone Chips 2.36 mm and below / Stone Dust | E31: 333 | F31: 1 M3 | G31: Material & Work
A32: P-19 | B32: 93 | C32: 29 | D32: Sand for Mortar, Plastering, Ceiling coat including washing & Screening | E32: 170 | F32: 1 M3 | G32: Material & Work
A33: P-19 | B33: 94 | C33: 30 | D33: Sand for Concrete | E33: 95 | F33: 1 M3 | G33: Material & Work
A34: P-19 | B34: 95 | C34: 31 | D34: Sand for Filling, Blindage | E34: 95 | F34: 1 M3 | G34: Material & Work
A35: P-19 | B35: 100 | C35: 32 | D35: Shell Lime Slaked and Screened | E35: 940 | F35: 1 M3 | G35: Material & Work
A36: P-19 | B36: 101 | C36: 33 | D36: White Cement | E36: 27.95 | F36: 1 Kg | G36: Material & Work
A37: P-20 | B37: 109 | C37: 34 | D37: Clearing of Heavy Jungle | E37: 3.2 | F37: 1 M2 | G37: Material & Work
A38: P-20 | B38: 110 | C38: 35 | D38: Clearing of Light Jungle / Scrub Jungle | E38: 2.8 | F38: 1 M2 | G38: Material & Work
A39: P-20 | B39: 112 | C39: 36 | D39: Clearing Juliflora(prosafts) jungle including uprooting&removing of Juliflora stumps | E39: 4.4 | F39: 1 M2 | G39: Material & Work
A40: P-20 | B40: 113 | C40: 37 | D40: Uprooting&Removing of stumps of other kinds of trees includi stacking of girth 30-100cm | E40: 21 | F40: Each | G40: Material & Work
A41: BMT-A.01 | C41: 38 | D41: Clay Bricks 23 X 11 X 7 cm Non-Modular or Traditional size | E41: 4672 | F41: 1000 No | G41: Blg
A42: BMT-A.02 | C42: 39 | D42: -do- 19 X 9 X 9 cm Modular or Traditional size | E42: 5256 | F42: 1000 No | G42: Blg
A43: BMT-A.03 | C43: 40 | D43: Fly Ash Cement / Lime Solid Blocks 290 X 225 X 140 mm size | E43: 21 | F43: Each | G43: Blg
A44: BMT-B.01 | C44: 41 | D44: Kadapa slab 40mm thick not less than 0.457X0.457M | E44: 96 | F44: 1 M2 | G44: Blg
A45: BMT-B.02 | C45: 42 | D45: -do- 50mm thick | E45: 110 | F45: 1 M2 | G45: Blg | J45: =3906+4915 -> 8821
A46: BMT-B.06 | C46: 43 | D46: Black Polished Kadapa stone slab minimum 15mm th (0.457X0.457M) | E46: 1379 | F46: 10 M2 | G46: Blg | J46: =8821/2 -> 4410.5
A47: BMT-B.07 | C47: 44 | D47: White Polished Betamcherla Marble minim 25mm th (0.254X0.254M) | E47: 3859 | F47: 10 M2 | G47: Blg
